Workbook

Sheet Introduction
C4: Joint Monitoring Programme for Water Supply, Sanitation and Hygiene
C6: Estimates on household water, sanitation and hygiene by wealth quintile and sub-national region in
C7: =+Water!B5 -> Togo
C9: Updated May 2021
C11: Follow the links below to find the following information:
C13: JMP Estimates
C14: WASH status and trends by wealth quintile (customized quintiles made without water and sanitation assets)
C15: Water
C16: Sanitation
C17: Hygiene
C19: Data inputs
C20: customized wealth quintiles and subnational data:
C21: =IF(INDIRECT(CONCATENATE("Water","!B105"))=0,"",INDIRECT(CONCATENATE("Water","!B105"))) -> MICS00
C22: =IF(INDIRECT(CONCATENATE("Water","!B106"))=0,"",INDIRECT(CONCATENATE("Water","!B106"))) -> MICS06
C23: =IF(INDIRECT(CONCATENATE("Water","!B107"))=0,"",INDIRECT(CONCATENATE("Water","!B107"))) -> MICS10
C24: =IF(INDIRECT(CONCATENATE("Water","!B108"))=0,"",INDIRECT(CONCATENATE("Water","!B108"))) -> MIS17
C25: =IF(INDIRECT(CONCATENATE("Water","!B109"))=0,"",INDIRECT(CONCATENATE("Water","!B109"))) -> MICS17
C26: =IF(INDIRECT(CONCATENATE("Water","!B110"))=0,"",INDIRECT(CONCATENATE("Water","!B110"))) -> 
C27: =IF(INDIRECT(CONCATENATE("Water","!B111"))=0,"",INDIRECT(CONCATENATE("Water","!B111"))) -> 
C28: =IF(INDIRECT(CONCATENATE("Water","!B112"))=0,"",INDIRECT(CONCATENATE("Water","!B112"))) -> 
C29: =IF(INDIRECT(CONCATENATE("Water","!B113"))=0,"",INDIRECT(CONCATENATE("Water","!B113"))) -> 
C30: =IF(INDIRECT(CONCATENATE("Water","!B114"))=0,"",INDIRECT(CONCATENATE("Water","!B114"))) -> 
C31: =IF(INDIRECT(CONCATENATE("Water","!B115"))=0,"",INDIRECT(CONCATENATE("Water","!B115"))) -> 
C32: =IF(INDIRECT(CONCATENATE("Water","!B116"))=0,"",INDIRECT(CONCATENATE("Water","!B116"))) -> 
L55: =+IF(ISNUMBER(M48), "", "Insufficient data to estimate safely managed sanitation services at national level") -> Insufficient data to estimate safely managed sanitation services at national level

Sheet Water
A1: BGD
B4: Summary of trends in use of drinking water by wealth quintile (%)
B5: =IF(ISERROR(INDIRECT(CONCATENATE($B105,"!A2"))),"",INDIRECT(CONCATENATE($B105,"!A2"))) -> Togo
B7: =B118 -> National use of drinking water sources, 2000–2020 | J7: =B218 -> Urban use of drinking water sources, 2000–2020 | R7: =B318 -> Rural use of drinking water sources, 2000–2020
B31: =IF(ISERROR(INDIRECT(CONCATENATE($B105,"!A2"))),"",INDIRECT(CONCATENATE($B105,"!A2"))) -> Togo | F31: Poorest | J31: Poor | N31: Middle | R31: Rich | V31: Richest
F32: Basic | G32: Limited | H32: Unimproved | I32: Surface water | J32: Basic | K32: Limited | L32: Unimproved | M32: Surface water | N32: Basic | O32: Limited | P32: Unimproved | Q32: Surface water | R32: Basic | S32: Limited | T32: Unimproved | U32: Surface water | V32: Basic | W32: Limited | X32: Unimproved | Y32: Surface water
B33: NATIONAL | D33: Estimate | E33: =C99 -> 2000 | F33: =E99 -> 19.95753966 | G33: =F99 -> 3.692418954 | H33: 33.9281671 | I33: 42.42187428 | J33: =J99 -> 27.01679594 | K33: =K99 -> 4.285485672 | L33: 36.18179309 | M33: 32.5159253 | N33: =O99 -> 42.13054521 | O33: =P99 -> 3.777447124 | P33: 32.09877691 | Q33: 21.99323076 | R33: =T99 -> 60.5841207 | S33: =U99 -> 3.094624744 | T33: 25.31451654 | U33: 11.00673801 | V33: =Y99 -> 82.51460547 | W33: =Z99 -> 1.961960457 | X33: 14.53163453 | Y33: 0.9917995345
E34: =C100 -> 2020 | F34: =E100 -> 38.76747226 | G34: 7.172514838 | H34: 26.59263521 | I34: 27.46737769 | J34: =J100 -> 47.56405477 | K34: 7.544753852 | L34: 22.88941707 | M34: 22.00177431 | N34: =O100 -> 66.95391445 | O34: 6.003123632 | P34: 18.15656645 | Q34: 8.886395468 | R34: =T100 -> 91.52798282 | S34: 4.67523102 | T34: 3.796786157 | U34: 0 | V34: =Y100 -> 96.4688568 | W34: 2.293752497 | X34: 1.237390702 | Y34: 0
B36: URBAN | D36: Estimate | E36: =C199 -> 2000 | F36: =E199 -> 62.37043612 | G36: =F199 -> 3.206077055 | H36: 28.3995185 | I36: 6.023968328 | J36: =J199 -> 77.90096067 | K36: =K199 -> 3.030887056 | L36: 18.40708389 | M36: 0.6610683825 | N36: =O199 -> 81.31563234 | O36: =P199 -> 2.6690836 | P36: 16.01528406 | Q36: 0 | R36: =T199 -> 83.42221338 | S36: =U199 -> 1.651581748 | T36: 14.92620488 | U36: 0 | V36: =Y199 -> 93.39843544 | W36: =Z199 -> 0.9731649725 | X36: 5.628399587 | Y36: 0
E37: =C200 -> 2020 | F37: =E200 -> 78.40320576 | G37: 4.030222244 | H37: 13.00525267 | I37: 4.561319326 | J37: =J200 -> 91.88382857 | K37: 3.574917488 | L37: 3.861177184 | M37: 0.6800767528 | N37: =O200 -> 94.50991699 | O37: 3.102169438 | P37: 2.387913569 | Q37: 0 | R37: =T200 -> 96.67011636 | S37: 1.913861948 | T37: 1.416021692 | U37: 0 | V37: =Y200 -> 96.85937181 | W37: 1.009226198 | X37: 2.131401993 | Y37: 0
B39: RURAL | D39: Estimate | E39: =C299 -> 2000 | F39: =E299 -> 18.69745219 | G39: =F299 -> 3.940267072 | H39: 31.04215922 | I39: 46.32012152 | J39: =J299 -> 19.75807346 | K39: =K299 -> 3.423508204 | L39: 40.70627741 | M39: 36.11214093 | N39: =O299 -> 30.28544236 | O39: =P299 -> 4.820200702 | P39: 33.65940044 | Q39: 31.2349565 | R39: =T299 -> 35.74107997 | S39: =U299 -> 3.85400321 | T39: 32.9019907 | U39: 27.50292612 | V39: =Y299 -> 38.52113934 | W39: =Z299 -> 3.928075561 | X39: 35.81932069 | Y39: 21.73146441
E40: =C300 -> 2020 | F40: =E300 -> 37.51350858 | G40: 7.905528579 | H40: 26.92812243 | I40: 27.65284041 | J40: =J300 -> 40.22137417 | K40: 6.969212088 | L40: 25.24739603 | M40: 27.56201772 | N40: =O300 -> 47.30789066 | O40: 7.529476539 | P40: 23.01287674 | Q40: 22.14975606 | R40: =T300 -> 58.74395956 | S40: 6.334431106 | T40: 21.41960035 | U40: 13.50200898 | V40: =Y300 -> 78.31862715 | W40: 7.98630286 | X40: 11.49258369 | Y40: 2.202486307
A97: NATIONAL | D97: Poorest | I97: Poor | N97: Middle | S97: Rich | X97: Richest
D98: Improved | E98: Basic | F98: Limited | G98: Unimproved | H98: Surface water | I98: Improved | J98: Basic | K98: Limited | L98: Unimproved | M98: Surface water | N98: Improved | O98: Basic | P98: Limited | Q98: Unimproved | R98: Surface water | S98: Improved | T98: Basic | U98: Limited | V98: Unimproved | W98: Surface water | X98: Improved | Y98: Basic | Z98: Limited | AA98: Unimproved | AB98: Surface water
A99: Forecast period: | C99: 2000 | D99: =IF((D101+H101)>100,D101*100/(D101+H101),D101) -> 23.64995862 | E99: =D99*AVERAGEIF(E105:E116,">0")/100 -> 19.95753966 | F99: =D99*(100-AVERAGEIF(E105:E116,">0"))/100 -> 3.692418954 | G99: =100-(E99+F99+H99) -> 33.9281671 | H99: =IF((D101+H101)>100,H101*100/(D101+H101),H101) -> 42.42187428 | I99: =IF((I101+M101)>100,I101*100/(I101+M101),I101) -> 31.30228161 | J99: =I99*AVERAGEIF(J105:J116,">0")/100 -> 27.01679594 | K99: =I99*(100-AVERAGEIF(J105:J116,">0"))/100 -> 4.285485672 | L99: =100-(J99+K99+M99) -> 36.18179309 | M99: =IF((I101+M101)>100,M101*100/(I101+M101),M101) -> 32.5159253 | N99: =IF((N101+R101)>100,N101*100/(N101+R101),N101) -> 45.90799233 | O99: =N99*AVERAGEIF(O105:O116,">0")/100 -> 42.13054521 | P99: =N99*(100-AVERAGEIF(O105:O116,">0"))/100 -> 3.777447124 | Q99: =100-(O99+P99+R99) -> 32.09877691 | R99: =IF((N101+R101)>100,R101*100/(N101+R101),R101) -> 21.99323076 | S99: =IF((S101+W101)>100,S101*100/(S101+W101),S101) -> 63.67874545 | T99: =S99*AVERAGEIF(T105:T116,">0")/100 -> 60.5841207 | U99: =S99*(100-AVERAGEIF(T105:T116,">0"))/100 -> 3.094624744 | V99: =100-(T99+U99+W99) -> 25.31451654 | W99: =IF((S101+W101)>100,W101*100/(S101+W101),W101) -> 11.00673801 | X99: =IF((X101+AB101)>100,X101*100/(X101+AB101),X101) -> 84.47656593 | Y99: =X99*AVERAGEIF(Y105:Y116,">0")/100 -> 82.51460547 | Z99: =X99*(100-AVERAGEIF(Y105:Y116,">0"))/100 -> 1.961960457 | AA99: =100-(Y99+Z99+AB99) -> 14.53163453 | AB99: =IF((X101+AB101)>100,AB101*100/(X101+AB101),AB101) -> 0.9917995345
C100: 2020 | D100: =IF((D102+H102)>100,D102*100/(D102+H102),D102) -> 45.9399871 | E100: =D100*AVERAGEIF(E105:E116,">0")/100 -> 38.76747226 | F100: =D100*(100-AVERAGEIF(E105:E116,">0"))/100 -> 7.172514838 | G100: =100-(E100+F100+H100) -> 26.59263521 | H100: =IF((D102+H102)>100,H102*100/(D102+H102),H102) -> 27.46737769 | I100: =IF((I102+M102)>100,I102*100/(I102+M102),I102) -> 55.10880862 | J100: =I100*AVERAGEIF(J105:J116,">0")/100 -> 47.56405477 | K100: =I100*(100-AVERAGEIF(J105:J116,">0"))/100 -> 7.544753852 | L100: =100-(J100+K100+M100) -> 22.88941707 | M100: =IF((I102+M102)>100,M102*100/(I102+M102),M102) -> 22.00177431 | N100: =IF((N102+R102)>100,N102*100/(N102+R102),N102) -> 72.95703808 | O100: =N100*AVERAGEIF(O105:O116,">0")/100 -> 66.95391445 | P100: =N100*(100-AVERAGEIF(O105:O116,">0"))/100 -> 6.003123632 | Q100: =100-(O100+P100+R100) -> 18.15656645 | R100: =IF((N102+R102)>100,R102*100/(N102+R102),R102) -> 8.886395468 | S100: =IF((S102+W102)>100,S102*100/(S102+W102),S102) -> 96.20321384 | T100: =S100*AVERAGEIF(T105:T116,">0")/100 -> 91.52798282 | U100: =S100*(100-AVERAGEIF(T105:T116,">0"))/100 -> 4.67523102 | V100: =100-(T100+U100+W100) -> 3.796786157 | W100: =IF((S102+W102)>100,W102*100/(S102+W102),W102) -> 0 | X100: =IF((X102+AB102)>100,X102*100/(X102+AB102),X102) -> 98.7626093 | Y100: =X100*AVERAGEIF(Y105:Y116,">0")/100 -> 96.4688568 | Z100: =X100*(100-AVERAGEIF(Y105:Y116,">0"))/100 -> 2.293752497 | AA100: =100-(Y100+Z100+AB100) -> 1.237390702 | AB100: =IF((X102+AB102)>100,AB102*100/(X102+AB102),AB102) -> 0
A101: Regression period: | C101: =MinRegYear(C99,C105:C116) -> 2000 | D101: =IF(MAX(C105:C116)-MIN(C105:C116)<5,AVERAGEIF(C105:C116,">0",D105:D116), IF(FORECAST($C101,D$105:D$116,$C$105:$C$116)<0,0, IF(FORECAST($C101,D$105:D$116,$C$105:$C$116)>100,100, FORECAST($C101,D$105:D$116,$C$105:$C$116)))) -> 23.64995862 | H101: =IF(MAX(C105:C116)-MIN(C105:C116)<5,AVERAGEIF(C105:C116,">0",H105:H116), IF(FORECAST($C101,H$105:H$116,$C$105:$C$116)<0,0, IF(FORECAST($C101,H$105:H$116,$C$105:$C$116)>100,100, FORECAST($C101,H$105:H$116,$C$105:$C$116)))) -> 42.42187428 | I101: =IF(MAX(C105:C116)-MIN(C105:C116)<5,AVERAGEIF(C105:C116,">0",I105:I116), IF(FORECAST($C101,I$105:I$116,$C$105:$C$116)<0,0, IF(FORECAST($C101,I$105:I$116,$C$105:$C$116)>100,100, FORECAST($C101,I$105:I$116,$C$105:$C$116)))) -> 31.30228161 | M101: =IF(MAX(C105:C116)-MIN(C105:C116)<5,AVERAGEIF(C105:C116,">0",M105:M116), IF(FORECAST($C101,M$105:M$116,$C$105:$C$116)<0,0, IF(FORECAST($C101,M$105:M$116,$C$105:$C$116)>100,100, FORECAST($C101,M$105:M$116,$C$105:$C$116)))) -> 32.5159253 | N101: =IF(MAX(C105:C116)-MIN(C105:C116)<5,AVERAGEIF(C105:C116,">0",N105:N116), IF(FORECAST($C101,N$105:N$116,$C$105:$C$116)<0,0, IF(FORECAST($C101,N$105:N$116,$C$105:$C$116)>100,100, FORECAST($C101,N$105:N$116,$C$105:$C$116)))) -> 45.90799233 | R101: =IF(MAX(C105:C116)-MIN(C105:C116)<5,AVERAGEIF(C105:C116,">0",R105:R116), IF(FORECAST($C101,R$105:R$116,$C$105:$C$116)<0,0, IF(FORECAST($C101,R$105:R$116,$C$105:$C$116)>100,100, FORECAST($C101,R$105:R$116,$C$105:$C$116)))) -> 21.99323076 | S101: =IF(MAX(C105:C116)-MIN(C105:C116)<5,AVERAGEIF(C105:C116,">0",S105:S116), IF(FORECAST($C101,S$105:S$116,$C$105:$C$116)<0,0, IF(FORECAST($C101,S$105:S$116,$C$105:$C$116)>100,100, FORECAST($C101,S$105:S$116,$C$105:$C$116)))) -> 63.67874545 | W101: =IF(MAX(C105:C116)-MIN(C105:C116)<5,AVERAGEIF(C105:C116,">0",W105:W116), IF(FORECAST($C101,W$105:W$116,$C$105:$C$116)<0,0, IF(FORECAST($C101,W$105:W$116,$C$105:$C$116)>100,100, FORECAST($C101,W$105:W$116,$C$105:$C$116)))) -> 11.00673801 | X101: =IF(MAX(C105:C116)-MIN(C105:C116)<5,AVERAGEIF(C105:C116,">0",X105:X116), IF(FORECAST($C101,X$105:X$116,$C$105:$C$116)<0,0, IF(FORECAST($C101,X$105:X$116,$C$105:$C$116)>100,100, FORECAST($C101,X$105:X$116,$C$105:$C$116)))) -> 84.47656593 | AB101: =IF(MAX(C105:C116)-MIN(C105:C116)<5,AVERAGEIF(C105:C116,">0",AB105:AB116), IF(FORECAST($C101,AB$105:AB$116,$C$105:$C$116)<0,0, IF(FORECAST($C101,AB$105:AB$116,$C$105:$C$116)>100,100, FORECAST($C101,AB$105:AB$116,$C$105:$C$116)))) -> 0.9917995345
C102: =MaxRegYear(C100,C105:C116) -> 2019 | D102: =IF(MAX(C105:C116)-MIN(C105:C116)<5,AVERAGEIF(C105:C116,">0",D105:D116), IF(FORECAST($C102,D$105:D$116,$C$105:$C$116)<0,0, IF(FORECAST($C102,D$105:D$116,$C$105:$C$116)>100,100, FORECAST($C102,D$105:D$116,$C$105:$C$116)))) -> 45.9399871 | H102: =IF(MAX(C105:C116)-MIN(C105:C116)<5,AVERAGEIF(C105:C116,">0",H105:H116), IF(FORECAST($C102,H$105:H$116,$C$105:$C$116)<0,0, IF(FORECAST($C102,H$105:H$116,$C$105:$C$116)>100,100, FORECAST($C102,H$105:H$116,$C$105:$C$116)))) -> 27.46737769 | I102: =IF(MAX(C105:C116)-MIN(C105:C116)<5,AVERAGEIF(C105:C116,">0",I105:I116), IF(FORECAST($C102,I$105:I$116,$C$105:$C$116)<0,0, IF(FORECAST($C102,I$105:I$116,$C$105:$C$116)>100,100, FORECAST($C102,I$105:I$116,$C$105:$C$116)))) -> 55.10880862 | M102: =IF(MAX(C105:C116)-MIN(C105:C116)<5,AVERAGEIF(C105:C116,">0",M105:M116), IF(FORECAST($C102,M$105:M$116,$C$105:$C$116)<0,0, IF(FORECAST($C102,M$105:M$116,$C$105:$C$116)>100,100, FORECAST($C102,M$105:M$116,$C$105:$C$116)))) -> 22.00177431 | N102: =IF(MAX(C105:C116)-MIN(C105:C116)<5,AVERAGEIF(C105:C116,">0",N105:N116), IF(FORECAST($C102,N$105:N$116,$C$105:$C$116)<0,0, IF(FORECAST($C102,N$105:N$116,$C$105:$C$116)>100,100, FORECAST($C102,N$105:N$116,$C$105:$C$116)))) -> 72.95703808 | R102: =IF(MAX(C105:C116)-MIN(C105:C116)<5,AVERAGEIF(C105:C116,">0",R105:R116), IF(FORECAST($C102,R$105:R$116,$C$105:$C$116)<0,0, IF(FORECAST($C102,R$105:R$116,$C$105:$C$116)>100,100, FORECAST($C102,R$105:R$116,$C$105:$C$116)))) -> 8.886395468 | S102: =IF(MAX(C105:C116)-MIN(C105:C116)<5,AVERAGEIF(C105:C116,">0",S105:S116), IF(FORECAST($C102,S$105:S$116,$C$105:$C$116)<0,0, IF(FORECAST($C102,S$105:S$116,$C$105:$C$116)>100,100, FORECAST($C102,S$105:S$116,$C$105:$C$116)))) -> 96.20321384 | W102: =IF(MAX(C105:C116)-MIN(C105:C116)<5,AVERAGEIF(C105:C116,">0",W105:W116), IF(FORECAST($C102,W$105:W$116,$C$105:$C$116)<0,0, IF(FORECAST($C102,W$105:W$116,$C$105:$C$116)>100,100, FORECAST($C102,W$105:W$116,$C$105:$C$116)))) -> 0 | X102: =IF(MAX(C105:C116)-MIN(C105:C116)<5,AVERAGEIF(C105:C116,">0",X105:X116), IF(FORECAST($C102,X$105:X$116,$C$105:$C$116)<0,0, IF(FORECAST($C102,X$105:X$116,$C$105:$C$116)>100,100, FORECAST($C102,X$105:X$116,$C$105:$C$116)))) -> 98.7626093 | AB102: =IF(MAX(C105:C116)-MIN(C105:C116)<5,AVERAGEIF(C105:C116,">0",AB105:AB116), IF(FORECAST($C102,AB$105:AB$116,$C$105:$C$116)<0,0, IF(FORECAST($C102,AB$105:AB$116,$C$105:$C$116)>100,100, FORECAST($C102,AB$105:AB$116,$C$105:$C$116)))) -> 0
B104: Survey | C104: Year | D104: Improved | E104: % Improved < = 30min | H104: Surface water | I104: Improved | J104: % Improved < = 30min | M104: Surface water | N104: Improved | O104: % Improved < = 30min | R104: Surface water | S104: Improved | T104: % Improved < = 30min | W104: Surface water | X104: Improved | Y104: % Improved < = 30min | AB104: Surface water
B105: MICS00 | C105: 2000 | D105: =IF(ISERROR(INDIRECT(CONCATENATE($B105,"!C16"))),"",INDIRECT(CONCATENATE($B105,"!C16"))) -> 26.42129518 | E105: =IF(ISERROR(INDIRECT(CONCATENATE($B105,"!C23"))),"",INDIRECT(CONCATENATE($B105,"!C23"))) -> 93.7829343 | H105: =IF(ISERROR(INDIRECT(CONCATENATE($B105,"!C21"))),"",INDIRECT(CONCATENATE($B105,"!C21"))) -> 42.98351142 | I105: =IF(ISERROR(INDIRECT(CONCATENATE($B105,"!D16"))),"",INDIRECT(CONCATENATE($B105,"!D16"))) -> 32.56050567 | J105: =IF(ISERROR(INDIRECT(CONCATENATE($B105,"!D23"))),"",INDIRECT(CONCATENATE($B105,"!D23"))) -> 91.26088186 | M105: =IF(ISERROR(INDIRECT(CONCATENATE($B105,"!D21"))),"",INDIRECT(CONCATENATE($B105,"!D21"))) -> 32.25145364 | N105: =IF(ISERROR(INDIRECT(CONCATENATE($B105,"!E16"))),"",INDIRECT(CONCATENATE($B105,"!E16"))) -> 47.07378601 | O105: =IF(ISERROR(INDIRECT(CONCATENATE($B105,"!E23"))),"",INDIRECT(CONCATENATE($B105,"!E23"))) -> 93.03425106 | R105: =IF(ISERROR(INDIRECT(CONCATENATE($B105,"!E21"))),"",INDIRECT(CONCATENATE($B105,"!E21"))) -> 20.92643686 | S105: =IF(ISERROR(INDIRECT(CONCATENATE($B105,"!F16"))),"",INDIRECT(CONCATENATE($B105,"!F16"))) -> 59.43286104 | T105: =IF(ISERROR(INDIRECT(CONCATENATE($B105,"!F23"))),"",INDIRECT(CONCATENATE($B105,"!F23"))) -> 93.79682823 | W105: =IF(ISERROR(INDIRECT(CONCATENATE($B105,"!F21"))),"",INDIRECT(CONCATENATE($B105,"!F21"))) -> 14.81816396 | X105: =IF(ISERROR(INDIRECT(CONCATENATE($B105,"!G16"))),"",INDIRECT(CONCATENATE($B105,"!G16"))) -> 81.77804537 | Y105: =IF(ISERROR(INDIRECT(CONCATENATE($B105,"!G23"))),"",INDIRECT(CONCATENATE($B105,"!G23"))) -> 97.57214529 | AB105: =IF(ISERROR(INDIRECT(CONCATENATE($B105,"!G221"))),"",INDIRECT(CONCATENATE($B105,"!G21"))) -> 1.372187037
B106: MICS06 | C106: 2006 | D106: 33.28428454 | E106: 76.60118102 | H106: 34.38742158 | I106: 39.89058926 | J106: 79.63476083 | M106: 28.47305197 | N106: 57.33714648 | O106: 90.37789447 | R106: 16.79672587 | S106: 79.93065945 | T106: 93.42588566 | W106: 2.783980206 | X106: 93.07288743 | Y106: 97.30513503 | AB106: 0.1559663553
B107: MICS10 | C107: 2010 | D107: 24.57272587 | E107: 82.5 | H107: 38.39165082 | I107: 39.09419892 | J107: 85.1 | M107: 28.75998799 | N107: 52.77585433 | O107: 87.5 | R107: 19.34747403 | S107: 81.70956004 | T107: 94.8 | W107: 2.413457956 | X107: 92.12989559 | Y107: 96.4 | AB107: 0.2177038256
B108: MIS17 | C108: 2017 | D108: 43.85811758 | E108: 86.31747149 | H108: 32.892648 | I108: 47.47536682 | J108: 91.70151309 | M108: 29.21849791 | N108: 68.13542387 | O108: 94.77974 | R108: 12.06003379 | S108: 90.80435465 | T108: 97.75698188 | W108: 2.33666939 | X108: 96.27045492 | Y108: 99.17064896 | AB108: 0.1149302972
B109: MICS17 | C109: 2017 | D109: 48.7713396 | E109: 82.73445093 | H109: 24.10020118 | I109: 60.13950267 | J109: 83.84959655 | M109: 16.20781659 | N109: 75.39945031 | O109: 93.16661674 | R109: 6.34381144 | S109: 92.10699837 | T109: 95.92157848 | W109: 1.133971838 | X109: 96.72639731 | Y109: 97.93961681 | AB109: 0.1032662623
D111: =IF(ISERROR(INDIRECT(CONCATENATE($B111,"!C16"))),"",INDIRECT(CONCATENATE($B111,"!C16"))) ->  | E111: =IF(ISERROR(INDIRECT(CONCATENATE($B111,"!C23"))),"",INDIRECT(CONCATENATE($B111,"!C23"))) ->  | H111: =IF(ISERROR(INDIRECT(CONCATENATE($B111,"!C21"))),"",INDIRECT(CONCATENATE($B111,"!C21"))) ->  | I111: =IF(ISERROR(INDIRECT(CONCATENATE($B111,"!D16"))),"",INDIRECT(CONCATENATE($B111,"!D16"))) ->  | J111: =IF(ISERROR(INDIRECT(CONCATENATE($B111,"!D23"))),"",INDIRECT(CONCATENATE($B111,"!D23"))) ->  | M111: =IF(ISERROR(INDIRECT(CONCATENATE($B111,"!D21"))),"",INDIRECT(CONCATENATE($B111,"!D21"))) ->  | N111: =IF(ISERROR(INDIRECT(CONCATENATE($B111,"!E16"))),"",INDIRECT(CONCATENATE($B111,"!E16"))) ->  | O111: =IF(ISERROR(INDIRECT(CONCATENATE($B111,"!E23"))),"",INDIRECT(CONCATENATE($B111,"!E23"))) ->  | R111: =IF(ISERROR(INDIRECT(CONCATENATE($B111,"!E21"))),"",INDIRECT(CONCATENATE($B111,"!E21"))) ->  | S111: =IF(ISERROR(INDIRECT(CONCATENATE($B111,"!F16"))),"",INDIRECT(CONCATENATE($B111,"!F16"))) ->  | T111: =IF(ISERROR(INDIRECT(CONCATENATE($B111,"!F23"))),"",INDIRECT(CONCATENATE($B111,"!F23"))) ->  | W111: =IF(ISERROR(INDIRECT(CONCATENATE($B111,"!F21"))),"",INDIRECT(CONCATENATE($B111,"!F21"))) ->  | X111: =IF(ISERROR(INDIRECT(CONCATENATE($B111,"!G16"))),"",INDIRECT(CONCATENATE($B111,"!G16"))) ->  | Y111: =IF(ISERROR(INDIRECT(CONCATENATE($B111,"!G23"))),"",INDIRECT(CONCATENATE($B111,"!G23"))) ->  | AB111: =IF(ISERROR(INDIRECT(CONCATENATE($B111,"!G221"))),"",INDIRECT(CONCATENATE($B111,"!G21"))) -> 
D112: =IF(ISERROR(INDIRECT(CONCATENATE($B112,"!C16"))),"",INDIRECT(CONCATENATE($B112,"!C16"))) ->  | E112: =IF(ISERROR(INDIRECT(CONCATENATE($B112,"!C23"))),"",INDIRECT(CONCATENATE($B112,"!C23"))) ->  | H112: =IF(ISERROR(INDIRECT(CONCATENATE($B112,"!C21"))),"",INDIRECT(CONCATENATE($B112,"!C21"))) ->  | I112: =IF(ISERROR(INDIRECT(CONCATENATE($B112,"!D16"))),"",INDIRECT(CONCATENATE($B112,"!D16"))) ->  | J112: =IF(ISERROR(INDIRECT(CONCATENATE($B112,"!D23"))),"",INDIRECT(CONCATENATE($B112,"!D23"))) ->  | M112: =IF(ISERROR(INDIRECT(CONCATENATE($B112,"!D21"))),"",INDIRECT(CONCATENATE($B112,"!D21"))) ->  | N112: =IF(ISERROR(INDIRECT(CONCATENATE($B112,"!E16"))),"",INDIRECT(CONCATENATE($B112,"!E16"))) ->  | O112: =IF(ISERROR(INDIRECT(CONCATENATE($B112,"!E23"))),"",INDIRECT(CONCATENATE($B112,"!E23"))) ->  | R112: =IF(ISERROR(INDIRECT(CONCATENATE($B112,"!E21"))),"",INDIRECT(CONCATENATE($B112,"!E21"))) ->  | S112: =IF(ISERROR(INDIRECT(CONCATENATE($B112,"!F16"))),"",INDIRECT(CONCATENATE($B112,"!F16"))) ->  | T112: =IF(ISERROR(INDIRECT(CONCATENATE($B112,"!F23"))),"",INDIRECT(CONCATENATE($B112,"!F23"))) ->  | W112: =IF(ISERROR(INDIRECT(CONCATENATE($B112,"!F21"))),"",INDIRECT(CONCATENATE($B112,"!F21"))) ->  | X112: =IF(ISERROR(INDIRECT(CONCATENATE($B112,"!G16"))),"",INDIRECT(CONCATENATE($B112,"!G16"))) ->  | Y112: =IF(ISERROR(INDIRECT(CONCATENATE($B112,"!G23"))),"",INDIRECT(CONCATENATE($B112,"!G23"))) ->  | AB112: =IF(ISERROR(INDIRECT(CONCATENATE($B112,"!G221"))),"",INDIRECT(CONCATENATE($B112,"!G21"))) -> 
B118: =CONCATENATE("National use of drinking water sources, ",C99,"–",C100) -> National use of drinking water sources, 2000–2020 | S118: Data points used for regression
E153: =IF(ISERROR(INDIRECT(CONCATENATE($B153,"!M18"))),"",INDIRECT(CONCATENATE($B153,"!M18"))) ->  | F153: =IF(ISERROR(INDIRECT(CONCATENATE($B153,"!M19"))),"",INDIRECT(CONCATENATE($B153,"!M19"))) ->  | G153: =IF(ISERROR(INDIRECT(CONCATENATE($B153,"!M20"))),"",INDIRECT(CONCATENATE($B153,"!M20"))) ->  | H153: =IF(ISERROR(INDIRECT(CONCATENATE($B153,"!M21"))),"",INDIRECT(CONCATENATE($B153,"!M21"))) ->  | J153: =IF(ISERROR(INDIRECT(CONCATENATE($B153,"!N18"))),"",INDIRECT(CONCATENATE($B153,"!N18"))) ->  | K153: =IF(ISERROR(INDIRECT(CONCATENATE($B153,"!N19"))),"",INDIRECT(CONCATENATE($B153,"!N19"))) ->  | L153: =IF(ISERROR(INDIRECT(CONCATENATE($B153,"!N20"))),"",INDIRECT(CONCATENATE($B153,"!N20"))) ->  | M153: =IF(ISERROR(INDIRECT(CONCATENATE($B153,"!N21"))),"",INDIRECT(CONCATENATE($B153,"!N21"))) ->  | O153: =IF(ISERROR(INDIRECT(CONCATENATE($B153,"!O18"))),"",INDIRECT(CONCATENATE($B153,"!O18"))) ->  | P153: =IF(ISERROR(INDIRECT(CONCATENATE($B153,"!O19"))),"",INDIRECT(CONCATENATE($B153,"!O19"))) ->  | Q153: =IF(ISERROR(INDIRECT(CONCATENATE($B153,"!O20"))),"",INDIRECT(CONCATENATE($B153,"!O20"))) ->  | R153: =IF(ISERROR(INDIRECT(CONCATENATE($B153,"!O21"))),"",INDIRECT(CONCATENATE($B153,"!O21"))) ->  | T153: =IF(ISERROR(INDIRECT(CONCATENATE($B153,"!P18"))),"",INDIRECT(CONCATENATE($B153,"!P18"))) ->  | U153: =IF(ISERROR(INDIRECT(CONCATENATE($B153,"!P19"))),"",INDIRECT(CONCATENATE($B153,"!P19"))) ->  | V153: =IF(ISERROR(INDIRECT(CONCATENATE($B153,"!P20"))),"",INDIRECT(CONCATENATE($B153,"!P20"))) ->  | W153: =IF(ISERROR(INDIRECT(CONCATENATE($B153,"!P21"))),"",INDIRECT(CONCATENATE($B153,"!P21"))) ->  | Y153: =IF(ISERROR(INDIRECT(CONCATENATE($B153,"!Q18"))),"",INDIRECT(CONCATENATE($B153,"!Q18"))) ->  | Z153: =IF(ISERROR(INDIRECT(CONCATENATE($B153,"!Q19"))),"",INDIRECT(CONCATENATE($B153,"!Q19"))) ->  | AA153: =IF(ISERROR(INDIRECT(CONCATENATE($B153,"!Q20"))),"",INDIRECT(CONCATENATE($B153,"!Q20"))) ->  | AB153: =IF(ISERROR(INDIRECT(CONCATENATE($B153,"!Q21"))),"",INDIRECT(CONCATENATE($B153,"!Q1"))) -> 
A197: URBAN | D197: Poorest | I197: Poor | N197: Middle | S197: Rich | X197: Richest
D198: Improved | E198: Basic | F198: Limited | G198: Unimproved | H198: Surface water | I198: Improved | J198: Basic | K198: Limited | L198: Unimproved | M198: Surface water | N198: Improved | O198: Basic | P198: Limited | Q198: Unimproved | R198: Surface water | S198: Improved | T198: Basic | U198: Limited | V198: Unimproved | W198: Surface water | X198: Improved | Y198: Basic | Z198: Limited | AA198: Unimproved | AB198: Surface water
A199: Forecast period: | C199: 2000 | D199: =IF((D201+H201)>100,D201*100/(D201+H201),D201) -> 65.57651317 | E199: =D199*AVERAGEIF(E205:E216,">0")/100 -> 62.37043612 | F199: =D199*(100-AVERAGEIF(E205:E216,">0"))/100 -> 3.206077055 | G199: =100-(E199+F199+H199) -> 28.3995185 | H199: =IF((D201+H201)>100,H201*100/(D201+H201),H201) -> 6.023968328 | I199: =IF((I201+M201)>100,I201*100/(I201+M201),I201) -> 80.93184773 | J199: =I199*AVERAGEIF(J205:J216,">0")/100 -> 77.90096067 | K199: =I199*(100-AVERAGEIF(J205:J216,">0"))/100 -> 3.030887056 | L199: =100-(J199+K199+M199) -> 18.40708389 | M199: =IF((I201+M201)>100,M201*100/(I201+M201),M201) -> 0.6610683825 | N199: =IF((N201+R201)>100,N201*100/(N201+R201),N201) -> 83.98471594 | O199: =N199*AVERAGEIF(O205:O216,">0")/100 -> 81.31563234 | P199: =N199*(100-AVERAGEIF(O205:O216,">0"))/100 -> 2.6690836 | Q199: =100-(O199+P199+R199) -> 16.01528406 | R199: =IF((N201+R201)>100,R201*100/(N201+R201),R201) -> 0 | S199: =IF((S201+W201)>100,S201*100/(S201+W201),S201) -> 85.07379512 | T199: =S199*AVERAGEIF(T205:T216,">0")/100 -> 83.42221338 | U199: =S199*(100-AVERAGEIF(T205:T216,">0"))/100 -> 1.651581748 | V199: =100-(T199+U199+W199) -> 14.92620488 | W199: =IF((S201+W201)>100,W201*100/(S201+W201),W201) -> 0 | X199: =IF((X201+AB201)>100,X201*100/(X201+AB201),X201) -> 94.37160041 | Y199: =X199*AVERAGEIF(Y205:Y216,">0")/100 -> 93.39843544 | Z199: =X199*(100-AVERAGEIF(Y205:Y216,">0"))/100 -> 0.9731649725 | AA199: =100-(Y199+Z199+AB199) -> 5.628399587 | AB199: =IF((X201+AB201)>100,AB201*100/(X201+AB201),AB201) -> 0
C200: 2020 | D200: =IF((D202+H202)>100,D202*100/(D202+H202),D202) -> 82.433428 | E200: =D200*AVERAGEIF(E205:E216,">0")/100 -> 78.40320576 | F200: =D200*(100-AVERAGEIF(E205:E216,">0"))/100 -> 4.030222244 | G200: =100-(E200+F200+H200) -> 13.00525267 | H200: =IF((D202+H202)>100,H202*100/(D202+H202),H202) -> 4.561319326 | I200: =IF((I202+M202)>100,I202*100/(I202+M202),I202) -> 95.45874606 | J200: =I200*AVERAGEIF(J205:J216,">0")/100 -> 91.88382857 | K200: =I200*(100-AVERAGEIF(J205:J216,">0"))/100 -> 3.574917488 | L200: =100-(J200+K200+M200) -> 3.861177184 | M200: =IF((I202+M202)>100,M202*100/(I202+M202),M202) -> 0.6800767528 | N200: =IF((N202+R202)>100,N202*100/(N202+R202),N202) -> 97.61208643 | O200: =N200*AVERAGEIF(O205:O216,">0")/100 -> 94.50991699 | P200: =N200*(100-AVERAGEIF(O205:O216,">0"))/100 -> 3.102169438 | Q200: =100-(O200+P200+R200) -> 2.387913569 | R200: =IF((N202+R202)>100,R202*100/(N202+R202),R202) -> 0 | S200: =IF((S202+W202)>100,S202*100/(S202+W202),S202) -> 98.58397831 | T200: =S200*AVERAGEIF(T205:T216,">0")/100 -> 96.67011636 | U200: =S200*(100-AVERAGEIF(T205:T216,">0"))/100 -> 1.913861948 | V200: =100-(T200+U200+W200) -> 1.416021692 | W200: =IF((S202+W202)>100,W202*100/(S202+W202),W202) -> 0 | X200: =IF((X202+AB202)>100,X202*100/(X202+AB202),X202) -> 97.86859801 | Y200: =X200*AVERAGEIF(Y205:Y216,">0")/100 -> 96.85937181 | Z200: =X200*(100-AVERAGEIF(Y205:Y216,">0"))/100 -> 1.009226198 | AA200: =100-(Y200+Z200+AB200) -> 2.131401993 | AB200: =IF((X202+AB202)>100,AB202*100/(X202+AB202),AB202) -> 0
A201: Regression period: | C201: =MinRegYear(C199,C205:C216) -> 2000 | D201: =IF(MAX(C205:C216)-MIN(C205:C216)<5,AVERAGEIF(C205:C216,">0",D205:D216), IF(FORECAST($C201,D$205:D$216,$C$205:$C$216)<0,0, IF(FORECAST($C201,D$205:D$216,$C$205:$C$216)>100,100, FORECAST($C201,D$205:D$216,$C$205:$C$216)))) -> 65.57651317 | H201: =IF(MAX(C205:C216)-MIN(C205:C216)<5,AVERAGEIF(C205:C216,">0",H205:H216), IF(FORECAST($C201,H$205:H$216,$C$205:$C$216)<0,0, IF(FORECAST($C201,H$205:H$216,$C$205:$C$216)>100,100, FORECAST($C201,H$205:H$216,$C$205:$C$216)))) -> 6.023968328 | I201: =IF(MAX(C205:C216)-MIN(C205:C216)<5,AVERAGEIF(C205:C216,">0",I205:I216), IF(FORECAST($C201,I$205:I$216,$C$205:$C$216)<0,0, IF(FORECAST($C201,I$205:I$216,$C$205:$C$216)>100,100, FORECAST($C201,I$205:I$216,$C$205:$C$216)))) -> 80.93184773 | M201: =IF(MAX(C205:C216)-MIN(C205:C216)<5,AVERAGEIF(C205:C216,">0",M205:M216), IF(FORECAST($C201,M$205:M$216,$C$205:$C$216)<0,0, IF(FORECAST($C201,M$205:M$216,$C$205:$C$216)>100,100, FORECAST($C201,M$205:M$216,$C$205:$C$216)))) -> 0.6610683825 | N201: =IF(MAX(C205:C216)-MIN(C205:C216)<5,AVERAGEIF(C205:C216,">0",N205:N216), IF(FORECAST($C201,N$205:N$216,$C$205:$C$216)<0,0, IF(FORECAST($C201,N$205:N$216,$C$205:$C$216)>100,100, FORECAST($C201,N$205:N$216,$C$205:$C$216)))) -> 83.98471594 | R201: =IF(MAX(C205:C216)-MIN(C205:C216)<5,AVERAGEIF(C205:C216,">0",R205:R216), IF(FORECAST($C201,R$205:R$216,$C$205:$C$216)<0,0, IF(FORECAST($C201,R$205:R$216,$C$205:$C$216)>100,100, FORECAST($C201,R$205:R$216,$C$205:$C$216)))) -> 0 | S201: =IF(MAX(C205:C216)-MIN(C205:C216)<5,AVERAGEIF(C205:C216,">0",S205:S216), IF(FORECAST($C201,S$205:S$216,$C$205:$C$216)<0,0, IF(FORECAST($C201,S$205:S$216,$C$205:$C$216)>100,100, FORECAST($C201,S$205:S$216,$C$205:$C$216)))) -> 85.07379512 | W201: =IF(MAX(C205:C216)-MIN(C205:C216)<5,AVERAGEIF(C205:C216,">0",W205:W216), IF(FORECAST($C201,W$205:W$216,$C$205:$C$216)<0,0, IF(FORECAST($C201,W$205:W$216,$C$205:$C$216)>100,100, FORECAST($C201,W$205:W$216,$C$205:$C$216)))) -> 0 | X201: =IF(MAX(C205:C216)-MIN(C205:C216)<5,AVERAGEIF(C205:C216,">0",X205:X216), IF(FORECAST($C201,X$205:X$216,$C$205:$C$216)<0,0, IF(FORECAST($C201,X$205:X$216,$C$205:$C$216)>100,100, FORECAST($C201,X$205:X$216,$C$205:$C$216)))) -> 94.37160041 | AB201: =IF(MAX(C205:C216)-MIN(C205:C216)<5,AVERAGEIF(C205:C216,">0",AB205:AB216), IF(FORECAST($C201,AB$205:AB$216,$C$205:$C$216)<0,0, IF(FORECAST($C201,AB$205:AB$216,$C$205:$C$216)>100,100, FORECAST($C201,AB$205:AB$216,$C$205:$C$216)))) -> 0
C202: =MaxRegYear(C200,C205:C216) -> 2019 | D202: =IF(MAX(C205:C216)-MIN(C205:C216)<5,AVERAGEIF(C205:C216,">0",D205:D216), IF(FORECAST($C202,D$205:D$216,$C$205:$C$216)<0,0, IF(FORECAST($C202,D$205:D$216,$C$205:$C$216)>100,100, FORECAST($C202,D$205:D$216,$C$205:$C$216)))) -> 82.433428 | H202: =IF(MAX(C205:C216)-MIN(C205:C216)<5,AVERAGEIF(C205:C216,">0",H205:H216), IF(FORECAST($C202,H$205:H$216,$C$205:$C$216)<0,0, IF(FORECAST($C202,H$205:H$216,$C$205:$C$216)>100,100, FORECAST($C202,H$205:H$216,$C$205:$C$216)))) -> 4.561319326 | I202: =IF(MAX(C205:C216)-MIN(C205:C216)<5,AVERAGEIF(C205:C216,">0",I205:I216), IF(FORECAST($C202,I$205:I$216,$C$205:$C$216)<0,0, IF(FORECAST($C202,I$205:I$216,$C$205:$C$216)>100,100, FORECAST($C202,I$205:I$216,$C$205:$C$216)))) -> 95.45874606 | M202: =IF(MAX(C205:C216)-MIN(C205:C216)<5,AVERAGEIF(C205:C216,">0",M205:M216), IF(FORECAST($C202,M$205:M$216,$C$205:$C$216)<0,0, IF(FORECAST($C202,M$205:M$216,$C$205:$C$216)>100,100, FORECAST($C202,M$205:M$216,$C$205:$C$216)))) -> 0.6800767528 | N202: =IF(MAX(C205:C216)-MIN(C205:C216)<5,AVERAGEIF(C205:C216,">0",N205:N216), IF(FORECAST($C202,N$205:N$216,$C$205:$C$216)<0,0, IF(FORECAST($C202,N$205:N$216,$C$205:$C$216)>100,100, FORECAST($C202,N$205:N$216,$C$205:$C$216)))) -> 97.61208643 | R202: =IF(MAX(C205:C216)-MIN(C205:C216)<5,AVERAGEIF(C205:C216,">0",R205:R216), IF(FORECAST($C202,R$205:R$216,$C$205:$C$216)<0,0, IF(FORECAST($C202,R$205:R$216,$C$205:$C$216)>100,100, FORECAST($C202,R$205:R$216,$C$205:$C$216)))) -> 0 | S202: =IF(MAX(C205:C216)-MIN(C205:C216)<5,AVERAGEIF(C205:C216,">0",S205:S216), IF(FORECAST($C202,S$205:S$216,$C$205:$C$216)<0,0, IF(FORECAST($C202,S$205:S$216,$C$205:$C$216)>100,100, FORECAST($C202,S$205:S$216,$C$205:$C$216)))) -> 98.58397831 | W202: =IF(MAX(C205:C216)-MIN(C205:C216)<5,AVERAGEIF(C205:C216,">0",W205:W216), IF(FORECAST($C202,W$205:W$216,$C$205:$C$216)<0,0, IF(FORECAST($C202,W$205:W$216,$C$205:$C$216)>100,100, FORECAST($C202,W$205:W$216,$C$205:$C$216)))) -> 0 | X202: =IF(MAX(C205:C216)-MIN(C205:C216)<5,AVERAGEIF(C205:C216,">0",X205:X216), IF(FORECAST($C202,X$205:X$216,$C$205:$C$216)<0,0, IF(FORECAST($C202,X$205:X$216,$C$205:$C$216)>100,100, FORECAST($C202,X$205:X$216,$C$205:$C$216)))) -> 97.86859801 | AB202: =IF(MAX(C205:C216)-MIN(C205:C216)<5,AVERAGEIF(C205:C216,">0",AB205:AB216), IF(FORECAST($C202,AB$205:AB$216,$C$205:$C$216)<0,0, IF(FORECAST($C202,AB$205:AB$216,$C$205:$C$216)>100,100, FORECAST($C202,AB$205:AB$216,$C$205:$C$216)))) -> 0
B204: Survey | C204: Year | D204: Improved | E204: % Improved < = 30min | H204: Surface water | I204: Improved | J204: % Improved < = 30min | M204: Surface water | N204: Improved | O204: % Improved < = 30min | R204: Surface water | S204: Improved | T204: % Improved < = 30min | W204: Surface water | X204: Improved | Y204: % Improved < = 30min | AB204: Surface water
B205: MICS00 | C205: 2000 | D205: =IF(ISERROR(INDIRECT(CONCATENATE($B205,"!H16"))),"",INDIRECT(CONCATENATE($B205,"!H16"))) -> 59.22215833 | E205: =IF(ISERROR(INDIRECT(CONCATENATE($B205,"!H23"))),"",INDIRECT(CONCATENATE($B205,"!H23"))) -> 94.01223747 | H205: =IF(ISERROR(INDIRECT(CONCATENATE($B205,"!H21"))),"",INDIRECT(CONCATENATE($B205,"!H21"))) -> 9.886451699 | I205: =IF(ISERROR(INDIRECT(CONCATENATE($B205,"!I16"))),"",INDIRECT(CONCATENATE($B205,"!I16"))) -> 78.12654054 | J205: =IF(ISERROR(INDIRECT(CONCATENATE($B205,"!I23"))),"",INDIRECT(CONCATENATE($B205,"!I23"))) -> 97.40148954 | M205: =IF(ISERROR(INDIRECT(CONCATENATE($B205,"!I21"))),"",INDIRECT(CONCATENATE($B205,"!I21"))) -> 1.308486383 | N205: =IF(ISERROR(INDIRECT(CONCATENATE($B205,"!J16"))),"",INDIRECT(CONCATENATE($B205,"!J16"))) -> 81.59760165 | O205: =IF(ISERROR(INDIRECT(CONCATENATE($B205,"!J23"))),"",INDIRECT(CONCATENATE($B205,"!J23"))) -> 95.90830211 | R205: =IF(ISERROR(INDIRECT(CONCATENATE($B205,"!J21"))),"",INDIRECT(CONCATENATE($B205,"!J21"))) -> 0 | S205: =IF(ISERROR(INDIRECT(CONCATENATE($B205,"!K16"))),"",INDIRECT(CONCATENATE($B205,"!K16"))) -> 81.96884836 | T205: =IF(ISERROR(INDIRECT(CONCATENATE($B205,"!K23"))),"",INDIRECT(CONCATENATE($B205,"!K23"))) -> 98.49629855 | W205: =IF(ISERROR(INDIRECT(CONCATENATE($B205,"!K21"))),"",INDIRECT(CONCATENATE($B205,"!K21"))) -> 0 | X205: =IF(ISERROR(INDIRECT(CONCATENATE($B205,"!L16"))),"",INDIRECT(CONCATENATE($B205,"!L16"))) -> 95.2171105 | Y205: =IF(ISERROR(INDIRECT(CONCATENATE($B205,"!L23"))),"",INDIRECT(CONCATENATE($B205,"!L23"))) -> 99.75974208 | AB205: =IF(ISERROR(INDIRECT(CONCATENATE($B205,"!L221"))),"",INDIRECT(CONCATENATE($B205,"!L21"))) -> 0
B206: MICS06 | C206: 2006 | D206: 78.43373391 | E206: 94.2886096 | H206: 2.23287007 | I206: 89.35333497 | J206: 94.85950452 | M206: 0.0416467978 | N206: 91.2943978 | O206: 97.40337001 | R206: 0 | S206: 93.97702771 | T206: 97.77693278 | W206: 0 | X206: 95.30538225 | Y206: 97.63375459 | AB206: 0
B207: MICS10 | C207: 2010 | D207: 78.04145975 | E207: 93.4 | H207: 1.105450606 | I207: 89.36554369 | J207: 95.7 | M207: 0.08158143025 | N207: 92.23010539 | O207: 96.3 | R207: 0 | S207: 92.43851021 | T207: 96.8 | W207: 0 | X207: 94.42672456 | Y207: 98.3 | AB207: 0
B208: MIS17 | C208: 2017 | D208: 72.00436007 | E208: 96.17756808 | H208: 12.97584645 | I208: 93.18257895 | J208: 96.79800406 | M208: 1.571771913 | N208: 95.84506868 | O208: 99.03203765 | R208: 0 | S208: 95.57105174 | T208: 99.39957235 | W208: 0 | X208: 98.06792212 | Y208: 99.5506583 | AB208: 0
B209: MICS17 | C209: 2017 | D209: 84.54115599 | E209: 97.67626974 | H209: 0.07014649615 | I209: 92.85992033 | J209: 96.51606762 | M209: 0.3518774156 | N209: 94.81790748 | O209: 95.46599657 | R209: 0 | S209: 96.96665123 | T209: 97.82043676 | W209: 0 | X209: 98.04348789 | Y209: 99.59981839 | AB209: 0
B218: =CONCATENATE("Urban use of drinking water sources, ",C199,"–",C200) -> Urban use of drinking water sources, 2000–2020 | S218: Data points used for regression
E253: =IF(ISERROR(INDIRECT(CONCATENATE($B253,"!M18"))),"",INDIRECT(CONCATENATE($B253,"!M18"))) ->  | F253: =IF(ISERROR(INDIRECT(CONCATENATE($B253,"!M19"))),"",INDIRECT(CONCATENATE($B253,"!M19"))) ->  | G253: =IF(ISERROR(INDIRECT(CONCATENATE($B253,"!M20"))),"",INDIRECT(CONCATENATE($B253,"!M20"))) ->  | H253: =IF(ISERROR(INDIRECT(CONCATENATE($B253,"!M21"))),"",INDIRECT(CONCATENATE($B253,"!M21"))) ->  | J253: =IF(ISERROR(INDIRECT(CONCATENATE($B253,"!N18"))),"",INDIRECT(CONCATENATE($B253,"!N18"))) ->  | K253: =IF(ISERROR(INDIRECT(CONCATENATE($B253,"!N19"))),"",INDIRECT(CONCATENATE($B253,"!N19"))) ->  | L253: =IF(ISERROR(INDIRECT(CONCATENATE($B253,"!N20"))),"",INDIRECT(CONCATENATE($B253,"!N20"))) ->  | M253: =IF(ISERROR(INDIRECT(CONCATENATE($B253,"!N21"))),"",INDIRECT(CONCATENATE($B253,"!N21"))) ->  | O253: =IF(ISERROR(INDIRECT(CONCATENATE($B253,"!O18"))),"",INDIRECT(CONCATENATE($B253,"!O18"))) ->  | P253: =IF(ISERROR(INDIRECT(CONCATENATE($B253,"!O19"))),"",INDIRECT(CONCATENATE($B253,"!O19"))) ->  | Q253: =IF(ISERROR(INDIRECT(CONCATENATE($B253,"!O20"))),"",INDIRECT(CONCATENATE($B253,"!O20"))) ->  | R253: =IF(ISERROR(INDIRECT(CONCATENATE($B253,"!O21"))),"",INDIRECT(CONCATENATE($B253,"!O21"))) ->  | T253: =IF(ISERROR(INDIRECT(CONCATENATE($B253,"!P18"))),"",INDIRECT(CONCATENATE($B253,"!P18"))) ->  | U253: =IF(ISERROR(INDIRECT(CONCATENATE($B253,"!P19"))),"",INDIRECT(CONCATENATE($B253,"!P19"))) ->  | V253: =IF(ISERROR(INDIRECT(CONCATENATE($B253,"!P20"))),"",INDIRECT(CONCATENATE($B253,"!P20"))) ->  | W253: =IF(ISERROR(INDIRECT(CONCATENATE($B253,"!P21"))),"",INDIRECT(CONCATENATE($B253,"!P21"))) ->  | Y253: =IF(ISERROR(INDIRECT(CONCATENATE($B253,"!Q18"))),"",INDIRECT(CONCATENATE($B253,"!Q18"))) ->  | Z253: =IF(ISERROR(INDIRECT(CONCATENATE($B253,"!Q19"))),"",INDIRECT(CONCATENATE($B253,"!Q19"))) ->  | AA253: =IF(ISERROR(INDIRECT(CONCATENATE($B253,"!Q20"))),"",INDIRECT(CONCATENATE($B253,"!Q20"))) ->  | AB253: =IF(ISERROR(INDIRECT(CONCATENATE($B253,"!Q21"))),"",INDIRECT(CONCATENATE($B253,"!Q1"))) -> 
E254: =IF(ISERROR(INDIRECT(CONCATENATE($B254,"!M18"))),"",INDIRECT(CONCATENATE($B254,"!M18"))) ->  | F254: =IF(ISERROR(INDIRECT(CONCATENATE($B254,"!M19"))),"",INDIRECT(CONCATENATE($B254,"!M19"))) ->  | G254: =IF(ISERROR(INDIRECT(CONCATENATE($B254,"!M20"))),"",INDIRECT(CONCATENATE($B254,"!M20"))) ->  | H254: =IF(ISERROR(INDIRECT(CONCATENATE($B254,"!M21"))),"",INDIRECT(CONCATENATE($B254,"!M21"))) ->  | J254: =IF(ISERROR(INDIRECT(CONCATENATE($B254,"!N18"))),"",INDIRECT(CONCATENATE($B254,"!N18"))) ->  | K254: =IF(ISERROR(INDIRECT(CONCATENATE($B254,"!N19"))),"",INDIRECT(CONCATENATE($B254,"!N19"))) ->  | L254: =IF(ISERROR(INDIRECT(CONCATENATE($B254,"!N20"))),"",INDIRECT(CONCATENATE($B254,"!N20"))) ->  | M254: =IF(ISERROR(INDIRECT(CONCATENATE($B254,"!N21"))),"",INDIRECT(CONCATENATE($B254,"!N21"))) ->  | O254: =IF(ISERROR(INDIRECT(CONCATENATE($B254,"!O18"))),"",INDIRECT(CONCATENATE($B254,"!O18"))) ->  | P254: =IF(ISERROR(INDIRECT(CONCATENATE($B254,"!O19"))),"",INDIRECT(CONCATENATE($B254,"!O19"))) ->  | Q254: =IF(ISERROR(INDIRECT(CONCATENATE($B254,"!O20"))),"",INDIRECT(CONCATENATE($B254,"!O20"))) ->  | R254: =IF(ISERROR(INDIRECT(CONCATENATE($B254,"!O21"))),"",INDIRECT(CONCATENATE($B254,"!O21"))) ->  | T254: =IF(ISERROR(INDIRECT(CONCATENATE($B254,"!P18"))),"",INDIRECT(CONCATENATE($B254,"!P18"))) ->  | U254: =IF(ISERROR(INDIRECT(CONCATENATE($B254,"!P19"))),"",INDIRECT(CONCATENATE($B254,"!P19"))) ->  | V254: =IF(ISERROR(INDIRECT(CONCATENATE($B254,"!P20"))),"",INDIRECT(CONCATENATE($B254,"!P20"))) ->  | W254: =IF(ISERROR(INDIRECT(CONCATENATE($B254,"!P21"))),"",INDIRECT(CONCATENATE($B254,"!P21"))) ->  | Y254: =IF(ISERROR(INDIRECT(CONCATENATE($B254,"!Q18"))),"",INDIRECT(CONCATENATE($B254,"!Q18"))) ->  | Z254: =IF(ISERROR(INDIRECT(CONCATENATE($B254,"!Q19"))),"",INDIRECT(CONCATENATE($B254,"!Q19"))) ->  | AA254: =IF(ISERROR(INDIRECT(CONCATENATE($B254,"!Q20"))),"",INDIRECT(CONCATENATE($B254,"!Q20"))) ->  | AB254: =IF(ISERROR(INDIRECT(CONCATENATE($B254,"!Q21"))),"",INDIRECT(CONCATENATE($B254,"!Q1"))) -> 
E255: =IF(ISERROR(INDIRECT(CONCATENATE($B255,"!M18"))),"",INDIRECT(CONCATENATE($B255,"!M18"))) ->  | F255: =IF(ISERROR(INDIRECT(CONCATENATE($B255,"!M19"))),"",INDIRECT(CONCATENATE($B255,"!M19"))) ->  | G255: =IF(ISERROR(INDIRECT(CONCATENATE($B255,"!M20"))),"",INDIRECT(CONCATENATE($B255,"!M20"))) ->  | H255: =IF(ISERROR(INDIRECT(CONCATENATE($B255,"!M21"))),"",INDIRECT(CONCATENATE($B255,"!M21"))) ->  | J255: =IF(ISERROR(INDIRECT(CONCATENATE($B255,"!N18"))),"",INDIRECT(CONCATENATE($B255,"!N18"))) ->  | K255: =IF(ISERROR(INDIRECT(CONCATENATE($B255,"!N19"))),"",INDIRECT(CONCATENATE($B255,"!N19"))) ->  | L255: =IF(ISERROR(INDIRECT(CONCATENATE($B255,"!N20"))),"",INDIRECT(CONCATENATE($B255,"!N20"))) ->  | M255: =IF(ISERROR(INDIRECT(CONCATENATE($B255,"!N21"))),"",INDIRECT(CONCATENATE($B255,"!N21"))) ->  | O255: =IF(ISERROR(INDIRECT(CONCATENATE($B255,"!O18"))),"",INDIRECT(CONCATENATE($B255,"!O18"))) ->  | P255: =IF(ISERROR(INDIRECT(CONCATENATE($B255,"!O19"))),"",INDIRECT(CONCATENATE($B255,"!O19"))) ->  | Q255: =IF(ISERROR(INDIRECT(CONCATENATE($B255,"!O20"))),"",INDIRECT(CONCATENATE($B255,"!O20"))) ->  | R255: =IF(ISERROR(INDIRECT(CONCATENATE($B255,"!O21"))),"",INDIRECT(CONCATENATE($B255,"!O21"))) ->  | T255: =IF(ISERROR(INDIRECT(CONCATENATE($B255,"!P18"))),"",INDIRECT(CONCATENATE($B255,"!P18"))) ->  | U255: =IF(ISERROR(INDIRECT(CONCATENATE($B255,"!P19"))),"",INDIRECT(CONCATENATE($B255,"!P19"))) ->  | V255: =IF(ISERROR(INDIRECT(CONCATENATE($B255,"!P20"))),"",INDIRECT(CONCATENATE($B255,"!P20"))) ->  | W255: =IF(ISERROR(INDIRECT(CONCATENATE($B255,"!P21"))),"",INDIRECT(CONCATENATE($B255,"!P21"))) ->  | Y255: =IF(ISERROR(INDIRECT(CONCATENATE($B255,"!Q18"))),"",INDIRECT(CONCATENATE($B255,"!Q18"))) ->  | Z255: =IF(ISERROR(INDIRECT(CONCATENATE($B255,"!Q19"))),"",INDIRECT(CONCATENATE($B255,"!Q19"))) ->  | AA255: =IF(ISERROR(INDIRECT(CONCATENATE($B255,"!Q20"))),"",INDIRECT(CONCATENATE($B255,"!Q20"))) ->  | AB255: =IF(ISERROR(INDIRECT(CONCATENATE($B255,"!Q21"))),"",INDIRECT(CONCATENATE($B255,"!Q1"))) -> 
E256: =IF(ISERROR(INDIRECT(CONCATENATE($B256,"!M18"))),"",INDIRECT(CONCATENATE($B256,"!M18"))) ->  | F256: =IF(ISERROR(INDIRECT(CONCATENATE($B256,"!M19"))),"",INDIRECT(CONCATENATE($B256,"!M19"))) ->  | G256: =IF(ISERROR(INDIRECT(CONCATENATE($B256,"!M20"))),"",INDIRECT(CONCATENATE($B256,"!M20"))) ->  | H256: =IF(ISERROR(INDIRECT(CONCATENATE($B256,"!M21"))),"",INDIRECT(CONCATENATE($B256,"!M21"))) ->  | J256: =IF(ISERROR(INDIRECT(CONCATENATE($B256,"!N18"))),"",INDIRECT(CONCATENATE($B256,"!N18"))) ->  | K256: =IF(ISERROR(INDIRECT(CONCATENATE($B256,"!N19"))),"",INDIRECT(CONCATENATE($B256,"!N19"))) ->  | L256: =IF(ISERROR(INDIRECT(CONCATENATE($B256,"!N20"))),"",INDIRECT(CONCATENATE($B256,"!N20"))) ->  | M256: =IF(ISERROR(INDIRECT(CONCATENATE($B256,"!N21"))),"",INDIRECT(CONCATENATE($B256,"!N21"))) ->  | O256: =IF(ISERROR(INDIRECT(CONCATENATE($B256,"!O18"))),"",INDIRECT(CONCATENATE($B256,"!O18"))) ->  | P256: =IF(ISERROR(INDIRECT(CONCATENATE($B256,"!O19"))),"",INDIRECT(CONCATENATE($B256,"!O19"))) ->  | Q256: =IF(ISERROR(INDIRECT(CONCATENATE($B256,"!O20"))),"",INDIRECT(CONCATENATE($B256,"!O20"))) ->  | R256: =IF(ISERROR(INDIRECT(CONCATENATE($B256,"!O21"))),"",INDIRECT(CONCATENATE($B256,"!O21"))) ->  | T256: =IF(ISERROR(INDIRECT(CONCATENATE($B256,"!P18"))),"",INDIRECT(CONCATENATE($B256,"!P18"))) ->  | U256: =IF(ISERROR(INDIRECT(CONCATENATE($B256,"!P19"))),"",INDIRECT(CONCATENATE($B256,"!P19"))) ->  | V256: =IF(ISERROR(INDIRECT(CONCATENATE($B256,"!P20"))),"",INDIRECT(CONCATENATE($B256,"!P20"))) ->  | W256: =IF(ISERROR(INDIRECT(CONCATENATE($B256,"!P21"))),"",INDIRECT(CONCATENATE($B256,"!P21"))) ->  | Y256: =IF(ISERROR(INDIRECT(CONCATENATE($B256,"!Q18"))),"",INDIRECT(CONCATENATE($B256,"!Q18"))) ->  | Z256: =IF(ISERROR(INDIRECT(CONCATENATE($B256,"!Q19"))),"",INDIRECT(CONCATENATE($B256,"!Q19"))) ->  | AA256: =IF(ISERROR(INDIRECT(CONCATENATE($B256,"!Q20"))),"",INDIRECT(CONCATENATE($B256,"!Q20"))) ->  | AB256: =IF(ISERROR(INDIRECT(CONCATENATE($B256,"!Q21"))),"",INDIRECT(CONCATENATE($B256,"!Q1"))) -> 
E257: =IF(ISERROR(INDIRECT(CONCATENATE($B257,"!M18"))),"",INDIRECT(CONCATENATE($B257,"!M18"))) ->  | F257: =IF(ISERROR(INDIRECT(CONCATENATE($B257,"!M19"))),"",INDIRECT(CONCATENATE($B257,"!M19"))) ->  | G257: =IF(ISERROR(INDIRECT(CONCATENATE($B257,"!M20"))),"",INDIRECT(CONCATENATE($B257,"!M20"))) ->  | H257: =IF(ISERROR(INDIRECT(CONCATENATE($B257,"!M21"))),"",INDIRECT(CONCATENATE($B257,"!M21"))) ->  | J257: =IF(ISERROR(INDIRECT(CONCATENATE($B257,"!N18"))),"",INDIRECT(CONCATENATE($B257,"!N18"))) ->  | K257: =IF(ISERROR(INDIRECT(CONCATENATE($B257,"!N19"))),"",INDIRECT(CONCATENATE($B257,"!N19"))) ->  | L257: =IF(ISERROR(INDIRECT(CONCATENATE($B257,"!N20"))),"",INDIRECT(CONCATENATE($B257,"!N20"))) ->  | M257: =IF(ISERROR(INDIRECT(CONCATENATE($B257,"!N21"))),"",INDIRECT(CONCATENATE($B257,"!N21"))) ->  | O257: =IF(ISERROR(INDIRECT(CONCATENATE($B257,"!O18"))),"",INDIRECT(CONCATENATE($B257,"!O18"))) ->  | P257: =IF(ISERROR(INDIRECT(CONCATENATE($B257,"!O19"))),"",INDIRECT(CONCATENATE($B257,"!O19"))) ->  | Q257: =IF(ISERROR(INDIRECT(CONCATENATE($B257,"!O20"))),"",INDIRECT(CONCATENATE($B257,"!O20"))) ->  | R257: =IF(ISERROR(INDIRECT(CONCATENATE($B257,"!O21"))),"",INDIRECT(CONCATENATE($B257,"!O21"))) ->  | T257: =IF(ISERROR(INDIRECT(CONCATENATE($B257,"!P18"))),"",INDIRECT(CONCATENATE($B257,"!P18"))) ->  | U257: =IF(ISERROR(INDIRECT(CONCATENATE($B257,"!P19"))),"",INDIRECT(CONCATENATE($B257,"!P19"))) ->  | V257: =IF(ISERROR(INDIRECT(CONCATENATE($B257,"!P20"))),"",INDIRECT(CONCATENATE($B257,"!P20"))) ->  | W257: =IF(ISERROR(INDIRECT(CONCATENATE($B257,"!P21"))),"",INDIRECT(CONCATENATE($B257,"!P21"))) ->  | Y257: =IF(ISERROR(INDIRECT(CONCATENATE($B257,"!Q18"))),"",INDIRECT(CONCATENATE($B257,"!Q18"))) ->  | Z257: =IF(ISERROR(INDIRECT(CONCATENATE($B257,"!Q19"))),"",INDIRECT(CONCATENATE($B257,"!Q19"))) ->  | AA257: =IF(ISERROR(INDIRECT(CONCATENATE($B257,"!Q20"))),"",INDIRECT(CONCATENATE($B257,"!Q20"))) ->  | AB257: =IF(ISERROR(INDIRECT(CONCATENATE($B257,"!Q21"))),"",INDIRECT(CONCATENATE($B257,"!Q1"))) -> 
A297: RURAL | D297: Poorest | I297: Poor | N297: Middle | S297: Rich | X297: Richest
D298: Improved | E298: Basic | F298: Limited | G298: Unimproved | H298: Surface water | I298: Improved | J298: Basic | K298: Limited | L298: Unimproved | M298: Surface water | N298: Improved | O298: Basic | P298: Limited | Q298: Unimproved | R298: Surface water | S298: Improved | T298: Basic | U298: Limited | V298: Unimproved | W298: Surface water | X298: Improved | Y298: Basic | Z298: Limited | AA298: Unimproved | AB298: Surface water
A299: Forecast period: | C299: 2000 | D299: =IF((D301+H301)>100,D301*100/(D301+H301),D301) -> 22.63771926 | E299: =D299*AVERAGEIF(E305:E316,">0")/100 -> 18.69745219 | F299: =D299*(100-AVERAGEIF(E305:E316,">0"))/100 -> 3.940267072 | G299: =100-(E299+F299+H299) -> 31.04215922 | H299: =IF((D301+H301)>100,H301*100/(D301+H301),H301) -> 46.32012152 | I299: =IF((I301+M301)>100,I301*100/(I301+M301),I301) -> 23.18158167 | J299: =I299*AVERAGEIF(J305:J316,">0")/100 -> 19.75807346 | K299: =I299*(100-AVERAGEIF(J305:J316,">0"))/100 -> 3.423508204 | L299: =100-(J299+K299+M299) -> 40.70627741 | M299: =IF((I301+M301)>100,M301*100/(I301+M301),M301) -> 36.11214093 | N299: =IF((N301+R301)>100,N301*100/(N301+R301),N301) -> 35.10564307 | O299: =N299*AVERAGEIF(O305:O316,">0")/100 -> 30.28544236 | P299: =N299*(100-AVERAGEIF(O305:O316,">0"))/100 -> 4.820200702 | Q299: =100-(O299+P299+R299) -> 33.65940044 | R299: =IF((N301+R301)>100,R301*100/(N301+R301),R301) -> 31.2349565 | S299: =IF((S301+W301)>100,S301*100/(S301+W301),S301) -> 39.59508318 | T299: =S299*AVERAGEIF(T305:T316,">0")/100 -> 35.74107997 | U299: =S299*(100-AVERAGEIF(T305:T316,">0"))/100 -> 3.85400321 | V299: =100-(T299+U299+W299) -> 32.9019907 | W299: =IF((S301+W301)>100,W301*100/(S301+W301),W301) -> 27.50292612 | X299: =IF((X301+AB301)>100,X301*100/(X301+AB301),X301) -> 42.4492149 | Y299: =X299*AVERAGEIF(Y305:Y316,">0")/100 -> 38.52113934 | Z299: =X299*(100-AVERAGEIF(Y305:Y316,">0"))/100 -> 3.928075561 | AA299: =100-(Y299+Z299+AB299) -> 35.81932069 | AB299: =IF((X301+AB301)>100,AB301*100/(X301+AB301),AB301) -> 21.73146441
C300: 2020 | D300: =IF((D302+H302)>100,D302*100/(D302+H302),D302) -> 45.41903716 | E300: =D300*AVERAGEIF(E305:E316,">0")/100 -> 37.51350858 | F300: =D300*(100-AVERAGEIF(E305:E316,">0"))/100 -> 7.905528579 | G300: =100-(E300+F300+H300) -> 26.92812243 | H300: =IF((D302+H302)>100,H302*100/(D302+H302),H302) -> 27.65284041 | I300: =IF((I302+M302)>100,I302*100/(I302+M302),I302) -> 47.19058626 | J300: =I300*AVERAGEIF(J305:J316,">0")/100 -> 40.22137417 | K300: =I300*(100-AVERAGEIF(J305:J316,">0"))/100 -> 6.969212088 | L300: =100-(J300+K300+M300) -> 25.24739603 | M300: =IF((I302+M302)>100,M302*100/(I302+M302),M302) -> 27.56201772 | N300: =IF((N302+R302)>100,N302*100/(N302+R302),N302) -> 54.8373672 | O300: =N300*AVERAGEIF(O305:O316,">0")/100 -> 47.30789066 | P300: =N300*(100-AVERAGEIF(O305:O316,">0"))/100 -> 7.529476539 | Q300: =100-(O300+P300+R300) -> 23.01287674 | R300: =IF((N302+R302)>100,R302*100/(N302+R302),R302) -> 22.14975606 | S300: =IF((S302+W302)>100,S302*100/(S302+W302),S302) -> 65.07839067 | T300: =S300*AVERAGEIF(T305:T316,">0")/100 -> 58.74395956 | U300: =S300*(100-AVERAGEIF(T305:T316,">0"))/100 -> 6.334431106 | V300: =100-(T300+U300+W300) -> 21.41960035 | W300: =IF((S302+W302)>100,W302*100/(S302+W302),W302) -> 13.50200898 | X300: =IF((X302+AB302)>100,X302*100/(X302+AB302),X302) -> 86.30493001 | Y300: =X300*AVERAGEIF(Y305:Y316,">0")/100 -> 78.31862715 | Z300: =X300*(100-AVERAGEIF(Y305:Y316,">0"))/100 -> 7.98630286 | AA300: =100-(Y300+Z300+AB300) -> 11.49258369 | AB300: =IF((X302+AB302)>100,AB302*100/(X302+AB302),AB302) -> 2.202486307
A301: Regression period: | C301: =MinRegYear(C299,C305:C316) -> 2000 | D301: =IF(MAX(C305:C316)-MIN(C305:C316)<5,AVERAGEIF(C305:C316,">0",D305:D316), IF(FORECAST($C301,D$305:D$316,$C$305:$C$316)<0,0, IF(FORECAST($C301,D$305:D$316,$C$305:$C$316)>100,100, FORECAST($C301,D$305:D$316,$C$305:$C$316)))) -> 22.63771926 | H301: =IF(MAX(C305:C316)-MIN(C305:C316)<5,AVERAGEIF(C305:C316,">0",H305:H316), IF(FORECAST($C301,H$305:H$316,$C$305:$C$316)<0,0, IF(FORECAST($C301,H$305:H$316,$C$305:$C$316)>100,100, FORECAST($C301,H$305:H$316,$C$305:$C$316)))) -> 46.32012152 | I301: =IF(MAX(C305:C316)-MIN(C305:C316)<5,AVERAGEIF(C305:C316,">0",I305:I316), IF(FORECAST($C301,I$305:I$316,$C$305:$C$316)<0,0, IF(FORECAST($C301,I$305:I$316,$C$305:$C$316)>100,100, FORECAST($C301,I$305:I$316,$C$305:$C$316)))) -> 23.18158167 | M301: =IF(MAX(C305:C316)-MIN(C305:C316)<5,AVERAGEIF(C305:C316,">0",M305:M316), IF(FORECAST($C301,M$305:M$316,$C$305:$C$316)<0,0, IF(FORECAST($C301,M$305:M$316,$C$305:$C$316)>100,100, FORECAST($C301,M$305:M$316,$C$305:$C$316)))) -> 36.11214093 | N301: =IF(MAX(C305:C316)-MIN(C305:C316)<5,AVERAGEIF(C305:C316,">0",N305:N316), IF(FORECAST($C301,N$305:N$316,$C$305:$C$316)<0,0, IF(FORECAST($C301,N$305:N$316,$C$305:$C$316)>100,100, FORECAST($C301,N$305:N$316,$C$305:$C$316)))) -> 35.10564307 | R301: =IF(MAX(C305:C316)-MIN(C305:C316)<5,AVERAGEIF(C305:C316,">0",R305:R316), IF(FORECAST($C301,R$305:R$316,$C$305:$C$316)<0,0, IF(FORECAST($C301,R$305:R$316,$C$305:$C$316)>100,100, FORECAST($C301,R$305:R$316,$C$305:$C$316)))) -> 31.2349565 | S301: =IF(MAX(C305:C316)-MIN(C305:C316)<5,AVERAGEIF(C305:C316,">0",S305:S316), IF(FORECAST($C301,S$305:S$316,$C$305:$C$316)<0,0, IF(FORECAST($C301,S$305:S$316,$C$305:$C$316)>100,100, FORECAST($C301,S$305:S$316,$C$305:$C$316)))) -> 39.59508318 | W301: =IF(MAX(C305:C316)-MIN(C305:C316)<5,AVERAGEIF(C305:C316,">0",W305:W316), IF(FORECAST($C301,W$305:W$316,$C$305:$C$316)<0,0, IF(FORECAST($C301,W$305:W$316,$C$305:$C$316)>100,100, FORECAST($C301,W$305:W$316,$C$305:$C$316)))) -> 27.50292612 | X301: =IF(MAX(C305:C316)-MIN(C305:C316)<5,AVERAGEIF(C305:C316,">0",X305:X316), IF(FORECAST($C301,X$305:X$316,$C$305:$C$316)<0,0, IF(FORECAST($C301,X$305:X$316,$C$305:$C$316)>100,100, FORECAST($C301,X$305:X$316,$C$305:$C$316)))) -> 42.4492149 | AB301: =IF(MAX(C305:C316)-MIN(C305:C316)<5,AVERAGEIF(C305:C316,">0",AB305:AB316), IF(FORECAST($C301,AB$305:AB$316,$C$305:$C$316)<0,0, IF(FORECAST($C301,AB$305:AB$316,$C$305:$C$316)>100,100, FORECAST($C301,AB$305:AB$316,$C$305:$C$316)))) -> 21.73146441
C302: =MaxRegYear(C300,C305:C316) -> 2019 | D302: =IF(MAX(C305:C316)-MIN(C305:C316)<5,AVERAGEIF(C305:C316,">0",D305:D316), IF(FORECAST($C302,D$305:D$316,$C$305:$C$316)<0,0, IF(FORECAST($C302,D$305:D$316,$C$305:$C$316)>100,100, FORECAST($C302,D$305:D$316,$C$305:$C$316)))) -> 45.41903716 | H302: =IF(MAX(C305:C316)-MIN(C305:C316)<5,AVERAGEIF(C305:C316,">0",H305:H316), IF(FORECAST($C302,H$305:H$316,$C$305:$C$316)<0,0, IF(FORECAST($C302,H$305:H$316,$C$305:$C$316)>100,100, FORECAST($C302,H$305:H$316,$C$305:$C$316)))) -> 27.65284041 | I302: =IF(MAX(C305:C316)-MIN(C305:C316)<5,AVERAGEIF(C305:C316,">0",I305:I316), IF(FORECAST($C302,I$305:I$316,$C$305:$C$316)<0,0, IF(FORECAST($C302,I$305:I$316,$C$305:$C$316)>100,100, FORECAST($C302,I$305:I$316,$C$305:$C$316)))) -> 47.19058626 | M302: =IF(MAX(C305:C316)-MIN(C305:C316)<5,AVERAGEIF(C305:C316,">0",M305:M316), IF(FORECAST($C302,M$305:M$316,$C$305:$C$316)<0,0, IF(FORECAST($C302,M$305:M$316,$C$305:$C$316)>100,100, FORECAST($C302,M$305:M$316,$C$305:$C$316)))) -> 27.56201772 | N302: =IF(MAX(C305:C316)-MIN(C305:C316)<5,AVERAGEIF(C305:C316,">0",N305:N316), IF(FORECAST($C302,N$305:N$316,$C$305:$C$316)<0,0, IF(FORECAST($C302,N$305:N$316,$C$305:$C$316)>100,100, FORECAST($C302,N$305:N$316,$C$305:$C$316)))) -> 54.8373672 | R302: =IF(MAX(C305:C316)-MIN(C305:C316)<5,AVERAGEIF(C305:C316,">0",R305:R316), IF(FORECAST($C302,R$305:R$316,$C$305:$C$316)<0,0, IF(FORECAST($C302,R$305:R$316,$C$305:$C$316)>100,100, FORECAST($C302,R$305:R$316,$C$305:$C$316)))) -> 22.14975606 | S302: =IF(MAX(C305:C316)-MIN(C305:C316)<5,AVERAGEIF(C305:C316,">0",S305:S316), IF(FORECAST($C302,S$305:S$316,$C$305:$C$316)<0,0, IF(FORECAST($C302,S$305:S$316,$C$305:$C$316)>100,100, FORECAST($C302,S$305:S$316,$C$305:$C$316)))) -> 65.07839067 | W302: =IF(MAX(C305:C316)-MIN(C305:C316)<5,AVERAGEIF(C305:C316,">0",W305:W316), IF(FORECAST($C302,W$305:W$316,$C$305:$C$316)<0,0, IF(FORECAST($C302,W$305:W$316,$C$305:$C$316)>100,100, FORECAST($C302,W$305:W$316,$C$305:$C$316)))) -> 13.50200898 | X302: =IF(MAX(C305:C316)-MIN(C305:C316)<5,AVERAGEIF(C305:C316,">0",X305:X316), IF(FORECAST($C302,X$305:X$316,$C$305:$C$316)<0,0, IF(FORECAST($C302,X$305:X$316,$C$305:$C$316)>100,100, FORECAST($C302,X$305:X$316,$C$305:$C$316)))) -> 86.30493001 | AB302: =IF(MAX(C305:C316)-MIN(C305:C316)<5,AVERAGEIF(C305:C316,">0",AB305:AB316), IF(FORECAST($C302,AB$305:AB$316,$C$305:$C$316)<0,0, IF(FORECAST($C302,AB$305:AB$316,$C$305:$C$316)>100,100, FORECAST($C302,AB$305:AB$316,$C$305:$C$316)))) -> 2.202486307
B304: Survey | C304: Year | D304: Improved | E304: % Improved < = 30min | H304: Surface water | I304: Improved | J304: % Improved < = 30min | M304: Surface water | N304: Improved | O304: % Improved < = 30min | R304: Surface water | S304: Improved | T304: % Improved < = 30min | W304: Surface water | X304: Improved | Y304: % Improved < = 30min | AB304: Surface water
B305: MICS00 | C305: 2000 | D305: =IF(ISERROR(INDIRECT(CONCATENATE($B305,"!M16"))),"",INDIRECT(CONCATENATE($B305,"!M16"))) -> 25.23277812 | E305: =IF(ISERROR(INDIRECT(CONCATENATE($B305,"!M23"))),"",INDIRECT(CONCATENATE($B305,"!M23"))) -> 95.92475765 | H305: =IF(ISERROR(INDIRECT(CONCATENATE($B305,"!M21"))),"",INDIRECT(CONCATENATE($B305,"!M21"))) -> 47.15659474 | I305: =IF(ISERROR(INDIRECT(CONCATENATE($B305,"!N16"))),"",INDIRECT(CONCATENATE($B305,"!N16"))) -> 24.56933112 | J305: =IF(ISERROR(INDIRECT(CONCATENATE($B305,"!N23"))),"",INDIRECT(CONCATENATE($B305,"!N23"))) -> 92.75483223 | M305: =IF(ISERROR(INDIRECT(CONCATENATE($B305,"!N21"))),"",INDIRECT(CONCATENATE($B305,"!N21"))) -> 37.09665341 | N305: =IF(ISERROR(INDIRECT(CONCATENATE($B305,"!O16"))),"",INDIRECT(CONCATENATE($B305,"!O16"))) -> 38.43585637 | O305: =IF(ISERROR(INDIRECT(CONCATENATE($B305,"!O23"))),"",INDIRECT(CONCATENATE($B305,"!O23"))) -> 89.82058873 | R305: =IF(ISERROR(INDIRECT(CONCATENATE($B305,"!O21"))),"",INDIRECT(CONCATENATE($B305,"!O21"))) -> 29.15185277 | S305: =IF(ISERROR(INDIRECT(CONCATENATE($B305,"!P16"))),"",INDIRECT(CONCATENATE($B305,"!P16"))) -> 40.97541474 | T305: =IF(ISERROR(INDIRECT(CONCATENATE($B305,"!P23"))),"",INDIRECT(CONCATENATE($B305,"!P23"))) -> 92.1320566 | W305: =IF(ISERROR(INDIRECT(CONCATENATE($B305,"!P21"))),"",INDIRECT(CONCATENATE($B305,"!P21"))) -> 26.44548175 | X305: =IF(ISERROR(INDIRECT(CONCATENATE($B305,"!Q16"))),"",INDIRECT(CONCATENATE($B305,"!Q16"))) -> 44.68529445 | Y305: =IF(ISERROR(INDIRECT(CONCATENATE($B305,"!Q23"))),"",INDIRECT(CONCATENATE($B305,"!Q23"))) -> 88.81510079 | AB305: =IF(ISERROR(INDIRECT(CONCATENATE($B305,"!Q221"))),"",INDIRECT(CONCATENATE($B305,"!Q21"))) -> 22.33381491
B306: MICS06 | C306: 2006 | D306: 32.22328941 | E306: 71.25798404 | H306: 37.78394043 | I306: 33.63293885 | J306: 78.6979167 | M306: 30.3511002 | N306: 39.95215102 | O306: 79.63580923 | R306: 29.49775972 | S306: 50.1673662 | T306: 89.16033281 | W306: 22.26929784 | X306: 57.35859983 | Y306: 86.862701 | AB306: 12.70241968
B307: MICS10 | C307: 2010 | D307: 24.56757686 | E307: 80.5 | H307: 38.61433782 | I307: 27.93833281 | J307: 82.8 | M307: 34.03126289 | N307: 39.57884173 | O307: 86.5 | R307: 29.73367358 | S307: 45.68738074 | T307: 86.4 | W307: 23.97855103 | X307: 58.43464428 | Y307: 87.9 | AB307: 14.4876307
B308: MIS17 | C308: 2017 | D308: 45.18059255 | E308: 83.30808129 | H308: 33.05894769 | I308: 40.47685331 | J308: 90.91220613 | M308: 36.12126344 | N308: 48.97077328 | O308: 92.85272564 | R308: 26.47470012 | S308: 61.48727192 | T308: 92.93490054 | W308: 16.95935637 | X308: 83.78120363 | Y308: 96.88288836 | AB308: 2.283495477
B309: MICS17 | C309: 2017 | D309: 45.93519594 | E309: 81.98037727 | H309: 25.86236295 | I309: 52.47204328 | J309: 80.99391856 | M309: 20.46010045 | N309: 60.51618275 | O309: 82.53808613 | R309: 17.4083741 | S309: 66.71931781 | T309: 90.70501066 | W309: 11.01742484 | X309: 83.39610889 | Y309: 93.27136862 | AB309: 5.457913648
B318: =CONCATENATE("Rural use of drinking water sources, ",C299,"–",C300) -> Rural use of drinking water sources, 2000–2020 | S318: Data points used for regression

Sheet Sanitation
B4: Summary of trends in use of sanitation facilities by wealth quintile (%)
B5: =IF(ISERROR(INDIRECT(CONCATENATE($B105,"!A2"))),"",INDIRECT(CONCATENATE($B105,"!A2"))) -> Togo
B7: =B118 -> National use of sanitation facilities, 2000–2020 | J7: =B218 -> Urban use of sanitation facilities, 2000–2020 | R7: =B318 -> Rural use of sanitation facilities, 2000–2020
B31: =IF(ISERROR(INDIRECT(CONCATENATE($B105,"!A2"))),"",INDIRECT(CONCATENATE($B105,"!A2"))) -> Togo | F31: Poorest | J31: Poor | N31: Middle | R31: Rich | V31: Richest
F32: Basic | G32: Limited | H32: Unimproved | I32: Open defecation | J32: Basic | K32: Limited | L32: Unimproved | M32: Open defecation | N32: Basic | O32: Limited | P32: Unimproved | Q32: Open defecation | R32: Basic | S32: Limited | T32: Unimproved | U32: Open defecation | V32: Basic | W32: Limited | X32: Unimproved | Y32: Open defecation
B33: NATIONAL | D33: Estimate | E33: =C99 -> 2000 | F33: =E99 -> 0.9667944916 | G33: =F99 -> 1.654380871 | H33: 10.42552658 | I33: 86.95329806 | J33: =J99 -> 1.783822946 | K33: =K99 -> 3.608184711 | L33: 8.71710911 | M33: 85.89088323 | N33: =O99 -> 3.82156534 | O33: =P99 -> 11.07555176 | P33: 11.104291 | Q33: 73.9985919 | R33: =T99 -> 12.26228898 | S33: =U99 -> 34.87429771 | T33: 11.12889073 | U33: 41.73452257 | V33: =Y99 -> 43.02779483 | W33: =Z99 -> 40.84544176 | X33: 3.692218006 | Y33: 12.4345454
E34: =C100 -> 2020 | F34: =E100 -> 3.108211532 | G34: 5.318778444 | H34: 10.62622024 | I34: 80.94678978 | J34: =J100 -> 3.980046316 | K34: 8.0505424 | L34: 12.32838742 | M34: 75.64102387 | N34: =O100 -> 8.470563555 | O34: 24.54914589 | P34: 12.27543704 | Q34: 54.70485351 | R34: =T100 -> 19.14374417 | S34: 54.44535145 | T34: 9.111487509 | U34: 17.29941687 | V34: =Y100 -> 47.51124952 | W34: 45.10149736 | X34: 5.099708392 | Y34: 2.287544724
B36: URBAN | D36: Estimate | E36: =C199 -> 2000 | F36: =E199 -> 5.945965955 | G36: =F199 -> 20.58027655 | H36: 11.36411548 | I36: 62.10964201 | J36: =J199 -> 11.7950324 | K36: =K199 -> 49.21991693 | L36: 8.868642304 | M36: 30.11640837 | N36: =O199 -> 20.04378359 | O36: =P199 -> 57.39208681 | P36: 7.636238483 | Q36: 14.92789111 | R36: =T199 -> 30.22781153 | S36: =U199 -> 54.77184312 | T36: 3.838413206 | U36: 11.16193214 | V36: =Y199 -> 68.82957837 | W36: =Z199 -> 26.93951646 | X36: 1.776522878 | Y36: 2.454382294
E37: =C200 -> 2020 | F37: =E200 -> 12.08426424 | G37: 41.82625698 | H37: 12.32809013 | I37: 33.76138865 | J37: =J200 -> 14.41305483 | K37: 60.14475731 | L37: 10.35756601 | M37: 15.08462185 | N37: =O200 -> 21.395809 | O37: 61.26338982 | P37: 8.737991779 | Q37: 8.602809395 | R37: =T200 -> 31.9512746 | S37: 57.89470395 | T37: 5.829606566 | U37: 4.324414886 | V37: =Y200 -> 69.65267613 | W37: 27.26167237 | X37: 3.08082622 | Y37: 0.004825276415
B39: RURAL | D39: Estimate | E39: =C299 -> 2000 | F39: =E299 -> 0.8478033823 | G39: =F299 -> 1.128141735 | H39: 11.11201067 | I39: 86.91204421 | J39: =J299 -> 1.352739337 | K39: =K299 -> 1.746334569 | L39: 8.95189863 | M39: 87.94902746 | N39: =O299 -> 1.740766109 | O39: =P299 -> 4.339414192 | P39: 8.682468156 | Q39: 85.23735154 | R39: =T299 -> 3.002809539 | S39: =U299 -> 8.898889748 | T39: 10.44999771 | U39: 77.648303 | V39: =Y299 -> 12.89659409 | W39: =Z299 -> 16.70445282 | X39: 12.01282838 | Y39: 58.38612472
E40: =C300 -> 2020 | F40: =E300 -> 3.178045466 | G40: 4.228911799 | H40: 9.976057754 | I40: 82.61698498 | J40: =J300 -> 4.081738239 | K40: 5.269367419 | L40: 10.96294861 | M40: 79.68594573 | N40: =O300 -> 3.110350106 | O40: 7.753538699 | P40: 13.10004324 | Q40: 76.03606795 | R40: =T300 -> 4.691754792 | S40: 13.90411482 | T40: 11.94178132 | U40: 69.46234906 | V40: =Y300 -> 23.28349643 | W40: 30.15820031 | X40: 9.909757066 | Y40: 36.6485462
A97: NATIONAL | D97: Poorest | I97: Poor | N97: Middle | S97: Rich | X97: Richest
D98: Improved | E98: Basic | F98: Limited | G98: Unimproved | H98: Open defecation | I98: Improved | J98: Basic | K98: Limited | L98: Unimproved | M98: Open defecation | N98: Improved | O98: Basic | P98: Limited | Q98: Unimproved | R98: Open defecation | S98: Improved | T98: Basic | U98: Limited | V98: Unimproved | W98: Open defecation | X98: Improved | Y98: Basic | Z98: Limited | AA98: Unimproved | AB98: Open defecation
A99: Forecast period: | C99: 2000 | D99: =IF((D101+H101)>100,D101*100/(D101+H101),D101) -> 2.621175362 | E99: =D99*AVERAGEIF(E105:E116,">0")/100 -> 0.9667944916 | F99: =D99*(100-AVERAGEIF(E105:E116,">0"))/100 -> 1.654380871 | G99: =100-(E99+F99+H99) -> 10.42552658 | H99: =IF((D101+H101)>100,H101*100/(D101+H101),H101) -> 86.95329806 | I99: =IF((I101+M101)>100,I101*100/(I101+M101),I101) -> 5.392007657 | J99: =I99*AVERAGEIF(J105:J116,">0")/100 -> 1.783822946 | K99: =I99*(100-AVERAGEIF(J105:J116,">0"))/100 -> 3.608184711 | L99: =100-(J99+K99+M99) -> 8.71710911 | M99: =IF((I101+M101)>100,M101*100/(I101+M101),M101) -> 85.89088323 | N99: =IF((N101+R101)>100,N101*100/(N101+R101),N101) -> 14.8971171 | O99: =N99*AVERAGEIF(O105:O116,">0")/100 -> 3.82156534 | P99: =N99*(100-AVERAGEIF(O105:O116,">0"))/100 -> 11.07555176 | Q99: =100-(O99+P99+R99) -> 11.104291 | R99: =IF((N101+R101)>100,R101*100/(N101+R101),R101) -> 73.9985919 | S99: =IF((S101+W101)>100,S101*100/(S101+W101),S101) -> 47.13658669 | T99: =S99*AVERAGEIF(T105:T116,">0")/100 -> 12.26228898 | U99: =S99*(100-AVERAGEIF(T105:T116,">0"))/100 -> 34.87429771 | V99: =100-(T99+U99+W99) -> 11.12889073 | W99: =IF((S101+W101)>100,W101*100/(S101+W101),W101) -> 41.73452257 | X99: =IF((X101+AB101)>100,X101*100/(X101+AB101),X101) -> 83.87323659 | Y99: =X99*AVERAGEIF(Y105:Y116,">0")/100 -> 43.02779483 | Z99: =X99*(100-AVERAGEIF(Y105:Y116,">0"))/100 -> 40.84544176 | AA99: =100-(Y99+Z99+AB99) -> 3.692218006 | AB99: =IF((X101+AB101)>100,AB101*100/(X101+AB101),AB101) -> 12.4345454
C100: 2020 | D100: =IF((D102+H102)>100,D102*100/(D102+H102),D102) -> 8.426989976 | E100: =D100*AVERAGEIF(E105:E116,">0")/100 -> 3.108211532 | F100: =D100*(100-AVERAGEIF(E105:E116,">0"))/100 -> 5.318778444 | G100: =100-(E100+F100+H100) -> 10.62622024 | H100: =IF((D102+H102)>100,H102*100/(D102+H102),H102) -> 80.94678978 | I100: =IF((I102+M102)>100,I102*100/(I102+M102),I102) -> 12.03058872 | J100: =I100*AVERAGEIF(J105:J116,">0")/100 -> 3.980046316 | K100: =I100*(100-AVERAGEIF(J105:J116,">0"))/100 -> 8.0505424 | L100: =100-(J100+K100+M100) -> 12.32838742 | M100: =IF((I102+M102)>100,M102*100/(I102+M102),M102) -> 75.64102387 | N100: =IF((N102+R102)>100,N102*100/(N102+R102),N102) -> 33.01970945 | O100: =N100*AVERAGEIF(O105:O116,">0")/100 -> 8.470563555 | P100: =N100*(100-AVERAGEIF(O105:O116,">0"))/100 -> 24.54914589 | Q100: =100-(O100+P100+R100) -> 12.27543704 | R100: =IF((N102+R102)>100,R102*100/(N102+R102),R102) -> 54.70485351 | S100: =IF((S102+W102)>100,S102*100/(S102+W102),S102) -> 73.58909562 | T100: =S100*AVERAGEIF(T105:T116,">0")/100 -> 19.14374417 | U100: =S100*(100-AVERAGEIF(T105:T116,">0"))/100 -> 54.44535145 | V100: =100-(T100+U100+W100) -> 9.111487509 | W100: =IF((S102+W102)>100,W102*100/(S102+W102),W102) -> 17.29941687 | X100: =IF((X102+AB102)>100,X102*100/(X102+AB102),X102) -> 92.61274688 | Y100: =X100*AVERAGEIF(Y105:Y116,">0")/100 -> 47.51124952 | Z100: =X100*(100-AVERAGEIF(Y105:Y116,">0"))/100 -> 45.10149736 | AA100: =100-(Y100+Z100+AB100) -> 5.099708392 | AB100: =IF((X102+AB102)>100,AB102*100/(X102+AB102),AB102) -> 2.287544724
A101: Regression period: | C101: =MinRegYear(C99,C105:C116) -> 2000 | D101: =IF(MAX(C105:C116)-MIN(C105:C116)<5,AVERAGEIF(C105:C116,">0",D105:D116), IF(FORECAST($C101,D$105:D$116,$C$105:$C$116)<0,0, IF(FORECAST($C101,D$105:D$116,$C$105:$C$116)>100,100, FORECAST($C101,D$105:D$116,$C$105:$C$116)))) -> 2.621175362 | H101: =IF(MAX(C105:C116)-MIN(C105:C116)<5,AVERAGEIF(C105:C116,">0",H105:H116), IF(FORECAST($C101,H$105:H$116,$C$105:$C$116)<0,0, IF(FORECAST($C101,H$105:H$116,$C$105:$C$116)>100,100, FORECAST($C101,H$105:H$116,$C$105:$C$116)))) -> 86.95329806 | I101: =IF(MAX(C105:C116)-MIN(C105:C116)<5,AVERAGEIF(C105:C116,">0",I105:I116), IF(FORECAST($C101,I$105:I$116,$C$105:$C$116)<0,0, IF(FORECAST($C101,I$105:I$116,$C$105:$C$116)>100,100, FORECAST($C101,I$105:I$116,$C$105:$C$116)))) -> 5.392007657 | M101: =IF(MAX(C105:C116)-MIN(C105:C116)<5,AVERAGEIF(C105:C116,">0",M105:M116), IF(FORECAST($C101,M$105:M$116,$C$105:$C$116)<0,0, IF(FORECAST($C101,M$105:M$116,$C$105:$C$116)>100,100, FORECAST($C101,M$105:M$116,$C$105:$C$116)))) -> 85.89088323 | N101: =IF(MAX(C105:C116)-MIN(C105:C116)<5,AVERAGEIF(C105:C116,">0",N105:N116), IF(FORECAST($C101,N$105:N$116,$C$105:$C$116)<0,0, IF(FORECAST($C101,N$105:N$116,$C$105:$C$116)>100,100, FORECAST($C101,N$105:N$116,$C$105:$C$116)))) -> 14.8971171 | R101: =IF(MAX(C105:C116)-MIN(C105:C116)<5,AVERAGEIF(C105:C116,">0",R105:R116), IF(FORECAST($C101,R$105:R$116,$C$105:$C$116)<0,0, IF(FORECAST($C101,R$105:R$116,$C$105:$C$116)>100,100, FORECAST($C101,R$105:R$116,$C$105:$C$116)))) -> 73.9985919 | S101: =IF(MAX(C105:C116)-MIN(C105:C116)<5,AVERAGEIF(C105:C116,">0",S105:S116), IF(FORECAST($C101,S$105:S$116,$C$105:$C$116)<0,0, IF(FORECAST($C101,S$105:S$116,$C$105:$C$116)>100,100, FORECAST($C101,S$105:S$116,$C$105:$C$116)))) -> 47.13658669 | W101: =IF(MAX(C105:C116)-MIN(C105:C116)<5,AVERAGEIF(C105:C116,">0",W105:W116), IF(FORECAST($C101,W$105:W$116,$C$105:$C$116)<0,0, IF(FORECAST($C101,W$105:W$116,$C$105:$C$116)>100,100, FORECAST($C101,W$105:W$116,$C$105:$C$116)))) -> 41.73452257 | X101: =IF(MAX(C105:C116)-MIN(C105:C116)<5,AVERAGEIF(C105:C116,">0",X105:X116), IF(FORECAST($C101,X$105:X$116,$C$105:$C$116)<0,0, IF(FORECAST($C101,X$105:X$116,$C$105:$C$116)>100,100, FORECAST($C101,X$105:X$116,$C$105:$C$116)))) -> 83.87323659 | AB101: =IF(MAX(C105:C116)-MIN(C105:C116)<5,AVERAGEIF(C105:C116,">0",AB105:AB116), IF(FORECAST($C101,AB$105:AB$116,$C$105:$C$116)<0,0, IF(FORECAST($C101,AB$105:AB$116,$C$105:$C$116)>100,100, FORECAST($C101,AB$105:AB$116,$C$105:$C$116)))) -> 12.4345454
C102: =MaxRegYear(C100,C105:C116) -> 2019 | D102: =IF(MAX(C105:C116)-MIN(C105:C116)<5,AVERAGEIF(C105:C116,">0",D105:D116), IF(FORECAST($C102,D$105:D$116,$C$105:$C$116)<0,0, IF(FORECAST($C102,D$105:D$116,$C$105:$C$116)>100,100, FORECAST($C102,D$105:D$116,$C$105:$C$116)))) -> 8.426989976 | H102: =IF(MAX(C105:C116)-MIN(C105:C116)<5,AVERAGEIF(C105:C116,">0",H105:H116), IF(FORECAST($C102,H$105:H$116,$C$105:$C$116)<0,0, IF(FORECAST($C102,H$105:H$116,$C$105:$C$116)>100,100, FORECAST($C102,H$105:H$116,$C$105:$C$116)))) -> 80.94678978 | I102: =IF(MAX(C105:C116)-MIN(C105:C116)<5,AVERAGEIF(C105:C116,">0",I105:I116), IF(FORECAST($C102,I$105:I$116,$C$105:$C$116)<0,0, IF(FORECAST($C102,I$105:I$116,$C$105:$C$116)>100,100, FORECAST($C102,I$105:I$116,$C$105:$C$116)))) -> 12.03058872 | M102: =IF(MAX(C105:C116)-MIN(C105:C116)<5,AVERAGEIF(C105:C116,">0",M105:M116), IF(FORECAST($C102,M$105:M$116,$C$105:$C$116)<0,0, IF(FORECAST($C102,M$105:M$116,$C$105:$C$116)>100,100, FORECAST($C102,M$105:M$116,$C$105:$C$116)))) -> 75.64102387 | N102: =IF(MAX(C105:C116)-MIN(C105:C116)<5,AVERAGEIF(C105:C116,">0",N105:N116), IF(FORECAST($C102,N$105:N$116,$C$105:$C$116)<0,0, IF(FORECAST($C102,N$105:N$116,$C$105:$C$116)>100,100, FORECAST($C102,N$105:N$116,$C$105:$C$116)))) -> 33.01970945 | R102: =IF(MAX(C105:C116)-MIN(C105:C116)<5,AVERAGEIF(C105:C116,">0",R105:R116), IF(FORECAST($C102,R$105:R$116,$C$105:$C$116)<0,0, IF(FORECAST($C102,R$105:R$116,$C$105:$C$116)>100,100, FORECAST($C102,R$105:R$116,$C$105:$C$116)))) -> 54.70485351 | S102: =IF(MAX(C105:C116)-MIN(C105:C116)<5,AVERAGEIF(C105:C116,">0",S105:S116), IF(FORECAST($C102,S$105:S$116,$C$105:$C$116)<0,0, IF(FORECAST($C102,S$105:S$116,$C$105:$C$116)>100,100, FORECAST($C102,S$105:S$116,$C$105:$C$116)))) -> 73.58909562 | W102: =IF(MAX(C105:C116)-MIN(C105:C116)<5,AVERAGEIF(C105:C116,">0",W105:W116), IF(FORECAST($C102,W$105:W$116,$C$105:$C$116)<0,0, IF(FORECAST($C102,W$105:W$116,$C$105:$C$116)>100,100, FORECAST($C102,W$105:W$116,$C$105:$C$116)))) -> 17.29941687 | X102: =IF(MAX(C105:C116)-MIN(C105:C116)<5,AVERAGEIF(C105:C116,">0",X105:X116), IF(FORECAST($C102,X$105:X$116,$C$105:$C$116)<0,0, IF(FORECAST($C102,X$105:X$116,$C$105:$C$116)>100,100, FORECAST($C102,X$105:X$116,$C$105:$C$116)))) -> 92.61274688 | AB102: =IF(MAX(C105:C116)-MIN(C105:C116)<5,AVERAGEIF(C105:C116,">0",AB105:AB116), IF(FORECAST($C102,AB$105:AB$116,$C$105:$C$116)<0,0, IF(FORECAST($C102,AB$105:AB$116,$C$105:$C$116)>100,100, FORECAST($C102,AB$105:AB$116,$C$105:$C$116)))) -> 2.287544724
B104: Survey | C104: Year | D104: Improved | E104: Not shared | H104: Open defecation | I104: Improved | J104: Not shared | M104: Open defecation | N104: Improved | O104: Not shared | R104: Open defecation | S104: Improved | T104: Not shared | W104: Open defecation | X104: Improved | Y104: Not shared | AB104: Open defecation
B105: MICS00 | C105: 2000 | D105: =IF(ISERROR(INDIRECT(CONCATENATE($B105,"!C122"))),"",INDIRECT(CONCATENATE($B105,"!C122"))) -> 5.646439741 | E105: =IF(ISERROR(INDIRECT(CONCATENATE($B105,"!C129"))),"",INDIRECT(CONCATENATE($B105,"!C129"))) -> N/A | H105: =IF(ISERROR(INDIRECT(CONCATENATE($B105,"!C127"))),"",INDIRECT(CONCATENATE($B105,"!C127"))) -> 83.97199538 | I105: =IF(ISERROR(INDIRECT(CONCATENATE($B105,"!D122"))),"",INDIRECT(CONCATENATE($B105,"!D122"))) -> 8.778384481 | J105: =IF(ISERROR(INDIRECT(CONCATENATE($B105,"!D129"))),"",INDIRECT(CONCATENATE($B105,"!D129"))) -> N/A | M105: =IF(ISERROR(INDIRECT(CONCATENATE($B105,"!D127"))),"",INDIRECT(CONCATENATE($B105,"!D127"))) -> 82.22882664 | N105: =IF(ISERROR(INDIRECT(CONCATENATE($B105,"!E122"))),"",INDIRECT(CONCATENATE($B105,"!E122"))) -> 18.57496927 | O105: =IF(ISERROR(INDIRECT(CONCATENATE($B105,"!E129"))),"",INDIRECT(CONCATENATE($B105,"!E129"))) -> N/A | R105: =IF(ISERROR(INDIRECT(CONCATENATE($B105,"!E127"))),"",INDIRECT(CONCATENATE($B105,"!E127"))) -> 74.18096944 | S105: =IF(ISERROR(INDIRECT(CONCATENATE($B105,"!F122"))),"",INDIRECT(CONCATENATE($B105,"!F122"))) -> 51.35040504 | T105: =IF(ISERROR(INDIRECT(CONCATENATE($B105,"!F129"))),"",INDIRECT(CONCATENATE($B105,"!F129"))) -> N/A | W105: =IF(ISERROR(INDIRECT(CONCATENATE($B105,"!F127"))),"",INDIRECT(CONCATENATE($B105,"!F127"))) -> 43.61783307 | X105: =IF(ISERROR(INDIRECT(CONCATENATE($B105,"!G122"))),"",INDIRECT(CONCATENATE($B105,"!G122"))) -> 85.71044717 | Y105: =IF(ISERROR(INDIRECT(CONCATENATE($B105,"!G129"))),"",INDIRECT(CONCATENATE($B105,"!G129"))) -> N/A | AB105: =IF(ISERROR(INDIRECT(CONCATENATE($B105,"!G2127"))),"",INDIRECT(CONCATENATE($B105,"!G127"))) -> 13.6560815
B106: MICS06 | C106: 2006 | D106: 1.951520501 | E106: 29.6129918 | H106: 88.30529605 | I106: 4.488422925 | J106: 27.87575082 | M106: 85.06508429 | N106: 17.26034345 | O106: 26.77988689 | R106: 64.24790208 | S106: 50.01009876 | T106: 23.6840289 | W106: 29.86982474 | X106: 85.03157341 | Y106: 43.37206253 | AB106: 7.493883544
B107: MICS10 | C107: 2010 | D107: 2.263192348 | E107: 14.76930169 | H107: 85.92704286 | I107: 5.37619201 | J107: 27.43031447 | M107: 85.60107409 | N107: 20.78292161 | O107: 21.02185923 | R107: 69.1492521 | S107: 59.43669095 | T107: 23.99127222 | W107: 30.81902018 | X107: 86.527838 | Y107: 52.43788354 | AB107: 6.855974554
B108: MIS17 | C108: 2017 | D108: 10.45472634 | E108: 64.21222319 | H108: 81.91311021 | I108: 10.59359573 | J108: 44.98230595 | M108: 77.1596592 | N108: 28.74035631 | O108: 24.91607487 | R108: 61.83559571 | S108: 73.77451065 | T108: 26.49029017 | W108: 18.84499428 | X108: 92.86464428 | Y108: 49.28963087 | AB108: 3.099637726
B109: MICS17 | C109: 2017 | D109: 8.068457394 | E109: 38.94150942 | H109: 78.84244507 | I109: 15.19339329 | J109: 32.04251995 | M109: 72.42645782 | N109: 36.81802735 | O109: 29.89439089 | R109: 49.80624441 | S109: 70.72309366 | T109: 29.89191346 | W109: 21.21803086 | X109: 92.23039139 | Y109: 60.10435502 | AB109: 4.364516327
B118: =CONCATENATE("National use of sanitation facilities, ",C99,"–",C100) -> National use of sanitation facilities, 2000–2020 | S118: Data points used for regression
A197: URBAN | D197: Poorest | I197: Poor | N197: Middle | S197: Rich | X197: Richest
D198: Improved | E198: Basic | F198: Limited | G198: Unimproved | H198: Open defecation | I198: Improved | J198: Basic | K198: Limited | L198: Unimproved | M198: Open defecation | N198: Improved | O198: Basic | P198: Limited | Q198: Unimproved | R198: Open defecation | S198: Improved | T198: Basic | U198: Limited | V198: Unimproved | W198: Open defecation | X198: Improved | Y198: Basic | Z198: Limited | AA198: Unimproved | AB198: Open defecation
A199: Forecast period: | C199: 2000 | D199: =IF((D201+H201)>100,D201*100/(D201+H201),D201) -> 26.52624251 | E199: =D199*AVERAGEIF(E205:E216,">0")/100 -> 5.945965955 | F199: =D199*(100-AVERAGEIF(E205:E216,">0"))/100 -> 20.58027655 | G199: =100-(E199+F199+H199) -> 11.36411548 | H199: =IF((D201+H201)>100,H201*100/(D201+H201),H201) -> 62.10964201 | I199: =IF((I201+M201)>100,I201*100/(I201+M201),I201) -> 61.01494933 | J199: =I199*AVERAGEIF(J205:J216,">0")/100 -> 11.7950324 | K199: =I199*(100-AVERAGEIF(J205:J216,">0"))/100 -> 49.21991693 | L199: =100-(J199+K199+M199) -> 8.868642304 | M199: =IF((I201+M201)>100,M201*100/(I201+M201),M201) -> 30.11640837 | N199: =IF((N201+R201)>100,N201*100/(N201+R201),N201) -> 77.4358704 | O199: =N199*AVERAGEIF(O205:O216,">0")/100 -> 20.04378359 | P199: =N199*(100-AVERAGEIF(O205:O216,">0"))/100 -> 57.39208681 | Q199: =100-(O199+P199+R199) -> 7.636238483 | R199: =IF((N201+R201)>100,R201*100/(N201+R201),R201) -> 14.92789111 | S199: =IF((S201+W201)>100,S201*100/(S201+W201),S201) -> 84.99965466 | T199: =S199*AVERAGEIF(T205:T216,">0")/100 -> 30.22781153 | U199: =S199*(100-AVERAGEIF(T205:T216,">0"))/100 -> 54.77184312 | V199: =100-(T199+U199+W199) -> 3.838413206 | W199: =IF((S201+W201)>100,W201*100/(S201+W201),W201) -> 11.16193214 | X199: =IF((X201+AB201)>100,X201*100/(X201+AB201),X201) -> 95.76909483 | Y199: =X199*AVERAGEIF(Y205:Y216,">0")/100 -> 68.82957837 | Z199: =X199*(100-AVERAGEIF(Y205:Y216,">0"))/100 -> 26.93951646 | AA199: =100-(Y199+Z199+AB199) -> 1.776522878 | AB199: =IF((X201+AB201)>100,AB201*100/(X201+AB201),AB201) -> 2.454382294
C200: 2020 | D200: =IF((D202+H202)>100,D202*100/(D202+H202),D202) -> 53.91052122 | E200: =D200*AVERAGEIF(E205:E216,">0")/100 -> 12.08426424 | F200: =D200*(100-AVERAGEIF(E205:E216,">0"))/100 -> 41.82625698 | G200: =100-(E200+F200+H200) -> 12.32809013 | H200: =IF((D202+H202)>100,H202*100/(D202+H202),H202) -> 33.76138865 | I200: =IF((I202+M202)>100,I202*100/(I202+M202),I202) -> 74.55781214 | J200: =I200*AVERAGEIF(J205:J216,">0")/100 -> 14.41305483 | K200: =I200*(100-AVERAGEIF(J205:J216,">0"))/100 -> 60.14475731 | L200: =100-(J200+K200+M200) -> 10.35756601 | M200: =IF((I202+M202)>100,M202*100/(I202+M202),M202) -> 15.08462185 | N200: =IF((N202+R202)>100,N202*100/(N202+R202),N202) -> 82.65919883 | O200: =N200*AVERAGEIF(O205:O216,">0")/100 -> 21.395809 | P200: =N200*(100-AVERAGEIF(O205:O216,">0"))/100 -> 61.26338982 | Q200: =100-(O200+P200+R200) -> 8.737991779 | R200: =IF((N202+R202)>100,R202*100/(N202+R202),R202) -> 8.602809395 | S200: =IF((S202+W202)>100,S202*100/(S202+W202),S202) -> 89.84597855 | T200: =S200*AVERAGEIF(T205:T216,">0")/100 -> 31.9512746 | U200: =S200*(100-AVERAGEIF(T205:T216,">0"))/100 -> 57.89470395 | V200: =100-(T200+U200+W200) -> 5.829606566 | W200: =IF((S202+W202)>100,W202*100/(S202+W202),W202) -> 4.324414886 | X200: =IF((X202+AB202)>100,X202*100/(X202+AB202),X202) -> 96.9143485 | Y200: =X200*AVERAGEIF(Y205:Y216,">0")/100 -> 69.65267613 | Z200: =X200*(100-AVERAGEIF(Y205:Y216,">0"))/100 -> 27.26167237 | AA200: =100-(Y200+Z200+AB200) -> 3.08082622 | AB200: =IF((X202+AB202)>100,AB202*100/(X202+AB202),AB202) -> 0.004825276415
A201: Regression period: | C201: =MinRegYear(C199,C205:C216) -> 2000 | D201: =IF(MAX(C205:C216)-MIN(C205:C216)<5,AVERAGEIF(C205:C216,">0",D205:D216), IF(FORECAST($C201,D$205:D$216,$C$205:$C$216)<0,0, IF(FORECAST($C201,D$205:D$216,$C$205:$C$216)>100,100, FORECAST($C201,D$205:D$216,$C$205:$C$216)))) -> 26.52624251 | H201: =IF(MAX(C205:C216)-MIN(C205:C216)<5,AVERAGEIF(C205:C216,">0",H205:H216), IF(FORECAST($C201,H$205:H$216,$C$205:$C$216)<0,0, IF(FORECAST($C201,H$205:H$216,$C$205:$C$216)>100,100, FORECAST($C201,H$205:H$216,$C$205:$C$216)))) -> 62.10964201 | I201: =IF(MAX(C205:C216)-MIN(C205:C216)<5,AVERAGEIF(C205:C216,">0",I205:I216), IF(FORECAST($C201,I$205:I$216,$C$205:$C$216)<0,0, IF(FORECAST($C201,I$205:I$216,$C$205:$C$216)>100,100, FORECAST($C201,I$205:I$216,$C$205:$C$216)))) -> 61.01494933 | M201: =IF(MAX(C205:C216)-MIN(C205:C216)<5,AVERAGEIF(C205:C216,">0",M205:M216), IF(FORECAST($C201,M$205:M$216,$C$205:$C$216)<0,0, IF(FORECAST($C201,M$205:M$216,$C$205:$C$216)>100,100, FORECAST($C201,M$205:M$216,$C$205:$C$216)))) -> 30.11640837 | N201: =IF(MAX(C205:C216)-MIN(C205:C216)<5,AVERAGEIF(C205:C216,">0",N205:N216), IF(FORECAST($C201,N$205:N$216,$C$205:$C$216)<0,0, IF(FORECAST($C201,N$205:N$216,$C$205:$C$216)>100,100, FORECAST($C201,N$205:N$216,$C$205:$C$216)))) -> 77.4358704 | R201: =IF(MAX(C205:C216)-MIN(C205:C216)<5,AVERAGEIF(C205:C216,">0",R205:R216), IF(FORECAST($C201,R$205:R$216,$C$205:$C$216)<0,0, IF(FORECAST($C201,R$205:R$216,$C$205:$C$216)>100,100, FORECAST($C201,R$205:R$216,$C$205:$C$216)))) -> 14.92789111 | S201: =IF(MAX(C205:C216)-MIN(C205:C216)<5,AVERAGEIF(C205:C216,">0",S205:S216), IF(FORECAST($C201,S$205:S$216,$C$205:$C$216)<0,0, IF(FORECAST($C201,S$205:S$216,$C$205:$C$216)>100,100, FORECAST($C201,S$205:S$216,$C$205:$C$216)))) -> 84.99965466 | W201: =IF(MAX(C205:C216)-MIN(C205:C216)<5,AVERAGEIF(C205:C216,">0",W205:W216), IF(FORECAST($C201,W$205:W$216,$C$205:$C$216)<0,0, IF(FORECAST($C201,W$205:W$216,$C$205:$C$216)>100,100, FORECAST($C201,W$205:W$216,$C$205:$C$216)))) -> 11.16193214 | X201: =IF(MAX(C205:C216)-MIN(C205:C216)<5,AVERAGEIF(C205:C216,">0",X205:X216), IF(FORECAST($C201,X$205:X$216,$C$205:$C$216)<0,0, IF(FORECAST($C201,X$205:X$216,$C$205:$C$216)>100,100, FORECAST($C201,X$205:X$216,$C$205:$C$216)))) -> 95.76909483 | AB201: =IF(MAX(C205:C216)-MIN(C205:C216)<5,AVERAGEIF(C205:C216,">0",AB205:AB216), IF(FORECAST($C201,AB$205:AB$216,$C$205:$C$216)<0,0, IF(FORECAST($C201,AB$205:AB$216,$C$205:$C$216)>100,100, FORECAST($C201,AB$205:AB$216,$C$205:$C$216)))) -> 2.454382294
C202: =MaxRegYear(C200,C205:C216) -> 2019 | D202: =IF(MAX(C205:C216)-MIN(C205:C216)<5,AVERAGEIF(C205:C216,">0",D205:D216), IF(FORECAST($C202,D$205:D$216,$C$205:$C$216)<0,0, IF(FORECAST($C202,D$205:D$216,$C$205:$C$216)>100,100, FORECAST($C202,D$205:D$216,$C$205:$C$216)))) -> 53.91052122 | H202: =IF(MAX(C205:C216)-MIN(C205:C216)<5,AVERAGEIF(C205:C216,">0",H205:H216), IF(FORECAST($C202,H$205:H$216,$C$205:$C$216)<0,0, IF(FORECAST($C202,H$205:H$216,$C$205:$C$216)>100,100, FORECAST($C202,H$205:H$216,$C$205:$C$216)))) -> 33.76138865 | I202: =IF(MAX(C205:C216)-MIN(C205:C216)<5,AVERAGEIF(C205:C216,">0",I205:I216), IF(FORECAST($C202,I$205:I$216,$C$205:$C$216)<0,0, IF(FORECAST($C202,I$205:I$216,$C$205:$C$216)>100,100, FORECAST($C202,I$205:I$216,$C$205:$C$216)))) -> 74.55781214 | M202: =IF(MAX(C205:C216)-MIN(C205:C216)<5,AVERAGEIF(C205:C216,">0",M205:M216), IF(FORECAST($C202,M$205:M$216,$C$205:$C$216)<0,0, IF(FORECAST($C202,M$205:M$216,$C$205:$C$216)>100,100, FORECAST($C202,M$205:M$216,$C$205:$C$216)))) -> 15.08462185 | N202: =IF(MAX(C205:C216)-MIN(C205:C216)<5,AVERAGEIF(C205:C216,">0",N205:N216), IF(FORECAST($C202,N$205:N$216,$C$205:$C$216)<0,0, IF(FORECAST($C202,N$205:N$216,$C$205:$C$216)>100,100, FORECAST($C202,N$205:N$216,$C$205:$C$216)))) -> 82.65919883 | R202: =IF(MAX(C205:C216)-MIN(C205:C216)<5,AVERAGEIF(C205:C216,">0",R205:R216), IF(FORECAST($C202,R$205:R$216,$C$205:$C$216)<0,0, IF(FORECAST($C202,R$205:R$216,$C$205:$C$216)>100,100, FORECAST($C202,R$205:R$216,$C$205:$C$216)))) -> 8.602809395 | S202: =IF(MAX(C205:C216)-MIN(C205:C216)<5,AVERAGEIF(C205:C216,">0",S205:S216), IF(FORECAST($C202,S$205:S$216,$C$205:$C$216)<0,0, IF(FORECAST($C202,S$205:S$216,$C$205:$C$216)>100,100, FORECAST($C202,S$205:S$216,$C$205:$C$216)))) -> 89.84597855 | W202: =IF(MAX(C205:C216)-MIN(C205:C216)<5,AVERAGEIF(C205:C216,">0",W205:W216), IF(FORECAST($C202,W$205:W$216,$C$205:$C$216)<0,0, IF(FORECAST($C202,W$205:W$216,$C$205:$C$216)>100,100, FORECAST($C202,W$205:W$216,$C$205:$C$216)))) -> 4.324414886 | X202: =IF(MAX(C205:C216)-MIN(C205:C216)<5,AVERAGEIF(C205:C216,">0",X205:X216), IF(FORECAST($C202,X$205:X$216,$C$205:$C$216)<0,0, IF(FORECAST($C202,X$205:X$216,$C$205:$C$216)>100,100, FORECAST($C202,X$205:X$216,$C$205:$C$216)))) -> 96.9143485 | AB202: =IF(MAX(C205:C216)-MIN(C205:C216)<5,AVERAGEIF(C205:C216,">0",AB205:AB216), IF(FORECAST($C202,AB$205:AB$216,$C$205:$C$216)<0,0, IF(FORECAST($C202,AB$205:AB$216,$C$205:$C$216)>100,100, FORECAST($C202,AB$205:AB$216,$C$205:$C$216)))) -> 0.004825276415
B204: Survey | C204: Year | D204: Improved | E204: Not shared | H204: Open defecation | I204: Improved | J204: Not shared | M204: Open defecation | N204: Improved | O204: Not shared | R204: Open defecation | S204: Improved | T204: Not shared | W204: Open defecation | X204: Improved | Y204: Not shared | AB204: Open defecation
B205: MICS00 | C205: 2000 | D205: =IF(ISERROR(INDIRECT(CONCATENATE($B205,"!H122"))),"",INDIRECT(CONCATENATE($B205,"!H122"))) -> 29.61600697 | E205: =IF(ISERROR(INDIRECT(CONCATENATE($B205,"!H129"))),"",INDIRECT(CONCATENATE($B205,"!H129"))) -> N/A | H205: =IF(ISERROR(INDIRECT(CONCATENATE($B205,"!H127"))),"",INDIRECT(CONCATENATE($B205,"!H127"))) -> 64.38837302 | I205: =IF(ISERROR(INDIRECT(CONCATENATE($B205,"!I122"))),"",INDIRECT(CONCATENATE($B205,"!I122"))) -> 69.10579981 | J205: =IF(ISERROR(INDIRECT(CONCATENATE($B205,"!I129"))),"",INDIRECT(CONCATENATE($B205,"!I129"))) -> N/A | M205: =IF(ISERROR(INDIRECT(CONCATENATE($B205,"!I127"))),"",INDIRECT(CONCATENATE($B205,"!I127"))) -> 28.11675292 | N205: =IF(ISERROR(INDIRECT(CONCATENATE($B205,"!J122"))),"",INDIRECT(CONCATENATE($B205,"!J122"))) -> 82.3558416 | O205: =IF(ISERROR(INDIRECT(CONCATENATE($B205,"!J129"))),"",INDIRECT(CONCATENATE($B205,"!J129"))) -> N/A | R205: =IF(ISERROR(INDIRECT(CONCATENATE($B205,"!J127"))),"",INDIRECT(CONCATENATE($B205,"!J127"))) -> 15.91791575 | S205: =IF(ISERROR(INDIRECT(CONCATENATE($B205,"!K122"))),"",INDIRECT(CONCATENATE($B205,"!K122"))) -> 88.89507749 | T205: =IF(ISERROR(INDIRECT(CONCATENATE($B205,"!K129"))),"",INDIRECT(CONCATENATE($B205,"!K129"))) -> N/A | W205: =IF(ISERROR(INDIRECT(CONCATENATE($B205,"!K127"))),"",INDIRECT(CONCATENATE($B205,"!K127"))) -> 10.77943915 | X205: =IF(ISERROR(INDIRECT(CONCATENATE($B205,"!L122"))),"",INDIRECT(CONCATENATE($B205,"!L122"))) -> 97.70047058 | Y205: =IF(ISERROR(INDIRECT(CONCATENATE($B205,"!L129"))),"",INDIRECT(CONCATENATE($B205,"!L129"))) -> N/A | AB205: =IF(ISERROR(INDIRECT(CONCATENATE($B205,"!L2127"))),"",INDIRECT(CONCATENATE($B205,"!L127"))) -> 2.299529422
B206: MICS06 | C206: 2006 | D206: 29.02400365 | E206: 26.94097678 | H206: 50.46241766 | I206: 53.4356758 | J206: 15.94281244 | M206: 27.15967744 | N206: 73.79241905 | O206: 18.918969 | R206: 11.6883018 | S206: 83.38321337 | T206: 28.46121835 | W206: 7.487275795 | X206: 93.47397444 | Y206: 67.21259569 | AB206: 2.14280538
B207: MICS10 | C207: 2010 | D207: 43.09944481 | E207: 15.64291893 | H207: 45.89067446 | I207: 67.1243689 | J207: 17.7877644 | M207: 24.24815654 | N207: 76.55394034 | O207: 25.38535233 | R207: 11.14657605 | S207: 83.03510356 | T207: 39.69478585 | W207: 10.87355668 | X207: 95.85631508 | Y207: 73.34752325 | AB207: 0.8152642368
B208: MIS17 | C208: 2017 | D208: 49.49939733 | E208: 20.32373186 | H208: 40.43464136 | I208: 77.98418849 | J208: 19.6284724 | M208: 14.15033174 | N208: 85.10671683 | O208: 24.63190825 | R208: 7.501456548 | S208: 92.78837664 | T208: 27.60459321 | W208: 2.577513901 | X208: 96.48638638 | Y208: 70.89389427 | AB208: 0.4067532379
B209: MICS17 | C209: 2017 | D209: 53.45625114 | E209: 26.75401151 | H209: 34.77143681 | I209: 73.0638263 | J209: 23.96647528 | M209: 17.34979026 | N209: 83.11603531 | O209: 34.60123174 | R209: 11.74025354 | S209: 89.64998615 | T209: 46.4885054 | W209: 6.098408709 | X209: 98.34215312 | Y209: 76.02736475 | AB209: 0.1613565157
B218: =CONCATENATE("Urban use of sanitation facilities, ",C199,"–",C200) -> Urban use of sanitation facilities, 2000–2020 | S218: Data points used for regression
A297: RURAL | D297: Poorest | I297: Poor | N297: Middle | S297: Rich | X297: Richest
D298: Improved | E298: Basic | F298: Limited | G298: Unimproved | H298: Open defecation | I298: Improved | J298: Basic | K298: Limited | L298: Unimproved | M298: Open defecation | N298: Improved | O298: Basic | P298: Limited | Q298: Unimproved | R298: Open defecation | S298: Improved | T298: Basic | U298: Limited | V298: Unimproved | W298: Open defecation | X298: Improved | Y298: Basic | Z298: Limited | AA298: Unimproved | AB298: Open defecation
A299: Forecast period: | C299: 2000 | D299: =IF((D301+H301)>100,D301*100/(D301+H301),D301) -> 1.975945117 | E299: =D299*AVERAGEIF(E305:E316,">0")/100 -> 0.8478033823 | F299: =D299*(100-AVERAGEIF(E305:E316,">0"))/100 -> 1.128141735 | G299: =100-(E299+F299+H299) -> 11.11201067 | H299: =IF((D301+H301)>100,H301*100/(D301+H301),H301) -> 86.91204421 | I299: =IF((I301+M301)>100,I301*100/(I301+M301),I301) -> 3.099073905 | J299: =I299*AVERAGEIF(J305:J316,">0")/100 -> 1.352739337 | K299: =I299*(100-AVERAGEIF(J305:J316,">0"))/100 -> 1.746334569 | L299: =100-(J299+K299+M299) -> 8.95189863 | M299: =IF((I301+M301)>100,M301*100/(I301+M301),M301) -> 87.94902746 | N299: =IF((N301+R301)>100,N301*100/(N301+R301),N301) -> 6.080180301 | O299: =N299*AVERAGEIF(O305:O316,">0")/100 -> 1.740766109 | P299: =N299*(100-AVERAGEIF(O305:O316,">0"))/100 -> 4.339414192 | Q299: =100-(O299+P299+R299) -> 8.682468156 | R299: =IF((N301+R301)>100,R301*100/(N301+R301),R301) -> 85.23735154 | S299: =IF((S301+W301)>100,S301*100/(S301+W301),S301) -> 11.90169929 | T299: =S299*AVERAGEIF(T305:T316,">0")/100 -> 3.002809539 | U299: =S299*(100-AVERAGEIF(T305:T316,">0"))/100 -> 8.898889748 | V299: =100-(T299+U299+W299) -> 10.44999771 | W299: =IF((S301+W301)>100,W301*100/(S301+W301),W301) -> 77.648303 | X299: =IF((X301+AB301)>100,X301*100/(X301+AB301),X301) -> 29.60104691 | Y299: =X299*AVERAGEIF(Y305:Y316,">0")/100 -> 12.89659409 | Z299: =X299*(100-AVERAGEIF(Y305:Y316,">0"))/100 -> 16.70445282 | AA299: =100-(Y299+Z299+AB299) -> 12.01282838 | AB299: =IF((X301+AB301)>100,AB301*100/(X301+AB301),AB301) -> 58.38612472
C300: 2020 | D300: =IF((D302+H302)>100,D302*100/(D302+H302),D302) -> 7.406957264 | E300: =D300*AVERAGEIF(E305:E316,">0")/100 -> 3.178045466 | F300: =D300*(100-AVERAGEIF(E305:E316,">0"))/100 -> 4.228911799 | G300: =100-(E300+F300+H300) -> 9.976057754 | H300: =IF((D302+H302)>100,H302*100/(D302+H302),H302) -> 82.61698498 | I300: =IF((I302+M302)>100,I302*100/(I302+M302),I302) -> 9.351105658 | J300: =I300*AVERAGEIF(J305:J316,">0")/100 -> 4.081738239 | K300: =I300*(100-AVERAGEIF(J305:J316,">0"))/100 -> 5.269367419 | L300: =100-(J300+K300+M300) -> 10.96294861 | M300: =IF((I302+M302)>100,M302*100/(I302+M302),M302) -> 79.68594573 | N300: =IF((N302+R302)>100,N302*100/(N302+R302),N302) -> 10.86388881 | O300: =N300*AVERAGEIF(O305:O316,">0")/100 -> 3.110350106 | P300: =N300*(100-AVERAGEIF(O305:O316,">0"))/100 -> 7.753538699 | Q300: =100-(O300+P300+R300) -> 13.10004324 | R300: =IF((N302+R302)>100,R302*100/(N302+R302),R302) -> 76.03606795 | S300: =IF((S302+W302)>100,S302*100/(S302+W302),S302) -> 18.59586962 | T300: =S300*AVERAGEIF(T305:T316,">0")/100 -> 4.691754792 | U300: =S300*(100-AVERAGEIF(T305:T316,">0"))/100 -> 13.90411482 | V300: =100-(T300+U300+W300) -> 11.94178132 | W300: =IF((S302+W302)>100,W302*100/(S302+W302),W302) -> 69.46234906 | X300: =IF((X302+AB302)>100,X302*100/(X302+AB302),X302) -> 53.44169674 | Y300: =X300*AVERAGEIF(Y305:Y316,">0")/100 -> 23.28349643 | Z300: =X300*(100-AVERAGEIF(Y305:Y316,">0"))/100 -> 30.15820031 | AA300: =100-(Y300+Z300+AB300) -> 9.909757066 | AB300: =IF((X302+AB302)>100,AB302*100/(X302+AB302),AB302) -> 36.6485462
A301: Regression period: | C301: =MinRegYear(C299,C305:C316) -> 2000 | D301: =IF(MAX(C305:C316)-MIN(C305:C316)<5,AVERAGEIF(C305:C316,">0",D305:D316), IF(FORECAST($C301,D$305:D$316,$C$305:$C$316)<0,0, IF(FORECAST($C301,D$305:D$316,$C$305:$C$316)>100,100, FORECAST($C301,D$305:D$316,$C$305:$C$316)))) -> 1.975945117 | H301: =IF(MAX(C305:C316)-MIN(C305:C316)<5,AVERAGEIF(C305:C316,">0",H305:H316), IF(FORECAST($C301,H$305:H$316,$C$305:$C$316)<0,0, IF(FORECAST($C301,H$305:H$316,$C$305:$C$316)>100,100, FORECAST($C301,H$305:H$316,$C$305:$C$316)))) -> 86.91204421 | I301: =IF(MAX(C305:C316)-MIN(C305:C316)<5,AVERAGEIF(C305:C316,">0",I305:I316), IF(FORECAST($C301,I$305:I$316,$C$305:$C$316)<0,0, IF(FORECAST($C301,I$305:I$316,$C$305:$C$316)>100,100, FORECAST($C301,I$305:I$316,$C$305:$C$316)))) -> 3.099073905 | M301: =IF(MAX(C305:C316)-MIN(C305:C316)<5,AVERAGEIF(C305:C316,">0",M305:M316), IF(FORECAST($C301,M$305:M$316,$C$305:$C$316)<0,0, IF(FORECAST($C301,M$305:M$316,$C$305:$C$316)>100,100, FORECAST($C301,M$305:M$316,$C$305:$C$316)))) -> 87.94902746 | N301: =IF(MAX(C305:C316)-MIN(C305:C316)<5,AVERAGEIF(C305:C316,">0",N305:N316), IF(FORECAST($C301,N$305:N$316,$C$305:$C$316)<0,0, IF(FORECAST($C301,N$305:N$316,$C$305:$C$316)>100,100, FORECAST($C301,N$305:N$316,$C$305:$C$316)))) -> 6.080180301 | R301: =IF(MAX(C305:C316)-MIN(C305:C316)<5,AVERAGEIF(C305:C316,">0",R305:R316), IF(FORECAST($C301,R$305:R$316,$C$305:$C$316)<0,0, IF(FORECAST($C301,R$305:R$316,$C$305:$C$316)>100,100, FORECAST($C301,R$305:R$316,$C$305:$C$316)))) -> 85.23735154 | S301: =IF(MAX(C305:C316)-MIN(C305:C316)<5,AVERAGEIF(C305:C316,">0",S305:S316), IF(FORECAST($C301,S$305:S$316,$C$305:$C$316)<0,0, IF(FORECAST($C301,S$305:S$316,$C$305:$C$316)>100,100, FORECAST($C301,S$305:S$316,$C$305:$C$316)))) -> 11.90169929 | W301: =IF(MAX(C305:C316)-MIN(C305:C316)<5,AVERAGEIF(C305:C316,">0",W305:W316), IF(FORECAST($C301,W$305:W$316,$C$305:$C$316)<0,0, IF(FORECAST($C301,W$305:W$316,$C$305:$C$316)>100,100, FORECAST($C301,W$305:W$316,$C$305:$C$316)))) -> 77.648303 | X301: =IF(MAX(C305:C316)-MIN(C305:C316)<5,AVERAGEIF(C305:C316,">0",X305:X316), IF(FORECAST($C301,X$305:X$316,$C$305:$C$316)<0,0, IF(FORECAST($C301,X$305:X$316,$C$305:$C$316)>100,100, FORECAST($C301,X$305:X$316,$C$305:$C$316)))) -> 29.60104691 | AB301: =IF(MAX(C305:C316)-MIN(C305:C316)<5,AVERAGEIF(C305:C316,">0",AB305:AB316), IF(FORECAST($C301,AB$305:AB$316,$C$305:$C$316)<0,0, IF(FORECAST($C301,AB$305:AB$316,$C$305:$C$316)>100,100, FORECAST($C301,AB$305:AB$316,$C$305:$C$316)))) -> 58.38612472
C302: =MaxRegYear(C300,C305:C316) -> 2019 | D302: =IF(MAX(C305:C316)-MIN(C305:C316)<5,AVERAGEIF(C305:C316,">0",D305:D316), IF(FORECAST($C302,D$305:D$316,$C$305:$C$316)<0,0, IF(FORECAST($C302,D$305:D$316,$C$305:$C$316)>100,100, FORECAST($C302,D$305:D$316,$C$305:$C$316)))) -> 7.406957264 | H302: =IF(MAX(C305:C316)-MIN(C305:C316)<5,AVERAGEIF(C305:C316,">0",H305:H316), IF(FORECAST($C302,H$305:H$316,$C$305:$C$316)<0,0, IF(FORECAST($C302,H$305:H$316,$C$305:$C$316)>100,100, FORECAST($C302,H$305:H$316,$C$305:$C$316)))) -> 82.61698498 | I302: =IF(MAX(C305:C316)-MIN(C305:C316)<5,AVERAGEIF(C305:C316,">0",I305:I316), IF(FORECAST($C302,I$305:I$316,$C$305:$C$316)<0,0, IF(FORECAST($C302,I$305:I$316,$C$305:$C$316)>100,100, FORECAST($C302,I$305:I$316,$C$305:$C$316)))) -> 9.351105658 | M302: =IF(MAX(C305:C316)-MIN(C305:C316)<5,AVERAGEIF(C305:C316,">0",M305:M316), IF(FORECAST($C302,M$305:M$316,$C$305:$C$316)<0,0, IF(FORECAST($C302,M$305:M$316,$C$305:$C$316)>100,100, FORECAST($C302,M$305:M$316,$C$305:$C$316)))) -> 79.68594573 | N302: =IF(MAX(C305:C316)-MIN(C305:C316)<5,AVERAGEIF(C305:C316,">0",N305:N316), IF(FORECAST($C302,N$305:N$316,$C$305:$C$316)<0,0, IF(FORECAST($C302,N$305:N$316,$C$305:$C$316)>100,100, FORECAST($C302,N$305:N$316,$C$305:$C$316)))) -> 10.86388881 | R302: =IF(MAX(C305:C316)-MIN(C305:C316)<5,AVERAGEIF(C305:C316,">0",R305:R316), IF(FORECAST($C302,R$305:R$316,$C$305:$C$316)<0,0, IF(FORECAST($C302,R$305:R$316,$C$305:$C$316)>100,100, FORECAST($C302,R$305:R$316,$C$305:$C$316)))) -> 76.03606795 | S302: =IF(MAX(C305:C316)-MIN(C305:C316)<5,AVERAGEIF(C305:C316,">0",S305:S316), IF(FORECAST($C302,S$305:S$316,$C$305:$C$316)<0,0, IF(FORECAST($C302,S$305:S$316,$C$305:$C$316)>100,100, FORECAST($C302,S$305:S$316,$C$305:$C$316)))) -> 18.59586962 | W302: =IF(MAX(C305:C316)-MIN(C305:C316)<5,AVERAGEIF(C305:C316,">0",W305:W316), IF(FORECAST($C302,W$305:W$316,$C$305:$C$316)<0,0, IF(FORECAST($C302,W$305:W$316,$C$305:$C$316)>100,100, FORECAST($C302,W$305:W$316,$C$305:$C$316)))) -> 69.46234906 | X302: =IF(MAX(C305:C316)-MIN(C305:C316)<5,AVERAGEIF(C305:C316,">0",X305:X316), IF(FORECAST($C302,X$305:X$316,$C$305:$C$316)<0,0, IF(FORECAST($C302,X$305:X$316,$C$305:$C$316)>100,100, FORECAST($C302,X$305:X$316,$C$305:$C$316)))) -> 53.44169674 | AB302: =IF(MAX(C305:C316)-MIN(C305:C316)<5,AVERAGEIF(C305:C316,">0",AB305:AB316), IF(FORECAST($C302,AB$305:AB$316,$C$305:$C$316)<0,0, IF(FORECAST($C302,AB$305:AB$316,$C$305:$C$316)>100,100, FORECAST($C302,AB$305:AB$316,$C$305:$C$316)))) -> 36.6485462
B304: Survey | C304: Year | D304: Improved | E304: Not shared | H304: Open defecation | I304: Improved | J304: Not shared | M304: Open defecation | N304: Improved | O304: Not shared | R304: Open defecation | S304: Improved | T304: Not shared | W304: Open defecation | X304: Improved | Y304: Not shared | AB304: Open defecation
B305: MICS00 | C305: 2000 | D305: =IF(ISERROR(INDIRECT(CONCATENATE($B305,"!M122"))),"",INDIRECT(CONCATENATE($B305,"!M122"))) -> 4.573417807 | E305: =IF(ISERROR(INDIRECT(CONCATENATE($B305,"!M129"))),"",INDIRECT(CONCATENATE($B305,"!M129"))) -> N/A | H305: =IF(ISERROR(INDIRECT(CONCATENATE($B305,"!M127"))),"",INDIRECT(CONCATENATE($B305,"!M127"))) -> 84.04563508 | I305: =IF(ISERROR(INDIRECT(CONCATENATE($B305,"!N122"))),"",INDIRECT(CONCATENATE($B305,"!N122"))) -> 5.759331383 | J305: =IF(ISERROR(INDIRECT(CONCATENATE($B305,"!N129"))),"",INDIRECT(CONCATENATE($B305,"!N129"))) -> N/A | M305: =IF(ISERROR(INDIRECT(CONCATENATE($B305,"!N127"))),"",INDIRECT(CONCATENATE($B305,"!N127"))) -> 85.8629219 | N305: =IF(ISERROR(INDIRECT(CONCATENATE($B305,"!O122"))),"",INDIRECT(CONCATENATE($B305,"!O122"))) -> 9.349521451 | O305: =IF(ISERROR(INDIRECT(CONCATENATE($B305,"!O129"))),"",INDIRECT(CONCATENATE($B305,"!O129"))) -> N/A | R305: =IF(ISERROR(INDIRECT(CONCATENATE($B305,"!O127"))),"",INDIRECT(CONCATENATE($B305,"!O127"))) -> 81.48087451 | S305: =IF(ISERROR(INDIRECT(CONCATENATE($B305,"!P122"))),"",INDIRECT(CONCATENATE($B305,"!P122"))) -> 13.94135953 | T305: =IF(ISERROR(INDIRECT(CONCATENATE($B305,"!P129"))),"",INDIRECT(CONCATENATE($B305,"!P129"))) -> N/A | W305: =IF(ISERROR(INDIRECT(CONCATENATE($B305,"!P127"))),"",INDIRECT(CONCATENATE($B305,"!P127"))) -> 77.00419248 | X305: =IF(ISERROR(INDIRECT(CONCATENATE($B305,"!Q122"))),"",INDIRECT(CONCATENATE($B305,"!Q122"))) -> 37.74603759 | Y305: =IF(ISERROR(INDIRECT(CONCATENATE($B305,"!Q129"))),"",INDIRECT(CONCATENATE($B305,"!Q129"))) -> N/A | AB305: =IF(ISERROR(INDIRECT(CONCATENATE($B305,"!Q2127"))),"",INDIRECT(CONCATENATE($B305,"!Q127"))) -> 55.98866906
B306: MICS06 | C306: 2006 | D306: 1.398588899 | E306: 27.89721094 | H306: 89.3033546 | I306: 2.989445881 | J306: 50.47878794 | M306: 86.2527978 | N306: 4.731126631 | O306: 20.20219293 | R306: 85.29571735 | S306: 11.96796459 | T306: 16.88961549 | W306: 74.05000842 | X306: 29.06138339 | Y306: 40.75988438 | AB306: 49.70655399
B307: MICS10 | C307: 2010 | D307: 2.128587394 | E307: 24.27495288 | H307: 85.7236098 | I307: 3.203776236 | J307: 25.19425052 | M307: 87.23132054 | N307: 5.151904976 | O307: 22.55837863 | R307: 84.8596753 | S307: 13.68927416 | T307: 22.47183439 | W307: 76.4964348 | X307: 35.04680677 | Y307: 41.93001971 | AB307: 55.61994262
B308: MIS17 | C308: 2017 | D308: 9.113641977 | E308: 75.98763793 | H308: 84.03784869 | I308: 9.713965567 | J308: 60.70186277 | M308: 81.74919429 | N308: 9.937309842 | O308: 41.7831622 | R308: 76.6495619 | S308: 17.47099686 | T308: 32.11140664 | W308: 72.98645375 | X308: 55.90394371 | Y308: 47.89144622 | AB308: 37.01629076
B309: MICS17 | C309: 2017 | D309: 6.957626739 | E309: 43.46508292 | H309: 80.14698544 | I309: 10.2815656 | J309: 38.22426975 | M309: 76.90395084 | N309: 13.81974519 | O309: 29.97695629 | R309: 73.68702447 | S309: 20.055139 | T309: 29.44750674 | W309: 66.1624415 | X309: 52.98561526 | Y309: 43.6907844 | AB309: 36.39501315
B318: =CONCATENATE("Rural use of sanitation facilities, ",C299,"–",C300) -> Rural use of sanitation facilities, 2000–2020 | S318: Data points used for regression

Sheet Hygiene
B4: Access to hygiene facilities by wealth quintile (%)
B5: =IF(ISERROR(INDIRECT(CONCATENATE($E$32,"!A2"))),"",INDIRECT(CONCATENATE($E$32,"!A2"))) -> Togo
B7: =CONCATENATE("National ",IF(ISERROR(INDIRECT(CONCATENATE($E$32,"!A2"))),"",INDIRECT(CONCATENATE($E$32,"!A210")))) -> National Access to hygiene facilities | K7: =CONCATENATE("Urban ",IF(ISERROR(INDIRECT(CONCATENATE($E$32,"!A2"))),"",INDIRECT(CONCATENATE($E$32,"!A210")))) -> Urban Access to hygiene facilities | S7: =CONCATENATE("Rural ",IF(ISERROR(INDIRECT(CONCATENATE($E$32,"!A2"))),"",INDIRECT(CONCATENATE($E$32,"!A210")))) -> Rural Access to hygiene facilities
E32: =INDEX(B88:B100,A88) -> MICS17 | G32: =IF(ISERROR(INDIRECT(CONCATENATE($E$32,"!A2"))),"",INDIRECT(CONCATENATE($E$32,"!A2"))) -> Togo | K32: Poorest | N32: Poor | Q32: Middle | T32: Rich | W32: Richest
K33: Basic | L33: Limited | M33: No facility | N33: Basic | O33: Limited | P33: No facility | Q33: Basic | R33: Limited | S33: No facility | T33: Basic | U33: Limited | V33: No facility | W33: Basic | X33: Limited | Y33: No facility
B34: >>> Select Survey : | G34: NATIONAL | J34: =IF(ISERROR(INDIRECT(CONCATENATE(#REF!,"!A2"))),"",INDIRECT(CONCATENATE(#REF!,"!A210"))) ->  | K34: =IF(ISERROR(INDIRECT(CONCATENATE($E$32,"!C222"))),"",INDIRECT(CONCATENATE($E$32,"!C222"))) -> 7.141435947 | L34: =IF(ISERROR(INDIRECT(CONCATENATE($E$32,"!C223"))),"",INDIRECT(CONCATENATE($E$32,"!C223"))) -> 3.280796727 | M34: =IF(ISERROR(INDIRECT(CONCATENATE($E$32,"!C224"))),"",INDIRECT(CONCATENATE($E$32,"!C224"))) -> 89.57776733 | N34: =IF(ISERROR(INDIRECT(CONCATENATE($E$32,"!D222"))),"",INDIRECT(CONCATENATE($E$32,"!D222"))) -> 8.076536611 | O34: =IF(ISERROR(INDIRECT(CONCATENATE($E$32,"!D223"))),"",INDIRECT(CONCATENATE($E$32,"!D223"))) -> 8.231720804 | P34: =IF(ISERROR(INDIRECT(CONCATENATE($E$32,"!D224"))),"",INDIRECT(CONCATENATE($E$32,"!D224"))) -> 83.69174259 | Q34: =IF(ISERROR(INDIRECT(CONCATENATE($E$32,"!E222"))),"",INDIRECT(CONCATENATE($E$32,"!E222"))) -> 14.62098799 | R34: =IF(ISERROR(INDIRECT(CONCATENATE($E$32,"!E223"))),"",INDIRECT(CONCATENATE($E$32,"!E223"))) -> 10.24203277 | S34: =IF(ISERROR(INDIRECT(CONCATENATE($E$32,"!E224"))),"",INDIRECT(CONCATENATE($E$32,"!E224"))) -> 75.13697924 | T34: =IF(ISERROR(INDIRECT(CONCATENATE($E$32,"!F222"))),"",INDIRECT(CONCATENATE($E$32,"!F222"))) -> 19.84410667 | U34: =IF(ISERROR(INDIRECT(CONCATENATE($E$32,"!F223"))),"",INDIRECT(CONCATENATE($E$32,"!F223"))) -> 9.707817352 | V34: =IF(ISERROR(INDIRECT(CONCATENATE($E$32,"!F224"))),"",INDIRECT(CONCATENATE($E$32,"!F224"))) -> 70.44807598 | W34: =IF(ISERROR(INDIRECT(CONCATENATE($E$32,"!G222"))),"",INDIRECT(CONCATENATE($E$32,"!G222"))) -> 36.14942644 | X34: =IF(ISERROR(INDIRECT(CONCATENATE($E$32,"!G223"))),"",INDIRECT(CONCATENATE($E$32,"!G223"))) -> 9.793751914 | Y34: =IF(ISERROR(INDIRECT(CONCATENATE($E$32,"!G224"))),"",INDIRECT(CONCATENATE($E$32,"!G224"))) -> 54.05682165
G37: URBAN | J37: =IF(ISERROR(INDIRECT(CONCATENATE(#REF!,"!A2"))),"",INDIRECT(CONCATENATE(#REF!,"!A210"))) ->  | K37: =IF(ISERROR(INDIRECT(CONCATENATE($E$32,"!H222"))),"",INDIRECT(CONCATENATE($E$32,"!H222"))) -> 17.78014921 | L37: =IF(ISERROR(INDIRECT(CONCATENATE($E$32,"!H223"))),"",INDIRECT(CONCATENATE($E$32,"!H223"))) -> 8.442527312 | M37: =IF(ISERROR(INDIRECT(CONCATENATE($E$32,"!H224"))),"",INDIRECT(CONCATENATE($E$32,"!H224"))) -> 73.77732347 | N37: =IF(ISERROR(INDIRECT(CONCATENATE($E$32,"!I222"))),"",INDIRECT(CONCATENATE($E$32,"!I222"))) -> 23.08885447 | O37: =IF(ISERROR(INDIRECT(CONCATENATE($E$32,"!I223"))),"",INDIRECT(CONCATENATE($E$32,"!I223"))) -> 10.99191826 | P37: =IF(ISERROR(INDIRECT(CONCATENATE($E$32,"!I224"))),"",INDIRECT(CONCATENATE($E$32,"!I224"))) -> 65.91922726 | Q37: =IF(ISERROR(INDIRECT(CONCATENATE($E$32,"!J222"))),"",INDIRECT(CONCATENATE($E$32,"!J222"))) -> 20.78589262 | R37: =IF(ISERROR(INDIRECT(CONCATENATE($E$32,"!J223"))),"",INDIRECT(CONCATENATE($E$32,"!J223"))) -> 10.63448923 | S37: =IF(ISERROR(INDIRECT(CONCATENATE($E$32,"!J224"))),"",INDIRECT(CONCATENATE($E$32,"!J224"))) -> 68.57961815 | T37: =IF(ISERROR(INDIRECT(CONCATENATE($E$32,"!K222"))),"",INDIRECT(CONCATENATE($E$32,"!K222"))) -> 24.49543946 | U37: =IF(ISERROR(INDIRECT(CONCATENATE($E$32,"!K223"))),"",INDIRECT(CONCATENATE($E$32,"!K223"))) -> 11.18239732 | V37: =IF(ISERROR(INDIRECT(CONCATENATE($E$32,"!K224"))),"",INDIRECT(CONCATENATE($E$32,"!K224"))) -> 64.32216322 | W37: =IF(ISERROR(INDIRECT(CONCATENATE($E$32,"!L222"))),"",INDIRECT(CONCATENATE($E$32,"!L222"))) -> 48.87803557 | X37: =IF(ISERROR(INDIRECT(CONCATENATE($E$32,"!L223"))),"",INDIRECT(CONCATENATE($E$32,"!L223"))) -> 8.240457443 | Y37: =IF(ISERROR(INDIRECT(CONCATENATE($E$32,"!L224"))),"",INDIRECT(CONCATENATE($E$32,"!L224"))) -> 42.88150699
G40: RURAL | J40: =IF(ISERROR(INDIRECT(CONCATENATE(#REF!,"!A2"))),"",INDIRECT(CONCATENATE(#REF!,"!A210"))) ->  | K40: =IF(ISERROR(INDIRECT(CONCATENATE($E$32,"!M222"))),"",INDIRECT(CONCATENATE($E$32,"!M222"))) -> 4.882878598 | L40: =IF(ISERROR(INDIRECT(CONCATENATE($E$32,"!M223"))),"",INDIRECT(CONCATENATE($E$32,"!M223"))) -> 3.228311363 | M40: =IF(ISERROR(INDIRECT(CONCATENATE($E$32,"!M224"))),"",INDIRECT(CONCATENATE($E$32,"!M224"))) -> 91.88881004 | N40: =IF(ISERROR(INDIRECT(CONCATENATE($E$32,"!N222"))),"",INDIRECT(CONCATENATE($E$32,"!N222"))) -> 10.99897398 | O40: =IF(ISERROR(INDIRECT(CONCATENATE($E$32,"!N223"))),"",INDIRECT(CONCATENATE($E$32,"!N223"))) -> 4.755888486 | P40: =IF(ISERROR(INDIRECT(CONCATENATE($E$32,"!N224"))),"",INDIRECT(CONCATENATE($E$32,"!N224"))) -> 84.24513753 | Q40: =IF(ISERROR(INDIRECT(CONCATENATE($E$32,"!O222"))),"",INDIRECT(CONCATENATE($E$32,"!O222"))) -> 5.813894015 | R40: =IF(ISERROR(INDIRECT(CONCATENATE($E$32,"!O223"))),"",INDIRECT(CONCATENATE($E$32,"!O223"))) -> 7.596572508 | S40: =IF(ISERROR(INDIRECT(CONCATENATE($E$32,"!O224"))),"",INDIRECT(CONCATENATE($E$32,"!O224"))) -> 86.58953348 | T40: =IF(ISERROR(INDIRECT(CONCATENATE($E$32,"!P222"))),"",INDIRECT(CONCATENATE($E$32,"!P222"))) -> 11.54060828 | U40: =IF(ISERROR(INDIRECT(CONCATENATE($E$32,"!P223"))),"",INDIRECT(CONCATENATE($E$32,"!P223"))) -> 9.157032542 | V40: =IF(ISERROR(INDIRECT(CONCATENATE($E$32,"!P224"))),"",INDIRECT(CONCATENATE($E$32,"!P224"))) -> 79.30235918 | W40: =IF(ISERROR(INDIRECT(CONCATENATE($E$32,"!Q222"))),"",INDIRECT(CONCATENATE($E$32,"!Q222"))) -> 19.06869717 | X40: =IF(ISERROR(INDIRECT(CONCATENATE($E$32,"!Q223"))),"",INDIRECT(CONCATENATE($E$32,"!Q223"))) -> 10.90801995 | Y40: =IF(ISERROR(INDIRECT(CONCATENATE($E$32,"!Q224"))),"",INDIRECT(CONCATENATE($E$32,"!Q224"))) -> 70.02328288
A88: 5 | B88: MICS00
B89: MICS06
B90: MICS10
B91: MIS17
B92: MICS17
B93: Input
B94: Template

Sheet MICS00
A2: =A1026 -> Togo
A3: =A1034 -> 2000
A4: Use of drinking water sources
A5: by wealth quintile and sub-national region
A6: Notes:
A7: WHO/UNICEF JMP customised wealth index excludes water,
A8: sanitation and hygiene assets.
A9: Survey used for analysis: | B9: =A1025 -> MICS00
A10: =B1028 -> 
A11: =B1027 -> 
A14: Use of drinking water sources | C14: NATIONAL wealth index quintile | H14: URBAN wealth index quintile | M14: RURAL wealth index quintile | R14: SUB-REGIONS: | BA14: Raw numbers of respondents: | BB14: Use of drinking water sources | BC14: NATIONAL wealth index quintile | BH14: URBAN wealth index quintile | BM14: RURAL wealth index quintile | BR14: SUB-REGIONS:
A15: Weighted percentage (used in graphs) | C15: Poorest | D15: Poor | E15: Middle | F15: Rich | G15: Richest | H15: Poorest | I15: Poor | J15: Middle | K15: Rich | L15: Richest | M15: Poorest | N15: Poor | O15: Middle | P15: Rich | Q15: Richest | R15: Centrale | S15: Kara | T15: Lomé‚ | U15: Maritime | V15: Plateaux | W15: Savanes | BA15: Water data, raw numbers (weighted) | BC15: Poorest | BD15: Poor | BE15: Middle | BF15: Rich | BG15: Richest | BH15: Poorest | BI15: Poor | BJ15: Middle | BK15: Rich | BL15: Richest | BM15: Poorest | BN15: Poor | BO15: Middle | BP15: Rich | BQ15: Richest | BR15: Centrale | BS15: Kara | BT15: Lomé‚ | BU15: Maritime | BV15: Plateaux | BW15: Savanes
A16: Water | B16: Improved | C16: 26.42129518 | D16: 32.56050567 | E16: 47.07378601 | F16: 59.43286104 | G16: 81.77804537 | H16: 59.22215833 | I16: 78.12654054 | J16: 81.59760165 | K16: 81.96884836 | L16: 95.2171105 | M16: 25.23277812 | N16: 24.56933112 | O16: 38.43585637 | P16: 40.97541474 | Q16: 44.68529445 | R16: 42.64258616 | S16: 57.8376533 | T16: 84.59312839 | U16: 53.71313581 | V16: 33.65247056 | W16: 29.60257848 | BA16: Water | BB16: Improved | BC16: N/A | BD16: N/A | BE16: N/A | BF16: N/A | BG16: N/A | BH16: N/A | BI16: N/A | BJ16: N/A | BK16: N/A | BL16: N/A | BM16: N/A | BN16: N/A | BO16: N/A | BP16: N/A | BQ16: N/A | BR16: N/A | BS16: N/A | BT16: N/A | BU16: N/A | BV16: N/A | BW16: N/A
B17: Not Improved | C17: 73.57870482 | D17: 67.43949433 | E17: 52.92621399 | F17: 40.56713896 | G17: 18.22195463 | H17: 40.77784167 | I17: 21.87345946 | J17: 18.40239835 | K17: 18.03115164 | L17: 4.782889502 | M17: 74.76722188 | N17: 75.43066888 | O17: 61.56414363 | P17: 59.02458526 | Q17: 55.31470555 | R17: 57.35741384 | S17: 42.1623467 | T17: 15.40687161 | U17: 46.28686419 | V17: 66.34752944 | W17: 70.39742152 | BB17: Not Improved | BC17: N/A | BD17: N/A | BE17: N/A | BF17: N/A | BG17: N/A | BH17: N/A | BI17: N/A | BJ17: N/A | BK17: N/A | BL17: N/A | BM17: N/A | BN17: N/A | BO17: N/A | BP17: N/A | BQ17: N/A | BR17: N/A | BS17: N/A | BT17: N/A | BU17: N/A | BV17: N/A | BW17: N/A
A18: Water ladder | B18: Basic | C18: 24.7786659 | D18: 29.71500462 | E18: 43.79474426 | F18: 55.74613858 | G18: 79.79259324 | H18: 55.67607613 | I18: 76.09641421 | J18: 78.2588743 | K18: 80.7362816 | L18: 94.98834385 | M18: 24.20448126 | N18: 22.78924186 | O18: 34.52331248 | P18: 37.7514923 | Q18: 39.68728931 | R18: 40.40366566 | S18: 54.77975961 | T18: 83.29113924 | U18: 49.46735265 | V18: 31.30658127 | W18: 27.98552412 | BA18: Water ladder | BB18: Basic | BC18: N/A | BD18: N/A | BE18: N/A | BF18: N/A | BG18: N/A | BH18: N/A | BI18: N/A | BJ18: N/A | BK18: N/A | BL18: N/A | BM18: N/A | BN18: N/A | BO18: N/A | BP18: N/A | BQ18: N/A | BR18: N/A | BS18: N/A | BT18: N/A | BU18: N/A | BV18: N/A | BW18: N/A
B19: Limited | C19: 1.642629279 | D19: 2.845501058 | E19: 3.279041748 | F19: 3.686722459 | G19: 1.985452128 | H19: 3.546082205 | I19: 2.030126326 | J19: 3.338727349 | K19: 1.232566765 | L19: 0.2287666504 | M19: 1.028296859 | N19: 1.78008926 | O19: 3.912543896 | P19: 3.223922439 | Q19: 4.998005146 | R19: 2.238920502 | S19: 3.057893684 | T19: 1.30198915 | U19: 4.245783153 | V19: 2.345889289 | W19: 1.617054366 | BB19: Limited | BC19: N/A | BD19: N/A | BE19: N/A | BF19: N/A | BG19: N/A | BH19: N/A | BI19: N/A | BJ19: N/A | BK19: N/A | BL19: N/A | BM19: N/A | BN19: N/A | BO19: N/A | BP19: N/A | BQ19: N/A | BR19: N/A | BS19: N/A | BT19: N/A | BU19: N/A | BV19: N/A | BW19: N/A
B20: Unimproved | C20: 30.5951934 | D20: 35.18804068 | E20: 31.99977713 | F20: 25.748975 | G20: 16.84976759 | H20: 30.89138997 | I20: 20.56497308 | J20: 18.40239835 | K20: 18.03115164 | L20: 4.782889502 | M20: 27.61062714 | N20: 38.33401547 | O20: 32.41229086 | P20: 32.57910351 | Q20: 32.98089064 | R20: 34.59367639 | S20: 21.22362714 | T20: 15.40687161 | U20: 35.3411199 | V20: 21.4052851 | W20: 40.54366594 | BB20: Unimproved | BC20: N/A | BD20: N/A | BE20: N/A | BF20: N/A | BG20: N/A | BH20: N/A | BI20: N/A | BJ20: N/A | BK20: N/A | BL20: N/A | BM20: N/A | BN20: N/A | BO20: N/A | BP20: N/A | BQ20: N/A | BR20: N/A | BS20: N/A | BT20: N/A | BU20: N/A | BV20: N/A | BW20: N/A
B21: Surface water | C21: 42.98351142 | D21: 32.25145364 | E21: 20.92643686 | F21: 14.81816396 | G21: 1.372187037 | H21: 9.886451699 | I21: 1.308486383 | J21: 0 | K21: 0 | L21: 0 | M21: 47.15659474 | N21: 37.09665341 | O21: 29.15185277 | P21: 26.44548175 | Q21: 22.33381491 | R21: 22.76373745 | S21: 20.93871956 | T21: 0 | U21: 10.9457443 | V21: 44.94224434 | W21: 29.85375558 | BB21: Surface water | BC21: N/A | BD21: N/A | BE21: N/A | BF21: N/A | BG21: N/A | BH21: N/A | BI21: N/A | BJ21: N/A | BK21: N/A | BL21: N/A | BM21: N/A | BN21: N/A | BO21: N/A | BP21: N/A | BQ21: N/A | BR21: N/A | BS21: N/A | BT21: N/A | BU21: N/A | BV21: N/A | BW21: N/A
A22: Improved water point at more than 30 minutes | B22: Yes | C22: 6.217065697 | D22: 8.73911814 | E22: 6.965748935 | F22: 6.203171773 | G22: 2.427854713 | H22: 5.987762528 | I22: 2.598510457 | J22: 4.091697895 | K22: 1.503701455 | L22: 0.2402579213 | M22: 4.075242346 | N22: 7.245167774 | O22: 10.17941127 | P22: 7.867943397 | Q22: 11.18489921 | R22: 5.250433202 | S22: 5.287029313 | T22: 1.539119282 | U22: 7.904552748 | V22: 6.970927396 | W22: 5.462545661 | BA22: Improved water point at more than 30 minutes | BB22: Yes | BC22: N/A | BD22: N/A | BE22: N/A | BF22: N/A | BG22: N/A | BH22: N/A | BI22: N/A | BJ22: N/A | BK22: N/A | BL22: N/A | BM22: N/A | BN22: N/A | BO22: N/A | BP22: N/A | BQ22: N/A | BR22: N/A | BS22: N/A | BT22: N/A | BU22: N/A | BV22: N/A | BW22: N/A
B23: No | C23: 93.7829343 | D23: 91.26088186 | E23: 93.03425106 | F23: 93.79682823 | G23: 97.57214529 | H23: 94.01223747 | I23: 97.40148954 | J23: 95.90830211 | K23: 98.49629855 | L23: 99.75974208 | M23: 95.92475765 | N23: 92.75483223 | O23: 89.82058873 | P23: 92.1320566 | Q23: 88.81510079 | R23: 94.7495668 | S23: 94.71297069 | T23: 98.46088072 | U23: 92.09544725 | V23: 93.0290726 | W23: 94.53745434 | BB23: No | BC23: N/A | BD23: N/A | BE23: N/A | BF23: N/A | BG23: N/A | BH23: N/A | BI23: N/A | BJ23: N/A | BK23: N/A | BL23: N/A | BM23: N/A | BN23: N/A | BO23: N/A | BP23: N/A | BQ23: N/A | BR23: N/A | BS23: N/A | BT23: N/A | BU23: N/A | BV23: N/A | BW23: N/A
A24: Manually calculated ratios | B24: Improved wells
B25: Improved springs
B26: Other
C27: NATIONAL wealth index quintile | H27: URBAN wealth index quintile | M27: RURAL wealth index quintile | R27: SUB-REGIONS: | BA27: Raw numbers of respondents: | BB27: Use of drinking water sources | BC27: NATIONAL wealth index quintile | BH27: URBAN wealth index quintile | BM27: RURAL wealth index quintile | BR27: SUB-REGIONS:
A28: Percentage based on weighted population | C28: Poorest | D28: Poor | E28: Middle | F28: Rich | G28: Richest | H28: Poorest | I28: Poor | J28: Middle | K28: Rich | L28: Richest | M28: Poorest | N28: Poor | O28: Middle | P28: Rich | Q28: Richest | R28: Centrale | S28: Kara | T28: Lomé‚ | U28: Maritime | V28: Plateaux | W28: Savanes | BA28: Water data, raw numbers (weighted) | BC28: Poorest | BD28: Poor | BE28: Middle | BF28: Rich | BG28: Richest | BH28: Poorest | BI28: Poor | BJ28: Middle | BK28: Rich | BL28: Richest | BM28: Poorest | BN28: Poor | BO28: Middle | BP28: Rich | BQ28: Richest | BR28: Centrale | BS28: Kara | BT28: Lomé‚ | BU28: Maritime | BV28: Plateaux | BW28: Savanes
A29: Piped water | B29: Yes | C29: 12.29116741 | D29: 17.3986894 | E29: 25.46309823 | F29: 44.43612389 | G29: 72.80969046 | H29: 39.21450283 | I29: 62.74928768 | J29: 72.00137825 | K29: 74.60779693 | L29: 89.80971191 | M29: 10.98010534 | N29: 12.64614344 | O29: 19.31440078 | P29: 20.44693759 | Q29: 27.14351941 | R29: 14.13277948 | S29: 32.87165955 | T29: 79.42133816 | U29: 42.81989333 | V29: 19.59020218 | W29: 13.4915991 | BA29: Piped water | BB29: Yes | BC29: N/A | BD29: N/A | BE29: N/A | BF29: N/A | BG29: N/A | BH29: N/A | BI29: N/A | BJ29: N/A | BK29: N/A | BL29: N/A | BM29: N/A | BN29: N/A | BO29: N/A | BP29: N/A | BQ29: N/A | BR29: N/A | BS29: N/A | BT29: N/A | BU29: N/A | BV29: N/A | BW29: N/A
B30: No | C30: 87.70883259 | D30: 82.6013106 | E30: 74.53690177 | F30: 55.56387611 | G30: 27.19030954 | H30: 60.78549717 | I30: 37.25071232 | J30: 27.99862175 | K30: 25.39220307 | L30: 10.19028809 | M30: 89.01989466 | N30: 87.35385656 | O30: 80.68559922 | P30: 79.55306241 | Q30: 72.85648059 | R30: 85.86722052 | S30: 67.12834045 | T30: 20.57866184 | U30: 57.18010667 | V30: 80.40979782 | W30: 86.5084009 | BB30: No | BC30: N/A | BD30: N/A | BE30: N/A | BF30: N/A | BG30: N/A | BH30: N/A | BI30: N/A | BJ30: N/A | BK30: N/A | BL30: N/A | BM30: N/A | BN30: N/A | BO30: N/A | BP30: N/A | BQ30: N/A | BR30: N/A | BS30: N/A | BT30: N/A | BU30: N/A | BV30: N/A | BW30: N/A
A31: Piped water on premises | B31: Yes | C31: 0 | D31: 0 | E31: 0.649201513 | F31: 1.094265777 | G31: 23.10753174 | H31: 0.385420011 | I31: 2.676875046 | J31: 2.99391809 | K31: 17.47864993 | L31: 47.63328799 | M31: 0 | N31: 0 | O31: 0 | P31: 1.023226051 | Q31: 0.8984709108 | R31: 2.793232624 | S31: 2.504972356 | T31: 21.98915009 | U31: 3.467474427 | V31: 1.086328132 | W31: 0.9526245721 | BA31: Piped water on premises | BB31: Yes | BC31: N/A | BD31: N/A | BE31: N/A | BF31: N/A | BG31: N/A | BH31: N/A | BI31: N/A | BJ31: N/A | BK31: N/A | BL31: N/A | BM31: N/A | BN31: N/A | BO31: N/A | BP31: N/A | BQ31: N/A | BR31: N/A | BS31: N/A | BT31: N/A | BU31: N/A | BV31: N/A | BW31: N/A
B32: No | C32: 100 | D32: 100 | E32: 99.35079849 | F32: 98.90573422 | G32: 76.89246826 | H32: 99.61457999 | I32: 97.32312495 | J32: 97.00608191 | K32: 82.52135007 | L32: 52.36671201 | M32: 100 | N32: 100 | O32: 100 | P32: 98.97677395 | Q32: 99.10152909 | R32: 97.20676738 | S32: 97.49502764 | T32: 78.01084991 | U32: 96.53252557 | V32: 98.91367187 | W32: 99.04737543 | BB32: No | BC32: N/A | BD32: N/A | BE32: N/A | BF32: N/A | BG32: N/A | BH32: N/A | BI32: N/A | BJ32: N/A | BK32: N/A | BL32: N/A | BM32: N/A | BN32: N/A | BO32: N/A | BP32: N/A | BQ32: N/A | BR32: N/A | BS32: N/A | BT32: N/A | BU32: N/A | BV32: N/A | BW32: N/A
A33: Piped water into dwelling | B33: Yes | C33: N/A | D33: N/A | E33: N/A | F33: N/A | G33: N/A | H33: N/A | I33: N/A | J33: N/A | K33: N/A | L33: N/A | M33: N/A | N33: N/A | O33: N/A | P33: N/A | Q33: N/A | R33: N/A | S33: N/A | T33: N/A | U33: N/A | V33: N/A | W33: N/A | BA33: Piped water into dwelling | BB33: Yes | BC33: N/A | BD33: N/A | BE33: N/A | BF33: N/A | BG33: N/A | BH33: N/A | BI33: N/A | BJ33: N/A | BK33: N/A | BL33: N/A | BM33: N/A | BN33: N/A | BO33: N/A | BP33: N/A | BQ33: N/A | BR33: N/A | BS33: N/A | BT33: N/A | BU33: N/A | BV33: N/A | BW33: N/A
B34: No | C34: N/A | D34: N/A | E34: N/A | F34: N/A | G34: N/A | H34: N/A | I34: N/A | J34: N/A | K34: N/A | L34: N/A | M34: N/A | N34: N/A | O34: N/A | P34: N/A | Q34: N/A | R34: N/A | S34: N/A | T34: N/A | U34: N/A | V34: N/A | W34: N/A | BB34: No | BC34: N/A | BD34: N/A | BE34: N/A | BF34: N/A | BG34: N/A | BH34: N/A | BI34: N/A | BJ34: N/A | BK34: N/A | BL34: N/A | BM34: N/A | BN34: N/A | BO34: N/A | BP34: N/A | BQ34: N/A | BR34: N/A | BS34: N/A | BT34: N/A | BU34: N/A | BV34: N/A | BW34: N/A
A35: Water source on premises | B35: Yes | C35: 3.751107615 | D35: 6.045100509 | E35: 13.27995614 | F35: 20.35432112 | G35: 39.80077344 | H35: 21.28386459 | I35: 26.99262926 | J35: 20.86082288 | K35: 37.40165442 | L35: 58.13469287 | M35: 2.577133196 | N35: 3.181464857 | O35: 6.434289781 | P35: 11.66702498 | Q35: 19.33362547 | R35: 23.04811008 | S35: 7.599390971 | T35: 37.61301989 | U35: 15.30282232 | V35: 15.00007889 | W35: 4.305900532 | BA35: Water source on premises | BB35: Yes | BC35: N/A | BD35: N/A | BE35: N/A | BF35: N/A | BG35: N/A | BH35: N/A | BI35: N/A | BJ35: N/A | BK35: N/A | BL35: N/A | BM35: N/A | BN35: N/A | BO35: N/A | BP35: N/A | BQ35: N/A | BR35: N/A | BS35: N/A | BT35: N/A | BU35: N/A | BV35: N/A | BW35: N/A
B36: No | C36: 96.24889239 | D36: 93.95489949 | E36: 86.72004386 | F36: 79.64567888 | G36: 60.19922656 | H36: 78.71613541 | I36: 73.00737074 | J36: 79.13917712 | K36: 62.59834558 | L36: 41.86530713 | M36: 97.4228668 | N36: 96.81853514 | O36: 93.56571022 | P36: 88.33297502 | Q36: 80.66637453 | R36: 76.95188992 | S36: 92.40060903 | T36: 62.38698011 | U36: 84.69717768 | V36: 84.99992111 | W36: 95.69409947 | BB36: No | BC36: N/A | BD36: N/A | BE36: N/A | BF36: N/A | BG36: N/A | BH36: N/A | BI36: N/A | BJ36: N/A | BK36: N/A | BL36: N/A | BM36: N/A | BN36: N/A | BO36: N/A | BP36: N/A | BQ36: N/A | BR36: N/A | BS36: N/A | BT36: N/A | BU36: N/A | BV36: N/A | BW36: N/A
A37: Improved Water source on premises | B37: Yes | C37: 7.547037458 | D37: 8.405922313 | E37: 15.48317728 | F37: 15.35253023 | G37: 37.1468996 | H37: 10.68414822 | I37: 17.19236251 | J37: 11.95970429 | K37: 29.67106239 | L37: 56.5370815 | M37: 6.341330602 | N37: 4.818816972 | O37: 9.924439061 | P37: 20.16430775 | Q37: 20.06601533 | R37: 31.39138067 | S37: 11.32879949 | T37: 31.38093202 | U37: 16.14158191 | V37: 23.54876396 | W37: 7.357364443 | BA37: Improved water source on premises | BB37: Yes | BC37: N/A | BD37: N/A | BE37: N/A | BF37: N/A | BG37: N/A | BH37: N/A | BI37: N/A | BJ37: N/A | BK37: N/A | BL37: N/A | BM37: N/A | BN37: N/A | BO37: N/A | BP37: N/A | BQ37: N/A | BR37: N/A | BS37: N/A | BT37: N/A | BU37: N/A | BV37: N/A | BW37: N/A
B38: No | C38: 92.45296254 | D38: 91.59407769 | E38: 84.51682272 | F38: 84.64746977 | G38: 62.8531004 | H38: 89.31585178 | I38: 82.80763749 | J38: 88.04029571 | K38: 70.32893761 | L38: 43.4629185 | M38: 93.6586694 | N38: 95.18118303 | O38: 90.07556094 | P38: 79.83569225 | Q38: 79.93398467 | R38: 68.60861933 | S38: 88.67120051 | T38: 68.61906798 | U38: 83.85841809 | V38: 76.45123604 | W38: 92.64263556 | BB38: No | BC38: N/A | BD38: N/A | BE38: N/A | BF38: N/A | BG38: N/A | BH38: N/A | BI38: N/A | BJ38: N/A | BK38: N/A | BL38: N/A | BM38: N/A | BN38: N/A | BO38: N/A | BP38: N/A | BQ38: N/A | BR38: N/A | BS38: N/A | BT38: N/A | BU38: N/A | BV38: N/A | BW38: N/A
A39: Piped water on premises available when needed | B39: Yes | C39: N/A | D39: N/A | E39: N/A | F39: N/A | G39: N/A | H39: N/A | I39: N/A | J39: N/A | K39: N/A | L39: N/A | M39: N/A | N39: N/A | O39: N/A | P39: N/A | Q39: N/A | R39: N/A | S39: N/A | T39: N/A | U39: N/A | V39: N/A | W39: N/A | BA39: Piped water on premises available when needed | BB39: Yes | BC39: N/A | BD39: N/A | BE39: N/A | BF39: N/A | BG39: N/A | BH39: N/A | BI39: N/A | BJ39: N/A | BK39: N/A | BL39: N/A | BM39: N/A | BN39: N/A | BO39: N/A | BP39: N/A | BQ39: N/A | BR39: N/A | BS39: N/A | BT39: N/A | BU39: N/A | BV39: N/A | BW39: N/A
B40: No | C40: N/A | D40: N/A | E40: N/A | F40: N/A | G40: N/A | H40: N/A | I40: N/A | J40: N/A | K40: N/A | L40: N/A | M40: N/A | N40: N/A | O40: N/A | P40: N/A | Q40: N/A | R40: N/A | S40: N/A | T40: N/A | U40: N/A | V40: N/A | W40: N/A | BB40: No | BC40: N/A | BD40: N/A | BE40: N/A | BF40: N/A | BG40: N/A | BH40: N/A | BI40: N/A | BJ40: N/A | BK40: N/A | BL40: N/A | BM40: N/A | BN40: N/A | BO40: N/A | BP40: N/A | BQ40: N/A | BR40: N/A | BS40: N/A | BT40: N/A | BU40: N/A | BV40: N/A | BW40: N/A
A41: Water point at more than 30 minutes | B41: Yes | C41: 17.78937323 | D41: 14.2673963 | E41: 10.86218654 | F41: 10.74918724 | G41: 2.871105082 | H41: 6.855462509 | I41: 2.175830088 | J41: 3.595389692 | K41: 1.819092683 | L41: 0.2287666504 | M41: 18.64983883 | N41: 15.49766816 | O41: 14.31596701 | P41: 13.07860972 | Q41: 15.64406055 | R41: 10.32560363 | S41: 10.00985917 | T41: 1.30198915 | U41: 12.0520504 | V41: 18.2556612 | W41: 9.751217629 | BA41: Water point at more than 30 minutes | BB41: Yes | BC41: N/A | BD41: N/A | BE41: N/A | BF41: N/A | BG41: N/A | BH41: N/A | BI41: N/A | BJ41: N/A | BK41: N/A | BL41: N/A | BM41: N/A | BN41: N/A | BO41: N/A | BP41: N/A | BQ41: N/A | BR41: N/A | BS41: N/A | BT41: N/A | BU41: N/A | BV41: N/A | BW41: N/A
B42: No | C42: 82.21062677 | D42: 85.7326037 | E42: 89.13781346 | F42: 89.25081276 | G42: 97.12889492 | H42: 93.14453749 | I42: 97.82416991 | J42: 96.40461031 | K42: 98.18090732 | L42: 99.77123335 | M42: 81.35016117 | N42: 84.50233184 | O42: 85.68403299 | P42: 86.92139028 | Q42: 84.35593945 | R42: 89.67439637 | S42: 89.99014083 | T42: 98.69801085 | U42: 87.9479496 | V42: 81.7443388 | W42: 90.24878237 | BB42: No | BC42: N/A | BD42: N/A | BE42: N/A | BF42: N/A | BG42: N/A | BH42: N/A | BI42: N/A | BJ42: N/A | BK42: N/A | BL42: N/A | BM42: N/A | BN42: N/A | BO42: N/A | BP42: N/A | BQ42: N/A | BR42: N/A | BS42: N/A | BT42: N/A | BU42: N/A | BV42: N/A | BW42: N/A
A43: Water source available when needed | B43: Yes | C43: N/A | D43: N/A | E43: N/A | F43: N/A | G43: N/A | H43: N/A | I43: N/A | J43: N/A | K43: N/A | L43: N/A | M43: N/A | N43: N/A | O43: N/A | P43: N/A | Q43: N/A | R43: N/A | S43: N/A | T43: N/A | U43: N/A | V43: N/A | W43: N/A | BA43: Water source available when needed | BB43: Yes | BC43: N/A | BD43: N/A | BE43: N/A | BF43: N/A | BG43: N/A | BH43: N/A | BI43: N/A | BJ43: N/A | BK43: N/A | BL43: N/A | BM43: N/A | BN43: N/A | BO43: N/A | BP43: N/A | BQ43: N/A | BR43: N/A | BS43: N/A | BT43: N/A | BU43: N/A | BV43: N/A | BW43: N/A
B44: No | C44: N/A | D44: N/A | E44: N/A | F44: N/A | G44: N/A | H44: N/A | I44: N/A | J44: N/A | K44: N/A | L44: N/A | M44: N/A | N44: N/A | O44: N/A | P44: N/A | Q44: N/A | R44: N/A | S44: N/A | T44: N/A | U44: N/A | V44: N/A | W44: N/A | BB44: No | BC44: N/A | BD44: N/A | BE44: N/A | BF44: N/A | BG44: N/A | BH44: N/A | BI44: N/A | BJ44: N/A | BK44: N/A | BL44: N/A | BM44: N/A | BN44: N/A | BO44: N/A | BP44: N/A | BQ44: N/A | BR44: N/A | BS44: N/A | BT44: N/A | BU44: N/A | BV44: N/A | BW44: N/A
A45: Improved water source available when needed | B45: Yes | C45: N/A | D45: N/A | E45: N/A | F45: N/A | G45: N/A | H45: N/A | I45: N/A | J45: N/A | K45: N/A | L45: N/A | M45: N/A | N45: N/A | O45: N/A | P45: N/A | Q45: N/A | R45: N/A | S45: N/A | T45: N/A | U45: N/A | V45: N/A | W45: N/A | BA45: Improved water source available when needed | BB45: Yes | BC45: N/A | BD45: N/A | BE45: N/A | BF45: N/A | BG45: N/A | BH45: N/A | BI45: N/A | BJ45: N/A | BK45: N/A | BL45: N/A | BM45: N/A | BN45: N/A | BO45: N/A | BP45: N/A | BQ45: N/A | BR45: N/A | BS45: N/A | BT45: N/A | BU45: N/A | BV45: N/A | BW45: N/A
B46: No | C46: N/A | D46: N/A | E46: N/A | F46: N/A | G46: N/A | H46: N/A | I46: N/A | J46: N/A | K46: N/A | L46: N/A | M46: N/A | N46: N/A | O46: N/A | P46: N/A | Q46: N/A | R46: N/A | S46: N/A | T46: N/A | U46: N/A | V46: N/A | W46: N/A | BB46: No | BC46: N/A | BD46: N/A | BE46: N/A | BF46: N/A | BG46: N/A | BH46: N/A | BI46: N/A | BJ46: N/A | BK46: N/A | BL46: N/A | BM46: N/A | BN46: N/A | BO46: N/A | BP46: N/A | BQ46: N/A | BR46: N/A | BS46: N/A | BT46: N/A | BU46: N/A | BV46: N/A | BW46: N/A
A47: Microbiological quality at point of collection | B47: Not contaminated (No E. coli in 100 mL) | C47: N/A | D47: N/A | E47: N/A | F47: N/A | G47: N/A | H47: N/A | I47: N/A | J47: N/A | K47: N/A | L47: N/A | M47: N/A | N47: N/A | O47: N/A | P47: N/A | Q47: N/A | R47: N/A | S47: N/A | T47: N/A | U47: N/A | V47: N/A | W47: N/A | BA47: Microbiological quality at point of collection | BB47: Not contaminated (No E. coli in 100 mL) | BC47: N/A | BD47: N/A | BE47: N/A | BF47: N/A | BG47: N/A | BH47: N/A | BI47: N/A | BJ47: N/A | BK47: N/A | BL47: N/A | BM47: N/A | BN47: N/A | BO47: N/A | BP47: N/A | BQ47: N/A | BR47: N/A | BS47: N/A | BT47: N/A | BU47: N/A | BV47: N/A | BW47: N/A
B48: Contaminated (E. coli detected in 100 mL) | C48: N/A | D48: N/A | E48: N/A | F48: N/A | G48: N/A | H48: N/A | I48: N/A | J48: N/A | K48: N/A | L48: N/A | M48: N/A | N48: N/A | O48: N/A | P48: N/A | Q48: N/A | R48: N/A | S48: N/A | T48: N/A | U48: N/A | V48: N/A | W48: N/A | BB48: Contaminated (E. coli detected in 100 mL) | BC48: N/A | BD48: N/A | BE48: N/A | BF48: N/A | BG48: N/A | BH48: N/A | BI48: N/A | BJ48: N/A | BK48: N/A | BL48: N/A | BM48: N/A | BN48: N/A | BO48: N/A | BP48: N/A | BQ48: N/A | BR48: N/A | BS48: N/A | BT48: N/A | BU48: N/A | BV48: N/A | BW48: N/A
B49: Highly contaminated (>100 CFU/100 mL) | C49: N/A | D49: N/A | E49: N/A | F49: N/A | G49: N/A | H49: N/A | I49: N/A | J49: N/A | K49: N/A | L49: N/A | M49: N/A | N49: N/A | O49: N/A | P49: N/A | Q49: N/A | R49: N/A | S49: N/A | T49: N/A | U49: N/A | V49: N/A | W49: N/A | BB49: Highly contaminated (>100 CFU/100 mL) | BC49: N/A | BD49: N/A | BE49: N/A | BF49: N/A | BG49: N/A | BH49: N/A | BI49: N/A | BJ49: N/A | BK49: N/A | BL49: N/A | BM49: N/A | BN49: N/A | BO49: N/A | BP49: N/A | BQ49: N/A | BR49: N/A | BS49: N/A | BT49: N/A | BU49: N/A | BV49: N/A | BW49: N/A
A50: Microbiological quality of improved water sources at point of collection | B50: Not contaminated (No E. coli in 100 mL) | C50: N/A | D50: N/A | E50: N/A | F50: N/A | G50: N/A | H50: N/A | I50: N/A | J50: N/A | K50: N/A | L50: N/A | M50: N/A | N50: N/A | O50: N/A | P50: N/A | Q50: N/A | R50: N/A | S50: N/A | T50: N/A | U50: N/A | V50: N/A | W50: N/A | BA50: Microbiological quality of improved water sources at point of collection | BB50: Not contaminated (No E. coli in 100 mL) | BC50: N/A | BD50: N/A | BE50: N/A | BF50: N/A | BG50: N/A | BH50: N/A | BI50: N/A | BJ50: N/A | BK50: N/A | BL50: N/A | BM50: N/A | BN50: N/A | BO50: N/A | BP50: N/A | BQ50: N/A | BR50: N/A | BS50: N/A | BT50: N/A | BU50: N/A | BV50: N/A | BW50: N/A
B51: Contaminated (E. coli detected in 100 mL) | C51: N/A | D51: N/A | E51: N/A | F51: N/A | G51: N/A | H51: N/A | I51: N/A | J51: N/A | K51: N/A | L51: N/A | M51: N/A | N51: N/A | O51: N/A | P51: N/A | Q51: N/A | R51: N/A | S51: N/A | T51: N/A | U51: N/A | V51: N/A | W51: N/A | BB51: Contaminated (E. coli detected in 100 mL) | BC51: N/A | BD51: N/A | BE51: N/A | BF51: N/A | BG51: N/A | BH51: N/A | BI51: N/A | BJ51: N/A | BK51: N/A | BL51: N/A | BM51: N/A | BN51: N/A | BO51: N/A | BP51: N/A | BQ51: N/A | BR51: N/A | BS51: N/A | BT51: N/A | BU51: N/A | BV51: N/A | BW51: N/A
B52: Highly contaminated (>100 CFU/100 mL) | C52: N/A | D52: N/A | E52: N/A | F52: N/A | G52: N/A | H52: N/A | I52: N/A | J52: N/A | K52: N/A | L52: N/A | M52: N/A | N52: N/A | O52: N/A | P52: N/A | Q52: N/A | R52: N/A | S52: N/A | T52: N/A | U52: N/A | V52: N/A | W52: N/A | BB52: Highly contaminated (>100 CFU/100 mL) | BC52: N/A | BD52: N/A | BE52: N/A | BF52: N/A | BG52: N/A | BH52: N/A | BI52: N/A | BJ52: N/A | BK52: N/A | BL52: N/A | BM52: N/A | BN52: N/A | BO52: N/A | BP52: N/A | BQ52: N/A | BR52: N/A | BS52: N/A | BT52: N/A | BU52: N/A | BV52: N/A | BW52: N/A
A53: Microbiological quality of piped on premises at point of collection | B53: Not contaminated (No E. coli in 100 mL) | C53: N/A | D53: N/A | E53: N/A | F53: N/A | G53: N/A | H53: N/A | I53: N/A | J53: N/A | K53: N/A | L53: N/A | M53: N/A | N53: N/A | O53: N/A | P53: N/A | Q53: N/A | R53: N/A | S53: N/A | T53: N/A | U53: N/A | V53: N/A | W53: N/A | BA53: Microbiological quality of piped on premises at point of collection | BB53: Not contaminated (No E. coli in 100 mL) | BC53: N/A | BD53: N/A | BE53: N/A | BF53: N/A | BG53: N/A | BH53: N/A | BI53: N/A | BJ53: N/A | BK53: N/A | BL53: N/A | BM53: N/A | BN53: N/A | BO53: N/A | BP53: N/A | BQ53: N/A | BR53: N/A | BS53: N/A | BT53: N/A | BU53: N/A | BV53: N/A | BW53: N/A
B54: Contaminated (E. coli detected in 100 mL) | C54: N/A | D54: N/A | E54: N/A | F54: N/A | G54: N/A | H54: N/A | I54: N/A | J54: N/A | K54: N/A | L54: N/A | M54: N/A | N54: N/A | O54: N/A | P54: N/A | Q54: N/A | R54: N/A | S54: N/A | T54: N/A | U54: N/A | V54: N/A | W54: N/A | BB54: Contaminated (E. coli detected in 100 mL) | BC54: N/A | BD54: N/A | BE54: N/A | BF54: N/A | BG54: N/A | BH54: N/A | BI54: N/A | BJ54: N/A | BK54: N/A | BL54: N/A | BM54: N/A | BN54: N/A | BO54: N/A | BP54: N/A | BQ54: N/A | BR54: N/A | BS54: N/A | BT54: N/A | BU54: N/A | BV54: N/A | BW54: N/A
B55: Highly contaminated (>100 CFU/100 mL) | C55: N/A | D55: N/A | E55: N/A | F55: N/A | G55: N/A | H55: N/A | I55: N/A | J55: N/A | K55: N/A | L55: N/A | M55: N/A | N55: N/A | O55: N/A | P55: N/A | Q55: N/A | R55: N/A | S55: N/A | T55: N/A | U55: N/A | V55: N/A | W55: N/A | BB55: Highly contaminated (>100 CFU/100 mL) | BC55: N/A | BD55: N/A | BE55: N/A | BF55: N/A | BG55: N/A | BH55: N/A | BI55: N/A | BJ55: N/A | BK55: N/A | BL55: N/A | BM55: N/A | BN55: N/A | BO55: N/A | BP55: N/A | BQ55: N/A | BR55: N/A | BS55: N/A | BT55: N/A | BU55: N/A | BV55: N/A | BW55: N/A
C56: NATIONAL wealth index quintile | H56: URBAN wealth index quintile | M56: RURAL wealth index quintile | R56: SUB-REGIONS: | BA56: Raw numbers of respondents: | BB56: Use of drinking water sources | BC56: NATIONAL wealth index quintile | BH56: URBAN wealth index quintile | BM56: RURAL wealth index quintile | BR56: SUB-REGIONS:
A57: Percentage based on weighted population | C57: Poorest | D57: Poor | E57: Middle | F57: Rich | G57: Richest | H57: Poorest | I57: Poor | J57: Middle | K57: Rich | L57: Richest | M57: Poorest | N57: Poor | O57: Middle | P57: Rich | Q57: Richest | R57: Centrale | S57: Kara | T57: Lomé‚ | U57: Maritime | V57: Plateaux | W57: Savanes | BA57: Water data, raw numbers (weighted) | BC57: Poorest | BD57: Poor | BE57: Middle | BF57: Rich | BG57: Richest | BH57: Poorest | BI57: Poor | BJ57: Middle | BK57: Rich | BL57: Richest | BM57: Poorest | BN57: Poor | BO57: Middle | BP57: Rich | BQ57: Richest | BR57: Centrale | BS57: Kara | BT57: Lomé‚ | BU57: Maritime | BV57: Plateaux | BW57: Savanes
A58: PRINCIPALE SOURCE D'EAU | B58: Eau du robinet dans logement | C58: 0 | D58: 0 | E58: 0.1507595008 | F58: 0.2551041113 | G58: 11.57291807 | H58: 0 | I58: 0.885786162 | J58: 1.612155656 | K58: 7.901801164 | L58: 24.50137461 | M58: 0 | N58: 0 | O58: 0 | P58: 0.1552019477 | Q58: 0.4655326342 | R58: 0.399033232 | S58: 0.1726818314 | T58: 13.52622061 | U58: 1.011446243 | V58: 0.2772990167 | W58: 0.7885574889
B59: Eau du robinet dans la cour/concession | C59: 0 | D59: 0 | E59: 0.4984420122 | F59: 0.8391616658 | G59: 11.53461367 | H59: 0.385420011 | I59: 1.791088884 | J59: 1.381762434 | K59: 9.576848768 | L59: 23.13191338 | M59: 0 | N59: 0 | O59: 0 | P59: 0.8680241035 | Q59: 0.4329382766 | R59: 2.394199392 | S59: 2.332290524 | T59: 8.462929476 | U59: 2.456028184 | V59: 0.8090291155 | W59: 0.1640670832
B60: Borne fontaine/Kiosque ... eau | C60: 12.29116741 | D60: 17.3986894 | E60: 24.81389671 | F60: 43.34185811 | G60: 49.70215872 | H60: 38.82908282 | I60: 60.07241263 | J60: 69.00746016 | K60: 57.129147 | L60: 42.17642392 | M60: 10.98010534 | N60: 12.64614344 | O60: 19.31440078 | P60: 19.42371153 | Q60: 26.24504849 | R60: 11.33954685 | S60: 30.36668719 | T60: 57.43218807 | U60: 39.35241891 | V60: 18.50387404 | W60: 12.53897453
B61: Puit ... pompe | C61: 8.289381374 | D61: 8.400257618 | E61: 7.716672809 | F61: 2.298872267 | G61: 1.356817037 | H61: 4.626764173 | I61: 0.9225585723 | J61: 0.5538436129 | K61: 0.03592375366 | L61: 0.7467616256 | M61: 8.489582497 | N61: 8.003049784 | O61: 10.25972585 | P61: 7.58776607 | Q61: 4.102312219 | R61: 7.564707124 | S61: 8.9153535 | T61: 0 | U61: 4.284961916 | V61: 5.161100639 | W61: 10.45060701
B62: Puits protégé | C62: 4.23847812 | D62: 4.628047029 | E62: 10.54933483 | F62: 9.434340725 | G62: 6.471810538 | H62: 13.22210853 | I62: 13.30988134 | J62: 7.860299883 | K62: 6.408695616 | L62: 3.669314807 | M62: 4.298224924 | N62: 2.620597127 | O62: 5.884023601 | P62: 9.078935939 | Q62: 9.039763351 | R62: 19.07920711 | S62: 14.73016249 | T62: 4.086799277 | U62: 3.102619792 | V62: 5.847634249 | W62: 4.635832841
B63: Source protégé | C63: 0.1195005518 | D63: 1.087340239 | E63: 0.7447802901 | F63: 0.9353201447 | G63: 0.08991594868 | H63: 0.3331514684 | I63: 0 | J63: 0.1505384492 | K63: 0.1194022478 | L63: 0 | M63: 0.0972164854 | N63: 0.1560928022 | O63: 1.609209579 | P63: 0.9889787195 | Q63: 1.281868043 | R63: 1.766384872 | S63: 1.0491206 | T63: 0.07233273056 | U63: 0.4030409723 | V63: 0.3888674849 | W63: 0.6352212564
B64: Eau de pluie | C64: 1.112837571 | D64: 0.5993846592 | E64: 2.294492714 | F64: 2.117273787 | G64: 0.5020575184 | H64: 1.518761685 | I64: 0.7542513479 | J64: 1.031541451 | K64: 0 | L64: 0.3812777507 | M64: 1.114576866 | N64: 0.5244680545 | O64: 0.8666112509 | P64: 2.727140368 | Q64: 2.865467214 | R64: 0.09950757786 | S64: 0.2713571636 | T64: 0.3978300181 | U64: 2.333395103 | V64: 2.528562387 | W64: 0
B65: Eau en bouteille | C65: 0 | D65: 0.07897692817 | E65: 0 | F65: 0 | G65: 0.2026294591 | H65: 0 | I65: 0 | J65: 0 | K65: 0 | L65: 0.6100444012 | M65: 0 | N65: 0 | O65: 0.11593145 | P65: 0 | Q65: 0 | R65: 0 | S65: 0 | T65: 0.2893309222 | U65: 0 | V65: 0 | W65: 0.1167954831
B66: Puits non protégé | C66: 25.66292398 | D66: 29.19437891 | E66: 27.27906661 | F66: 22.86274589 | G66: 15.67331685 | H66: 26.67372982 | I66: 19.50157405 | J66: 17.50509137 | K66: 16.25933691 | L66: 4.325356201 | M66: 22.00434624 | N66: 33.22543523 | O66: 27.83351881 | P66: 26.65501345 | Q66: 28.93952617 | R66: 33.82249266 | S66: 12.63496247 | T66: 13.30922242 | U66: 33.91987015 | V66: 15.63227017 | W66: 35.05408059
B67: Source non protégée | C67: 4.374744548 | D67: 4.440660039 | E67: 3.717950419 | F67: 2.73468108 | G67: 0.3406042179 | H67: 2.105581412 | I67: 0.5947251069 | J67: 0.5962300859 | K67: 0 | L67: 0 | M67: 4.770442009 | N67: 4.201299174 | O67: 3.966837772 | P67: 4.690536698 | Q67: 4.041364468 | R67: 0.7711837284 | S67: 6.553051153 | T67: 0 | U67: 1.187910234 | V67: 5.014723338 | W67: 5.294926211
B68: Mare, ruisseau ou fleuve | C68: 42.98351142 | D68: 32.25145364 | E68: 20.92643686 | F68: 14.81816396 | G68: 1.372187037 | H68: 9.886451699 | I68: 1.308486383 | J68: 0 | K68: 0 | L68: 0 | M68: 47.15659474 | N68: 37.09665341 | O68: 29.15185277 | P68: 26.44548175 | Q68: 22.33381491 | R68: 22.76373745 | S68: 20.93871956 | T68: 0 | U68: 10.9457443 | V68: 44.94224434 | W68: 29.85375558
B69: Camion citerne, vendeur d'eau | C69: 0.3699301474 | D69: 0.367809805 | E69: 0.3054071375 | F69: 0.2109302234 | G69: 0.3451244101 | H69: 0.3068696509 | I69: 0.3905615993 | J69: 0 | K69: 0.7970298112 | L69: 0 | M69: 0.253072012 | N69: 0.6189799061 | O69: 0.3859538577 | P69: 0.1456560587 | Q69: 0.252364219 | R69: 0 | S69: 0 | T69: 0.3254972875 | U69: 0.769224689 | V69: 0.1361036197 | W69: 0.2725227938
B70: Autre | C70: 0.5575248674 | D70: 0.8885568357 | E70: 1.002760099 | F70: 0.151548032 | G70: 0.8358465186 | H70: 0.6544478966 | I70: 0.4686739191 | J70: 0.3010768983 | K70: 1.771814725 | L70: 0.4575333009 | M70: 0.835838892 | N70: 0.8292346617 | O70: 0.426841289 | P70: 1.233553368 | Q70: 0 | R70: 0 | S70: 2.035613519 | T70: 1.410488246 | U70: 0.2333395103 | V70: 0.7194048471 | W70: 0
B71: NSP | C71: 0 | D71: 0.664444899 | E71: 0 | F71: 0 | G71: 0 | H71: 1.457630842 | I71: 0 | J71: 0 | K71: 0 | L71: 0 | M71: 0 | N71: 0.07804640109 | O71: 0.1850929827 | P71: 0 | Q71: 0 | R71: 0 | S71: 0 | T71: 0.6871609403 | U71: 0 | V71: 0.03888674849 | W71: 0.1946591384
A108: =A1026 -> Togo
A109: =A1034 -> 2000
A110: Use of sanitation facilities
A111: by wealth quintile and sub-national region
A112: Notes:
A113: WHO/UNICEF JMP customised wealth index excludes water,
A114: sanitation and hygiene assets.
A115: Survey used for analysis: | B115: =A1025 -> MICS00
A116: =B1030 -> 
A117: =B1029 -> Ratio of Shared improved based on: | B117: MICS06
A120: Use of sanitation facilities | C120: NATIONAL wealth index quintile | H120: URBAN wealth index quintile | M120: RURAL wealth index quintile | R120: SUB-REGIONS: | BA120: Raw numbers of respondents: | BB120: Use of sanitation facilities | BC120: NATIONAL wealth index quintile | BH120: URBAN wealth index quintile | BM120: RURAL wealth index quintile | BR120: SUB-REGIONS:
A121: Weighted percentage (used in graphs) | C121: Poorest | D121: Poor | E121: Middle | F121: Rich | G121: Richest | H121: Poorest | I121: Poor | J121: Middle | K121: Rich | L121: Richest | M121: Poorest | N121: Poor | O121: Middle | P121: Rich | Q121: Richest | R121: Centrale | S121: Kara | T121: Lomé‚ | U121: Maritime | V121: Plateaux | W121: Savanes | BA121: Sanitation data, raw numbers (weighted) | BC121: Poorest | BD121: Poor | BE121: Middle | BF121: Rich | BG121: Richest | BH121: Poorest | BI121: Poor | BJ121: Middle | BK121: Rich | BL121: Richest | BM121: Poorest | BN121: Poor | BO121: Middle | BP121: Rich | BQ121: Richest | BR121: Centrale | BS121: Kara | BT121: Lomé‚ | BU121: Maritime | BV121: Plateaux | BW121: Savanes
A122: Sanitation | B122: Improved | C122: =C153+C154+C155+C156*MICS06!C130/100 -> 5.646439741 | D122: =D153+D154+D155+D156*MICS06!D130/100 -> 8.778384481 | E122: =E153+E154+E155+E156*MICS06!E130/100 -> 18.57496927 | F122: =F153+F154+F155+F156*MICS06!F130/100 -> 51.35040504 | G122: =G153+G154+G155+G156*MICS06!G130/100 -> 85.71044717 | H122: =H153+H154+H155+H156*MICS06!H130/100 -> 29.61600697 | I122: =I153+I154+I155+I156*MICS06!I130/100 -> 69.10579981 | J122: =J153+J154+J155+J156*MICS06!J130/100 -> 82.3558416 | K122: =K153+K154+K155+K156*MICS06!K130/100 -> 88.89507749 | L122: =L153+L154+L155+L156*MICS06!L130/100 -> 97.70047058 | M122: =M153+M154+M155+M156*MICS06!M130/100 -> 4.573417807 | N122: =N153+N154+N155+N156*MICS06!N130/100 -> 5.759331383 | O122: =O153+O154+O155+O156*MICS06!O130/100 -> 9.349521451 | P122: =P153+P154+P155+P156*MICS06!P130/100 -> 13.94135953 | Q122: =Q153+Q154+Q155+Q156*MICS06!Q130/100 -> 37.74603759 | R122: =R153+R154+R155+R156*MICS06!R130/100 -> 21.81516071 | S122: =S153+S154+S155+S156*MICS06!S130/100 -> 12.71487437 | T122: =T153+T154+T155+T156*MICS06!T130/100 -> 91.05240314 | U122: =U153+U154+U155+U156*MICS06!U130/100 -> 42.16114498 | V122: =V153+V154+V155+V156*MICS06!V130/100 -> 23.23907925 | W122: =W153+W154+W155+W156*MICS06!W130/100 -> 11.34782872 | BA122: Sanitation | BB122: Improved | BC122: 4603.546945 | BD122: 4535.813285 | BE122: 4598.681981 | BF122: 4590.623782 | BG122: 4577.814126 | BH122: 1511.390907 | BI122: 1484.400927 | BJ122: 1540.470234 | BK122: 1505.151731 | BL122: 1520.545059 | BM122: 3070.677764 | BN122: 3059.92841 | BO122: 3089.969115 | BP122: 3077.492306 | BQ122: 3046.453666 | BR122: 2168.068047 | BS122: 2864.01468 | BT122: 3206.0175 | BU122: 6105.644511 | BV122: 5495.62533 | BW122: 3067.110051
B123: Not Improved | C123: =100-C122 -> 94.35356026 | D123: =100-D122 -> 91.22161552 | E123: 81.42503073 | F123: 48.64959496 | G123: 14.28955283 | H123: 70.38399303 | I123: 30.89420019 | J123: 17.6441584 | K123: 11.10492251 | L123: 2.299529422 | M123: 95.42658219 | N123: 94.24066862 | O123: 90.65047855 | P123: 86.05864047 | Q123: 62.25396241 | R123: 78.18483929 | S123: 87.28512563 | T123: 8.94759686 | U123: 57.83885502 | V123: 76.76092075 | W123: 88.65217128 | BB123: Not Improved | BC123: 0 | BD123: 17.994762 | BE123: 22.067584 | BF123: 178.789248 | BG123: 1481.873891 | BH123: 30.749262 | BI123: 97.769863 | BJ123: 178.278659 | BK123: 374.217985 | BL123: 941.113938 | BM123: 0 | BN123: 0 | BO123: 0 | BP123: 2.590342 | BQ123: 76.005436 | BR123: 44.337974 | BS123: 62.558029 | BT123: 1171.095 | BU123: 307.95899 | BV123: 109.743374 | BW123: 5.032118
A124: Sanitation ladder | B124: Basic | C124: =C122*MICS06!C129/100 -> 1.672079738 | D124: =D122*MICS06!D129/100 -> 2.447040584 | E124: =E122*MICS06!E129/100 -> 4.974355761 | F124: =F122*MICS06!F129/100 -> 12.16184477 | G124: =G122*MICS06!G129/100 -> 37.17438874 | H124: =H122*MICS06!H129/100 -> 7.97884156 | I124: =I122*MICS06!I129/100 -> 11.01740805 | J124: =J122*MICS06!J129/100 -> 15.58087615 | K124: =K122*MICS06!K129/100 -> 25.30062211 | L124: =L122*MICS06!L129/100 -> 65.66702228 | M124: =M122*MICS06!M129/100 -> 1.275856013 | N124: =N122*MICS06!N129/100 -> 2.907240676 | O124: =O122*MICS06!O129/100 -> 1.888808362 | P124: =P122*MICS06!P129/100 -> 2.354642018 | Q124: =Q122*MICS06!Q129/100 -> 15.38524128 | R124: =R122*MICS06!R129/100 -> 6.838037259 | S124: =S122*MICS06!S129/100 -> 4.259480026 | T124: =T122*MICS06!T129/100 -> 31.46393466 | U124: =U122*MICS06!U129/100 -> 14.09089084 | V124: =V122*MICS06!V129/100 -> 8.361087255 | W124: =W122*MICS06!W129/100 -> 6.5153737 | BA124: Sanitation ladder | BB124: Basic | BC124: 150.851443 | BD124: 230.884217 | BE124: 547.940094 | BF124: 1645.151001 | BG124: 2002.785305 | BH124: 333.069673 | BI124: 765.26172 | BJ124: 895.801768 | BK124: 815.752073 | BL124: 480.69324 | BM124: 55.060127 | BN124: 110.157462 | BO124: 179.533233 | BP124: 227.568879 | BQ124: 714.713885 | BR124: 395.533878 | BS124: 253.229861 | BT124: 1361.253 | BU124: 1538.45974 | BV124: 756.24172 | BW124: 272.893861
B125: Limited | C125: =C122*MICS06!C128/100 -> 3.974360003 | D125: =D122*MICS06!D128/100 -> 6.331343897 | E125: =E122*MICS06!E128/100 -> 13.60061351 | F125: =F122*MICS06!F128/100 -> 39.18856027 | G125: =G122*MICS06!G128/100 -> 48.53605843 | H125: =H122*MICS06!H128/100 -> 21.63716541 | I125: =I122*MICS06!I128/100 -> 58.08839177 | J125: =J122*MICS06!J128/100 -> 66.77496545 | K125: =K122*MICS06!K128/100 -> 63.59445538 | L125: =L122*MICS06!L128/100 -> 32.0334483 | M125: =M122*MICS06!M128/100 -> 3.297561794 | N125: =N122*MICS06!N128/100 -> 2.852090707 | O125: =O122*MICS06!O128/100 -> 7.46071309 | P125: =P122*MICS06!P128/100 -> 11.58671751 | Q125: =Q122*MICS06!Q128/100 -> 22.36079631 | R125: =R122*MICS06!R128/100 -> 14.97712346 | S125: =S122*MICS06!S128/100 -> 8.45539434 | T125: =T122*MICS06!T128/100 -> 59.58846848 | U125: =U122*MICS06!U128/100 -> 28.07025414 | V125: =V122*MICS06!V128/100 -> 14.877992 | W125: =W122*MICS06!W128/100 -> 4.832455016 | BB125: Limited | BC125: 37.841666 | BD125: 93.849698 | BE125: 121.212778 | BF125: 298.632911 | BG125: 391.730133 | BH125: 46.307901 | BI125: 132.017305 | BJ125: 160.516593 | BK125: 139.943789 | BL125: 63.7725 | BM125: 34.310424 | BN125: 19.695954 | BO125: 77.092497 | BP125: 73.334538 | BQ125: 196.275685 | BR125: 29.722577 | BS125: 30.380317 | BT125: 346.6905 | BU125: 316.082318 | BV125: 180.353355 | BW125: 40.038119
B126: Unimproved | C126: =100-(C124+C125+C127) -> 10.38156488 | D126: =100-(D124+D125+D127) -> 8.992788876 | E126: 7.244061285 | F126: 5.031761891 | G126: 0.6334713305 | H126: 5.995620014 | I126: 2.777447265 | J126: 1.726242651 | K126: 0.3254833585 | L126: 1.136868377e-13 | M126: 11.38094711 | N126: 8.377746713 | O126: 9.169604038 | P126: 9.054447986 | Q126: 6.265293352 | R126: 0.1683828684 | S126: 0.7328110346 | T126: 1.967488361 | U126: 11.32442142 | V126: 8.168977055 | W126: 2.884227021 | BB126: Unimproved | BC126: 532.326385 | BD126: 387.635746 | BE126: 440.374226 | BF126: 445.82347 | BG126: 64.956492 | BH126: 86.976887 | BI126: 59.556954 | BJ126: 54.146086 | BK126: 11.225348 | BL126: 0 | BM126: 388.880046 | BN126: 270.351778 | BO126: 294.886792 | BP126: 363.243449 | BQ126: 341.848979 | BR126: 7.023755 | BS126: 38.975477 | BT126: 61.4535 | BU126: 1030.607925 | BV126: 655.525793 | BW126: 77.529869
B127: Open defecation | C127: =C158 -> 83.97199538 | D127: =D158 -> 82.22882664 | E127: 74.18096944 | F127: 43.61783307 | G127: 13.6560815 | H127: 64.38837302 | I127: 28.11675292 | J127: 15.91791575 | K127: 10.77943915 | L127: 2.299529422 | M127: 84.04563508 | N127: 85.8629219 | O127: 81.48087451 | P127: 77.00419248 | Q127: 55.98866906 | R127: 78.01645642 | S127: 86.5523146 | T127: 6.980108499 | U127: 46.5144336 | V127: 68.59194369 | W127: 85.76794426 | BB127: Open defecation | BC127: N/A | BD127: N/A | BE127: N/A | BF127: N/A | BG127: N/A | BH127: N/A | BI127: N/A | BJ127: N/A | BK127: N/A | BL127: N/A | BM127: N/A | BN127: N/A | BO127: N/A | BP127: N/A | BQ127: N/A | BR127: N/A | BS127: N/A | BT127: N/A | BU127: N/A | BV127: N/A | BW127: N/A
A128: Shared among Improved Sanitation | B128: Yes | C128: N/A | D128: N/A | E128: N/A | F128: N/A | G128: N/A | H128: N/A | I128: N/A | J128: N/A | K128: N/A | L128: N/A | M128: N/A | N128: N/A | O128: N/A | P128: N/A | Q128: N/A | R128: N/A | S128: N/A | T128: N/A | U128: N/A | V128: N/A | W128: N/A | BA128: Shared among improved sanitation facilities | BB128: Yes | BC128: N/A | BD128: N/A | BE128: N/A | BF128: N/A | BG128: N/A | BH128: N/A | BI128: N/A | BJ128: N/A | BK128: N/A | BL128: N/A | BM128: N/A | BN128: N/A | BO128: N/A | BP128: N/A | BQ128: N/A | BR128: N/A | BS128: N/A | BT128: N/A | BU128: N/A | BV128: N/A | BW128: N/A
B129: No | C129: N/A | D129: N/A | E129: N/A | F129: N/A | G129: N/A | H129: N/A | I129: N/A | J129: N/A | K129: N/A | L129: N/A | M129: N/A | N129: N/A | O129: N/A | P129: N/A | Q129: N/A | R129: N/A | S129: N/A | T129: N/A | U129: N/A | V129: N/A | W129: N/A | BB129: No | BC129: N/A | BD129: N/A | BE129: N/A | BF129: N/A | BG129: N/A | BH129: N/A | BI129: N/A | BJ129: N/A | BK129: N/A | BL129: N/A | BM129: N/A | BN129: N/A | BO129: N/A | BP129: N/A | BQ129: N/A | BR129: N/A | BS129: N/A | BT129: N/A | BU129: N/A | BV129: N/A | BW129: N/A
A130: Manually calculated ratios | B130: Improved latrines
B131: Other
B132: Other
C133: NATIONAL wealth index quintile | H133: URBAN wealth index quintile | M133: RURAL wealth index quintile | R133: SUB-REGIONS: | BA133: Raw numbers of respondents: | BB133: Use of sanitation facilities | BC133: NATIONAL wealth index quintile | BH133: URBAN wealth index quintile | BM133: RURAL wealth index quintile | BR133: SUB-REGIONS:
A134: Percentage based on weighted population | C134: Poorest | D134: Poor | E134: Middle | F134: Rich | G134: Richest | H134: Poorest | I134: Poor | J134: Middle | K134: Rich | L134: Richest | M134: Poorest | N134: Poor | O134: Middle | P134: Rich | Q134: Richest | R134: Centrale | S134: Kara | T134: Lomé‚ | U134: Maritime | V134: Plateaux | W134: Savanes | BA134: Sanitation data, raw numbers (weighted) | BC134: Poorest | BD134: Poor | BE134: Middle | BF134: Rich | BG134: Richest | BH134: Poorest | BI134: Poor | BJ134: Middle | BK134: Rich | BL134: Richest | BM134: Poorest | BN134: Poor | BO134: Middle | BP134: Rich | BQ134: Richest | BR134: Centrale | BS134: Kara | BT134: Lomé‚ | BU134: Maritime | BV134: Plateaux | BW134: Savanes
A135: Sanitation type | B135: Sewer connection | C135: N/A | D135: N/A | E135: N/A | F135: N/A | G135: N/A | H135: N/A | I135: N/A | J135: N/A | K135: N/A | L135: N/A | M135: N/A | N135: N/A | O135: N/A | P135: N/A | Q135: N/A | R135: N/A | S135: N/A | T135: N/A | U135: N/A | V135: N/A | W135: N/A | BA135: Sanitation type | BB135: Sewer connection | BC135: N/A | BD135: N/A | BE135: N/A | BF135: N/A | BG135: N/A | BH135: N/A | BI135: N/A | BJ135: N/A | BK135: N/A | BL135: N/A | BM135: N/A | BN135: N/A | BO135: N/A | BP135: N/A | BQ135: N/A | BR135: N/A | BS135: N/A | BT135: N/A | BU135: N/A | BV135: N/A | BW135: N/A
B136: Septic tank connection | C136: N/A | D136: N/A | E136: N/A | F136: N/A | G136: N/A | H136: N/A | I136: N/A | J136: N/A | K136: N/A | L136: N/A | M136: N/A | N136: N/A | O136: N/A | P136: N/A | Q136: N/A | R136: N/A | S136: N/A | T136: N/A | U136: N/A | V136: N/A | W136: N/A | BB136: Septic tank connection | BC136: N/A | BD136: N/A | BE136: N/A | BF136: N/A | BG136: N/A | BH136: N/A | BI136: N/A | BJ136: N/A | BK136: N/A | BL136: N/A | BM136: N/A | BN136: N/A | BO136: N/A | BP136: N/A | BQ136: N/A | BR136: N/A | BS136: N/A | BT136: N/A | BU136: N/A | BV136: N/A | BW136: N/A
B137: Improved latrines | C137: N/A | D137: N/A | E137: N/A | F137: N/A | G137: N/A | H137: N/A | I137: N/A | J137: N/A | K137: N/A | L137: N/A | M137: N/A | N137: N/A | O137: N/A | P137: N/A | Q137: N/A | R137: N/A | S137: N/A | T137: N/A | U137: N/A | V137: N/A | W137: N/A | BB137: Improved latrines | BC137: N/A | BD137: N/A | BE137: N/A | BF137: N/A | BG137: N/A | BH137: N/A | BI137: N/A | BJ137: N/A | BK137: N/A | BL137: N/A | BM137: N/A | BN137: N/A | BO137: N/A | BP137: N/A | BQ137: N/A | BR137: N/A | BS137: N/A | BT137: N/A | BU137: N/A | BV137: N/A | BW137: N/A
B138: Unimproved facilities | C138: N/A | D138: N/A | E138: N/A | F138: N/A | G138: N/A | H138: N/A | I138: N/A | J138: N/A | K138: N/A | L138: N/A | M138: N/A | N138: N/A | O138: N/A | P138: N/A | Q138: N/A | R138: N/A | S138: N/A | T138: N/A | U138: N/A | V138: N/A | W138: N/A | BB138: Unimproved facilities | BC138: N/A | BD138: N/A | BE138: N/A | BF138: N/A | BG138: N/A | BH138: N/A | BI138: N/A | BJ138: N/A | BK138: N/A | BL138: N/A | BM138: N/A | BN138: N/A | BO138: N/A | BP138: N/A | BQ138: N/A | BR138: N/A | BS138: N/A | BT138: N/A | BU138: N/A | BV138: N/A | BW138: N/A
B139: Open defecation | C139: 83.97199538 | D139: 82.22882664 | E139: 74.18096944 | F139: 43.61783307 | G139: 13.6560815 | H139: 64.38837302 | I139: 28.11675292 | J139: 15.91791575 | K139: 10.77943915 | L139: 2.299529422 | M139: 84.04563508 | N139: 85.8629219 | O139: 81.48087451 | P139: 77.00419248 | Q139: 55.98866906 | R139: 78.01645642 | S139: 86.5523146 | T139: 6.980108499 | U139: 46.5144336 | V139: 68.59194369 | W139: 85.76794426 | BB139: Open defecation | BC139: N/A | BD139: N/A | BE139: N/A | BF139: N/A | BG139: N/A | BH139: N/A | BI139: N/A | BJ139: N/A | BK139: N/A | BL139: N/A | BM139: N/A | BN139: N/A | BO139: N/A | BP139: N/A | BQ139: N/A | BR139: N/A | BS139: N/A | BT139: N/A | BU139: N/A | BV139: N/A | BW139: N/A
A140: Septic tank emptying practices | B140: Not emptied/treated and disposed in situ | C140: N/A | D140: N/A | E140: N/A | F140: N/A | G140: N/A | H140: N/A | I140: N/A | J140: N/A | K140: N/A | L140: N/A | M140: N/A | N140: N/A | O140: N/A | P140: N/A | Q140: N/A | R140: N/A | S140: N/A | T140: N/A | U140: N/A | V140: N/A | W140: N/A | BA140: Septic tank emptying practices | BB140: Not emptied/treated and disposed in situ | BC140: N/A | BD140: N/A | BE140: N/A | BF140: N/A | BG140: N/A | BH140: N/A | BI140: N/A | BJ140: N/A | BK140: N/A | BL140: N/A | BM140: N/A | BN140: N/A | BO140: N/A | BP140: N/A | BQ140: N/A | BR140: N/A | BS140: N/A | BT140: N/A | BU140: N/A | BV140: N/A | BW140: N/A
B141: Emptied and buried on site | C141: N/A | D141: N/A | E141: N/A | F141: N/A | G141: N/A | H141: N/A | I141: N/A | J141: N/A | K141: N/A | L141: N/A | M141: N/A | N141: N/A | O141: N/A | P141: N/A | Q141: N/A | R141: N/A | S141: N/A | T141: N/A | U141: N/A | V141: N/A | W141: N/A | BB141: Emptied and buried on site | BC141: N/A | BD141: N/A | BE141: N/A | BF141: N/A | BG141: N/A | BH141: N/A | BI141: N/A | BJ141: N/A | BK141: N/A | BL141: N/A | BM141: N/A | BN141: N/A | BO141: N/A | BP141: N/A | BQ141: N/A | BR141: N/A | BS141: N/A | BT141: N/A | BU141: N/A | BV141: N/A | BW141: N/A
B142: Emptied and discharged locally | C142: N/A | D142: N/A | E142: N/A | F142: N/A | G142: N/A | H142: N/A | I142: N/A | J142: N/A | K142: N/A | L142: N/A | M142: N/A | N142: N/A | O142: N/A | P142: N/A | Q142: N/A | R142: N/A | S142: N/A | T142: N/A | U142: N/A | V142: N/A | W142: N/A | BB142: Emptied and discharged locally | BC142: N/A | BD142: N/A | BE142: N/A | BF142: N/A | BG142: N/A | BH142: N/A | BI142: N/A | BJ142: N/A | BK142: N/A | BL142: N/A | BM142: N/A | BN142: N/A | BO142: N/A | BP142: N/A | BQ142: N/A | BR142: N/A | BS142: N/A | BT142: N/A | BU142: N/A | BV142: N/A | BW142: N/A
B143: Emptied and removed offsite | C143: N/A | D143: N/A | E143: N/A | F143: N/A | G143: N/A | H143: N/A | I143: N/A | J143: N/A | K143: N/A | L143: N/A | M143: N/A | N143: N/A | O143: N/A | P143: N/A | Q143: N/A | R143: N/A | S143: N/A | T143: N/A | U143: N/A | V143: N/A | W143: N/A | BB143: Emptied and removed offsite | BC143: N/A | BD143: N/A | BE143: N/A | BF143: N/A | BG143: N/A | BH143: N/A | BI143: N/A | BJ143: N/A | BK143: N/A | BL143: N/A | BM143: N/A | BN143: N/A | BO143: N/A | BP143: N/A | BQ143: N/A | BR143: N/A | BS143: N/A | BT143: N/A | BU143: N/A | BV143: N/A | BW143: N/A
A144: Latrine emptying practices | B144: Not emptied/treated and disposed in situ | C144: N/A | D144: N/A | E144: N/A | F144: N/A | G144: N/A | H144: N/A | I144: N/A | J144: N/A | K144: N/A | L144: N/A | M144: N/A | N144: N/A | O144: N/A | P144: N/A | Q144: N/A | R144: N/A | S144: N/A | T144: N/A | U144: N/A | V144: N/A | W144: N/A | BA144: Latrine emptying practices | BB144: Not emptied/treated and disposed in situ | BC144: N/A | BD144: N/A | BE144: N/A | BF144: N/A | BG144: N/A | BH144: N/A | BI144: N/A | BJ144: N/A | BK144: N/A | BL144: N/A | BM144: N/A | BN144: N/A | BO144: N/A | BP144: N/A | BQ144: N/A | BR144: N/A | BS144: N/A | BT144: N/A | BU144: N/A | BV144: N/A | BW144: N/A
B145: Emptied and buried on site | C145: N/A | D145: N/A | E145: N/A | F145: N/A | G145: N/A | H145: N/A | I145: N/A | J145: N/A | K145: N/A | L145: N/A | M145: N/A | N145: N/A | O145: N/A | P145: N/A | Q145: N/A | R145: N/A | S145: N/A | T145: N/A | U145: N/A | V145: N/A | W145: N/A | BB145: Emptied and buried on site | BC145: N/A | BD145: N/A | BE145: N/A | BF145: N/A | BG145: N/A | BH145: N/A | BI145: N/A | BJ145: N/A | BK145: N/A | BL145: N/A | BM145: N/A | BN145: N/A | BO145: N/A | BP145: N/A | BQ145: N/A | BR145: N/A | BS145: N/A | BT145: N/A | BU145: N/A | BV145: N/A | BW145: N/A
B146: Emptied and discharged locally | C146: N/A | D146: N/A | E146: N/A | F146: N/A | G146: N/A | H146: N/A | I146: N/A | J146: N/A | K146: N/A | L146: N/A | M146: N/A | N146: N/A | O146: N/A | P146: N/A | Q146: N/A | R146: N/A | S146: N/A | T146: N/A | U146: N/A | V146: N/A | W146: N/A | BB146: Emptied and discharged locally | BC146: N/A | BD146: N/A | BE146: N/A | BF146: N/A | BG146: N/A | BH146: N/A | BI146: N/A | BJ146: N/A | BK146: N/A | BL146: N/A | BM146: N/A | BN146: N/A | BO146: N/A | BP146: N/A | BQ146: N/A | BR146: N/A | BS146: N/A | BT146: N/A | BU146: N/A | BV146: N/A | BW146: N/A
B147: Emptied and removed offsite | C147: N/A | D147: N/A | E147: N/A | F147: N/A | G147: N/A | H147: N/A | I147: N/A | J147: N/A | K147: N/A | L147: N/A | M147: N/A | N147: N/A | O147: N/A | P147: N/A | Q147: N/A | R147: N/A | S147: N/A | T147: N/A | U147: N/A | V147: N/A | W147: N/A | BB147: Emptied and removed offsite | BC147: N/A | BD147: N/A | BE147: N/A | BF147: N/A | BG147: N/A | BH147: N/A | BI147: N/A | BJ147: N/A | BK147: N/A | BL147: N/A | BM147: N/A | BN147: N/A | BO147: N/A | BP147: N/A | BQ147: N/A | BR147: N/A | BS147: N/A | BT147: N/A | BU147: N/A | BV147: N/A | BW147: N/A
A148: Shared among improved sanitation facilities | B148: Yes | C148: N/A | D148: N/A | E148: N/A | F148: N/A | G148: N/A | H148: N/A | I148: N/A | J148: N/A | K148: N/A | L148: N/A | M148: N/A | N148: N/A | O148: N/A | P148: N/A | Q148: N/A | R148: N/A | S148: N/A | T148: N/A | U148: N/A | V148: N/A | W148: N/A | BA148: Shared among improved sanitation facilities | BB148: Yes | BC148: N/A | BD148: N/A | BE148: N/A | BF148: N/A | BG148: N/A | BH148: N/A | BI148: N/A | BJ148: N/A | BK148: N/A | BL148: N/A | BM148: N/A | BN148: N/A | BO148: N/A | BP148: N/A | BQ148: N/A | BR148: N/A | BS148: N/A | BT148: N/A | BU148: N/A | BV148: N/A | BW148: N/A
B149: No | C149: N/A | D149: N/A | E149: N/A | F149: N/A | G149: N/A | H149: N/A | I149: N/A | J149: N/A | K149: N/A | L149: N/A | M149: N/A | N149: N/A | O149: N/A | P149: N/A | Q149: N/A | R149: N/A | S149: N/A | T149: N/A | U149: N/A | V149: N/A | W149: N/A | BB149: No | BC149: N/A | BD149: N/A | BE149: N/A | BF149: N/A | BG149: N/A | BH149: N/A | BI149: N/A | BJ149: N/A | BK149: N/A | BL149: N/A | BM149: N/A | BN149: N/A | BO149: N/A | BP149: N/A | BQ149: N/A | BR149: N/A | BS149: N/A | BT149: N/A | BU149: N/A | BV149: N/A | BW149: N/A
B150: DK/missing | C150: N/A | D150: N/A | E150: N/A | F150: N/A | G150: N/A | H150: N/A | I150: N/A | J150: N/A | K150: N/A | L150: N/A | M150: N/A | N150: N/A | O150: N/A | P150: N/A | Q150: N/A | R150: N/A | S150: N/A | T150: N/A | U150: N/A | V150: N/A | W150: N/A | BB150: DK/missing | BC150: N/A | BD150: N/A | BE150: N/A | BF150: N/A | BG150: N/A | BH150: N/A | BI150: N/A | BJ150: N/A | BK150: N/A | BL150: N/A | BM150: N/A | BN150: N/A | BO150: N/A | BP150: N/A | BQ150: N/A | BR150: N/A | BS150: N/A | BT150: N/A | BU150: N/A | BV150: N/A | BW150: N/A
A151: Shared among all sanitation facilities | B151: Yes | C151: N/A | D151: N/A | E151: N/A | F151: N/A | G151: N/A | H151: N/A | I151: N/A | J151: N/A | K151: N/A | L151: N/A | M151: N/A | N151: N/A | O151: N/A | P151: N/A | Q151: N/A | R151: N/A | S151: N/A | T151: N/A | U151: N/A | V151: N/A | W151: N/A | BA151: Shared among all sanitation facilities | BB151: Yes | BC151: N/A | BD151: N/A | BE151: N/A | BF151: N/A | BG151: N/A | BH151: N/A | BI151: N/A | BJ151: N/A | BK151: N/A | BL151: N/A | BM151: N/A | BN151: N/A | BO151: N/A | BP151: N/A | BQ151: N/A | BR151: N/A | BS151: N/A | BT151: N/A | BU151: N/A | BV151: N/A | BW151: N/A
B152: No | C152: N/A | D152: N/A | E152: N/A | F152: N/A | G152: N/A | H152: N/A | I152: N/A | J152: N/A | K152: N/A | L152: N/A | M152: N/A | N152: N/A | O152: N/A | P152: N/A | Q152: N/A | R152: N/A | S152: N/A | T152: N/A | U152: N/A | V152: N/A | W152: N/A | BB152: No | BC152: N/A | BD152: N/A | BE152: N/A | BF152: N/A | BG152: N/A | BH152: N/A | BI152: N/A | BJ152: N/A | BK152: N/A | BL152: N/A | BM152: N/A | BN152: N/A | BO152: N/A | BP152: N/A | BQ152: N/A | BR152: N/A | BS152: N/A | BT152: N/A | BU152: N/A | BV152: N/A | BW152: N/A
A153: GENRE DE TOILETTE UTILISEE | B153: Chasse d'eau ou fosse septique | C153: 0 | D153: 0.396726251 | E153: 0.4798675814 | F153: 3.894661303 | G153: 32.37077457 | H153: 2.034500926 | I153: 6.586486253 | J153: 11.57300252 | K153: 24.86247581 | L153: 61.89319629 | M153: 0 | N153: 0 | O153: 0 | P153: 0.0841705435 | Q153: 2.494882389 | R153: 2.045045314 | S153: 2.184277526 | T153: 36.52802893 | U153: 5.043840817 | V153: 1.996922414 | W153: 0.1640670832 | BA153: Shared among improved sanitation facilities | BB153: Yes | BC153: N/A | BD153: N/A | BE153: N/A | BF153: N/A | BG153: N/A | BH153: N/A | BI153: N/A | BJ153: N/A | BK153: N/A | BL153: N/A | BM153: N/A | BN153: N/A | BO153: N/A | BP153: N/A | BQ153: N/A | BR153: N/A | BS153: N/A | BT153: N/A | BU153: N/A | BV153: N/A | BW153: N/A
B154: Fosse ‚tanche | C154: 3.276852497 | D154: 5.090249587 | E154: 11.91515517 | F154: 35.83719946 | G154: 43.74981705 | H154: 22.03729501 | I154: 51.5535733 | J154: 58.1511897 | K154: 54.19733148 | L154: 31.61321903 | M154: 1.793093617 | N154: 3.600001282 | O154: 5.810195064 | P154: 7.394620567 | Q154: 23.46052044 | R154: 18.24360995 | S154: 8.841779435 | T154: 42.45931284 | U154: 25.19733563 | V154: 13.76079472 | W154: 8.897426452 | BB154: No | BC154: N/A | BD154: N/A | BE154: N/A | BF154: N/A | BG154: N/A | BH154: N/A | BI154: N/A | BJ154: N/A | BK154: N/A | BL154: N/A | BM154: N/A | BN154: N/A | BO154: N/A | BP154: N/A | BQ154: N/A | BR154: N/A | BS154: N/A | BT154: N/A | BU154: N/A | BV154: N/A | BW154: N/A
B155: Latrines couvertes | C155: 0.8220110808 | D155: 2.069082039 | E155: 2.635815621 | F155: 6.505279569 | G155: 8.557143698 | H155: 3.063926135 | I155: 8.893642048 | J155: 10.41997368 | K155: 9.297653261 | L155: 4.194055258 | M155: 1.117356709 | N155: 0.6436736865 | O155: 2.494927753 | P155: 2.382931644 | Q155: 6.442759566 | R155: 1.370924545 | S155: 1.060759821 | T155: 10.81374322 | U155: 5.176887017 | V155: 3.281762205 | W155: 1.3054021
B156: Latrines traditionnelle ou non couverte | C156: 11.56339647 | D156: 8.546113379 | E156: 9.576096539 | F156: 9.71160982 | G156: 1.418941229 | H156: 5.754757859 | I156: 4.012187874 | J156: 3.514906345 | K156: 0.7457951095 | L156: 0 | M156: 12.66430658 | N156: 8.835232129 | O156: 9.543357264 | P156: 11.8032285 | Q156: 11.22121051 | R156: 0.3239637709 | S156: 1.360868618 | T156: 1.91681736 | U156: 16.8795927 | V156: 11.92813836 | W156: 2.527782431
B157: Autre | C157: 0.3657445705 | D157: 1.183300891 | E157: 1.212095645 | F157: 0.4334167848 | G157: 0.2472419519 | H157: 1.263516203 | I157: 0.8373576016 | J157: 0.4230120035 | K157: 0.1173051835 | L157: 0 | M157: 0.379608018 | N157: 1.058170998 | O157: 0.6706454087 | P157: 1.33085626 | Q157: 0.3919580374 | R157: 0 | S157: 0 | T157: 0.6148282098 | U157: 1.187910234 | V157: 0.4404386134 | W157: 1.337377672
B158: Pas de toilette/brousse/champ | C158: 83.97199538 | D158: 82.22882664 | E158: 74.18096944 | F158: 43.61783307 | G158: 13.6560815 | H158: 64.38837302 | I158: 28.11675292 | J158: 15.91791575 | K158: 10.77943915 | L158: 2.299529422 | M158: 84.04563508 | N158: 85.8629219 | O158: 81.48087451 | P158: 77.00419248 | Q158: 55.98866906 | R158: 78.01645642 | S158: 86.5523146 | T158: 6.980108499 | U158: 46.5144336 | V158: 68.59194369 | W158: 85.76794426
B159: NSP | C159: 0 | D159: 0.4857012098 | E159: 0 | F159: 0 | G159: 0 | H159: 1.457630842 | I159: 0 | J159: 0 | K159: 0 | L159: 0 | M159: 0 | N159: 0 | O159: 0 | P159: 0 | Q159: 0 | R159: 0 | S159: 0 | T159: 0.6871609403 | U159: 0 | V159: 0 | W159: 0
A208: =A1026 -> Togo
A209: =A1034 -> 2000
A210: Access to hygiene facilities
A211: by wealth quintile and sub-national region
A212: Notes:
A213: WHO/UNICEF JMP customised wealth index excludes water,
A214: sanitation and hygiene assets.
A215: Survey used for analysis: | B215: =A1025 -> MICS00
A220: Access to handwashing | C220: NATIONAL wealth index quintile | H220: URBAN wealth index quintile | M220: RURAL wealth index quintile | R220: SUB-REGIONS: | BA220: Raw numbers of respondents: | BB220: Access to handwashing | BC220: NATIONAL wealth index quintile | BH220: URBAN wealth index quintile | BM220: RURAL wealth index quintile | BR220: SUB-REGIONS:
A221: Weighted percentage (used in graphs) | C221: Poorest | D221: Poor | E221: Middle | F221: Rich | G221: Richest | H221: Poorest | I221: Poor | J221: Middle | K221: Rich | L221: Richest | M221: Poorest | N221: Poor | O221: Middle | P221: Rich | Q221: Richest | R221: Centrale | S221: Kara | T221: Lomé‚ | U221: Maritime | V221: Plateaux | W221: Savanes | BA221: Hygiene data, raw numbers (weighted) | BC221: Poorest | BD221: Poor | BE221: Middle | BF221: Rich | BG221: Richest | BH221: Poorest | BI221: Poor | BJ221: Middle | BK221: Rich | BL221: Richest | BM221: Poorest | BN221: Poor | BO221: Middle | BP221: Rich | BQ221: Richest | BR221: Centrale | BS221: Kara | BT221: Lomé‚ | BU221: Maritime | BV221: Plateaux | BW221: Savanes
A222: Hygiene ladder | B222: Basic | C222: N/A | D222: N/A | E222: N/A | F222: N/A | G222: N/A | H222: N/A | I222: N/A | J222: N/A | K222: N/A | L222: N/A | M222: N/A | N222: N/A | O222: N/A | P222: N/A | Q222: N/A | R222: N/A | S222: N/A | T222: N/A | U222: N/A | V222: N/A | W222: N/A | BA222: Hygiene ladder | BB222: Basic | BC222: N/A | BD222: N/A | BE222: N/A | BF222: N/A | BG222: N/A | BH222: N/A | BI222: N/A | BJ222: N/A | BK222: N/A | BL222: N/A | BM222: N/A | BN222: N/A | BO222: N/A | BP222: N/A | BQ222: N/A | BR222: N/A | BS222: N/A | BT222: N/A | BU222: N/A | BV222: N/A | BW222: N/A
B223: Limited | C223: N/A | D223: N/A | E223: N/A | F223: N/A | G223: N/A | H223: N/A | I223: N/A | J223: N/A | K223: N/A | L223: N/A | M223: N/A | N223: N/A | O223: N/A | P223: N/A | Q223: N/A | R223: N/A | S223: N/A | T223: N/A | U223: N/A | V223: N/A | W223: N/A | BB223: Limited | BC223: N/A | BD223: N/A | BE223: N/A | BF223: N/A | BG223: N/A | BH223: N/A | BI223: N/A | BJ223: N/A | BK223: N/A | BL223: N/A | BM223: N/A | BN223: N/A | BO223: N/A | BP223: N/A | BQ223: N/A | BR223: N/A | BS223: N/A | BT223: N/A | BU223: N/A | BV223: N/A | BW223: N/A
B224: No facility | C224: N/A | D224: N/A | E224: N/A | F224: N/A | G224: N/A | H224: N/A | I224: N/A | J224: N/A | K224: N/A | L224: N/A | M224: N/A | N224: N/A | O224: N/A | P224: N/A | Q224: N/A | R224: N/A | S224: N/A | T224: N/A | U224: N/A | V224: N/A | W224: N/A | BB224: No facility | BC224: N/A | BD224: N/A | BE224: N/A | BF224: N/A | BG224: N/A | BH224: N/A | BI224: N/A | BJ224: N/A | BK224: N/A | BL224: N/A | BM224: N/A | BN224: N/A | BO224: N/A | BP224: N/A | BQ224: N/A | BR224: N/A | BS224: N/A | BT224: N/A | BU224: N/A | BV224: N/A | BW224: N/A
BA225: Observed handwashing place | BB225: Fixed | BC225: N/A | BD225: N/A | BE225: N/A | BF225: N/A | BG225: N/A | BH225: N/A | BI225: N/A | BJ225: N/A | BK225: N/A | BL225: N/A | BM225: N/A | BN225: N/A | BO225: N/A | BP225: N/A | BQ225: N/A | BR225: N/A | BS225: N/A | BT225: N/A | BU225: N/A | BV225: N/A | BW225: N/A
BB226: Mobile | BC226: N/A | BD226: N/A | BE226: N/A | BF226: N/A | BG226: N/A | BH226: N/A | BI226: N/A | BJ226: N/A | BK226: N/A | BL226: N/A | BM226: N/A | BN226: N/A | BO226: N/A | BP226: N/A | BQ226: N/A | BR226: N/A | BS226: N/A | BT226: N/A | BU226: N/A | BV226: N/A | BW226: N/A
BA227: Water / Soap | BB227: Water and soap | BC227: N/A | BD227: N/A | BE227: N/A | BF227: N/A | BG227: N/A | BH227: N/A | BI227: N/A | BJ227: N/A | BK227: N/A | BL227: N/A | BM227: N/A | BN227: N/A | BO227: N/A | BP227: N/A | BQ227: N/A | BR227: N/A | BS227: N/A | BT227: N/A | BU227: N/A | BV227: N/A | BW227: N/A
BB228: Water only | BC228: N/A | BD228: N/A | BE228: N/A | BF228: N/A | BG228: N/A | BH228: N/A | BI228: N/A | BJ228: N/A | BK228: N/A | BL228: N/A | BM228: N/A | BN228: N/A | BO228: N/A | BP228: N/A | BQ228: N/A | BR228: N/A | BS228: N/A | BT228: N/A | BU228: N/A | BV228: N/A | BW228: N/A
BB229: Soap only | BC229: N/A | BD229: N/A | BE229: N/A | BF229: N/A | BG229: N/A | BH229: N/A | BI229: N/A | BJ229: N/A | BK229: N/A | BL229: N/A | BM229: N/A | BN229: N/A | BO229: N/A | BP229: N/A | BQ229: N/A | BR229: N/A | BS229: N/A | BT229: N/A | BU229: N/A | BV229: N/A | BW229: N/A
BB230: Neither | BC230: N/A | BD230: N/A | BE230: N/A | BF230: N/A | BG230: N/A | BH230: N/A | BI230: N/A | BJ230: N/A | BK230: N/A | BL230: N/A | BM230: N/A | BN230: N/A | BO230: N/A | BP230: N/A | BQ230: N/A | BR230: N/A | BS230: N/A | BT230: N/A | BU230: N/A | BV230: N/A | BW230: N/A
BA259: Raw numbers of respondents: | BB259: Menstrual health and hygiene | BC259: NATIONAL wealth index quintile | BH259: URBAN wealth index quintile | BM259: RURAL wealth index quintile | BR259: SUB-REGIONS:
BA260: MHH data, raw numbers (weighted) | BC260: Poorest | BD260: Poor | BE260: Middle | BF260: Rich | BG260: Richest | BH260: Poorest | BI260: Poor | BJ260: Middle | BK260: Rich | BL260: Richest | BM260: Poorest | BN260: Poor | BO260: Middle | BP260: Rich | BQ260: Richest | BR260: Centrale | BS260: Kara | BT260: Lomé‚ | BU260: Maritime | BV260: Plateaux | BW260: Savanes
BA261: Private place to wash and change | BB261: Yes | BC261: N/A | BD261: N/A | BE261: N/A | BF261: N/A | BG261: N/A | BH261: N/A | BI261: N/A | BJ261: N/A | BK261: N/A | BL261: N/A | BM261: N/A | BN261: N/A | BO261: N/A | BP261: N/A | BQ261: N/A | BR261: N/A | BS261: N/A | BT261: N/A | BU261: N/A | BV261: N/A | BW261: N/A
BB262: No | BC262: N/A | BD262: N/A | BE262: N/A | BF262: N/A | BG262: N/A | BH262: N/A | BI262: N/A | BJ262: N/A | BK262: N/A | BL262: N/A | BM262: N/A | BN262: N/A | BO262: N/A | BP262: N/A | BQ262: N/A | BR262: N/A | BS262: N/A | BT262: N/A | BU262: N/A | BV262: N/A | BW262: N/A
BB263: DK/not sure/missing | BC263: N/A | BD263: N/A | BE263: N/A | BF263: N/A | BG263: N/A | BH263: N/A | BI263: N/A | BJ263: N/A | BK263: N/A | BL263: N/A | BM263: N/A | BN263: N/A | BO263: N/A | BP263: N/A | BQ263: N/A | BR263: N/A | BS263: N/A | BT263: N/A | BU263: N/A | BV263: N/A | BW263: N/A
BA264: Use of menstrual materials | BB264: Materials reusable | BC264: N/A | BD264: N/A | BE264: N/A | BF264: N/A | BG264: N/A | BH264: N/A | BI264: N/A | BJ264: N/A | BK264: N/A | BL264: N/A | BM264: N/A | BN264: N/A | BO264: N/A | BP264: N/A | BQ264: N/A | BR264: N/A | BS264: N/A | BT264: N/A | BU264: N/A | BV264: N/A | BW264: N/A
BB265: Materials not reusable | BC265: N/A | BD265: N/A | BE265: N/A | BF265: N/A | BG265: N/A | BH265: N/A | BI265: N/A | BJ265: N/A | BK265: N/A | BL265: N/A | BM265: N/A | BN265: N/A | BO265: N/A | BP265: N/A | BQ265: N/A | BR265: N/A | BS265: N/A | BT265: N/A | BU265: N/A | BV265: N/A | BW265: N/A
BB266: No materials used | BC266: N/A | BD266: N/A | BE266: N/A | BF266: N/A | BG266: N/A | BH266: N/A | BI266: N/A | BJ266: N/A | BK266: N/A | BL266: N/A | BM266: N/A | BN266: N/A | BO266: N/A | BP266: N/A | BQ266: N/A | BR266: N/A | BS266: N/A | BT266: N/A | BU266: N/A | BV266: N/A | BW266: N/A
BB267: DK/not sure/missing | BC267: N/A | BD267: N/A | BE267: N/A | BF267: N/A | BG267: N/A | BH267: N/A | BI267: N/A | BJ267: N/A | BK267: N/A | BL267: N/A | BM267: N/A | BN267: N/A | BO267: N/A | BP267: N/A | BQ267: N/A | BR267: N/A | BS267: N/A | BT267: N/A | BU267: N/A | BV267: N/A | BW267: N/A
BA268: Use of menstrual materials with private place to wash and change | BB268: Materials reusable | BC268: N/A | BD268: N/A | BE268: N/A | BF268: N/A | BG268: N/A | BH268: N/A | BI268: N/A | BJ268: N/A | BK268: N/A | BL268: N/A | BM268: N/A | BN268: N/A | BO268: N/A | BP268: N/A | BQ268: N/A | BR268: N/A | BS268: N/A | BT268: N/A | BU268: N/A | BV268: N/A | BW268: N/A
BB269: Materials not reusable | BC269: N/A | BD269: N/A | BE269: N/A | BF269: N/A | BG269: N/A | BH269: N/A | BI269: N/A | BJ269: N/A | BK269: N/A | BL269: N/A | BM269: N/A | BN269: N/A | BO269: N/A | BP269: N/A | BQ269: N/A | BR269: N/A | BS269: N/A | BT269: N/A | BU269: N/A | BV269: N/A | BW269: N/A
BB270: No materials used | BC270: N/A | BD270: N/A | BE270: N/A | BF270: N/A | BG270: N/A | BH270: N/A | BI270: N/A | BJ270: N/A | BK270: N/A | BL270: N/A | BM270: N/A | BN270: N/A | BO270: N/A | BP270: N/A | BQ270: N/A | BR270: N/A | BS270: N/A | BT270: N/A | BU270: N/A | BV270: N/A | BW270: N/A
BA271: Awareness of menstruation before menarche | BB271: Yes | BC271: N/A | BD271: N/A | BE271: N/A | BF271: N/A | BG271: N/A | BH271: N/A | BI271: N/A | BJ271: N/A | BK271: N/A | BL271: N/A | BM271: N/A | BN271: N/A | BO271: N/A | BP271: N/A | BQ271: N/A | BR271: N/A | BS271: N/A | BT271: N/A | BU271: N/A | BV271: N/A | BW271: N/A
BB272: No | BC272: N/A | BD272: N/A | BE272: N/A | BF272: N/A | BG272: N/A | BH272: N/A | BI272: N/A | BJ272: N/A | BK272: N/A | BL272: N/A | BM272: N/A | BN272: N/A | BO272: N/A | BP272: N/A | BQ272: N/A | BR272: N/A | BS272: N/A | BT272: N/A | BU272: N/A | BV272: N/A | BW272: N/A
BB273: DK/not sure/missing | BC273: N/A | BD273: N/A | BE273: N/A | BF273: N/A | BG273: N/A | BH273: N/A | BI273: N/A | BJ273: N/A | BK273: N/A | BL273: N/A | BM273: N/A | BN273: N/A | BO273: N/A | BP273: N/A | BQ273: N/A | BR273: N/A | BS273: N/A | BT273: N/A | BU273: N/A | BV273: N/A | BW273: N/A
BA274: Participation in (all) activities during menstruation | BB274: Yes | BC274: N/A | BD274: N/A | BE274: N/A | BF274: N/A | BG274: N/A | BH274: N/A | BI274: N/A | BJ274: N/A | BK274: N/A | BL274: N/A | BM274: N/A | BN274: N/A | BO274: N/A | BP274: N/A | BQ274: N/A | BR274: N/A | BS274: N/A | BT274: N/A | BU274: N/A | BV274: N/A | BW274: N/A
BB275: No | BC275: N/A | BD275: N/A | BE275: N/A | BF275: N/A | BG275: N/A | BH275: N/A | BI275: N/A | BJ275: N/A | BK275: N/A | BL275: N/A | BM275: N/A | BN275: N/A | BO275: N/A | BP275: N/A | BQ275: N/A | BR275: N/A | BS275: N/A | BT275: N/A | BU275: N/A | BV275: N/A | BW275: N/A
BB276: DK/not sure/missing/no such activity | BC276: N/A | BD276: N/A | BE276: N/A | BF276: N/A | BG276: N/A | BH276: N/A | BI276: N/A | BJ276: N/A | BK276: N/A | BL276: N/A | BM276: N/A | BN276: N/A | BO276: N/A | BP276: N/A | BQ276: N/A | BR276: N/A | BS276: N/A | BT276: N/A | BU276: N/A | BV276: N/A | BW276: N/A
BA277: Participation in specific activities during menstruation | BB277: Did not go to school (amongst those usually attending school) | BC277: N/A | BD277: N/A | BE277: N/A | BF277: N/A | BG277: N/A | BH277: N/A | BI277: N/A | BJ277: N/A | BK277: N/A | BL277: N/A | BM277: N/A | BN277: N/A | BO277: N/A | BP277: N/A | BQ277: N/A | BR277: N/A | BS277: N/A | BT277: N/A | BU277: N/A | BV277: N/A | BW277: N/A
BB278: Did not go to work (amongst those who usually work) | BC278: N/A | BD278: N/A | BE278: N/A | BF278: N/A | BG278: N/A | BH278: N/A | BI278: N/A | BJ278: N/A | BK278: N/A | BL278: N/A | BM278: N/A | BN278: N/A | BO278: N/A | BP278: N/A | BQ278: N/A | BR278: N/A | BS278: N/A | BT278: N/A | BU278: N/A | BV278: N/A | BW278: N/A
BB279: Did not participate in social activities | BC279: N/A | BD279: N/A | BE279: N/A | BF279: N/A | BG279: N/A | BH279: N/A | BI279: N/A | BJ279: N/A | BK279: N/A | BL279: N/A | BM279: N/A | BN279: N/A | BO279: N/A | BP279: N/A | BQ279: N/A | BR279: N/A | BS279: N/A | BT279: N/A | BU279: N/A | BV279: N/A | BW279: N/A
BB280: Did not cook food | BC280: N/A | BD280: N/A | BE280: N/A | BF280: N/A | BG280: N/A | BH280: N/A | BI280: N/A | BJ280: N/A | BK280: N/A | BL280: N/A | BM280: N/A | BN280: N/A | BO280: N/A | BP280: N/A | BQ280: N/A | BR280: N/A | BS280: N/A | BT280: N/A | BU280: N/A | BV280: N/A | BW280: N/A
BB281: Did not eat with others | BC281: N/A | BD281: N/A | BE281: N/A | BF281: N/A | BG281: N/A | BH281: N/A | BI281: N/A | BJ281: N/A | BK281: N/A | BL281: N/A | BM281: N/A | BN281: N/A | BO281: N/A | BP281: N/A | BQ281: N/A | BR281: N/A | BS281: N/A | BT281: N/A | BU281: N/A | BV281: N/A | BW281: N/A
BB282: Did not bathe in regular place | BC282: N/A | BD282: N/A | BE282: N/A | BF282: N/A | BG282: N/A | BH282: N/A | BI282: N/A | BJ282: N/A | BK282: N/A | BL282: N/A | BM282: N/A | BN282: N/A | BO282: N/A | BP282: N/A | BQ282: N/A | BR282: N/A | BS282: N/A | BT282: N/A | BU282: N/A | BV282: N/A | BW282: N/A
BB283: Did not participate in other activities | BC283: N/A | BD283: N/A | BE283: N/A | BF283: N/A | BG283: N/A | BH283: N/A | BI283: N/A | BJ283: N/A | BK283: N/A | BL283: N/A | BM283: N/A | BN283: N/A | BO283: N/A | BP283: N/A | BQ283: N/A | BR283: N/A | BS283: N/A | BT283: N/A | BU283: N/A | BV283: N/A | BW283: N/A
BB284: DK/not sure/missing/no such activity | BC284: N/A | BD284: N/A | BE284: N/A | BF284: N/A | BG284: N/A | BH284: N/A | BI284: N/A | BJ284: N/A | BK284: N/A | BL284: N/A | BM284: N/A | BN284: N/A | BO284: N/A | BP284: N/A | BQ284: N/A | BR284: N/A | BS284: N/A | BT284: N/A | BU284: N/A | BV284: N/A | BW284: N/A
BA339: Raw numbers of respondents: | BB339: Basic water, sanitation and hygiene | BC339: NATIONAL wealth index quintile | BH339: URBAN wealth index quintile | BM339: RURAL wealth index quintile | BR339: SUB-REGIONS:
BA340: WatSan data, raw numbers (weighted) | BC340: Poorest | BD340: Poor | BE340: Middle | BF340: Rich | BG340: Richest | BH340: Poorest | BI340: Poor | BJ340: Middle | BK340: Rich | BL340: Richest | BM340: Poorest | BN340: Poor | BO340: Middle | BP340: Rich | BQ340: Richest | BR340: Centrale | BS340: Kara | BT340: Lomé‚ | BU340: Maritime | BV340: Plateaux | BW340: Savanes
BA341: Use of Basic Water Sanitation and Hygiene | BB341: Yes | BC341: N/A | BD341: N/A | BE341: N/A | BF341: N/A | BG341: N/A | BH341: N/A | BI341: N/A | BJ341: N/A | BK341: N/A | BL341: N/A | BM341: N/A | BN341: N/A | BO341: N/A | BP341: N/A | BQ341: N/A | BR341: N/A | BS341: N/A | BT341: N/A | BU341: N/A | BV341: N/A | BW341: N/A
BB342: No | BC342: N/A | BD342: N/A | BE342: N/A | BF342: N/A | BG342: N/A | BH342: N/A | BI342: N/A | BJ342: N/A | BK342: N/A | BL342: N/A | BM342: N/A | BN342: N/A | BO342: N/A | BP342: N/A | BQ342: N/A | BR342: N/A | BS342: N/A | BT342: N/A | BU342: N/A | BV342: N/A | BW342: N/A
BA343: Use of Basic Water and Sanitation | BB343: Yes | BC343: N/A | BD343: N/A | BE343: N/A | BF343: N/A | BG343: N/A | BH343: N/A | BI343: N/A | BJ343: N/A | BK343: N/A | BL343: N/A | BM343: N/A | BN343: N/A | BO343: N/A | BP343: N/A | BQ343: N/A | BR343: N/A | BS343: N/A | BT343: N/A | BU343: N/A | BV343: N/A | BW343: N/A
BB344: No | BC344: N/A | BD344: N/A | BE344: N/A | BF344: N/A | BG344: N/A | BH344: N/A | BI344: N/A | BJ344: N/A | BK344: N/A | BL344: N/A | BM344: N/A | BN344: N/A | BO344: N/A | BP344: N/A | BQ344: N/A | BR344: N/A | BS344: N/A | BT344: N/A | BU344: N/A | BV344: N/A | BW344: N/A
BA345: Use of Basic Water and Hygiene | BB345: Yes | BC345: N/A | BD345: N/A | BE345: N/A | BF345: N/A | BG345: N/A | BH345: N/A | BI345: N/A | BJ345: N/A | BK345: N/A | BL345: N/A | BM345: N/A | BN345: N/A | BO345: N/A | BP345: N/A | BQ345: N/A | BR345: N/A | BS345: N/A | BT345: N/A | BU345: N/A | BV345: N/A | BW345: N/A
BB346: No | BC346: N/A | BD346: N/A | BE346: N/A | BF346: N/A | BG346: N/A | BH346: N/A | BI346: N/A | BJ346: N/A | BK346: N/A | BL346: N/A | BM346: N/A | BN346: N/A | BO346: N/A | BP346: N/A | BQ346: N/A | BR346: N/A | BS346: N/A | BT346: N/A | BU346: N/A | BV346: N/A | BW346: N/A
BA347: Use of Basic Sanitation and Hygiene | BB347: Yes | BC347: N/A | BD347: N/A | BE347: N/A | BF347: N/A | BG347: N/A | BH347: N/A | BI347: N/A | BJ347: N/A | BK347: N/A | BL347: N/A | BM347: N/A | BN347: N/A | BO347: N/A | BP347: N/A | BQ347: N/A | BR347: N/A | BS347: N/A | BT347: N/A | BU347: N/A | BV347: N/A | BW347: N/A
BB348: No | BC348: N/A | BD348: N/A | BE348: N/A | BF348: N/A | BG348: N/A | BH348: N/A | BI348: N/A | BJ348: N/A | BK348: N/A | BL348: N/A | BM348: N/A | BN348: N/A | BO348: N/A | BP348: N/A | BQ348: N/A | BR348: N/A | BS348: N/A | BT348: N/A | BU348: N/A | BV348: N/A | BW348: N/A
BA349: Use of Basic Water | BB349: Yes | BC349: N/A | BD349: N/A | BE349: N/A | BF349: N/A | BG349: N/A | BH349: N/A | BI349: N/A | BJ349: N/A | BK349: N/A | BL349: N/A | BM349: N/A | BN349: N/A | BO349: N/A | BP349: N/A | BQ349: N/A | BR349: N/A | BS349: N/A | BT349: N/A | BU349: N/A | BV349: N/A | BW349: N/A
BB350: No | BC350: N/A | BD350: N/A | BE350: N/A | BF350: N/A | BG350: N/A | BH350: N/A | BI350: N/A | BJ350: N/A | BK350: N/A | BL350: N/A | BM350: N/A | BN350: N/A | BO350: N/A | BP350: N/A | BQ350: N/A | BR350: N/A | BS350: N/A | BT350: N/A | BU350: N/A | BV350: N/A | BW350: N/A
BA351: Use of Basic Sanitation | BB351: Yes | BC351: N/A | BD351: N/A | BE351: N/A | BF351: N/A | BG351: N/A | BH351: N/A | BI351: N/A | BJ351: N/A | BK351: N/A | BL351: N/A | BM351: N/A | BN351: N/A | BO351: N/A | BP351: N/A | BQ351: N/A | BR351: N/A | BS351: N/A | BT351: N/A | BU351: N/A | BV351: N/A | BW351: N/A
BB352: No | BC352: N/A | BD352: N/A | BE352: N/A | BF352: N/A | BG352: N/A | BH352: N/A | BI352: N/A | BJ352: N/A | BK352: N/A | BL352: N/A | BM352: N/A | BN352: N/A | BO352: N/A | BP352: N/A | BQ352: N/A | BR352: N/A | BS352: N/A | BT352: N/A | BU352: N/A | BV352: N/A | BW352: N/A
BA353: Access to Basic Hygiene | BB353: Yes | BC353: N/A | BD353: N/A | BE353: N/A | BF353: N/A | BG353: N/A | BH353: N/A | BI353: N/A | BJ353: N/A | BK353: N/A | BL353: N/A | BM353: N/A | BN353: N/A | BO353: N/A | BP353: N/A | BQ353: N/A | BR353: N/A | BS353: N/A | BT353: N/A | BU353: N/A | BV353: N/A | BW353: N/A
BB354: No | BC354: N/A | BD354: N/A | BE354: N/A | BF354: N/A | BG354: N/A | BH354: N/A | BI354: N/A | BJ354: N/A | BK354: N/A | BL354: N/A | BM354: N/A | BN354: N/A | BO354: N/A | BP354: N/A | BQ354: N/A | BR354: N/A | BS354: N/A | BT354: N/A | BU354: N/A | BV354: N/A | BW354: N/A
C399: INITIAL (national) Wealth Index | H399: URBAN Wealth Index | M399: RURAL Wealth Index
C400: Component Matrix | H400: Component Matrix | M400: Component Matrix
E401: Component | J401: Component | O401: Component
B402: Note: The INITIAL (national) Wealth Index is based on the first component of the Principal Component Analysis (PCA) which has been obtained at national level. The final national-level (NATIONAL) Wealth Index is based on the URBAN and RURAL specific wealth indexes. Regression procedures are used to establish the relationships between the two sets of scores (urban and rural) and the initial (national) wealth factors. This allows best use of the available information for each area and a better precision of the FINAL (NATIONAL) Wealth Index. For dependency reasons, all WASH variables (contained in the generic MICS and DHS scripts) have been excluded from the sets of asset variables used in the PCAs. The PCA can extracts as many components as there are asset variables in the input. Only the first of the components is used to represent the Wealth Index. The scores represent the weights of the asset variables on the Wealth Index (correlations between the variables and the component). The communalities are the proportion of each variable's variance that can be explained by the component. Proportion of explained variance is the part of the model's total variance that is explained by the component. For more information on the procedure used: The DHS Wealth Index, DHS Comparative Reports No. 6, Shea Oscar Rutstein, Kiersten Johnson, ORC Macro International Inc., 2004. The DHS Wealth Index: Approaches for Rural and Urban Areas, Shea O. Rutstein, ORC Macro International Inc., 2008. MICS Methodological Paper No. 4, Review of options for reporting water, sanitation and hygiene coverage by wealth quintile, UNICEF, 2016. | E402: 1 | J402: 1 | O402: 1
C403: Has mud wall | E403: -0.7818771077 | H403: Has stone with mud wall | J403: 0.7367917043 | M403: Has jute roof | O403: -0.7609069358
C404: Has stone with mud wall | E404: 0.7802504626 | H404: Has mud wall | J404: -0.6822622352 | M404: Has corrugated iron roof | O404: 0.7239330147
C405: Has jute roof | E405: -0.7243014788 | H405: Household has: electricity | J405: 0.6379950891 | M405: Has mud wall | O405: -0.713836821
C406: Household has: electricity | E406: 0.6509907684 | H406: Household has: television | J406: 0.5737187308 | M406: Has earth/sand floor | O406: -0.6912535859
C407: Has earth/sand floor | E407: -0.645898855 | H407: Has earth/sand floor | J407: -0.5186339162 | M407: Has cement floor | O407: 0.6900149439
C408: Has cement floor | E408: 0.5857370581 | H408: Household has: refrigerator | J408: 0.4842813306 | M408: Has stone with mud wall | O408: 0.620081922
C409: Has corrugated iron roof | E409: 0.5666657645 | H409: Has jute roof | J409: -0.456224855 | M409: Household has: electricity | O409: 0.3562441236
C410: Household has: television | E410: 0.564831487 | H410: Household member owns: car/truck | J410: 0.4019854896 | M410: Household has: television | O410: 0.3224127987
C411: Household has: refrigerator | E411: 0.4246009379 | H411: Has wood roof | J411: 0.3457488109 | M411: Has uncovered adobe wall | O411: 0.3050357852
C412: Household member owns: motorcycle/scooter | E412: 0.36076855 | H412: Household member owns: motorcycle/scooter | J412: 0.3439849484 | M412: Household member owns: motorcycle/scooter | O412: 0.2509474459
C413: Household member owns: car/truck | E413: 0.3195290979 | H413: Household has: fan | J413: 0.3283852511 | M413: Household has: refrigerator | O413: 0.2437023208
C414: Has wood roof | E414: 0.2596100488 | H414: Has cement floor | J414: 0.3044061093 | M414: Has rustic mat roof | O414: 0.1672845013
C415: Household has: radio | E415: 0.2575453118 | H415: Has ceramic tile floor | J415: 0.2701652337 | M415: Has wood roof | O415: 0.1485438808
C416: Household has: fan | E416: 0.2248728134 | H416: Has rustic mat roof | J416: 0.2597441182 | M416: Household has: radio | O416: 0.1446146628
C417: Has rustic mat roof | E417: 0.2222677874 | H417: Has uncovered adobe wall | J417: -0.1701063741 | M417: Household member owns: car/truck | O417: 0.1390961972
C418: Household member owns: bicycle | E418: -0.1917514823 | H418: Household has: radio | J418: 0.155992572 | M418: Has dung roof | O418: -0.08153504424
C419: Has ceramic tile floor | E419: 0.1870871292 | H419: Has bamboo with mud wall | J419: -0.137800855 | M419: Household member owns: bicycle | O419: -0.07747840497
... 116 more rows

Sheet MICS06
A2: =A1026 -> Togo
A3: =A1034 -> 2006
A4: Use of drinking water sources
A5: by wealth quintile and sub-national region
A6: Notes:
A7: WHO/UNICEF JMP customised wealth index excludes water,
A8: sanitation and hygiene assets.
A9: Survey used for analysis: | B9: =A1025 -> MICS06
A10: =B1028 -> 
A11: =B1027 -> 
A14: Use of drinking water sources | C14: NATIONAL wealth index quintile | H14: URBAN wealth index quintile | M14: RURAL wealth index quintile | R14: SUB-REGIONS: | BA14: Raw numbers of respondents: | BB14: Use of drinking water sources | BC14: NATIONAL wealth index quintile | BH14: URBAN wealth index quintile | BM14: RURAL wealth index quintile | BR14: SUB-REGIONS:
A15: Weighted percentage (used in graphs) | C15: Poorest | D15: Poor | E15: Middle | F15: Rich | G15: Richest | H15: Poorest | I15: Poor | J15: Middle | K15: Rich | L15: Richest | M15: Poorest | N15: Poor | O15: Middle | P15: Rich | Q15: Richest | R15: Centrale | S15: Kara | T15: Lomé | U15: Maritime (sans Lomé) | V15: Plateaux | W15: Savanes | BA15: Water data, raw numbers (weighted) | BC15: Poorest | BD15: Poor | BE15: Middle | BF15: Rich | BG15: Richest | BH15: Poorest | BI15: Poor | BJ15: Middle | BK15: Rich | BL15: Richest | BM15: Poorest | BN15: Poor | BO15: Middle | BP15: Rich | BQ15: Richest | BR15: Centrale | BS15: Kara | BT15: Lomé | BU15: Maritime (sans Lomé) | BV15: Plateaux | BW15: Savanes
A16: Water | B16: Improved | C16: 33.28428454 | D16: 39.89058926 | E16: 57.33714648 | F16: 79.93065945 | G16: 93.07288743 | H16: 78.43373391 | I16: 89.35333497 | J16: 91.2943978 | K16: 93.97702771 | L16: 95.30538225 | M16: 32.22328941 | N16: 33.63293885 | O16: 39.95215102 | P16: 50.1673662 | Q16: 57.35859983 | R16: 60.04486975 | S16: 63.87543129 | T16: 92.1620866 | U16: 45.56206869 | V16: 42.07007576 | W16: 48.03370496 | BA16: Water | BB16: Improved | BC16: N/A | BD16: N/A | BE16: N/A | BF16: N/A | BG16: N/A | BH16: N/A | BI16: N/A | BJ16: N/A | BK16: N/A | BL16: N/A | BM16: N/A | BN16: N/A | BO16: N/A | BP16: N/A | BQ16: N/A | BR16: N/A | BS16: N/A | BT16: N/A | BU16: N/A | BV16: N/A | BW16: N/A
B17: Not Improved | C17: 66.71571546 | D17: 60.10941074 | E17: 42.66285352 | F17: 20.06934055 | G17: 6.927112567 | H17: 21.56626609 | I17: 10.64666503 | J17: 8.705602205 | K17: 6.022972285 | L17: 4.694617751 | M17: 67.77671059 | N17: 66.36706115 | O17: 60.04784898 | P17: 49.8326338 | Q17: 42.64140017 | R17: 39.95513025 | S17: 36.12456871 | T17: 7.837913404 | U17: 54.43793131 | V17: 57.92992424 | W17: 51.96629504 | BB17: Not Improved | BC17: N/A | BD17: N/A | BE17: N/A | BF17: N/A | BG17: N/A | BH17: N/A | BI17: N/A | BJ17: N/A | BK17: N/A | BL17: N/A | BM17: N/A | BN17: N/A | BO17: N/A | BP17: N/A | BQ17: N/A | BR17: N/A | BS17: N/A | BT17: N/A | BU17: N/A | BV17: N/A | BW17: N/A
A18: Water ladder | B18: Basic | C18: 25.49615505 | D18: 31.76677535 | E18: 51.82010574 | F18: 74.66502554 | G18: 90.56469879 | H18: 73.95407716 | I18: 84.76013083 | J18: 88.91354226 | K18: 91.88785522 | L18: 93.05022301 | M18: 22.96166643 | N18: 26.4684222 | O18: 31.81621877 | P18: 44.72939067 | Q18: 49.81622173 | R18: 52.61849031 | S18: 52.01222854 | T18: 89.25626901 | U18: 41.4709868 | V18: 37.78629853 | W18: 36.83438118 | BA18: Water ladder | BB18: Basic | BC18: N/A | BD18: N/A | BE18: N/A | BF18: N/A | BG18: N/A | BH18: N/A | BI18: N/A | BJ18: N/A | BK18: N/A | BL18: N/A | BM18: N/A | BN18: N/A | BO18: N/A | BP18: N/A | BQ18: N/A | BR18: N/A | BS18: N/A | BT18: N/A | BU18: N/A | BV18: N/A | BW18: N/A
B19: Limited | C19: 7.78812949 | D19: 8.12381391 | E19: 5.517040743 | F19: 5.253965873 | G19: 2.508188639 | H19: 4.479656748 | I19: 4.593204146 | J19: 2.370303725 | K19: 2.089172497 | L19: 2.255159234 | M19: 9.261622985 | N19: 7.16451665 | O19: 8.135932252 | P19: 5.437975531 | Q19: 7.534310957 | R19: 7.42637944 | S19: 11.85619508 | T19: 2.902988887 | U19: 4.091081886 | V19: 4.28377723 | W19: 11.19932378 | BB19: Limited | BC19: N/A | BD19: N/A | BE19: N/A | BF19: N/A | BG19: N/A | BH19: N/A | BI19: N/A | BJ19: N/A | BK19: N/A | BL19: N/A | BM19: N/A | BN19: N/A | BO19: N/A | BP19: N/A | BQ19: N/A | BR19: N/A | BS19: N/A | BT19: N/A | BU19: N/A | BV19: N/A | BW19: N/A
B20: Unimproved | C20: 32.32829388 | D20: 31.63635877 | E20: 25.86612765 | F20: 17.29702838 | G20: 6.771146212 | H20: 19.33339602 | I20: 10.60501823 | J20: 8.716154012 | K20: 6.022972285 | L20: 4.694617751 | M20: 29.99277016 | N20: 36.01596096 | O20: 30.55008927 | P20: 27.56333596 | Q20: 29.94704764 | R20: 29.43532728 | S20: 16.25584923 | T20: 7.828325911 | U20: 44.8491848 | V20: 10.19244884 | W20: 34.59228838 | BB20: Unimproved | BC20: N/A | BD20: N/A | BE20: N/A | BF20: N/A | BG20: N/A | BH20: N/A | BI20: N/A | BJ20: N/A | BK20: N/A | BL20: N/A | BM20: N/A | BN20: N/A | BO20: N/A | BP20: N/A | BQ20: N/A | BR20: N/A | BS20: N/A | BT20: N/A | BU20: N/A | BV20: N/A | BW20: N/A
B21: Surface water | C21: 34.38742158 | D21: 28.47305197 | E21: 16.79672587 | F21: 2.783980206 | G21: 0.1559663553 | H21: 2.23287007 | I21: 0.0416467978 | J21: 0 | K21: 0 | L21: 0 | M21: 37.78394043 | N21: 30.3511002 | O21: 29.49775972 | P21: 22.26929784 | Q21: 12.70241968 | R21: 10.51980297 | S21: 19.87572716 | T21: 0.01241619137 | U21: 9.588746513 | V21: 47.7374754 | W21: 17.37400666 | BB21: Surface water | BC21: N/A | BD21: N/A | BE21: N/A | BF21: N/A | BG21: N/A | BH21: N/A | BI21: N/A | BJ21: N/A | BK21: N/A | BL21: N/A | BM21: N/A | BN21: N/A | BO21: N/A | BP21: N/A | BQ21: N/A | BR21: N/A | BS21: N/A | BT21: N/A | BU21: N/A | BV21: N/A | BW21: N/A
A22: Improved water point at more than 30 minutes | B22: Yes | C22: 23.39881898 | D22: 20.36523917 | E22: 9.622105531 | F22: 6.574114338 | G22: 2.694864969 | H22: 5.711390399 | I22: 5.140495481 | J22: 2.596629994 | K22: 2.22306722 | L22: 2.366245412 | M22: 28.74201596 | N22: 21.3020833 | O22: 20.36419077 | P22: 10.83966719 | Q22: 13.137299 | R22: 12.36804988 | S22: 18.56346909 | T22: 3.149969903 | U22: 8.979139893 | V22: 10.18248043 | W22: 23.31555268 | BA22: Improved water point at more than 30 minutes | BB22: Yes | BC22: N/A | BD22: N/A | BE22: N/A | BF22: N/A | BG22: N/A | BH22: N/A | BI22: N/A | BJ22: N/A | BK22: N/A | BL22: N/A | BM22: N/A | BN22: N/A | BO22: N/A | BP22: N/A | BQ22: N/A | BR22: N/A | BS22: N/A | BT22: N/A | BU22: N/A | BV22: N/A | BW22: N/A
B23: No | C23: 76.60118102 | D23: 79.63476083 | E23: 90.37789447 | F23: 93.42588566 | G23: 97.30513503 | H23: 94.2886096 | I23: 94.85950452 | J23: 97.40337001 | K23: 97.77693278 | L23: 97.63375459 | M23: 71.25798404 | N23: 78.6979167 | O23: 79.63580923 | P23: 89.16033281 | Q23: 86.862701 | R23: 87.63195012 | S23: 81.43653091 | T23: 96.8500301 | U23: 91.02086011 | V23: 89.81751957 | W23: 76.68444732 | BB23: No | BC23: N/A | BD23: N/A | BE23: N/A | BF23: N/A | BG23: N/A | BH23: N/A | BI23: N/A | BJ23: N/A | BK23: N/A | BL23: N/A | BM23: N/A | BN23: N/A | BO23: N/A | BP23: N/A | BQ23: N/A | BR23: N/A | BS23: N/A | BT23: N/A | BU23: N/A | BV23: N/A | BW23: N/A
A24: Manually calculated ratios | B24: Improved wells
B25: Improved springs
B26: Other
C27: NATIONAL wealth index quintile | H27: URBAN wealth index quintile | M27: RURAL wealth index quintile | R27: SUB-REGIONS: | BA27: Raw numbers of respondents: | BB27: Use of drinking water sources | BC27: NATIONAL wealth index quintile | BH27: URBAN wealth index quintile | BM27: RURAL wealth index quintile | BR27: SUB-REGIONS:
A28: Percentage based on weighted population | C28: Poorest | D28: Poor | E28: Middle | F28: Rich | G28: Richest | H28: Poorest | I28: Poor | J28: Middle | K28: Rich | L28: Richest | M28: Poorest | N28: Poor | O28: Middle | P28: Rich | Q28: Richest | R28: Centrale | S28: Kara | T28: Lomé | U28: Maritime (sans Lomé) | V28: Plateaux | W28: Savanes | BA28: Water data, raw numbers (weighted) | BC28: Poorest | BD28: Poor | BE28: Middle | BF28: Rich | BG28: Richest | BH28: Poorest | BI28: Poor | BJ28: Middle | BK28: Rich | BL28: Richest | BM28: Poorest | BN28: Poor | BO28: Middle | BP28: Rich | BQ28: Richest | BR28: Centrale | BS28: Kara | BT28: Lomé | BU28: Maritime (sans Lomé) | BV28: Plateaux | BW28: Savanes
A29: Piped water | B29: Yes | C29: 10.43693018 | D29: 14.36745355 | E29: 35.20222932 | F29: 61.54824711 | G29: 79.73663913 | H29: 57.86608624 | I29: 73.42135048 | J29: 77.65604624 | K29: 82.03223091 | L29: 82.59028457 | M29: 8.516714432 | N29: 10.27595883 | O29: 14.27662275 | P29: 25.42228429 | Q29: 35.54129764 | R29: 24.35683985 | S29: 26.26278541 | T29: 78.00754256 | U29: 34.02535831 | V29: 27.46069091 | W29: 15.4008933 | BA29: Piped water | BB29: Yes | BC29: N/A | BD29: N/A | BE29: N/A | BF29: N/A | BG29: N/A | BH29: N/A | BI29: N/A | BJ29: N/A | BK29: N/A | BL29: N/A | BM29: N/A | BN29: N/A | BO29: N/A | BP29: N/A | BQ29: N/A | BR29: N/A | BS29: N/A | BT29: N/A | BU29: N/A | BV29: N/A | BW29: N/A
B30: No | C30: 89.56306982 | D30: 85.63254645 | E30: 64.79777068 | F30: 38.45175289 | G30: 20.26336087 | H30: 42.13391376 | I30: 26.57864952 | J30: 22.34395376 | K30: 17.96776909 | L30: 17.40971543 | M30: 91.48328557 | N30: 89.72404117 | O30: 85.72337725 | P30: 74.57771571 | Q30: 64.45870236 | R30: 75.64316015 | S30: 73.73721459 | T30: 21.99245744 | U30: 65.97464169 | V30: 72.53930909 | W30: 84.5991067 | BB30: No | BC30: N/A | BD30: N/A | BE30: N/A | BF30: N/A | BG30: N/A | BH30: N/A | BI30: N/A | BJ30: N/A | BK30: N/A | BL30: N/A | BM30: N/A | BN30: N/A | BO30: N/A | BP30: N/A | BQ30: N/A | BR30: N/A | BS30: N/A | BT30: N/A | BU30: N/A | BV30: N/A | BW30: N/A
A31: Piped water on premises | B31: Yes | C31: 0.08277191134 | D31: 0.03250148153 | E31: 0.8346671028 | F31: 3.54035521 | G31: 22.91969159 | H31: 1.136072297 | I31: 3.326575325 | J31: 9.094002875 | K31: 12.86285491 | L31: 40.89447335 | M31: 0 | N31: 0.1342808436 | O31: 0.05276361199 | P31: 0.3472044137 | Q31: 1.985242831 | R31: 2.793008955 | S31: 3.535571696 | T31: 16.24951289 | U31: 1.142896056 | V31: 1.608341451 | W31: 0.404144209 | BA31: Piped water on premises | BB31: Yes | BC31: N/A | BD31: N/A | BE31: N/A | BF31: N/A | BG31: N/A | BH31: N/A | BI31: N/A | BJ31: N/A | BK31: N/A | BL31: N/A | BM31: N/A | BN31: N/A | BO31: N/A | BP31: N/A | BQ31: N/A | BR31: N/A | BS31: N/A | BT31: N/A | BU31: N/A | BV31: N/A | BW31: N/A
B32: No | C32: 99.91722809 | D32: 99.96749852 | E32: 99.1653329 | F32: 96.45964479 | G32: 77.08030841 | H32: 98.8639277 | I32: 96.67342467 | J32: 90.90599713 | K32: 87.13714509 | L32: 59.10552665 | M32: 100 | N32: 99.86571916 | O32: 99.94723639 | P32: 99.65279559 | Q32: 98.01475717 | R32: 97.20699104 | S32: 96.4644283 | T32: 83.75048711 | U32: 98.85710394 | V32: 98.39165855 | W32: 99.59585579 | BB32: No | BC32: N/A | BD32: N/A | BE32: N/A | BF32: N/A | BG32: N/A | BH32: N/A | BI32: N/A | BJ32: N/A | BK32: N/A | BL32: N/A | BM32: N/A | BN32: N/A | BO32: N/A | BP32: N/A | BQ32: N/A | BR32: N/A | BS32: N/A | BT32: N/A | BU32: N/A | BV32: N/A | BW32: N/A
A33: Piped water into dwelling | B33: Yes | C33: N/A | D33: N/A | E33: N/A | F33: N/A | G33: N/A | H33: N/A | I33: N/A | J33: N/A | K33: N/A | L33: N/A | M33: N/A | N33: N/A | O33: N/A | P33: N/A | Q33: N/A | R33: N/A | S33: N/A | T33: N/A | U33: N/A | V33: N/A | W33: N/A | BA33: Piped water into dwelling | BB33: Yes | BC33: N/A | BD33: N/A | BE33: N/A | BF33: N/A | BG33: N/A | BH33: N/A | BI33: N/A | BJ33: N/A | BK33: N/A | BL33: N/A | BM33: N/A | BN33: N/A | BO33: N/A | BP33: N/A | BQ33: N/A | BR33: N/A | BS33: N/A | BT33: N/A | BU33: N/A | BV33: N/A | BW33: N/A
B34: No | C34: N/A | D34: N/A | E34: N/A | F34: N/A | G34: N/A | H34: N/A | I34: N/A | J34: N/A | K34: N/A | L34: N/A | M34: N/A | N34: N/A | O34: N/A | P34: N/A | Q34: N/A | R34: N/A | S34: N/A | T34: N/A | U34: N/A | V34: N/A | W34: N/A | BB34: No | BC34: N/A | BD34: N/A | BE34: N/A | BF34: N/A | BG34: N/A | BH34: N/A | BI34: N/A | BJ34: N/A | BK34: N/A | BL34: N/A | BM34: N/A | BN34: N/A | BO34: N/A | BP34: N/A | BQ34: N/A | BR34: N/A | BS34: N/A | BT34: N/A | BU34: N/A | BV34: N/A | BW34: N/A
A35: Water source on premises | B35: Yes | C35: 5.270740641 | D35: 7.452087771 | E35: 14.97808359 | F35: 22.763196 | G35: 35.91595214 | H35: 15.81605546 | I35: 17.89298688 | J35: 21.37888822 | K35: 25.14415406 | L35: 53.91010824 | M35: 3.593405528 | N35: 7.821203086 | O35: 6.903850086 | P35: 11.46371269 | Q35: 26.80753804 | R35: 16.96926931 | S35: 7.746857505 | T35: 27.08744611 | U35: 20.93711248 | V35: 12.8616791 | W35: 4.781868403 | BA35: Water source on premises | BB35: Yes | BC35: N/A | BD35: N/A | BE35: N/A | BF35: N/A | BG35: N/A | BH35: N/A | BI35: N/A | BJ35: N/A | BK35: N/A | BL35: N/A | BM35: N/A | BN35: N/A | BO35: N/A | BP35: N/A | BQ35: N/A | BR35: N/A | BS35: N/A | BT35: N/A | BU35: N/A | BV35: N/A | BW35: N/A
B36: No | C36: 94.72925936 | D36: 92.54791223 | E36: 85.02191641 | F36: 77.236804 | G36: 64.08404786 | H36: 84.18394454 | I36: 82.10701312 | J36: 78.62111178 | K36: 74.85584594 | L36: 46.08989176 | M36: 96.40659447 | N36: 92.17879691 | O36: 93.09614991 | P36: 88.53628731 | Q36: 73.19246196 | R36: 83.03073069 | S36: 92.25314249 | T36: 72.91255389 | U36: 79.06288752 | V36: 87.1383209 | W36: 95.2181316 | BB36: No | BC36: N/A | BD36: N/A | BE36: N/A | BF36: N/A | BG36: N/A | BH36: N/A | BI36: N/A | BJ36: N/A | BK36: N/A | BL36: N/A | BM36: N/A | BN36: N/A | BO36: N/A | BP36: N/A | BQ36: N/A | BR36: N/A | BS36: N/A | BT36: N/A | BU36: N/A | BV36: N/A | BW36: N/A
A37: Improved Water source on premises | B37: Yes | C37: 4.889720845 | D37: 6.345268827 | E37: 14.39758636 | F37: 15.16772364 | G37: 32.90191717 | H37: 11.01436176 | I37: 10.3482101 | J37: 15.50734591 | K37: 21.01147663 | L37: 51.86723134 | M37: 4.378078915 | N37: 4.79263671 | O37: 6.588243791 | P37: 12.10943522 | Q37: 25.6291073 | R37: 17.31203321 | S37: 9.841348122 | T37: 22.61892252 | U37: 21.87444538 | V37: 18.57537712 | W37: 3.10411354 | BA37: Improved water source on premises | BB37: Yes | BC37: N/A | BD37: N/A | BE37: N/A | BF37: N/A | BG37: N/A | BH37: N/A | BI37: N/A | BJ37: N/A | BK37: N/A | BL37: N/A | BM37: N/A | BN37: N/A | BO37: N/A | BP37: N/A | BQ37: N/A | BR37: N/A | BS37: N/A | BT37: N/A | BU37: N/A | BV37: N/A | BW37: N/A
B38: No | C38: 95.11027916 | D38: 93.65473117 | E38: 85.60241364 | F38: 84.83227636 | G38: 67.09808283 | H38: 88.98563824 | I38: 89.6517899 | J38: 84.49265409 | K38: 78.98852337 | L38: 48.13276866 | M38: 95.62192108 | N38: 95.20736329 | O38: 93.41175621 | P38: 87.89056478 | Q38: 74.3708927 | R38: 82.68796679 | S38: 90.15865188 | T38: 77.38107748 | U38: 78.12555462 | V38: 81.42462288 | W38: 96.89588646 | BB38: No | BC38: N/A | BD38: N/A | BE38: N/A | BF38: N/A | BG38: N/A | BH38: N/A | BI38: N/A | BJ38: N/A | BK38: N/A | BL38: N/A | BM38: N/A | BN38: N/A | BO38: N/A | BP38: N/A | BQ38: N/A | BR38: N/A | BS38: N/A | BT38: N/A | BU38: N/A | BV38: N/A | BW38: N/A
A39: Piped water on premises available when needed | B39: Yes | C39: N/A | D39: N/A | E39: N/A | F39: N/A | G39: N/A | H39: N/A | I39: N/A | J39: N/A | K39: N/A | L39: N/A | M39: N/A | N39: N/A | O39: N/A | P39: N/A | Q39: N/A | R39: N/A | S39: N/A | T39: N/A | U39: N/A | V39: N/A | W39: N/A | BA39: Piped water on premises available when needed | BB39: Yes | BC39: N/A | BD39: N/A | BE39: N/A | BF39: N/A | BG39: N/A | BH39: N/A | BI39: N/A | BJ39: N/A | BK39: N/A | BL39: N/A | BM39: N/A | BN39: N/A | BO39: N/A | BP39: N/A | BQ39: N/A | BR39: N/A | BS39: N/A | BT39: N/A | BU39: N/A | BV39: N/A | BW39: N/A
B40: No | C40: N/A | D40: N/A | E40: N/A | F40: N/A | G40: N/A | H40: N/A | I40: N/A | J40: N/A | K40: N/A | L40: N/A | M40: N/A | N40: N/A | O40: N/A | P40: N/A | Q40: N/A | R40: N/A | S40: N/A | T40: N/A | U40: N/A | V40: N/A | W40: N/A | BB40: No | BC40: N/A | BD40: N/A | BE40: N/A | BF40: N/A | BG40: N/A | BH40: N/A | BI40: N/A | BJ40: N/A | BK40: N/A | BL40: N/A | BM40: N/A | BN40: N/A | BO40: N/A | BP40: N/A | BQ40: N/A | BR40: N/A | BS40: N/A | BT40: N/A | BU40: N/A | BV40: N/A | BW40: N/A
A41: Water point at more than 30 minutes | B41: Yes | C41: 32.29156355 | D41: 25.57805639 | E41: 14.6993559 | F41: 6.910002119 | G41: 2.54515641 | H41: 7.626132206 | I41: 4.618808453 | J41: 2.370303725 | K41: 2.089172497 | L41: 2.255159234 | M41: 35.26283421 | N41: 26.82034406 | O41: 26.35707811 | P41: 18.83913006 | Q41: 14.01178652 | R41: 17.20568585 | S41: 26.14558841 | T41: 2.968163269 | U41: 15.13860272 | V41: 21.51182336 | W41: 30.51352242 | BA41: Water point at more than 30 minutes | BB41: Yes | BC41: N/A | BD41: N/A | BE41: N/A | BF41: N/A | BG41: N/A | BH41: N/A | BI41: N/A | BJ41: N/A | BK41: N/A | BL41: N/A | BM41: N/A | BN41: N/A | BO41: N/A | BP41: N/A | BQ41: N/A | BR41: N/A | BS41: N/A | BT41: N/A | BU41: N/A | BV41: N/A | BW41: N/A
B42: No | C42: 67.70843645 | D42: 74.42194361 | E42: 85.3006441 | F42: 93.08999788 | G42: 97.45484359 | H42: 92.37386779 | I42: 95.38119155 | J42: 97.62969628 | K42: 97.9108275 | L42: 97.74484077 | M42: 64.73716579 | N42: 73.17965594 | O42: 73.64292189 | P42: 81.16086994 | Q42: 85.98821348 | R42: 82.79431415 | S42: 73.85441159 | T42: 97.03183673 | U42: 84.86139728 | V42: 78.48817664 | W42: 69.48647758 | BB42: No | BC42: N/A | BD42: N/A | BE42: N/A | BF42: N/A | BG42: N/A | BH42: N/A | BI42: N/A | BJ42: N/A | BK42: N/A | BL42: N/A | BM42: N/A | BN42: N/A | BO42: N/A | BP42: N/A | BQ42: N/A | BR42: N/A | BS42: N/A | BT42: N/A | BU42: N/A | BV42: N/A | BW42: N/A
A43: Water source available when needed | B43: Yes | C43: N/A | D43: N/A | E43: N/A | F43: N/A | G43: N/A | H43: N/A | I43: N/A | J43: N/A | K43: N/A | L43: N/A | M43: N/A | N43: N/A | O43: N/A | P43: N/A | Q43: N/A | R43: N/A | S43: N/A | T43: N/A | U43: N/A | V43: N/A | W43: N/A | BA43: Water source available when needed | BB43: Yes | BC43: N/A | BD43: N/A | BE43: N/A | BF43: N/A | BG43: N/A | BH43: N/A | BI43: N/A | BJ43: N/A | BK43: N/A | BL43: N/A | BM43: N/A | BN43: N/A | BO43: N/A | BP43: N/A | BQ43: N/A | BR43: N/A | BS43: N/A | BT43: N/A | BU43: N/A | BV43: N/A | BW43: N/A
B44: No | C44: N/A | D44: N/A | E44: N/A | F44: N/A | G44: N/A | H44: N/A | I44: N/A | J44: N/A | K44: N/A | L44: N/A | M44: N/A | N44: N/A | O44: N/A | P44: N/A | Q44: N/A | R44: N/A | S44: N/A | T44: N/A | U44: N/A | V44: N/A | W44: N/A | BB44: No | BC44: N/A | BD44: N/A | BE44: N/A | BF44: N/A | BG44: N/A | BH44: N/A | BI44: N/A | BJ44: N/A | BK44: N/A | BL44: N/A | BM44: N/A | BN44: N/A | BO44: N/A | BP44: N/A | BQ44: N/A | BR44: N/A | BS44: N/A | BT44: N/A | BU44: N/A | BV44: N/A | BW44: N/A
A45: Improved water source available when needed | B45: Yes | C45: N/A | D45: N/A | E45: N/A | F45: N/A | G45: N/A | H45: N/A | I45: N/A | J45: N/A | K45: N/A | L45: N/A | M45: N/A | N45: N/A | O45: N/A | P45: N/A | Q45: N/A | R45: N/A | S45: N/A | T45: N/A | U45: N/A | V45: N/A | W45: N/A | BA45: Improved water source available when needed | BB45: Yes | BC45: N/A | BD45: N/A | BE45: N/A | BF45: N/A | BG45: N/A | BH45: N/A | BI45: N/A | BJ45: N/A | BK45: N/A | BL45: N/A | BM45: N/A | BN45: N/A | BO45: N/A | BP45: N/A | BQ45: N/A | BR45: N/A | BS45: N/A | BT45: N/A | BU45: N/A | BV45: N/A | BW45: N/A
B46: No | C46: N/A | D46: N/A | E46: N/A | F46: N/A | G46: N/A | H46: N/A | I46: N/A | J46: N/A | K46: N/A | L46: N/A | M46: N/A | N46: N/A | O46: N/A | P46: N/A | Q46: N/A | R46: N/A | S46: N/A | T46: N/A | U46: N/A | V46: N/A | W46: N/A | BB46: No | BC46: N/A | BD46: N/A | BE46: N/A | BF46: N/A | BG46: N/A | BH46: N/A | BI46: N/A | BJ46: N/A | BK46: N/A | BL46: N/A | BM46: N/A | BN46: N/A | BO46: N/A | BP46: N/A | BQ46: N/A | BR46: N/A | BS46: N/A | BT46: N/A | BU46: N/A | BV46: N/A | BW46: N/A
A47: Microbiological quality at point of collection | B47: Not contaminated (No E. coli in 100 mL) | C47: N/A | D47: N/A | E47: N/A | F47: N/A | G47: N/A | H47: N/A | I47: N/A | J47: N/A | K47: N/A | L47: N/A | M47: N/A | N47: N/A | O47: N/A | P47: N/A | Q47: N/A | R47: N/A | S47: N/A | T47: N/A | U47: N/A | V47: N/A | W47: N/A | BA47: Microbiological quality at point of collection | BB47: Not contaminated (No E. coli in 100 mL) | BC47: N/A | BD47: N/A | BE47: N/A | BF47: N/A | BG47: N/A | BH47: N/A | BI47: N/A | BJ47: N/A | BK47: N/A | BL47: N/A | BM47: N/A | BN47: N/A | BO47: N/A | BP47: N/A | BQ47: N/A | BR47: N/A | BS47: N/A | BT47: N/A | BU47: N/A | BV47: N/A | BW47: N/A
B48: Contaminated (E. coli detected in 100 mL) | C48: N/A | D48: N/A | E48: N/A | F48: N/A | G48: N/A | H48: N/A | I48: N/A | J48: N/A | K48: N/A | L48: N/A | M48: N/A | N48: N/A | O48: N/A | P48: N/A | Q48: N/A | R48: N/A | S48: N/A | T48: N/A | U48: N/A | V48: N/A | W48: N/A | BB48: Contaminated (E. coli detected in 100 mL) | BC48: N/A | BD48: N/A | BE48: N/A | BF48: N/A | BG48: N/A | BH48: N/A | BI48: N/A | BJ48: N/A | BK48: N/A | BL48: N/A | BM48: N/A | BN48: N/A | BO48: N/A | BP48: N/A | BQ48: N/A | BR48: N/A | BS48: N/A | BT48: N/A | BU48: N/A | BV48: N/A | BW48: N/A
B49: Highly contaminated (>100 CFU/100 mL) | C49: N/A | D49: N/A | E49: N/A | F49: N/A | G49: N/A | H49: N/A | I49: N/A | J49: N/A | K49: N/A | L49: N/A | M49: N/A | N49: N/A | O49: N/A | P49: N/A | Q49: N/A | R49: N/A | S49: N/A | T49: N/A | U49: N/A | V49: N/A | W49: N/A | BB49: Highly contaminated (>100 CFU/100 mL) | BC49: N/A | BD49: N/A | BE49: N/A | BF49: N/A | BG49: N/A | BH49: N/A | BI49: N/A | BJ49: N/A | BK49: N/A | BL49: N/A | BM49: N/A | BN49: N/A | BO49: N/A | BP49: N/A | BQ49: N/A | BR49: N/A | BS49: N/A | BT49: N/A | BU49: N/A | BV49: N/A | BW49: N/A
A50: Microbiological quality of improved water sources at point of collection | B50: Not contaminated (No E. coli in 100 mL) | C50: N/A | D50: N/A | E50: N/A | F50: N/A | G50: N/A | H50: N/A | I50: N/A | J50: N/A | K50: N/A | L50: N/A | M50: N/A | N50: N/A | O50: N/A | P50: N/A | Q50: N/A | R50: N/A | S50: N/A | T50: N/A | U50: N/A | V50: N/A | W50: N/A | BA50: Microbiological quality of improved water sources at point of collection | BB50: Not contaminated (No E. coli in 100 mL) | BC50: N/A | BD50: N/A | BE50: N/A | BF50: N/A | BG50: N/A | BH50: N/A | BI50: N/A | BJ50: N/A | BK50: N/A | BL50: N/A | BM50: N/A | BN50: N/A | BO50: N/A | BP50: N/A | BQ50: N/A | BR50: N/A | BS50: N/A | BT50: N/A | BU50: N/A | BV50: N/A | BW50: N/A
B51: Contaminated (E. coli detected in 100 mL) | C51: N/A | D51: N/A | E51: N/A | F51: N/A | G51: N/A | H51: N/A | I51: N/A | J51: N/A | K51: N/A | L51: N/A | M51: N/A | N51: N/A | O51: N/A | P51: N/A | Q51: N/A | R51: N/A | S51: N/A | T51: N/A | U51: N/A | V51: N/A | W51: N/A | BB51: Contaminated (E. coli detected in 100 mL) | BC51: N/A | BD51: N/A | BE51: N/A | BF51: N/A | BG51: N/A | BH51: N/A | BI51: N/A | BJ51: N/A | BK51: N/A | BL51: N/A | BM51: N/A | BN51: N/A | BO51: N/A | BP51: N/A | BQ51: N/A | BR51: N/A | BS51: N/A | BT51: N/A | BU51: N/A | BV51: N/A | BW51: N/A
B52: Highly contaminated (>100 CFU/100 mL) | C52: N/A | D52: N/A | E52: N/A | F52: N/A | G52: N/A | H52: N/A | I52: N/A | J52: N/A | K52: N/A | L52: N/A | M52: N/A | N52: N/A | O52: N/A | P52: N/A | Q52: N/A | R52: N/A | S52: N/A | T52: N/A | U52: N/A | V52: N/A | W52: N/A | BB52: Highly contaminated (>100 CFU/100 mL) | BC52: N/A | BD52: N/A | BE52: N/A | BF52: N/A | BG52: N/A | BH52: N/A | BI52: N/A | BJ52: N/A | BK52: N/A | BL52: N/A | BM52: N/A | BN52: N/A | BO52: N/A | BP52: N/A | BQ52: N/A | BR52: N/A | BS52: N/A | BT52: N/A | BU52: N/A | BV52: N/A | BW52: N/A
A53: Microbiological quality of piped on premises at point of collection | B53: Not contaminated (No E. coli in 100 mL) | C53: N/A | D53: N/A | E53: N/A | F53: N/A | G53: N/A | H53: N/A | I53: N/A | J53: N/A | K53: N/A | L53: N/A | M53: N/A | N53: N/A | O53: N/A | P53: N/A | Q53: N/A | R53: N/A | S53: N/A | T53: N/A | U53: N/A | V53: N/A | W53: N/A | BA53: Microbiological quality of piped on premises at point of collection | BB53: Not contaminated (No E. coli in 100 mL) | BC53: N/A | BD53: N/A | BE53: N/A | BF53: N/A | BG53: N/A | BH53: N/A | BI53: N/A | BJ53: N/A | BK53: N/A | BL53: N/A | BM53: N/A | BN53: N/A | BO53: N/A | BP53: N/A | BQ53: N/A | BR53: N/A | BS53: N/A | BT53: N/A | BU53: N/A | BV53: N/A | BW53: N/A
B54: Contaminated (E. coli detected in 100 mL) | C54: N/A | D54: N/A | E54: N/A | F54: N/A | G54: N/A | H54: N/A | I54: N/A | J54: N/A | K54: N/A | L54: N/A | M54: N/A | N54: N/A | O54: N/A | P54: N/A | Q54: N/A | R54: N/A | S54: N/A | T54: N/A | U54: N/A | V54: N/A | W54: N/A | BB54: Contaminated (E. coli detected in 100 mL) | BC54: N/A | BD54: N/A | BE54: N/A | BF54: N/A | BG54: N/A | BH54: N/A | BI54: N/A | BJ54: N/A | BK54: N/A | BL54: N/A | BM54: N/A | BN54: N/A | BO54: N/A | BP54: N/A | BQ54: N/A | BR54: N/A | BS54: N/A | BT54: N/A | BU54: N/A | BV54: N/A | BW54: N/A
B55: Highly contaminated (>100 CFU/100 mL) | C55: N/A | D55: N/A | E55: N/A | F55: N/A | G55: N/A | H55: N/A | I55: N/A | J55: N/A | K55: N/A | L55: N/A | M55: N/A | N55: N/A | O55: N/A | P55: N/A | Q55: N/A | R55: N/A | S55: N/A | T55: N/A | U55: N/A | V55: N/A | W55: N/A | BB55: Highly contaminated (>100 CFU/100 mL) | BC55: N/A | BD55: N/A | BE55: N/A | BF55: N/A | BG55: N/A | BH55: N/A | BI55: N/A | BJ55: N/A | BK55: N/A | BL55: N/A | BM55: N/A | BN55: N/A | BO55: N/A | BP55: N/A | BQ55: N/A | BR55: N/A | BS55: N/A | BT55: N/A | BU55: N/A | BV55: N/A | BW55: N/A
C56: NATIONAL wealth index quintile | H56: URBAN wealth index quintile | M56: RURAL wealth index quintile | R56: SUB-REGIONS: | BA56: Raw numbers of respondents: | BB56: Use of drinking water sources | BC56: NATIONAL wealth index quintile | BH56: URBAN wealth index quintile | BM56: RURAL wealth index quintile | BR56: SUB-REGIONS:
A57: Percentage based on weighted population | C57: Poorest | D57: Poor | E57: Middle | F57: Rich | G57: Richest | H57: Poorest | I57: Poor | J57: Middle | K57: Rich | L57: Richest | M57: Poorest | N57: Poor | O57: Middle | P57: Rich | Q57: Richest | R57: Centrale | S57: Kara | T57: Lomé | U57: Maritime (sans Lomé) | V57: Plateaux | W57: Savanes | BA57: Water data, raw numbers (weighted) | BC57: Poorest | BD57: Poor | BE57: Middle | BF57: Rich | BG57: Richest | BH57: Poorest | BI57: Poor | BJ57: Middle | BK57: Rich | BL57: Richest | BM57: Poorest | BN57: Poor | BO57: Middle | BP57: Rich | BQ57: Richest | BR57: Centrale | BS57: Kara | BT57: Lomé | BU57: Maritime (sans Lomé) | BV57: Plateaux | BW57: Savanes
A58: Principale source d'eau que boivent les membre du menage | B58: Eau de robinet dns le logement | C58: 0 | D58: 0 | E58: 0.3052972371 | F58: 0.9571552556 | G58: 7.433018879 | H58: 0.7273417801 | I58: 0.8714223125 | J58: 2.623440912 | K58: 3.627925262 | L58: 13.53676304 | M58: 0 | N58: 0 | O58: 0 | P58: 0 | Q58: 0.7776240495 | R58: 1.362363168 | S58: 1.060890918 | T58: 4.13224998 | U58: 0.5803279189 | V58: 1.431143029 | W58: 0.1495294742
B59: Dans la concession/parcelle | C59: 0.08277191134 | D59: 0.03250148153 | E59: 0.5293698657 | F59: 2.583199955 | G59: 14.95835816 | H59: 0.408730517 | I59: 2.455153013 | J59: 6.470561963 | K59: 9.234929651 | L59: 25.98415531 | M59: 0 | N59: 0.1342808436 | O59: 0.05276361199 | P59: 0.3472044137 | Q59: 1.207618782 | R59: 1.430645787 | S59: 2.474680778 | T59: 11.70727034 | U59: 0.5625681369 | V59: 0.1771984212 | W59: 0.2546147348
B60: Borne fontaine/Kiosque à eau | C60: 10.35415827 | D60: 14.33495207 | E60: 34.36756222 | F60: 57.96404072 | G60: 56.31598354 | H60: 56.73001394 | I60: 70.09477515 | J60: 68.44774103 | K60: 68.61937573 | L60: 40.94081266 | M60: 8.516714432 | N60: 10.14167799 | O60: 14.22385914 | P60: 25.07507987 | Q60: 33.55605481 | R60: 21.5638309 | S60: 22.72721371 | T60: 61.33519921 | U60: 32.88246226 | V60: 25.85234946 | W60: 14.99674909
B61: Forage | C61: 13.9758706 | D61: 15.56613601 | E61: 9.20796367 | F61: 7.3485861 | G61: 5.58782731 | H61: 6.578383153 | I61: 8.576000004 | J61: 7.239118918 | K61: 5.141408657 | L61: 5.877958747 | M61: 14.37043235 | N61: 15.26857464 | O61: 15.27944914 | P61: 12.89892693 | Q61: 5.248409635 | R61: 10.02103738 | S61: 28.39883213 | T61: 9.193484597 | U61: 2.875679553 | V61: 6.125833808 | W61: 16.53941361
B62: Puits equipe de pompe | C62: 2.588517328 | D62: 2.739088654 | E62: 1.542229191 | F62: 0.9453447528 | G62: 1.634854807 | H62: 0.9644799573 | I62: 0.4161038128 | J62: 2.199142349 | K62: 1.200802506 | L62: 2.241722817 | M62: 2.67244059 | N62: 1.980874661 | O62: 2.935929168 | P62: 2.438038656 | Q62: 0.9331844694 | R62: 6.122490922 | S62: 1.771515536 | T62: 1.805266514 | U62: 0 | V62: 0.3694031196 | W62: 5.322385049
B63: Puits protege | C63: 5.031576445 | D63: 5.677306981 | E63: 7.811905647 | F63: 7.698440776 | G63: 5.599403817 | H63: 10.75692755 | I63: 5.645405885 | J63: 3.392915236 | K63: 5.445854415 | L63: 4.021842308 | M63: 5.151698932 | N63: 5.058605274 | O63: 5.836561333 | P63: 5.636383264 | Q63: 11.72848359 | R63: 17.43943979 | S63: 6.859564691 | T63: 2.386852708 | U63: 3.566355294 | V63: 7.570051208 | W63: 9.777365453
B64: Puits non protege | C64: 28.62421276 | D64: 28.53786936 | E64: 23.59980508 | F64: 16.31617038 | G64: 6.698000286 | H64: 17.53365016 | I64: 10.28755312 | J64: 8.388120545 | K64: 6.022972285 | L64: 4.694617751 | M64: 25.87978915 | N64: 32.71239859 | O64: 27.89528743 | P64: 25.16704937 | Q64: 27.51573181 | R64: 26.23153621 | S64: 14.07932765 | T64: 7.595961519 | U64: 41.46323572 | V64: 9.215361271 | W64: 30.58121173
B65: Source protegee | C65: 0.7463732909 | D65: 0.6236459654 | E65: 0.6551088245 | F65: 0.224473322 | G65: 0.04620313153 | H65: 0.4625160143 | I65: 0.4440616047 | J65: 0 | K65: 0 | L65: 0 | M65: 0.9850257023 | N65: 0.5285703798 | O65: 0.7096661922 | P65: 0.6945780739 | Q65: 0.243154275 | R65: 2.105061807 | S65: 0.5827335233 | T65: 0.1323406609 | U65: 0.09293407045 | V65: 0.1846699885 | W65: 0.9699255785
B66: Source non protegee | C66: 3.704081112 | D66: 3.09848941 | E66: 2.266322569 | F66: 0.9708075875 | G66: 0.07314592549 | H66: 1.79974586 | I66: 0.3174651146 | J66: 0.3174816598 | K66: 0 | L66: 0 | M66: 4.11298101 | N66: 3.303562372 | O66: 2.654801832 | P66: 2.396286587 | Q66: 2.425651347 | R66: 3.203791075 | S66: 2.173368784 | T66: 0.2295401736 | U66: 3.385949081 | V66: 0.9770875694 | W66: 4.011076654
B67: Eau de pluie | C67: 0.5050166957 | D67: 0.9169580937 | E67: 2.73458718 | F67: 1.929859343 | G67: 0.1873395476 | H67: 1.805340999 | I67: 0.6823174351 | J67: 0.6064916341 | K67: 0 | L67: 0 | M67: 0.5269774011 | N67: 0.5203550604 | O67: 0.9139224251 | P67: 2.903437434 | Q67: 3.387953888 | R67: 0 | S67: 0 | T67: 0.3315744886 | U67: 4.875278074 | V67: 0.2042567775 | W67: 0
B68: Camion citerne | C68: 0 | D68: 0 | E68: 0.1293350595 | F68: 0.07665382709 | G68: 0.05331225115 | H68: 0 | I68: 0 | J68: 0 | K68: 0 | L68: 0.1386055115 | M68: 0 | N68: 0 | O68: 0 | P68: 0.1737175492 | Q68: 0.1604186229 | R68: 0 | S68: 0 | T68: 0.04137237332 | U68: 0.06612978191 | V68: 0.1366000687 | W68: 0
B69: Charrette avec petite citerne/tonneau | C69: 0 | D69: 0 | E69: 0.05378758676 | F69: 0.02130439083 | G69: 0 | H69: 0 | I69: 0.05552906374 | J69: 0 | K69: 0 | L69: 0 | M69: 0 | N69: 0 | O69: 0 | P69: 0 | Q69: 0.08719511738 | R69: 0 | S69: 0 | T69: 0.01654894933 | U69: 0.03518013401 | V69: 0 | W69: 0.02372196254
B70: Eau de surface | C70: 34.38742158 | D70: 28.47305197 | E70: 16.79672587 | F70: 2.782362579 | G70: 0.1559663553 | H70: 2.23287007 | I70: 0.0416467978 | J70: 0 | K70: 0 | L70: 0 | M70: 37.78394043 | N70: 30.3511002 | O70: 29.49775972 | P70: 22.26929784 | Q70: 12.70001701 | R70: 10.51980297 | S70: 19.87187228 | T70: 0.012411712 | U70: 9.588746513 | V70: 47.7374754 | W70: 17.37400666
B71: Eau minerale (bouteille/sachet) | C71: 0 | D71: 0 | E71: 0 | F71: 0.181601005 | G71: 1.256585999 | H71: 0 | I71: 0.1125666871 | J71: 0.3149857546 | K71: 0.7067314936 | L71: 2.563521857 | M71: 0 | N71: 0 | O71: 0 | P71: 0 | Q71: 0.02850260381 | R71: 0 | S71: 0 | T71: 1.079926778 | U71: 0.0251534703 | V71: 0.01856987924 | W71: 0
A108: =A1026 -> Togo
A109: =A1034 -> 2006
A110: Use of sanitation facilities
A111: by wealth quintile and sub-national region
A112: Notes:
A113: WHO/UNICEF JMP customised wealth index excludes water,
A114: sanitation and hygiene assets.
A115: Survey used for analysis: | B115: =A1025 -> MICS06
A116: =B1030 -> 
A117: =B1029 -> 
A120: Use of sanitation facilities | C120: NATIONAL wealth index quintile | H120: URBAN wealth index quintile | M120: RURAL wealth index quintile | R120: SUB-REGIONS: | BA120: Raw numbers of respondents: | BB120: Use of sanitation facilities | BC120: NATIONAL wealth index quintile | BH120: URBAN wealth index quintile | BM120: RURAL wealth index quintile | BR120: SUB-REGIONS:
A121: Weighted percentage (used in graphs) | C121: Poorest | D121: Poor | E121: Middle | F121: Rich | G121: Richest | H121: Poorest | I121: Poor | J121: Middle | K121: Rich | L121: Richest | M121: Poorest | N121: Poor | O121: Middle | P121: Rich | Q121: Richest | R121: Centrale | S121: Kara | T121: Lomé | U121: Maritime (sans Lomé) | V121: Plateaux | W121: Savanes | BA121: Sanitation data, raw numbers (weighted) | BC121: Poorest | BD121: Poor | BE121: Middle | BF121: Rich | BG121: Richest | BH121: Poorest | BI121: Poor | BJ121: Middle | BK121: Rich | BL121: Richest | BM121: Poorest | BN121: Poor | BO121: Middle | BP121: Rich | BQ121: Richest | BR121: Centrale | BS121: Kara | BT121: Lomé | BU121: Maritime (sans Lomé) | BV121: Plateaux | BW121: Savanes
A122: Sanitation | B122: Improved | C122: 1.951520501 | D122: 4.488422925 | E122: 17.26034345 | F122: 50.01009876 | G122: 85.03157341 | H122: 29.02400365 | I122: 53.4356758 | J122: 73.79241905 | K122: 83.38321337 | L122: 93.47397444 | M122: 1.398588899 | N122: 2.989445881 | O122: 4.731126631 | P122: 11.96796459 | Q122: 29.06138339 | R122: 23.57418845 | S122: 9.374867566 | T122: 78.81871457 | U122: 18.18942188 | V122: 17.45597993 | W122: 5.811607529 | BA122: Sanitation | BB122: Improved | BC122: 119.2120009 | BD122: 274.1765117 | BE122: 1054.220981 | BF122: 3056.3351 | BG122: 5191.652075 | BH122: 679.5684326 | BI122: 1252.919974 | BJ122: 1730.139576 | BK122: 1949.084659 | BL122: 2195.141878 | BM122: 52.65248769 | BN122: 112.5658041 | BO122: 178.0203651 | BP122: 450.5683395 | BQ122: 1094.935153 | BR122: 657.6885998 | BS122: 344.4742158 | BT122: 6201.136612 | BU122: 1288.542968 | BV122: 1009.466255 | BW122: 194.2880193
B123: Not Improved | C123: 98.0484795 | D123: 95.51157708 | E123: 82.73965655 | F123: 49.98990124 | G123: 14.96842659 | H123: 70.97599635 | I123: 46.5643242 | J123: 26.20758095 | K123: 16.61678663 | L123: 6.526025563 | M123: 98.6014111 | N123: 97.01055412 | O123: 95.26887337 | P123: 88.03203541 | Q123: 70.93861661 | R123: 76.42581155 | S123: 90.62513243 | T123: 21.18128543 | U123: 81.81057812 | V123: 82.54402007 | W123: 94.18839247 | BB123: Not Improved | BC123: 5989.46074 | BD123: 5834.350165 | BE123: 5053.542659 | BF123: 3055.100742 | BG123: 913.9059747 | BH123: 1661.832984 | BI123: 1091.805633 | BJ123: 614.4638376 | BK123: 388.4177955 | BL123: 153.2571188 | BM123: 3712.034029 | BN123: 3652.874635 | BO123: 3584.727473 | BP123: 3314.218364 | BQ123: 2672.728411 | BR123: 2132.178806 | BS123: 3329.969325 | BT123: 1666.457583 | BU123: 5795.480793 | BV123: 4773.458903 | BW123: 3148.814871
A124: Sanitation ladder | B124: Basic | C124: 0.5658107039 | D124: 1.25118159 | E124: 4.622300452 | F124: 11.84440624 | G124: 36.87994719 | H124: 7.819350084 | I124: 8.519149567 | J124: 13.96076489 | K124: 23.73187842 | L124: 62.82628452 | M124: 0.3901672953 | N124: 1.475939786 | O124: 0.9557913298 | P124: 2.0213432 | Q124: 11.84538627 | R124: 7.389410562 | S124: 3.140578506 | T124: 27.23647921 | U124: 6.079179259 | V124: 6.26734499 | W124: 3.336743601 | BA124: Sanitation ladder | BB124: Basic | BC124: 34.54913477 | BD124: 76.42876122 | BE124: 282.3191864 | BF124: 723.8632883 | BG124: 2251.726584 | BH124: 183.0823736 | BI124: 199.7506814 | BJ124: 327.3245702 | BK124: 554.7332407 | BL124: 1475.411835 | BM124: 14.68857556 | BN124: 55.53809805 | BO124: 35.9640176 | BP124: 76.09926003 | BQ124: 446.2943024 | BR124: 206.1547567 | BS124: 115.3987841 | BT124: 2142.855658 | BU124: 430.6505032 | BV124: 362.2764816 | BW124: 111.5507717
B125: Limited | C125: 1.344873322 | D125: 3.237241334 | E125: 12.638043 | F125: 38.16569252 | G125: 48.15162622 | H125: 21.20465357 | I125: 44.91652623 | J125: 59.83165417 | K125: 59.65133494 | L125: 30.64768992 | M125: 1.008421603 | N125: 1.447941404 | O125: 3.775335301 | P125: 9.946621388 | Q125: 17.21599712 | R125: 16.18477789 | S125: 6.23428906 | T125: 51.58223535 | U125: 12.11024262 | V125: 11.15231856 | W125: 2.474863929 | BB125: Limited | BC125: 82.11970776 | BD125: 197.7477505 | BE125: 771.901795 | BF125: 2332.471812 | BG125: 2939.925491 | BH125: 496.486059 | BI125: 1053.169292 | BJ125: 1402.815006 | BK125: 1394.351419 | BL125: 719.7300426 | BM125: 37.96391213 | BN125: 54.48454773 | BO125: 142.0563475 | BP125: 374.4690794 | BQ125: 648.6408508 | BR125: 451.5338431 | BS125: 229.0754317 | BT125: 4058.280955 | BU125: 857.8924644 | BV125: 644.6466147 | BW125: 82.73724752
B126: Unimproved | C126: 9.784019926 | D126: 10.44649279 | E126: 18.49175447 | F126: 20.1200765 | G126: 7.474543047 | H126: 20.51357869 | I126: 19.40464676 | J126: 14.51927915 | K126: 9.12951084 | L126: 4.383220182 | M126: 9.298056504 | N126: 10.82332101 | O126: 9.973156018 | P126: 13.98202699 | Q126: 21.23206262 | R126: 6.485006011 | S126: 5.719868016 | T126: 9.911851306 | U126: 20.87628606 | V126: 18.93246776 | W126: 9.177159075 | BB126: Unimproved | BC126: 597.4249351 | BD126: 638.1267986 | BE126: 1129.432656 | BF126: 1229.625567 | BG126: 456.3625647 | BH126: 480.3052221 | BI126: 454.9857216 | BJ126: 340.4195146 | BK126: 213.40254 | BL126: 102.9354988 | BM126: 350.0426795 | BN126: 407.2704519 | BO126: 375.2647125 | BP126: 526.3934931 | BQ126: 799.9526875 | BR126: 180.923069 | BS126: 210.1733209 | BT126: 779.824238 | BU126: 1478.881065 | BV126: 1094.368959 | BW126: 306.8018703
B127: Open defecation | C127: 88.30529605 | D127: 85.06508429 | E127: 64.24790208 | F127: 29.86982474 | G127: 7.493883544 | H127: 50.46241766 | I127: 27.15967744 | J127: 11.6883018 | K127: 7.487275795 | L127: 2.14280538 | M127: 89.3033546 | N127: 86.2527978 | O127: 85.29571735 | P127: 74.05000842 | Q127: 49.70655399 | R127: 69.94080554 | S127: 84.90526442 | T127: 11.26943413 | U127: 60.93429206 | V127: 63.64786868 | W127: 85.0112334 | BB127: Open defecation | BC127: 5392.035805 | BD127: 5196.223367 | BE127: 3924.110003 | BF127: 1825.475175 | BG127: 457.54341 | BH127: 1181.527762 | BI127: 636.8199116 | BJ127: 274.044323 | BK127: 175.0152555 | BL127: 50.32162006 | BM127: 3361.991349 | BN127: 3245.604183 | BO127: 3209.462761 | BP127: 2787.824871 | BQ127: 1872.775724 | BR127: 1951.255737 | BS127: 3119.796004 | BT127: 886.6333455 | BU127: 4316.599728 | BV127: 3679.089944 | BW127: 2842.013
A128: Shared among Improved Sanitation | B128: Yes | C128: 70.3870082 | D128: 72.12424918 | E128: 73.22011311 | F128: 76.3159711 | G128: 56.62793747 | H128: 73.05902322 | I128: 84.05718756 | J128: 81.081031 | K128: 71.53878165 | L128: 32.78740431 | M128: 72.10278906 | N128: 49.52121206 | O128: 79.79780707 | P128: 83.11038451 | Q128: 59.24011562 | R128: 68.65465559 | S128: 66.5000227 | T128: 65.44414691 | U128: 66.57849105 | V128: 64.02143491 | W128: 42.58484277 | BA128: Shared among improved sanitation facilities | BB128: Yes | BC128: N/A | BD128: N/A | BE128: N/A | BF128: N/A | BG128: N/A | BH128: N/A | BI128: N/A | BJ128: N/A | BK128: N/A | BL128: N/A | BM128: N/A | BN128: N/A | BO128: N/A | BP128: N/A | BQ128: N/A | BR128: N/A | BS128: N/A | BT128: N/A | BU128: N/A | BV128: N/A | BW128: N/A
B129: No | C129: 29.6129918 | D129: 27.87575082 | E129: 26.77988689 | F129: 23.6840289 | G129: 43.37206253 | H129: 26.94097678 | I129: 15.94281244 | J129: 18.918969 | K129: 28.46121835 | L129: 67.21259569 | M129: 27.89721094 | N129: 50.47878794 | O129: 20.20219293 | P129: 16.88961549 | Q129: 40.75988438 | R129: 31.34534441 | S129: 33.4999773 | T129: 34.55585309 | U129: 33.42150895 | V129: 35.97856509 | W129: 57.41515723 | BB129: No | BC129: N/A | BD129: N/A | BE129: N/A | BF129: N/A | BG129: N/A | BH129: N/A | BI129: N/A | BJ129: N/A | BK129: N/A | BL129: N/A | BM129: N/A | BN129: N/A | BO129: N/A | BP129: N/A | BQ129: N/A | BR129: N/A | BS129: N/A | BT129: N/A | BU129: N/A | BV129: N/A | BW129: N/A
A130: Manually calculated ratios | B130: Improved latrines | C130: =C159/(C159+C160)*100 -> 13.38340484 | D130: =D159/(D159+D160)*100 -> 14.30271926 | E130: 37.01018347 | F130: 52.65105177 | G130: 72.78045272 | H130: 43.09972636 | I130: 51.64509428 | J130: 62.92274902 | K130: 72.08641189 | L130: 73.79507822 | M130: 13.13113727 | N130: 17.15468696 | O130: 10.94372353 | P130: 34.56373631 | Q130: 47.65862998 | R130: 48.02416704 | S130: 46.15122835 | T130: 65.28103172 | U130: 39.94812929 | V130: 35.20750506 | W130: 38.80607245
B131: Other
B132: Other
C133: NATIONAL wealth index quintile | H133: URBAN wealth index quintile | M133: RURAL wealth index quintile | R133: SUB-REGIONS: | BA133: Raw numbers of respondents: | BB133: Use of sanitation facilities | BC133: NATIONAL wealth index quintile | BH133: URBAN wealth index quintile | BM133: RURAL wealth index quintile | BR133: SUB-REGIONS:
A134: Percentage based on weighted population | C134: Poorest | D134: Poor | E134: Middle | F134: Rich | G134: Richest | H134: Poorest | I134: Poor | J134: Middle | K134: Rich | L134: Richest | M134: Poorest | N134: Poor | O134: Middle | P134: Rich | Q134: Richest | R134: Centrale | S134: Kara | T134: Lomé | U134: Maritime (sans Lomé) | V134: Plateaux | W134: Savanes | BA134: Sanitation data, raw numbers (weighted) | BC134: Poorest | BD134: Poor | BE134: Middle | BF134: Rich | BG134: Richest | BH134: Poorest | BI134: Poor | BJ134: Middle | BK134: Rich | BL134: Richest | BM134: Poorest | BN134: Poor | BO134: Middle | BP134: Rich | BQ134: Richest | BR134: Centrale | BS134: Kara | BT134: Lomé | BU134: Maritime (sans Lomé) | BV134: Plateaux | BW134: Savanes
A135: Sanitation type | B135: Sewer connection | C135: 0 | D135: 0 | E135: 0.03797794241 | F135: 0.106709249 | G135: 0.6491426048 | H135: 0 | I135: 0.2781334954 | J135: 0 | K135: 0.5498303816 | L135: 1.140414382 | M135: 0 | N135: 0 | O135: 0 | P135: 0.06161313087 | Q135: 0 | R135: 0.3168992988 | S135: 0 | T135: 0.366602748 | U135: 0 | V135: 0.1866004097 | W135: 0 | BA135: Sanitation type | BB135: Sewer connection | BC135: N/A | BD135: N/A | BE135: N/A | BF135: N/A | BG135: N/A | BH135: N/A | BI135: N/A | BJ135: N/A | BK135: N/A | BL135: N/A | BM135: N/A | BN135: N/A | BO135: N/A | BP135: N/A | BQ135: N/A | BR135: N/A | BS135: N/A | BT135: N/A | BU135: N/A | BV135: N/A | BW135: N/A
B136: Septic tank connection | C136: 0 | D136: 0.5122389881 | E136: 1.463977496 | F136: 9.215711577 | G136: 34.80280114 | H136: 6.925010498 | I136: 10.64999581 | J136: 21.72850118 | K136: 24.75100556 | L136: 51.34874683 | M136: 0 | N136: 0 | O136: 0.5941838121 | P136: 0.3333232259 | Q136: 1.809770113 | R136: 6.226551444 | S136: 1.64294409 | T136: 30.22876986 | U136: 0.8776385413 | V136: 2.150945622 | W136: 0.2963068841 | BB136: Septic tank connection | BC136: N/A | BD136: N/A | BE136: N/A | BF136: N/A | BG136: N/A | BH136: N/A | BI136: N/A | BJ136: N/A | BK136: N/A | BL136: N/A | BM136: N/A | BN136: N/A | BO136: N/A | BP136: N/A | BQ136: N/A | BR136: N/A | BS136: N/A | BT136: N/A | BU136: N/A | BV136: N/A | BW136: N/A
B137: Improved latrines | C137: 1.951520501 | D137: 3.976183937 | E137: 15.75838801 | F137: 40.68767793 | G137: 49.57962966 | H137: 22.09899315 | I137: 42.5075465 | J137: 52.06391787 | K137: 58.08237742 | L137: 40.98481322 | M137: 1.398588899 | N137: 2.989445881 | O137: 4.136942819 | P137: 11.57302823 | Q137: 27.25161327 | R137: 17.03073771 | S137: 7.731923476 | T137: 48.22334196 | U137: 17.31178333 | V137: 15.11843389 | W137: 5.515300645 | BB137: Improved latrines | BC137: N/A | BD137: N/A | BE137: N/A | BF137: N/A | BG137: N/A | BH137: N/A | BI137: N/A | BJ137: N/A | BK137: N/A | BL137: N/A | BM137: N/A | BN137: N/A | BO137: N/A | BP137: N/A | BQ137: N/A | BR137: N/A | BS137: N/A | BT137: N/A | BU137: N/A | BV137: N/A | BW137: N/A
B138: Unimproved facilities | C138: 9.77994665 | D138: 10.44649279 | E138: 18.49175447 | F138: 20.1200765 | G138: 7.474543047 | H138: 20.51357869 | I138: 19.40464676 | J138: 14.51927915 | K138: 9.12951084 | L138: 4.383220182 | M138: 9.298056504 | N138: 10.816011 | O138: 9.973156018 | P138: 13.98202699 | Q138: 21.23206262 | R138: 6.485006011 | S138: 5.719868016 | T138: 9.911851306 | U138: 20.87628606 | V138: 18.92414183 | W138: 9.177159075 | BB138: Unimproved facilities | BC138: N/A | BD138: N/A | BE138: N/A | BF138: N/A | BG138: N/A | BH138: N/A | BI138: N/A | BJ138: N/A | BK138: N/A | BL138: N/A | BM138: N/A | BN138: N/A | BO138: N/A | BP138: N/A | BQ138: N/A | BR138: N/A | BS138: N/A | BT138: N/A | BU138: N/A | BV138: N/A | BW138: N/A
B139: Open defecation | C139: 88.26853285 | D139: 85.06508429 | E139: 64.24790208 | F139: 29.86982474 | G139: 7.493883544 | H139: 50.46241766 | I139: 27.15967744 | J139: 11.6883018 | K139: 7.487275795 | L139: 2.14280538 | M139: 89.3033546 | N139: 86.19454312 | O139: 85.29571735 | P139: 74.05000842 | Q139: 49.70655399 | R139: 69.94080554 | S139: 84.90526442 | T139: 11.26943413 | U139: 60.93429206 | V139: 63.61987825 | W139: 85.0112334 | BB139: Open defecation | BC139: N/A | BD139: N/A | BE139: N/A | BF139: N/A | BG139: N/A | BH139: N/A | BI139: N/A | BJ139: N/A | BK139: N/A | BL139: N/A | BM139: N/A | BN139: N/A | BO139: N/A | BP139: N/A | BQ139: N/A | BR139: N/A | BS139: N/A | BT139: N/A | BU139: N/A | BV139: N/A | BW139: N/A
A140: Septic tank emptying practices | B140: Not emptied/treated and disposed in situ | C140: N/A | D140: N/A | E140: N/A | F140: N/A | G140: N/A | H140: N/A | I140: N/A | J140: N/A | K140: N/A | L140: N/A | M140: N/A | N140: N/A | O140: N/A | P140: N/A | Q140: N/A | R140: N/A | S140: N/A | T140: N/A | U140: N/A | V140: N/A | W140: N/A | BA140: Septic tank emptying practices | BB140: Not emptied/treated and disposed in situ | BC140: N/A | BD140: N/A | BE140: N/A | BF140: N/A | BG140: N/A | BH140: N/A | BI140: N/A | BJ140: N/A | BK140: N/A | BL140: N/A | BM140: N/A | BN140: N/A | BO140: N/A | BP140: N/A | BQ140: N/A | BR140: N/A | BS140: N/A | BT140: N/A | BU140: N/A | BV140: N/A | BW140: N/A
B141: Emptied and buried on site | C141: N/A | D141: N/A | E141: N/A | F141: N/A | G141: N/A | H141: N/A | I141: N/A | J141: N/A | K141: N/A | L141: N/A | M141: N/A | N141: N/A | O141: N/A | P141: N/A | Q141: N/A | R141: N/A | S141: N/A | T141: N/A | U141: N/A | V141: N/A | W141: N/A | BB141: Emptied and buried on site | BC141: N/A | BD141: N/A | BE141: N/A | BF141: N/A | BG141: N/A | BH141: N/A | BI141: N/A | BJ141: N/A | BK141: N/A | BL141: N/A | BM141: N/A | BN141: N/A | BO141: N/A | BP141: N/A | BQ141: N/A | BR141: N/A | BS141: N/A | BT141: N/A | BU141: N/A | BV141: N/A | BW141: N/A
B142: Emptied and discharged locally | C142: N/A | D142: N/A | E142: N/A | F142: N/A | G142: N/A | H142: N/A | I142: N/A | J142: N/A | K142: N/A | L142: N/A | M142: N/A | N142: N/A | O142: N/A | P142: N/A | Q142: N/A | R142: N/A | S142: N/A | T142: N/A | U142: N/A | V142: N/A | W142: N/A | BB142: Emptied and discharged locally | BC142: N/A | BD142: N/A | BE142: N/A | BF142: N/A | BG142: N/A | BH142: N/A | BI142: N/A | BJ142: N/A | BK142: N/A | BL142: N/A | BM142: N/A | BN142: N/A | BO142: N/A | BP142: N/A | BQ142: N/A | BR142: N/A | BS142: N/A | BT142: N/A | BU142: N/A | BV142: N/A | BW142: N/A
B143: Emptied and removed offsite | C143: N/A | D143: N/A | E143: N/A | F143: N/A | G143: N/A | H143: N/A | I143: N/A | J143: N/A | K143: N/A | L143: N/A | M143: N/A | N143: N/A | O143: N/A | P143: N/A | Q143: N/A | R143: N/A | S143: N/A | T143: N/A | U143: N/A | V143: N/A | W143: N/A | BB143: Emptied and removed offsite | BC143: N/A | BD143: N/A | BE143: N/A | BF143: N/A | BG143: N/A | BH143: N/A | BI143: N/A | BJ143: N/A | BK143: N/A | BL143: N/A | BM143: N/A | BN143: N/A | BO143: N/A | BP143: N/A | BQ143: N/A | BR143: N/A | BS143: N/A | BT143: N/A | BU143: N/A | BV143: N/A | BW143: N/A
A144: Latrine emptying practices | B144: Not emptied/treated and disposed in situ | C144: N/A | D144: N/A | E144: N/A | F144: N/A | G144: N/A | H144: N/A | I144: N/A | J144: N/A | K144: N/A | L144: N/A | M144: N/A | N144: N/A | O144: N/A | P144: N/A | Q144: N/A | R144: N/A | S144: N/A | T144: N/A | U144: N/A | V144: N/A | W144: N/A | BA144: Latrine emptying practices | BB144: Not emptied/treated and disposed in situ | BC144: N/A | BD144: N/A | BE144: N/A | BF144: N/A | BG144: N/A | BH144: N/A | BI144: N/A | BJ144: N/A | BK144: N/A | BL144: N/A | BM144: N/A | BN144: N/A | BO144: N/A | BP144: N/A | BQ144: N/A | BR144: N/A | BS144: N/A | BT144: N/A | BU144: N/A | BV144: N/A | BW144: N/A
B145: Emptied and buried on site | C145: N/A | D145: N/A | E145: N/A | F145: N/A | G145: N/A | H145: N/A | I145: N/A | J145: N/A | K145: N/A | L145: N/A | M145: N/A | N145: N/A | O145: N/A | P145: N/A | Q145: N/A | R145: N/A | S145: N/A | T145: N/A | U145: N/A | V145: N/A | W145: N/A | BB145: Emptied and buried on site | BC145: N/A | BD145: N/A | BE145: N/A | BF145: N/A | BG145: N/A | BH145: N/A | BI145: N/A | BJ145: N/A | BK145: N/A | BL145: N/A | BM145: N/A | BN145: N/A | BO145: N/A | BP145: N/A | BQ145: N/A | BR145: N/A | BS145: N/A | BT145: N/A | BU145: N/A | BV145: N/A | BW145: N/A
B146: Emptied and discharged locally | C146: N/A | D146: N/A | E146: N/A | F146: N/A | G146: N/A | H146: N/A | I146: N/A | J146: N/A | K146: N/A | L146: N/A | M146: N/A | N146: N/A | O146: N/A | P146: N/A | Q146: N/A | R146: N/A | S146: N/A | T146: N/A | U146: N/A | V146: N/A | W146: N/A | BB146: Emptied and discharged locally | BC146: N/A | BD146: N/A | BE146: N/A | BF146: N/A | BG146: N/A | BH146: N/A | BI146: N/A | BJ146: N/A | BK146: N/A | BL146: N/A | BM146: N/A | BN146: N/A | BO146: N/A | BP146: N/A | BQ146: N/A | BR146: N/A | BS146: N/A | BT146: N/A | BU146: N/A | BV146: N/A | BW146: N/A
B147: Emptied and removed offsite | C147: N/A | D147: N/A | E147: N/A | F147: N/A | G147: N/A | H147: N/A | I147: N/A | J147: N/A | K147: N/A | L147: N/A | M147: N/A | N147: N/A | O147: N/A | P147: N/A | Q147: N/A | R147: N/A | S147: N/A | T147: N/A | U147: N/A | V147: N/A | W147: N/A | BB147: Emptied and removed offsite | BC147: N/A | BD147: N/A | BE147: N/A | BF147: N/A | BG147: N/A | BH147: N/A | BI147: N/A | BJ147: N/A | BK147: N/A | BL147: N/A | BM147: N/A | BN147: N/A | BO147: N/A | BP147: N/A | BQ147: N/A | BR147: N/A | BS147: N/A | BT147: N/A | BU147: N/A | BV147: N/A | BW147: N/A
A148: Shared among improved sanitation facilities | B148: Yes | C148: 1.344313425 | D148: 3.237241334 | E148: 12.638043 | F148: 38.16569252 | G148: 48.15162622 | H148: 21.20465357 | I148: 44.91652623 | J148: 59.83165417 | K148: 59.65133494 | L148: 30.64768992 | M148: 1.008421603 | N148: 1.446963473 | O148: 3.775335301 | P148: 9.946621388 | Q148: 17.21599712 | R148: 16.18477789 | S148: 6.23428906 | T148: 51.58223535 | U148: 12.11024262 | V148: 11.14741411 | W148: 2.474863929 | BA148: Shared among improved sanitation facilities | BB148: Yes | BC148: N/A | BD148: N/A | BE148: N/A | BF148: N/A | BG148: N/A | BH148: N/A | BI148: N/A | BJ148: N/A | BK148: N/A | BL148: N/A | BM148: N/A | BN148: N/A | BO148: N/A | BP148: N/A | BQ148: N/A | BR148: N/A | BS148: N/A | BT148: N/A | BU148: N/A | BV148: N/A | BW148: N/A
B149: No | C149: 0.565575146 | D149: 1.25118159 | E149: 4.622300452 | F149: 11.84440624 | G149: 36.87994719 | H149: 7.819350084 | I149: 8.519149567 | J149: 13.96076489 | K149: 23.73187842 | L149: 62.82628452 | M149: 0.3901672953 | N149: 1.474942944 | O149: 0.9557913298 | P149: 2.0213432 | Q149: 11.84538627 | R149: 7.389410562 | S149: 3.140578506 | T149: 27.23647921 | U149: 6.079179259 | V149: 6.264588799 | W149: 3.336743601 | BB149: No | BC149: N/A | BD149: N/A | BE149: N/A | BF149: N/A | BG149: N/A | BH149: N/A | BI149: N/A | BJ149: N/A | BK149: N/A | BL149: N/A | BM149: N/A | BN149: N/A | BO149: N/A | BP149: N/A | BQ149: N/A | BR149: N/A | BS149: N/A | BT149: N/A | BU149: N/A | BV149: N/A | BW149: N/A
B150: DK/missing | C150: 98.09011143 | D150: 95.51157708 | E150: 82.73965655 | F150: 49.98990124 | G150: 14.96842659 | H150: 70.97599635 | I150: 46.5643242 | J150: 26.20758095 | K150: 16.61678663 | L150: 6.526025563 | M150: 98.6014111 | N150: 97.07809358 | O150: 95.26887337 | P150: 88.03203541 | Q150: 70.93861661 | R150: 76.42581155 | S150: 90.62513243 | T150: 21.18128543 | U150: 81.81057812 | V150: 82.5879971 | W150: 94.18839247 | BB150: DK/missing | BC150: N/A | BD150: N/A | BE150: N/A | BF150: N/A | BG150: N/A | BH150: N/A | BI150: N/A | BJ150: N/A | BK150: N/A | BL150: N/A | BM150: N/A | BN150: N/A | BO150: N/A | BP150: N/A | BQ150: N/A | BR150: N/A | BS150: N/A | BT150: N/A | BU150: N/A | BV150: N/A | BW150: N/A
A151: Shared among all sanitation facilities | B151: Yes | C151: 60.7758931 | D151: 67.86231038 | E151: 68.27027189 | F151: 75.90839064 | G151: 57.36741895 | H151: 70.45828764 | I151: 83.07751063 | J151: 81.04401791 | K151: 71.60950382 | L151: 33.1944215 | M151: 50.37703324 | N151: 61.80004935 | O151: 75.324514 | P151: 77.79002907 | Q151: 58.71286596 | R151: 64.82459879 | S151: 67.48775767 | T151: 66.90949629 | U151: 65.94920096 | V151: 64.74328004 | W151: 52.46669972 | BA151: Shared among all sanitation facilities | BB151: Yes | BC151: N/A | BD151: N/A | BE151: N/A | BF151: N/A | BG151: N/A | BH151: N/A | BI151: N/A | BJ151: N/A | BK151: N/A | BL151: N/A | BM151: N/A | BN151: N/A | BO151: N/A | BP151: N/A | BQ151: N/A | BR151: N/A | BS151: N/A | BT151: N/A | BU151: N/A | BV151: N/A | BW151: N/A
B152: No | C152: 30.8351037 | D152: 29.15219428 | E152: 31.43461035 | F152: 23.83151534 | G152: 42.63258105 | H152: 29.54171236 | I152: 16.57103467 | J152: 18.70749786 | K152: 28.39049618 | L152: 66.8055785 | M152: 40.99329447 | N152: 29.82806626 | O152: 23.03363715 | P152: 22.20997093 | Q152: 40.94704268 | R152: 35.17540121 | S152: 32.51224233 | T152: 32.93081899 | U152: 32.16425163 | V152: 35.13583794 | W152: 39.7407077 | BB152: No | BC152: N/A | BD152: N/A | BE152: N/A | BF152: N/A | BG152: N/A | BH152: N/A | BI152: N/A | BJ152: N/A | BK152: N/A | BL152: N/A | BM152: N/A | BN152: N/A | BO152: N/A | BP152: N/A | BQ152: N/A | BR152: N/A | BS152: N/A | BT152: N/A | BU152: N/A | BV152: N/A | BW152: N/A
A153: Type de toilettes | B153: Chasse branchee a l'egout | C153: 0 | D153: 0 | E153: 0.03797794241 | F153: 0.106709249 | G153: 0.6491426048 | H153: 0 | I153: 0.2781334954 | J153: 0 | K153: 0.5498303816 | L153: 1.140414382 | M153: 0 | N153: 0 | O153: 0 | P153: 0.06161313087 | Q153: 0 | R153: 0.3168992988 | S153: 0 | T153: 0.366602748 | U153: 0 | V153: 0.1866004097 | W153: 0 | BA153: Type de toilettes | BB153: Chasse branchee a l'egout | BC153: 0 | BD153: 0 | BE153: 2.319602958 | BF153: 6.521467287 | BG153: 39.63377856 | BH153: 0 | BI153: 6.521467287 | BJ153: 0 | BK153: 12.85229867 | BL153: 26.78147989 | BM153: 0 | BN153: 0 | BO153: 0 | BP153: 2.319602958 | BQ153: 0 | BR153: 8.841070245 | BS153: 0 | BT153: 28.84281652 | BU153: 0 | BV153: 10.79096204 | BW153: 0
B154: Chasse branchee a fosse septique | C154: 0 | D154: 0.5122389881 | E154: 1.463977496 | F154: 9.215711577 | G154: 34.80280114 | H154: 6.925010498 | I154: 10.64999581 | J154: 21.72850118 | K154: 24.75100556 | L154: 51.34874683 | M154: 0 | N154: 0 | O154: 0.5941838121 | P154: 0.3333232259 | Q154: 1.809770113 | R154: 6.226551444 | S154: 1.64294409 | T154: 30.22876986 | U154: 0.8776385413 | V154: 2.150945622 | W154: 0.2963068841 | BB154: Chasse branchee a fosse septique | BC154: 0 | BD154: 31.29025524 | BE154: 89.41628518 | BF154: 563.2123004 | BG154: 2124.905227 | BH154: 162.1422939 | BI154: 249.7131788 | BJ154: 509.4471805 | BK154: 578.5553625 | BL154: 1205.873455 | BM154: 0 | BN154: 0 | BO154: 22.35763855 | BP154: 12.54890849 | BQ154: 68.18604914 | BR154: 173.7125292 | BS154: 60.36905299 | BT154: 2378.276943 | BU154: 62.17212279 | BV154: 124.3875755 | BW154: 9.905844005
B155: Chasse branchee a fosses simples | C155: 0.1200848681 | D155: 0.4642416689 | E155: 1.363709184 | F155: 8.003201791 | G155: 15.35994281 | H155: 2.961119065 | I155: 8.994500617 | J155: 12.0950852 | K155: 18.13692118 | L155: 16.56070283 | M155: 0.04651408033 | N155: 0 | O155: 0.7536600221 | P155: 0.8290784202 | Q155: 2.864166799 | R155: 1.545410095 | S155: 1.24778175 | T155: 13.96043846 | U155: 1.174953858 | V155: 4.322115666 | W155: 0.7601776183 | BB155: Chasse branchee a fosses simples | BC155: 7.335591606 | BD155: 28.35832619 | BE155: 83.29213371 | BF155: 489.1105427 | BG155: 937.8102248 | BH155: 69.33168373 | BI155: 210.8963592 | BJ155: 283.5817806 | BK155: 423.9509779 | BL155: 388.9113791 | BM155: 1.751109311 | BN155: 0 | BO155: 28.35832619 | BP155: 31.21303412 | BQ155: 107.9121689 | BR155: 43.11489254 | BS155: 45.84903591 | BT155: 1098.350646 | BU155: 83.23401049 | BV155: 249.9447142 | BW155: 25.41351993
B156: Chasse branchee a autre chose | C156: 0 | D156: 0 | E156: 0.06803795425 | F156: 0.1635406645 | G156: 0.2787540833 | H156: 0.1774833398 | I156: 0.4026476614 | J156: 0.3738430852 | K156: 0.2201072661 | L156: 0.1559803872 | M156: 0 | N156: 0 | O156: 0 | P156: 0 | Q156: 0 | R156: 0 | S156: 0.01506894731 | T156: 0.1119535957 | U156: 0.1159148819 | V156: 0.2351159644 | W156: 0 | BB156: Chasse branchee a autre chose | BC156: 0 | BD156: 0 | BE156: 4.155597432 | BF156: 9.994682784 | BG156: 17.01949237 | BH156: 4.155597432 | BI156: 9.440982823 | BJ156: 8.765137738 | BK156: 5.145012748 | BL156: 3.663041849 | BM156: 0 | BN156: 0 | BO156: 0 | BP156: 0 | BQ156: 0 | BR156: 0 | BS156: 0.553699961 | BT156: 8.808054597 | BU156: 8.211437778 | BV156: 13.59658026 | BW156: 0
B157: Chasse branchee a endroit inconnu | C157: 0 | D157: 0 | E157: 0 | F157: 0.003557181929 | G157: 0 | H157: 0 | I157: 0 | J157: 0 | K157: 0 | L157: 0 | M157: 0 | N157: 0 | O157: 0 | P157: 0 | Q157: 0.005770018677 | R157: 0 | S157: 0 | T157: 0 | U157: 0 | V157: 0 | W157: 0.006502787935 | BB157: Chasse branchee a endroit inconnu | BC157: 0 | BD157: 0 | BE157: 0 | BF157: 0.2173948914 | BG157: 0 | BH157: 0 | BI157: 0 | BJ157: 0 | BK157: 0 | BL157: 0 | BM157: 0 | BN157: 0 | BO157: 0 | BP157: 0 | BQ157: 0.2173948914 | BR157: 0 | BS157: 0 | BT157: 0 | BU157: 0 | BV157: 0 | BW157: 0.2173948914
B158: Latrines ameliorees auto aerees (LAA) | C158: 0.5372016909 | D158: 1.707011812 | E158: 4.408063031 | F158: 11.30371214 | G158: 15.51150945 | H158: 5.018886899 | I158: 13.69516235 | J158: 16.33675016 | K158: 18.98380217 | L158: 12.51987752 | M158: 0.2166820627 | N158: 0.8078105901 | O158: 2.074880538 | P158: 4.048456482 | Q158: 5.725603451 | R158: 9.566012844 | S158: 1.533703938 | T158: 17.12977227 | U158: 3.457307003 | V158: 2.029393051 | W158: 0.3289370981 | BB158: Latrines ameliorees auto aerees (LAA) | BC158: 32.81589325 | BD158: 104.2732719 | BE158: 269.2340711 | BF158: 690.8191154 | BG158: 947.0642137 | BH158: 117.5122889 | BI158: 321.1139785 | BJ158: 383.0320021 | BK158: 443.7468417 | BL158: 294.0166781 | BM158: 8.157400397 | BN158: 30.41762663 | BO158: 78.07252258 | BP158: 152.4157513 | BQ158: 215.7214751 | BR158: 266.8790744 | BS158: 56.35508527 | BT158: 1347.700969 | BU158: 244.9164496 | BV158: 117.3582813 | BW158: 10.99670563
B159: Latrines couvertes | C159: 1.071891045 | D159: 1.347559669 | E159: 9.796440801 | F159: 21.01258095 | G159: 18.42901026 | H159: 13.89657449 | I159: 19.53214259 | J159: 22.67869527 | K159: 20.96165407 | L159: 11.90423287 | M159: 0.9980696939 | N159: 1.603814544 | O159: 0.920559698 | P159: 6.607679004 | Q159: 18.3010137 | R159: 5.919314771 | S159: 4.732762922 | T159: 16.7586244 | U159: 12.1303941 | V159: 8.488494437 | W159: 4.419683141 | BB159: Latrines couvertes | BC159: 65.4783161 | BD159: 82.31604184 | BE159: 598.3434493 | BF159: 1284.170404 | BG159: 1125.19392 | BH159: 325.374592 | BI159: 457.9751489 | BJ159: 531.7254636 | BK159: 489.9791785 | BL159: 279.5588854 | BM159: 37.57419519 | BN159: 60.39068142 | BO159: 34.63834014 | BP159: 248.7650205 | BQ159: 689.520625 | BR159: 165.1410334 | BS159: 173.9027015 | BT159: 1318.500561 | BU159: 859.32 | BV159: 490.8832803 | BW159: 147.7545548
B160: Latrines a fosses/trou ouvert | C160: 6.937214693 | D160: 8.074142908 | E160: 16.67314104 | F160: 18.89655713 | G160: 6.892363231 | H160: 18.34626245 | I160: 18.28779532 | J160: 13.3634288 | K160: 8.116855349 | L160: 4.227239795 | M160: 6.60271669 | N160: 7.745318714 | O160: 7.491199749 | P160: 12.50969576 | Q160: 20.09919567 | R160: 6.406385258 | S160: 5.522138391 | T160: 8.912882249 | U160: 18.23496797 | V160: 15.62140606 | W160: 6.969470313 | BB160: Latrines a fosses/trou ouvert | BC160: 423.7717429 | BD160: 493.2111735 | BE160: 1018.356046 | BF160: 1154.850965 | BG160: 420.8172381 | BH160: 429.5596488 | BI160: 428.7986198 | BJ160: 313.319408 | BK160: 189.731693 | BL160: 99.27245694 | BM160: 248.571585 | BN160: 291.645363 | BO160: 281.8749566 | BP160: 470.9633627 | BQ160: 757.2700722 | BR160: 178.7296542 | BS160: 202.9078574 | BT160: 701.2294065 | BU160: 1291.769464 | BV160: 903.3742208 | BW160: 232.9965634
B161: Toilettes a compostage | C161: 0.2223428966 | D161: 0.4573707871 | E161: 0.1901749939 | F161: 0.3646258642 | G161: 0.279167143 | H161: 0.2224126992 | I161: 0.2857409405 | J161: 0.9533872294 | K161: 0 | L161: 0 | M161: 0.1373230619 | N161: 0.5778207469 | O161: 0.3878425614 | P161: 0.08781432572 | Q161: 0.3550593077 | R161: 0 | S161: 0.2176748666 | T161: 0.3745068256 | U161: 0.549128376 | V161: 0.2784307403 | W161: 0 | BB161: Toilettes a compostage | BC161: 13.58219991 | BD161: 27.93861654 | BE161: 11.61543913 | BF161: 22.28387575 | BG161: 17.04471197 | BH161: 5.20757409 | BI161: 6.699841002 | BJ161: 22.35314953 | BK161: 0 | BL161: 0 | BM161: 5.169782794 | BN161: 21.75749607 | BO161: 14.5935376 | BP161: 3.306022058 | BQ161: 13.37744017 | BR161: 0 | BS161: 7.998340076 | BT161: 29.46467728 | BU161: 38.90038463 | BV161: 16.10144132 | BW161: 0
B162: Seaux/tinettes | C162: 0 | D162: 0 | E162: 0 | F162: 0 | G162: 0.1334046256 | H162: 0 | I162: 0 | J162: 0 | K162: 0.3484529755 | L162: 0 | M162: 0 | N162: 0 | O162: 0 | P162: 0 | Q162: 0 | R162: 0 | S162: 0 | T162: 0.1035271603 | U162: 0 | V162: 0 | W162: 0 | BB162: Seaux/tinettes | BC162: 0 | BD162: 0 | BE162: 0 | BF162: 0 | BG162: 8.145096857 | BH162: 0 | BI162: 0 | BJ162: 0 | BK162: 8.145096857 | BL162: 0 | BM162: 0 | BN162: 0 | BO162: 0 | BP162: 0 | BQ162: 0 | BR162: 0 | BS162: 0 | BT162: 8.145096857 | BU162: 0 | BV162: 0 | BW162: 0
B163: Toilette suspendues/latrines suspendues | C163: 1.18866157 | D163: 1.545487491 | E163: 1.002195364 | F163: 0.6229189663 | G163: 0.05617846019 | H163: 0.7515773236 | I163: 0.2560007386 | J163: 0.2785209581 | K163: 0.1467381774 | L163: 0 | M163: 1.280814531 | N163: 1.03338867 | O163: 1.908307419 | P163: 1.371240499 | Q163: 0.6797169055 | R163: 0 | S163: 0 | T163: 0.1852858162 | U163: 1.089788243 | V163: 2.851985763 | W163: 0.3895300425 | BB163: Toilette suspendues/latrines suspendues | BC163: 72.61144533 | BD163: 94.40651566 | BE163: 61.21172403 | BF163: 38.06929297 | BG163: 3.430008499 | BH163: 17.5974421 | BI163: 6.002514873 | BJ163: 6.530211892 | BK163: 3.430008499 | BL163: 0 | BM163: 48.21865193 | BN163: 38.91163487 | BO163: 71.80479616 | BP163: 51.62427997 | BQ163: 25.60944619 | BR163: 0 | BS163: 0 | BT163: 14.57753612 | BU163: 77.20085808 | BV163: 164.9282022 | BW163: 13.02239011
B164: Pas de toilettes ou brousse ou champ | C164: 88.26853285 | D164: 85.06508429 | E164: 64.24790208 | F164: 29.86982474 | G164: 7.493883544 | H164: 50.46241766 | I164: 27.15967744 | J164: 11.6883018 | K164: 7.487275795 | L164: 2.14280538 | M164: 89.3033546 | N164: 86.19454312 | O164: 85.29571735 | P164: 74.05000842 | Q164: 49.70655399 | R164: 69.94080554 | S164: 84.90526442 | T164: 11.26943413 | U164: 60.93429206 | V164: 63.61987825 | W164: 85.0112334 | BB164: Pas de toilettes ou brousse ou champ | BC164: 5392.035805 | BD164: 5196.223367 | BE164: 3924.110003 | BF164: 1825.475175 | BG164: 457.54341 | BH164: 1181.527762 | BI164: 636.8199116 | BJ164: 274.044323 | BK164: 175.0152555 | BL164: 50.32162006 | BM164: 3361.991349 | BN164: 3245.604183 | BO164: 3209.462761 | BP164: 2787.824871 | BQ164: 1872.775724 | BR164: 1951.255737 | BS164: 3119.796004 | BT164: 886.6333455 | BU164: 4316.599728 | BV164: 3679.089944 | BW164: 2842.013
B165: Autres | C165: 1.654070387 | D165: 0.786045001 | E165: 0.7483801193 | F165: 0.2647478715 | G165: 0.1138426465 | H165: 1.081785348 | I165: 0.165327282 | J165: 0.5034863011 | K165: 0.2973570724 | L165: 0 | M165: 1.414525283 | N165: 2.037303611 | O165: 0.5073850173 | P165: 0.1010907322 | Q165: 0.4531500439 | R165: 0.07862075306 | S165: 0.1148043923 | T165: 0.4643530641 | U165: 1.435614967 | V165: 0.2156340427 | W165: 1.81815872 | BB165: Autres | BC165: 101.0417468 | BD165: 48.01576858 | BE165: 45.70928882 | BF165: 16.17989631 | BG165: 6.950728867 | BH165: 25.32893746 | BI165: 3.876471117 | BJ165: 11.80475701 | BK165: 6.950728867 | BL165: 0 | BM165: 53.25244262 | BN165: 76.71345404 | BO165: 19.09161877 | BP165: 3.805850445 | BQ165: 17.0731691 | BR165: 2.193414764 | BS165: 4.218422577 | BT165: 36.53341472 | BU165: 101.6993053 | BV165: 12.4699553 | BW165: 60.78291671
B166: Manquant | C166: 0 | D166: 0.0408173861 | E166: 0 | F166: 0.1723118673 | G166: 0 | H166: 0.1564702342 | I166: 0.2928757597 | J166: 0 | K166: 0 | L166: 0 | M166: 0 | N166: 0 | O166: 0.06626383234 | P166: 0 | Q166: 0 | R166: 0 | S166: 0.06785628603 | T166: 0.1338494202 | U166: 0 | V166: 0 | W166: 0 | BB166: Manquant | BC166: 0 | BD166: 2.493340919 | BE166: 0 | BF166: 10.53072921 | BG166: 0 | BH166: 3.663596279 | BI166: 6.867132935 | BJ166: 0 | BK166: 0 | BL166: 0 | BM166: 0 | BN166: 0 | BO166: 2.493340919 | BP166: 0 | BQ166: 0 | BR166: 0 | BS166: 2.493340919 | BT166: 10.53072921 | BU166: 0 | BV166: 0 | BW166: 0
BB167: Total | BC167: 6108.672741 | BD167: 6108.526677 | BE167: 6107.763641 | BF167: 6111.435842 | BG167: 6105.55805 | BH167: 2341.401417 | BI167: 2344.725607 | BJ167: 2344.603414 | BK167: 2337.502455 | BL167: 2348.398997 | BM167: 3764.686516 | BN167: 3765.440439 | BO167: 3762.747839 | BP167: 3764.786703 | BQ167: 3767.663565 | BR167: 2789.867406 | BS167: 3674.443541 | BT167: 7867.594196 | BU167: 7084.02376 | BV167: 5782.925157 | BW167: 3343.10289
A208: =A1026 -> Togo
A209: =A1034 -> 2006
A210: Access to hygiene facilities
A211: by wealth quintile and sub-national region
A212: Notes:
A213: WHO/UNICEF JMP customised wealth index excludes water,
A214: sanitation and hygiene assets.
A215: Survey used for analysis: | B215: =A1025 -> MICS06
A220: Access to handwashing | C220: NATIONAL wealth index quintile | H220: URBAN wealth index quintile | M220: RURAL wealth index quintile | R220: SUB-REGIONS: | BA220: Raw numbers of respondents: | BB220: Access to handwashing | BC220: NATIONAL wealth index quintile | BH220: URBAN wealth index quintile | BM220: RURAL wealth index quintile | BR220: SUB-REGIONS:
A221: Weighted percentage (used in graphs) | C221: Poorest | D221: Poor | E221: Middle | F221: Rich | G221: Richest | H221: Poorest | I221: Poor | J221: Middle | K221: Rich | L221: Richest | M221: Poorest | N221: Poor | O221: Middle | P221: Rich | Q221: Richest | R221: Centrale | S221: Kara | T221: Lomé | U221: Maritime (sans Lomé) | V221: Plateaux | W221: Savanes | BA221: Hygiene data, raw numbers (weighted) | BC221: Poorest | BD221: Poor | BE221: Middle | BF221: Rich | BG221: Richest | BH221: Poorest | BI221: Poor | BJ221: Middle | BK221: Rich | BL221: Richest | BM221: Poorest | BN221: Poor | BO221: Middle | BP221: Rich | BQ221: Richest | BR221: Centrale | BS221: Kara | BT221: Lomé | BU221: Maritime (sans Lomé) | BV221: Plateaux | BW221: Savanes
A222: Hygiene ladder | B222: Basic | C222: N/A | D222: N/A | E222: N/A | F222: N/A | G222: N/A | H222: N/A | I222: N/A | J222: N/A | K222: N/A | L222: N/A | M222: N/A | N222: N/A | O222: N/A | P222: N/A | Q222: N/A | R222: N/A | S222: N/A | T222: N/A | U222: N/A | V222: N/A | W222: N/A | BA222: Hygiene ladder | BB222: Basic | BC222: N/A | BD222: N/A | BE222: N/A | BF222: N/A | BG222: N/A | BH222: N/A | BI222: N/A | BJ222: N/A | BK222: N/A | BL222: N/A | BM222: N/A | BN222: N/A | BO222: N/A | BP222: N/A | BQ222: N/A | BR222: N/A | BS222: N/A | BT222: N/A | BU222: N/A | BV222: N/A | BW222: N/A
B223: Limited | C223: N/A | D223: N/A | E223: N/A | F223: N/A | G223: N/A | H223: N/A | I223: N/A | J223: N/A | K223: N/A | L223: N/A | M223: N/A | N223: N/A | O223: N/A | P223: N/A | Q223: N/A | R223: N/A | S223: N/A | T223: N/A | U223: N/A | V223: N/A | W223: N/A | BB223: Limited | BC223: N/A | BD223: N/A | BE223: N/A | BF223: N/A | BG223: N/A | BH223: N/A | BI223: N/A | BJ223: N/A | BK223: N/A | BL223: N/A | BM223: N/A | BN223: N/A | BO223: N/A | BP223: N/A | BQ223: N/A | BR223: N/A | BS223: N/A | BT223: N/A | BU223: N/A | BV223: N/A | BW223: N/A
B224: No facility | C224: N/A | D224: N/A | E224: N/A | F224: N/A | G224: N/A | H224: N/A | I224: N/A | J224: N/A | K224: N/A | L224: N/A | M224: N/A | N224: N/A | O224: N/A | P224: N/A | Q224: N/A | R224: N/A | S224: N/A | T224: N/A | U224: N/A | V224: N/A | W224: N/A | BB224: No facility | BC224: N/A | BD224: N/A | BE224: N/A | BF224: N/A | BG224: N/A | BH224: N/A | BI224: N/A | BJ224: N/A | BK224: N/A | BL224: N/A | BM224: N/A | BN224: N/A | BO224: N/A | BP224: N/A | BQ224: N/A | BR224: N/A | BS224: N/A | BT224: N/A | BU224: N/A | BV224: N/A | BW224: N/A
BA225: Observed handwashing place | BB225: Fixed | BC225: N/A | BD225: N/A | BE225: N/A | BF225: N/A | BG225: N/A | BH225: N/A | BI225: N/A | BJ225: N/A | BK225: N/A | BL225: N/A | BM225: N/A | BN225: N/A | BO225: N/A | BP225: N/A | BQ225: N/A | BR225: N/A | BS225: N/A | BT225: N/A | BU225: N/A | BV225: N/A | BW225: N/A
BB226: Mobile | BC226: N/A | BD226: N/A | BE226: N/A | BF226: N/A | BG226: N/A | BH226: N/A | BI226: N/A | BJ226: N/A | BK226: N/A | BL226: N/A | BM226: N/A | BN226: N/A | BO226: N/A | BP226: N/A | BQ226: N/A | BR226: N/A | BS226: N/A | BT226: N/A | BU226: N/A | BV226: N/A | BW226: N/A
BA227: Water / Soap | BB227: Water and soap | BC227: N/A | BD227: N/A | BE227: N/A | BF227: N/A | BG227: N/A | BH227: N/A | BI227: N/A | BJ227: N/A | BK227: N/A | BL227: N/A | BM227: N/A | BN227: N/A | BO227: N/A | BP227: N/A | BQ227: N/A | BR227: N/A | BS227: N/A | BT227: N/A | BU227: N/A | BV227: N/A | BW227: N/A
BB228: Water only | BC228: N/A | BD228: N/A | BE228: N/A | BF228: N/A | BG228: N/A | BH228: N/A | BI228: N/A | BJ228: N/A | BK228: N/A | BL228: N/A | BM228: N/A | BN228: N/A | BO228: N/A | BP228: N/A | BQ228: N/A | BR228: N/A | BS228: N/A | BT228: N/A | BU228: N/A | BV228: N/A | BW228: N/A
BB229: Soap only | BC229: N/A | BD229: N/A | BE229: N/A | BF229: N/A | BG229: N/A | BH229: N/A | BI229: N/A | BJ229: N/A | BK229: N/A | BL229: N/A | BM229: N/A | BN229: N/A | BO229: N/A | BP229: N/A | BQ229: N/A | BR229: N/A | BS229: N/A | BT229: N/A | BU229: N/A | BV229: N/A | BW229: N/A
BB230: Neither | BC230: N/A | BD230: N/A | BE230: N/A | BF230: N/A | BG230: N/A | BH230: N/A | BI230: N/A | BJ230: N/A | BK230: N/A | BL230: N/A | BM230: N/A | BN230: N/A | BO230: N/A | BP230: N/A | BQ230: N/A | BR230: N/A | BS230: N/A | BT230: N/A | BU230: N/A | BV230: N/A | BW230: N/A
BA259: Raw numbers of respondents: | BB259: Menstrual health and hygiene | BC259: NATIONAL wealth index quintile | BH259: URBAN wealth index quintile | BM259: RURAL wealth index quintile | BR259: SUB-REGIONS:
BA260: MHH data, raw numbers (weighted) | BC260: Poorest | BD260: Poor | BE260: Middle | BF260: Rich | BG260: Richest | BH260: Poorest | BI260: Poor | BJ260: Middle | BK260: Rich | BL260: Richest | BM260: Poorest | BN260: Poor | BO260: Middle | BP260: Rich | BQ260: Richest | BR260: Centrale | BS260: Kara | BT260: Lomé | BU260: Maritime (sans Lomé) | BV260: Plateaux | BW260: Savanes
BA261: Private place to wash and change | BB261: Yes | BC261: N/A | BD261: N/A | BE261: N/A | BF261: N/A | BG261: N/A | BH261: N/A | BI261: N/A | BJ261: N/A | BK261: N/A | BL261: N/A | BM261: N/A | BN261: N/A | BO261: N/A | BP261: N/A | BQ261: N/A | BR261: N/A | BS261: N/A | BT261: N/A | BU261: N/A | BV261: N/A | BW261: N/A
BB262: No | BC262: N/A | BD262: N/A | BE262: N/A | BF262: N/A | BG262: N/A | BH262: N/A | BI262: N/A | BJ262: N/A | BK262: N/A | BL262: N/A | BM262: N/A | BN262: N/A | BO262: N/A | BP262: N/A | BQ262: N/A | BR262: N/A | BS262: N/A | BT262: N/A | BU262: N/A | BV262: N/A | BW262: N/A
BB263: DK/not sure/missing | BC263: N/A | BD263: N/A | BE263: N/A | BF263: N/A | BG263: N/A | BH263: N/A | BI263: N/A | BJ263: N/A | BK263: N/A | BL263: N/A | BM263: N/A | BN263: N/A | BO263: N/A | BP263: N/A | BQ263: N/A | BR263: N/A | BS263: N/A | BT263: N/A | BU263: N/A | BV263: N/A | BW263: N/A
BA264: Use of menstrual materials | BB264: Materials reusable | BC264: N/A | BD264: N/A | BE264: N/A | BF264: N/A | BG264: N/A | BH264: N/A | BI264: N/A | BJ264: N/A | BK264: N/A | BL264: N/A | BM264: N/A | BN264: N/A | BO264: N/A | BP264: N/A | BQ264: N/A | BR264: N/A | BS264: N/A | BT264: N/A | BU264: N/A | BV264: N/A | BW264: N/A
BB265: Materials not reusable | BC265: N/A | BD265: N/A | BE265: N/A | BF265: N/A | BG265: N/A | BH265: N/A | BI265: N/A | BJ265: N/A | BK265: N/A | BL265: N/A | BM265: N/A | BN265: N/A | BO265: N/A | BP265: N/A | BQ265: N/A | BR265: N/A | BS265: N/A | BT265: N/A | BU265: N/A | BV265: N/A | BW265: N/A
BB266: No materials used | BC266: N/A | BD266: N/A | BE266: N/A | BF266: N/A | BG266: N/A | BH266: N/A | BI266: N/A | BJ266: N/A | BK266: N/A | BL266: N/A | BM266: N/A | BN266: N/A | BO266: N/A | BP266: N/A | BQ266: N/A | BR266: N/A | BS266: N/A | BT266: N/A | BU266: N/A | BV266: N/A | BW266: N/A
BB267: DK/not sure/missing | BC267: N/A | BD267: N/A | BE267: N/A | BF267: N/A | BG267: N/A | BH267: N/A | BI267: N/A | BJ267: N/A | BK267: N/A | BL267: N/A | BM267: N/A | BN267: N/A | BO267: N/A | BP267: N/A | BQ267: N/A | BR267: N/A | BS267: N/A | BT267: N/A | BU267: N/A | BV267: N/A | BW267: N/A
BA268: Use of menstrual materials with private place to wash and change | BB268: Materials reusable | BC268: N/A | BD268: N/A | BE268: N/A | BF268: N/A | BG268: N/A | BH268: N/A | BI268: N/A | BJ268: N/A | BK268: N/A | BL268: N/A | BM268: N/A | BN268: N/A | BO268: N/A | BP268: N/A | BQ268: N/A | BR268: N/A | BS268: N/A | BT268: N/A | BU268: N/A | BV268: N/A | BW268: N/A
BB269: Materials not reusable | BC269: N/A | BD269: N/A | BE269: N/A | BF269: N/A | BG269: N/A | BH269: N/A | BI269: N/A | BJ269: N/A | BK269: N/A | BL269: N/A | BM269: N/A | BN269: N/A | BO269: N/A | BP269: N/A | BQ269: N/A | BR269: N/A | BS269: N/A | BT269: N/A | BU269: N/A | BV269: N/A | BW269: N/A
BB270: No materials used | BC270: N/A | BD270: N/A | BE270: N/A | BF270: N/A | BG270: N/A | BH270: N/A | BI270: N/A | BJ270: N/A | BK270: N/A | BL270: N/A | BM270: N/A | BN270: N/A | BO270: N/A | BP270: N/A | BQ270: N/A | BR270: N/A | BS270: N/A | BT270: N/A | BU270: N/A | BV270: N/A | BW270: N/A
BA271: Awareness of menstruation before menarche | BB271: Yes | BC271: N/A | BD271: N/A | BE271: N/A | BF271: N/A | BG271: N/A | BH271: N/A | BI271: N/A | BJ271: N/A | BK271: N/A | BL271: N/A | BM271: N/A | BN271: N/A | BO271: N/A | BP271: N/A | BQ271: N/A | BR271: N/A | BS271: N/A | BT271: N/A | BU271: N/A | BV271: N/A | BW271: N/A
BB272: No | BC272: N/A | BD272: N/A | BE272: N/A | BF272: N/A | BG272: N/A | BH272: N/A | BI272: N/A | BJ272: N/A | BK272: N/A | BL272: N/A | BM272: N/A | BN272: N/A | BO272: N/A | BP272: N/A | BQ272: N/A | BR272: N/A | BS272: N/A | BT272: N/A | BU272: N/A | BV272: N/A | BW272: N/A
BB273: DK/not sure/missing | BC273: N/A | BD273: N/A | BE273: N/A | BF273: N/A | BG273: N/A | BH273: N/A | BI273: N/A | BJ273: N/A | BK273: N/A | BL273: N/A | BM273: N/A | BN273: N/A | BO273: N/A | BP273: N/A | BQ273: N/A | BR273: N/A | BS273: N/A | BT273: N/A | BU273: N/A | BV273: N/A | BW273: N/A
BA274: Participation in (all) activities during menstruation | BB274: Yes | BC274: N/A | BD274: N/A | BE274: N/A | BF274: N/A | BG274: N/A | BH274: N/A | BI274: N/A | BJ274: N/A | BK274: N/A | BL274: N/A | BM274: N/A | BN274: N/A | BO274: N/A | BP274: N/A | BQ274: N/A | BR274: N/A | BS274: N/A | BT274: N/A | BU274: N/A | BV274: N/A | BW274: N/A
BB275: No | BC275: N/A | BD275: N/A | BE275: N/A | BF275: N/A | BG275: N/A | BH275: N/A | BI275: N/A | BJ275: N/A | BK275: N/A | BL275: N/A | BM275: N/A | BN275: N/A | BO275: N/A | BP275: N/A | BQ275: N/A | BR275: N/A | BS275: N/A | BT275: N/A | BU275: N/A | BV275: N/A | BW275: N/A
BB276: DK/not sure/missing/no such activity | BC276: N/A | BD276: N/A | BE276: N/A | BF276: N/A | BG276: N/A | BH276: N/A | BI276: N/A | BJ276: N/A | BK276: N/A | BL276: N/A | BM276: N/A | BN276: N/A | BO276: N/A | BP276: N/A | BQ276: N/A | BR276: N/A | BS276: N/A | BT276: N/A | BU276: N/A | BV276: N/A | BW276: N/A
BA277: Participation in specific activities during menstruation | BB277: Did not go to school (amongst those usually attending school) | BC277: N/A | BD277: N/A | BE277: N/A | BF277: N/A | BG277: N/A | BH277: N/A | BI277: N/A | BJ277: N/A | BK277: N/A | BL277: N/A | BM277: N/A | BN277: N/A | BO277: N/A | BP277: N/A | BQ277: N/A | BR277: N/A | BS277: N/A | BT277: N/A | BU277: N/A | BV277: N/A | BW277: N/A
BB278: Did not go to work (amongst those who usually work) | BC278: N/A | BD278: N/A | BE278: N/A | BF278: N/A | BG278: N/A | BH278: N/A | BI278: N/A | BJ278: N/A | BK278: N/A | BL278: N/A | BM278: N/A | BN278: N/A | BO278: N/A | BP278: N/A | BQ278: N/A | BR278: N/A | BS278: N/A | BT278: N/A | BU278: N/A | BV278: N/A | BW278: N/A
BB279: Did not participate in social activities | BC279: N/A | BD279: N/A | BE279: N/A | BF279: N/A | BG279: N/A | BH279: N/A | BI279: N/A | BJ279: N/A | BK279: N/A | BL279: N/A | BM279: N/A | BN279: N/A | BO279: N/A | BP279: N/A | BQ279: N/A | BR279: N/A | BS279: N/A | BT279: N/A | BU279: N/A | BV279: N/A | BW279: N/A
BB280: Did not cook food | BC280: N/A | BD280: N/A | BE280: N/A | BF280: N/A | BG280: N/A | BH280: N/A | BI280: N/A | BJ280: N/A | BK280: N/A | BL280: N/A | BM280: N/A | BN280: N/A | BO280: N/A | BP280: N/A | BQ280: N/A | BR280: N/A | BS280: N/A | BT280: N/A | BU280: N/A | BV280: N/A | BW280: N/A
BB281: Did not eat with others | BC281: N/A | BD281: N/A | BE281: N/A | BF281: N/A | BG281: N/A | BH281: N/A | BI281: N/A | BJ281: N/A | BK281: N/A | BL281: N/A | BM281: N/A | BN281: N/A | BO281: N/A | BP281: N/A | BQ281: N/A | BR281: N/A | BS281: N/A | BT281: N/A | BU281: N/A | BV281: N/A | BW281: N/A
BB282: Did not bathe in regular place | BC282: N/A | BD282: N/A | BE282: N/A | BF282: N/A | BG282: N/A | BH282: N/A | BI282: N/A | BJ282: N/A | BK282: N/A | BL282: N/A | BM282: N/A | BN282: N/A | BO282: N/A | BP282: N/A | BQ282: N/A | BR282: N/A | BS282: N/A | BT282: N/A | BU282: N/A | BV282: N/A | BW282: N/A
BB283: Did not participate in other activities | BC283: N/A | BD283: N/A | BE283: N/A | BF283: N/A | BG283: N/A | BH283: N/A | BI283: N/A | BJ283: N/A | BK283: N/A | BL283: N/A | BM283: N/A | BN283: N/A | BO283: N/A | BP283: N/A | BQ283: N/A | BR283: N/A | BS283: N/A | BT283: N/A | BU283: N/A | BV283: N/A | BW283: N/A
BB284: DK/not sure/missing/no such activity | BC284: N/A | BD284: N/A | BE284: N/A | BF284: N/A | BG284: N/A | BH284: N/A | BI284: N/A | BJ284: N/A | BK284: N/A | BL284: N/A | BM284: N/A | BN284: N/A | BO284: N/A | BP284: N/A | BQ284: N/A | BR284: N/A | BS284: N/A | BT284: N/A | BU284: N/A | BV284: N/A | BW284: N/A
BA339: Raw numbers of respondents: | BB339: Basic water, sanitation and hygiene | BC339: NATIONAL wealth index quintile | BH339: URBAN wealth index quintile | BM339: RURAL wealth index quintile | BR339: SUB-REGIONS:
BA340: WatSan data, raw numbers (weighted) | BC340: Poorest | BD340: Poor | BE340: Middle | BF340: Rich | BG340: Richest | BH340: Poorest | BI340: Poor | BJ340: Middle | BK340: Rich | BL340: Richest | BM340: Poorest | BN340: Poor | BO340: Middle | BP340: Rich | BQ340: Richest | BR340: Centrale | BS340: Kara | BT340: Lomé | BU340: Maritime (sans Lomé) | BV340: Plateaux | BW340: Savanes
BA341: Use of Basic Water Sanitation and Hygiene | BB341: Yes | BC341: N/A | BD341: N/A | BE341: N/A | BF341: N/A | BG341: N/A | BH341: N/A | BI341: N/A | BJ341: N/A | BK341: N/A | BL341: N/A | BM341: N/A | BN341: N/A | BO341: N/A | BP341: N/A | BQ341: N/A | BR341: N/A | BS341: N/A | BT341: N/A | BU341: N/A | BV341: N/A | BW341: N/A
BB342: No | BC342: N/A | BD342: N/A | BE342: N/A | BF342: N/A | BG342: N/A | BH342: N/A | BI342: N/A | BJ342: N/A | BK342: N/A | BL342: N/A | BM342: N/A | BN342: N/A | BO342: N/A | BP342: N/A | BQ342: N/A | BR342: N/A | BS342: N/A | BT342: N/A | BU342: N/A | BV342: N/A | BW342: N/A
BA343: Use of Basic Water and Sanitation | BB343: Yes | BC343: N/A | BD343: N/A | BE343: N/A | BF343: N/A | BG343: N/A | BH343: N/A | BI343: N/A | BJ343: N/A | BK343: N/A | BL343: N/A | BM343: N/A | BN343: N/A | BO343: N/A | BP343: N/A | BQ343: N/A | BR343: N/A | BS343: N/A | BT343: N/A | BU343: N/A | BV343: N/A | BW343: N/A
BB344: No | BC344: N/A | BD344: N/A | BE344: N/A | BF344: N/A | BG344: N/A | BH344: N/A | BI344: N/A | BJ344: N/A | BK344: N/A | BL344: N/A | BM344: N/A | BN344: N/A | BO344: N/A | BP344: N/A | BQ344: N/A | BR344: N/A | BS344: N/A | BT344: N/A | BU344: N/A | BV344: N/A | BW344: N/A
BA345: Use of Basic Water and Hygiene | BB345: Yes | BC345: N/A | BD345: N/A | BE345: N/A | BF345: N/A | BG345: N/A | BH345: N/A | BI345: N/A | BJ345: N/A | BK345: N/A | BL345: N/A | BM345: N/A | BN345: N/A | BO345: N/A | BP345: N/A | BQ345: N/A | BR345: N/A | BS345: N/A | BT345: N/A | BU345: N/A | BV345: N/A | BW345: N/A
BB346: No | BC346: N/A | BD346: N/A | BE346: N/A | BF346: N/A | BG346: N/A | BH346: N/A | BI346: N/A | BJ346: N/A | BK346: N/A | BL346: N/A | BM346: N/A | BN346: N/A | BO346: N/A | BP346: N/A | BQ346: N/A | BR346: N/A | BS346: N/A | BT346: N/A | BU346: N/A | BV346: N/A | BW346: N/A
BA347: Use of Basic Sanitation and Hygiene | BB347: Yes | BC347: N/A | BD347: N/A | BE347: N/A | BF347: N/A | BG347: N/A | BH347: N/A | BI347: N/A | BJ347: N/A | BK347: N/A | BL347: N/A | BM347: N/A | BN347: N/A | BO347: N/A | BP347: N/A | BQ347: N/A | BR347: N/A | BS347: N/A | BT347: N/A | BU347: N/A | BV347: N/A | BW347: N/A
BB348: No | BC348: N/A | BD348: N/A | BE348: N/A | BF348: N/A | BG348: N/A | BH348: N/A | BI348: N/A | BJ348: N/A | BK348: N/A | BL348: N/A | BM348: N/A | BN348: N/A | BO348: N/A | BP348: N/A | BQ348: N/A | BR348: N/A | BS348: N/A | BT348: N/A | BU348: N/A | BV348: N/A | BW348: N/A
BA349: Use of Basic Water | BB349: Yes | BC349: N/A | BD349: N/A | BE349: N/A | BF349: N/A | BG349: N/A | BH349: N/A | BI349: N/A | BJ349: N/A | BK349: N/A | BL349: N/A | BM349: N/A | BN349: N/A | BO349: N/A | BP349: N/A | BQ349: N/A | BR349: N/A | BS349: N/A | BT349: N/A | BU349: N/A | BV349: N/A | BW349: N/A
BB350: No | BC350: N/A | BD350: N/A | BE350: N/A | BF350: N/A | BG350: N/A | BH350: N/A | BI350: N/A | BJ350: N/A | BK350: N/A | BL350: N/A | BM350: N/A | BN350: N/A | BO350: N/A | BP350: N/A | BQ350: N/A | BR350: N/A | BS350: N/A | BT350: N/A | BU350: N/A | BV350: N/A | BW350: N/A
BA351: Use of Basic Sanitation | BB351: Yes | BC351: N/A | BD351: N/A | BE351: N/A | BF351: N/A | BG351: N/A | BH351: N/A | BI351: N/A | BJ351: N/A | BK351: N/A | BL351: N/A | BM351: N/A | BN351: N/A | BO351: N/A | BP351: N/A | BQ351: N/A | BR351: N/A | BS351: N/A | BT351: N/A | BU351: N/A | BV351: N/A | BW351: N/A
BB352: No | BC352: N/A | BD352: N/A | BE352: N/A | BF352: N/A | BG352: N/A | BH352: N/A | BI352: N/A | BJ352: N/A | BK352: N/A | BL352: N/A | BM352: N/A | BN352: N/A | BO352: N/A | BP352: N/A | BQ352: N/A | BR352: N/A | BS352: N/A | BT352: N/A | BU352: N/A | BV352: N/A | BW352: N/A
BA353: Access to Basic Hygiene | BB353: Yes | BC353: N/A | BD353: N/A | BE353: N/A | BF353: N/A | BG353: N/A | BH353: N/A | BI353: N/A | BJ353: N/A | BK353: N/A | BL353: N/A | BM353: N/A | BN353: N/A | BO353: N/A | BP353: N/A | BQ353: N/A | BR353: N/A | BS353: N/A | BT353: N/A | BU353: N/A | BV353: N/A | BW353: N/A
BB354: No | BC354: N/A | BD354: N/A | BE354: N/A | BF354: N/A | BG354: N/A | BH354: N/A | BI354: N/A | BJ354: N/A | BK354: N/A | BL354: N/A | BM354: N/A | BN354: N/A | BO354: N/A | BP354: N/A | BQ354: N/A | BR354: N/A | BS354: N/A | BT354: N/A | BU354: N/A | BV354: N/A | BW354: N/A
C399: INITIAL (national) Wealth Index | H399: URBAN Wealth Index | M399: RURAL Wealth Index
C400: Component Matrix | H400: Component Matrix | M400: Component Matrix
E401: Component | J401: Component | O401: Component
B402: Note: The INITIAL (national) Wealth Index is based on the first component of the Principal Component Analysis (PCA) which has been obtained at national level. The final national-level (NATIONAL) Wealth Index is based on the URBAN and RURAL specific wealth indexes. Regression procedures are used to establish the relationships between the two sets of scores (urban and rural) and the initial (national) wealth factors. This allows best use of the available information for each area and a better precision of the FINAL (NATIONAL) Wealth Index. For dependency reasons, all WASH variables (contained in the generic MICS and DHS scripts) have been excluded from the sets of asset variables used in the PCAs. The PCA can extracts as many components as there are asset variables in the input. Only the first of the components is used to represent the Wealth Index. The scores represent the weights of the asset variables on the Wealth Index (correlations between the variables and the component). The communalities are the proportion of each variable's variance that can be explained by the component. Proportion of explained variance is the part of the model's total variance that is explained by the component. For more information on the procedure used: The DHS Wealth Index, DHS Comparative Reports No. 6, Shea Oscar Rutstein, Kiersten Johnson, ORC Macro International Inc., 2004. The DHS Wealth Index: Approaches for Rural and Urban Areas, Shea O. Rutstein, ORC Macro International Inc., 2008. MICS Methodological Paper No. 4, Review of options for reporting water, sanitation and hygiene coverage by wealth quintile, UNICEF, 2016. | E402: 1 | J402: 1 | O402: 1
C403: Has cement blocks wall | E403: 0.8111645892 | H403: Has cement blocks wall | J403: -0.6775968542 | M403: Has mud wall | O403: -0.6948313508
C404: Has mud wall | E404: -0.7879145282 | H404: Household fuel type: wood | J404: 0.6299423847 | M404: Has cement blocks wall | O404: 0.6288545393
C405: Household has: electricity | E405: 0.7548851721 | H405: Has mud wall | J405: 0.6018154185 | M405: Has jute roof | O405: -0.6089230316
C406: Household fuel type: coal/lignite | E406: 0.7345336047 | H406: Household cooks at open sky | J406: 0.5982371333 | M406: Has corrugated iron roof | O406: 0.546537346
C407: Household fuel type: wood | E407: -0.7168752851 | H407: Household has: television | J407: -0.5823283165 | M407: Has earth/sand floor | O407: -0.5165494678
C408: Household has: television | E408: 0.701267472 | H408: Household has: electricity | J408: -0.5604847016 | M408: Has cement floor | O408: 0.5123629751
C409: Household has: mobile telephone | E409: 0.6881677487 | H409: Household has: mobile telephone | J409: -0.5491135129 | M409: Household has: mobile telephone | O409: 0.4771191174
C410: Household cooks at open sky | E410: -0.6497594817 | H410: Household fuel type: coal/lignite | J410: -0.4991571279 | M410: Household has: television | O410: 0.4745068249
C411: Has jute roof | E411: -0.6144118759 | H411: House has weak doors | J411: 0.4844744578 | M411: Household fuel type: coal/lignite | O411: 0.4691603036
... 260 more rows

Sheet MICS10
A2: =A1026 -> Togo
A3: =A1034 -> 2010
A4: Use of drinking water sources
A5: by wealth quintile and sub-national region
A6: Notes:
A7: WHO/UNICEF JMP customised wealth index excludes water,
A8: sanitation and hygiene assets.
A9: Survey used for analysis: | B9: =A1025 -> MICS10
A10: =B1028 -> 
A11: =B1027 -> 
A14: Use of drinking water sources | C14: NATIONAL wealth index quintile | H14: URBAN wealth index quintile | M14: RURAL wealth index quintile | R14: SUB-REGIONS: | BA14: Raw numbers of respondents: | BB14: Use of drinking water sources | BC14: NATIONAL wealth index quintile | BH14: URBAN wealth index quintile | BM14: RURAL wealth index quintile | BR14: SUB-REGIONS:
A15: Weighted percentage (used in graphs) | C15: Poorest | D15: Poor | E15: Middle | F15: Rich | G15: Richest | H15: Poorest | I15: Poor | J15: Middle | K15: Rich | L15: Richest | M15: Poorest | N15: Poor | O15: Middle | P15: Rich | Q15: Richest | R15: Centrale | S15: Kara | T15: Lomé | U15: Maritime | V15: Plateaux | W15: Savanes | BA15: Water data, raw numbers (weighted) | BC15: Poorest | BD15: Poor | BE15: Middle | BF15: Rich | BG15: Richest | BH15: Poorest | BI15: Poor | BJ15: Middle | BK15: Rich | BL15: Richest | BM15: Poorest | BN15: Poor | BO15: Middle | BP15: Rich | BQ15: Richest | BR15: Centrale | BS15: Kara | BT15: Lomé | BU15: Maritime | BV15: Plateaux | BW15: Savanes
A16: Water | B16: Improved | C16: 24.57272587 | D16: 39.09419892 | E16: 52.77585433 | F16: 81.70956004 | G16: 92.12989559 | H16: 78.04145975 | I16: 89.36554369 | J16: 92.23010539 | K16: 92.43851021 | L16: 94.42672456 | M16: 24.56757686 | N16: 27.93833281 | O16: 39.57884173 | P16: 45.68738074 | Q16: 58.43464428 | R16: 62.52866361 | S16: 60.70791477 | T16: 93.40072615 | U16: 62.83717656 | V16: 36.37928922 | W16: 42.93478702 | BA16: Water | BB16: Improved | BC16: N/A | BD16: N/A | BE16: N/A | BF16: N/A | BG16: N/A | BH16: N/A | BI16: N/A | BJ16: N/A | BK16: N/A | BL16: N/A | BM16: N/A | BN16: N/A | BO16: N/A | BP16: N/A | BQ16: N/A | BR16: N/A | BS16: N/A | BT16: N/A | BU16: N/A | BV16: N/A | BW16: N/A
B17: Not Improved | C17: 75.42727413 | D17: 60.90580108 | E17: 47.22414567 | F17: 18.29043996 | G17: 7.87010441 | H17: 21.95854025 | I17: 10.63445631 | J17: 7.769894615 | K17: 7.561489793 | L17: 5.573275442 | M17: 75.43242314 | N17: 72.06166719 | O17: 60.42115827 | P17: 54.31261926 | Q17: 41.56535572 | R17: 37.47133639 | S17: 39.29208523 | T17: 6.599273846 | U17: 37.16282344 | V17: 63.62071078 | W17: 57.06521298 | BB17: Not Improved | BC17: N/A | BD17: N/A | BE17: N/A | BF17: N/A | BG17: N/A | BH17: N/A | BI17: N/A | BJ17: N/A | BK17: N/A | BL17: N/A | BM17: N/A | BN17: N/A | BO17: N/A | BP17: N/A | BQ17: N/A | BR17: N/A | BS17: N/A | BT17: N/A | BU17: N/A | BV17: N/A | BW17: N/A
A18: Water ladder | B18: Basic | C18: =C16*C23/100 -> 20.27249885 | D18: =D16*D23/100 -> 33.26916328 | E18: =E16*E23/100 -> 46.17887254 | F18: 77.46066292 | G18: 88.81321935 | H18: 72.89072341 | I18: 85.52282531 | J18: 88.81759149 | K18: 89.48047788 | L18: 92.82147024 | M18: 19.77689937 | N18: 23.13293957 | O18: 34.2356981 | P18: 39.47389696 | Q18: 51.36405232 | R18: 56.33832591 | S18: 50.69110883 | T18: 91.71951308 | U18: 59.06694596 | V18: 31.79549878 | W18: 37.65380822 | BA18: Water ladder | BB18: Basic | BC18: N/A | BD18: N/A | BE18: N/A | BF18: N/A | BG18: N/A | BH18: N/A | BI18: N/A | BJ18: N/A | BK18: N/A | BL18: N/A | BM18: N/A | BN18: N/A | BO18: N/A | BP18: N/A | BQ18: N/A | BR18: N/A | BS18: N/A | BT18: N/A | BU18: N/A | BV18: N/A | BW18: N/A
B19: Limited | C19: =C16*C22/100 -> 4.300227028 | D19: =D16*D22/100 -> 5.825035639 | E19: =E16*E22/100 -> 6.596981791 | F19: 4.248897122 | G19: 3.316676241 | H19: 5.150736344 | I19: 3.842718379 | J19: 3.412513899 | K19: 2.958032327 | L19: 1.605254317 | M19: 4.790677487 | N19: 4.805393243 | O19: 5.343143634 | P19: 6.213483781 | Q19: 7.070591958 | R19: 6.190337697 | S19: 10.01680594 | T19: 1.681213071 | U19: 3.770230593 | V19: 4.583790442 | W19: 5.280978803 | BB19: Limited | BC19: N/A | BD19: N/A | BE19: N/A | BF19: N/A | BG19: N/A | BH19: N/A | BI19: N/A | BJ19: N/A | BK19: N/A | BL19: N/A | BM19: N/A | BN19: N/A | BO19: N/A | BP19: N/A | BQ19: N/A | BR19: N/A | BS19: N/A | BT19: N/A | BU19: N/A | BV19: N/A | BW19: N/A
B20: Unimproved | C20: =100-C18-C19-C21 -> 37.0356233 | D20: =100-D18-D19-D21 -> 32.14581309 | E20: =100-E18-E19-E21 -> 27.87667164 | F20: 15.87698201 | G20: 7.652400585 | H20: 20.85308964 | I20: 10.55287488 | J20: 7.769894615 | K20: 7.561489793 | L20: 5.573275442 | M20: 36.81808532 | N20: 38.0304043 | O20: 30.68748469 | P20: 30.33406823 | Q20: 27.07772501 | R20: 23.90467614 | S20: 19.01560708 | T20: 6.599273846 | U20: 29.22247391 | V20: 18.61691724 | W20: 38.3556235 | BB20: Unimproved | BC20: N/A | BD20: N/A | BE20: N/A | BF20: N/A | BG20: N/A | BH20: N/A | BI20: N/A | BJ20: N/A | BK20: N/A | BL20: N/A | BM20: N/A | BN20: N/A | BO20: N/A | BP20: N/A | BQ20: N/A | BR20: N/A | BS20: N/A | BT20: N/A | BU20: N/A | BV20: N/A | BW20: N/A
B21: Surface water | C21: 38.39165082 | D21: 28.75998799 | E21: 19.34747403 | F21: 2.413457956 | G21: 0.2177038256 | H21: 1.105450606 | I21: 0.08158143025 | J21: 0 | K21: 0 | L21: 0 | M21: 38.61433782 | N21: 34.03126289 | O21: 29.73367358 | P21: 23.97855103 | Q21: 14.4876307 | R21: 13.56666025 | S21: 20.27647815 | T21: 0 | U21: 7.94034953 | V21: 45.00379354 | W21: 18.70958948 | BB21: Surface water | BC21: N/A | BD21: N/A | BE21: N/A | BF21: N/A | BG21: N/A | BH21: N/A | BI21: N/A | BJ21: N/A | BK21: N/A | BL21: N/A | BM21: N/A | BN21: N/A | BO21: N/A | BP21: N/A | BQ21: N/A | BR21: N/A | BS21: N/A | BT21: N/A | BU21: N/A | BV21: N/A | BW21: N/A
A22: Improved water point at more than 30 minutes | B22: Yes | C22: 17.5 | D22: 14.9 | E22: 12.5 | F22: 5.2 | G22: 3.6 | H22: 6.6 | I22: 4.3 | J22: 3.7 | K22: 3.2 | L22: 1.7 | M22: 19.5 | N22: 17.2 | O22: 13.5 | P22: 13.6 | Q22: 12.1 | R22: 9.9 | S22: 16.5 | T22: 1.8 | U22: 6 | V22: 12.6 | W22: 12.3 | BA22: Improved water point at more than 30 minutes | BB22: Yes | BC22: N/A | BD22: N/A | BE22: N/A | BF22: N/A | BG22: N/A | BH22: N/A | BI22: N/A | BJ22: N/A | BK22: N/A | BL22: N/A | BM22: N/A | BN22: N/A | BO22: N/A | BP22: N/A | BQ22: N/A | BR22: N/A | BS22: N/A | BT22: N/A | BU22: N/A | BV22: N/A | BW22: N/A
B23: No | C23: 82.5 | D23: 85.1 | E23: 87.5 | F23: 94.8 | G23: 96.4 | H23: 93.4 | I23: 95.7 | J23: 96.3 | K23: 96.8 | L23: 98.3 | M23: 80.5 | N23: 82.8 | O23: 86.5 | P23: 86.4 | Q23: 87.9 | R23: 90.1 | S23: 83.5 | T23: 98.2 | U23: 94 | V23: 87.4 | W23: 87.7 | BB23: No | BC23: N/A | BD23: N/A | BE23: N/A | BF23: N/A | BG23: N/A | BH23: N/A | BI23: N/A | BJ23: N/A | BK23: N/A | BL23: N/A | BM23: N/A | BN23: N/A | BO23: N/A | BP23: N/A | BQ23: N/A | BR23: N/A | BS23: N/A | BT23: N/A | BU23: N/A | BV23: N/A | BW23: N/A
A24: Manually calculated ratios | B24: Improved wells
B25: Improved springs
B26: Other
C27: NATIONAL wealth index quintile | H27: URBAN wealth index quintile | M27: RURAL wealth index quintile | R27: SUB-REGIONS: | BA27: Raw numbers of respondents: | BB27: Use of drinking water sources | BC27: NATIONAL wealth index quintile | BH27: URBAN wealth index quintile | BM27: RURAL wealth index quintile | BR27: SUB-REGIONS:
A28: Percentage based on weighted population | C28: Poorest | D28: Poor | E28: Middle | F28: Rich | G28: Richest | H28: Poorest | I28: Poor | J28: Middle | K28: Rich | L28: Richest | M28: Poorest | N28: Poor | O28: Middle | P28: Rich | Q28: Richest | R28: Centrale | S28: Kara | T28: Lomé | U28: Maritime | V28: Plateaux | W28: Savanes | BA28: Water data, raw numbers (weighted) | BC28: Poorest | BD28: Poor | BE28: Middle | BF28: Rich | BG28: Richest | BH28: Poorest | BI28: Poor | BJ28: Middle | BK28: Rich | BL28: Richest | BM28: Poorest | BN28: Poor | BO28: Middle | BP28: Rich | BQ28: Richest | BR28: Centrale | BS28: Kara | BT28: Lomé | BU28: Maritime | BV28: Plateaux | BW28: Savanes
A29: Piped water | B29: Yes | C29: 3.5 | D29: 7.8 | E29: 17.4 | F29: 44.1 | G29: 57 | H29: 41.9 | I29: 54.2 | J29: 57.9 | K29: 56.2 | L29: 61.4 | M29: 3.8 | N29: 3.6 | O29: 7.9 | P29: 12.1 | Q29: 17.2 | R29: 14.5 | S29: 23 | T29: 73.6 | U29: 23.8 | V29: 15.3 | W29: 13 | BA29: Piped water | BB29: Yes | BC29: N/A | BD29: N/A | BE29: N/A | BF29: N/A | BG29: N/A | BH29: N/A | BI29: N/A | BJ29: N/A | BK29: N/A | BL29: N/A | BM29: N/A | BN29: N/A | BO29: N/A | BP29: N/A | BQ29: N/A | BR29: N/A | BS29: N/A | BT29: N/A | BU29: N/A | BV29: N/A | BW29: N/A
B30: No | C30: 96.5 | D30: 92.2 | E30: 82.6 | F30: 55.9 | G30: 43 | H30: 58.1 | I30: 45.8 | J30: 42.1 | K30: 43.8 | L30: 38.6 | M30: 96.2 | N30: 96.4 | O30: 92.1 | P30: 87.9 | Q30: 82.8 | R30: 85.5 | S30: 77 | T30: 26.4 | U30: 76.2 | V30: 84.7 | W30: 87 | BB30: No | BC30: N/A | BD30: N/A | BE30: N/A | BF30: N/A | BG30: N/A | BH30: N/A | BI30: N/A | BJ30: N/A | BK30: N/A | BL30: N/A | BM30: N/A | BN30: N/A | BO30: N/A | BP30: N/A | BQ30: N/A | BR30: N/A | BS30: N/A | BT30: N/A | BU30: N/A | BV30: N/A | BW30: N/A
A31: Piped water on premises | B31: Yes | C31: 0 | D31: 0.1 | E31: 0.4 | F31: 4.2 | G31: 22 | H31: 0.9 | I31: 4.1 | J31: 10.1 | K31: 12.5 | L31: 40.2 | M31: 0 | N31: 0 | O31: 0.1 | P31: 0.3 | Q31: 1.4 | R31: 0.8 | S31: 4.4 | T31: 20.2 | U31: 5.6 | V31: 0.6 | W31: 1.9 | BA31: Piped water on premises | BB31: Yes | BC31: N/A | BD31: N/A | BE31: N/A | BF31: N/A | BG31: N/A | BH31: N/A | BI31: N/A | BJ31: N/A | BK31: N/A | BL31: N/A | BM31: N/A | BN31: N/A | BO31: N/A | BP31: N/A | BQ31: N/A | BR31: N/A | BS31: N/A | BT31: N/A | BU31: N/A | BV31: N/A | BW31: N/A
B32: No | C32: 100 | D32: 99.9 | E32: 99.6 | F32: 95.8 | G32: 78 | H32: 99.1 | I32: 95.9 | J32: 89.9 | K32: 87.5 | L32: 59.8 | M32: 100 | N32: 100 | O32: 99.9 | P32: 99.7 | Q32: 98.6 | R32: 99.2 | S32: 95.6 | T32: 79.8 | U32: 94.4 | V32: 99.4 | W32: 98.1 | BB32: No | BC32: N/A | BD32: N/A | BE32: N/A | BF32: N/A | BG32: N/A | BH32: N/A | BI32: N/A | BJ32: N/A | BK32: N/A | BL32: N/A | BM32: N/A | BN32: N/A | BO32: N/A | BP32: N/A | BQ32: N/A | BR32: N/A | BS32: N/A | BT32: N/A | BU32: N/A | BV32: N/A | BW32: N/A
A33: Piped water into dwelling | B33: Yes | C33: N/A | D33: N/A | E33: N/A | F33: N/A | G33: N/A | H33: N/A | I33: N/A | J33: N/A | K33: N/A | L33: N/A | M33: N/A | N33: N/A | O33: N/A | P33: N/A | Q33: N/A | R33: N/A | S33: N/A | T33: N/A | U33: N/A | V33: N/A | W33: N/A | BA33: Piped water into dwelling | BB33: Yes | BC33: N/A | BD33: N/A | BE33: N/A | BF33: N/A | BG33: N/A | BH33: N/A | BI33: N/A | BJ33: N/A | BK33: N/A | BL33: N/A | BM33: N/A | BN33: N/A | BO33: N/A | BP33: N/A | BQ33: N/A | BR33: N/A | BS33: N/A | BT33: N/A | BU33: N/A | BV33: N/A | BW33: N/A
B34: No | C34: N/A | D34: N/A | E34: N/A | F34: N/A | G34: N/A | H34: N/A | I34: N/A | J34: N/A | K34: N/A | L34: N/A | M34: N/A | N34: N/A | O34: N/A | P34: N/A | Q34: N/A | R34: N/A | S34: N/A | T34: N/A | U34: N/A | V34: N/A | W34: N/A | BB34: No | BC34: N/A | BD34: N/A | BE34: N/A | BF34: N/A | BG34: N/A | BH34: N/A | BI34: N/A | BJ34: N/A | BK34: N/A | BL34: N/A | BM34: N/A | BN34: N/A | BO34: N/A | BP34: N/A | BQ34: N/A | BR34: N/A | BS34: N/A | BT34: N/A | BU34: N/A | BV34: N/A | BW34: N/A
A35: Water source on premises | B35: Yes | C35: 5.1 | D35: 7.3 | E35: 12 | F35: 21.9 | G35: 41.1 | H35: 20.6 | I35: 20.2 | J35: 23.3 | K35: 29.6 | L35: 62.3 | M35: 5.5 | N35: 5.9 | O35: 6.3 | P35: 9.9 | Q35: 18.5 | R35: 14.2 | S35: 10.6 | T35: 30.3 | U35: 22.5 | V35: 15.6 | W35: 5.7 | BA35: Water source on premises | BB35: Yes | BC35: N/A | BD35: N/A | BE35: N/A | BF35: N/A | BG35: N/A | BH35: N/A | BI35: N/A | BJ35: N/A | BK35: N/A | BL35: N/A | BM35: N/A | BN35: N/A | BO35: N/A | BP35: N/A | BQ35: N/A | BR35: N/A | BS35: N/A | BT35: N/A | BU35: N/A | BV35: N/A | BW35: N/A
B36: No | C36: 94.9 | D36: 92.7 | E36: 88 | F36: 78.1 | G36: 58.9 | H36: 79.4 | I36: 79.8 | J36: 76.7 | K36: 70.4 | L36: 37.7 | M36: 94.5 | N36: 94.1 | O36: 93.7 | P36: 90.1 | Q36: 81.5 | R36: 85.8 | S36: 89.4 | T36: 69.7 | U36: 77.5 | V36: 84.4 | W36: 94.3 | BB36: No | BC36: N/A | BD36: N/A | BE36: N/A | BF36: N/A | BG36: N/A | BH36: N/A | BI36: N/A | BJ36: N/A | BK36: N/A | BL36: N/A | BM36: N/A | BN36: N/A | BO36: N/A | BP36: N/A | BQ36: N/A | BR36: N/A | BS36: N/A | BT36: N/A | BU36: N/A | BV36: N/A | BW36: N/A
A37: Improved Water source on premises | B37: Yes | C37: 0.9 | D37: 2 | E37: 5.3 | F37: 13 | G37: 35.2 | H37: 10.1 | I37: 13.6 | J37: 18.1 | K37: 24.8 | L37: 56.9 | M37: 1.3 | N37: 0.6 | O37: 1.7 | P37: 3.7 | Q37: 8.6 | R37: 9 | S37: 8.6 | T37: 25.3 | U37: 13.2 | V37: 7.3 | W37: 3.8 | BA37: Improved water source on premises | BB37: Yes | BC37: N/A | BD37: N/A | BE37: N/A | BF37: N/A | BG37: N/A | BH37: N/A | BI37: N/A | BJ37: N/A | BK37: N/A | BL37: N/A | BM37: N/A | BN37: N/A | BO37: N/A | BP37: N/A | BQ37: N/A | BR37: N/A | BS37: N/A | BT37: N/A | BU37: N/A | BV37: N/A | BW37: N/A
B38: No | C38: 99.1 | D38: 98 | E38: 94.7 | F38: 87 | G38: 64.8 | H38: 89.9 | I38: 86.4 | J38: 81.9 | K38: 75.2 | L38: 43.1 | M38: 98.7 | N38: 99.4 | O38: 98.3 | P38: 96.3 | Q38: 91.4 | R38: 91 | S38: 91.4 | T38: 74.7 | U38: 86.8 | V38: 92.7 | W38: 96.2 | BB38: No | BC38: N/A | BD38: N/A | BE38: N/A | BF38: N/A | BG38: N/A | BH38: N/A | BI38: N/A | BJ38: N/A | BK38: N/A | BL38: N/A | BM38: N/A | BN38: N/A | BO38: N/A | BP38: N/A | BQ38: N/A | BR38: N/A | BS38: N/A | BT38: N/A | BU38: N/A | BV38: N/A | BW38: N/A
A39: Piped water on premises available when needed | B39: Yes | C39: N/A | D39: N/A | E39: N/A | F39: N/A | G39: N/A | H39: N/A | I39: N/A | J39: N/A | K39: N/A | L39: N/A | M39: N/A | N39: N/A | O39: N/A | P39: N/A | Q39: N/A | R39: N/A | S39: N/A | T39: N/A | U39: N/A | V39: N/A | W39: N/A | BA39: Piped water on premises available when needed | BB39: Yes | BC39: N/A | BD39: N/A | BE39: N/A | BF39: N/A | BG39: N/A | BH39: N/A | BI39: N/A | BJ39: N/A | BK39: N/A | BL39: N/A | BM39: N/A | BN39: N/A | BO39: N/A | BP39: N/A | BQ39: N/A | BR39: N/A | BS39: N/A | BT39: N/A | BU39: N/A | BV39: N/A | BW39: N/A
B40: No | C40: N/A | D40: N/A | E40: N/A | F40: N/A | G40: N/A | H40: N/A | I40: N/A | J40: N/A | K40: N/A | L40: N/A | M40: N/A | N40: N/A | O40: N/A | P40: N/A | Q40: N/A | R40: N/A | S40: N/A | T40: N/A | U40: N/A | V40: N/A | W40: N/A | BB40: No | BC40: N/A | BD40: N/A | BE40: N/A | BF40: N/A | BG40: N/A | BH40: N/A | BI40: N/A | BJ40: N/A | BK40: N/A | BL40: N/A | BM40: N/A | BN40: N/A | BO40: N/A | BP40: N/A | BQ40: N/A | BR40: N/A | BS40: N/A | BT40: N/A | BU40: N/A | BV40: N/A | BW40: N/A
A41: Water point at more than 30 minutes | B41: Yes | C41: 27.5 | D41: 19.2 | E41: 18.4 | F41: 6.3 | G41: 3.4 | H41: 5 | I41: 3.8 | J41: 3.3 | K41: 3.1 | L41: 1.6 | M41: 28.8 | N41: 24.6 | O41: 18.6 | P41: 19.1 | Q41: 17.5 | R41: 12.3 | S41: 21.6 | T41: 1.6 | U41: 11.1 | V41: 25.2 | W41: 17.4 | BA41: Water point at more than 30 minutes | BB41: Yes | BC41: N/A | BD41: N/A | BE41: N/A | BF41: N/A | BG41: N/A | BH41: N/A | BI41: N/A | BJ41: N/A | BK41: N/A | BL41: N/A | BM41: N/A | BN41: N/A | BO41: N/A | BP41: N/A | BQ41: N/A | BR41: N/A | BS41: N/A | BT41: N/A | BU41: N/A | BV41: N/A | BW41: N/A
B42: No | C42: 72.5 | D42: 80.8 | E42: 81.6 | F42: 93.7 | G42: 96.6 | H42: 95 | I42: 96.2 | J42: 96.7 | K42: 96.9 | L42: 98.4 | M42: 71.2 | N42: 75.4 | O42: 81.4 | P42: 80.9 | Q42: 82.5 | R42: 87.7 | S42: 78.4 | T42: 98.4 | U42: 88.9 | V42: 74.8 | W42: 82.6 | BB42: No | BC42: N/A | BD42: N/A | BE42: N/A | BF42: N/A | BG42: N/A | BH42: N/A | BI42: N/A | BJ42: N/A | BK42: N/A | BL42: N/A | BM42: N/A | BN42: N/A | BO42: N/A | BP42: N/A | BQ42: N/A | BR42: N/A | BS42: N/A | BT42: N/A | BU42: N/A | BV42: N/A | BW42: N/A
A43: Water source available when needed | B43: Yes | C43: N/A | D43: N/A | E43: N/A | F43: N/A | G43: N/A | H43: N/A | I43: N/A | J43: N/A | K43: N/A | L43: N/A | M43: N/A | N43: N/A | O43: N/A | P43: N/A | Q43: N/A | R43: N/A | S43: N/A | T43: N/A | U43: N/A | V43: N/A | W43: N/A | BA43: Water source available when needed | BB43: Yes | BC43: N/A | BD43: N/A | BE43: N/A | BF43: N/A | BG43: N/A | BH43: N/A | BI43: N/A | BJ43: N/A | BK43: N/A | BL43: N/A | BM43: N/A | BN43: N/A | BO43: N/A | BP43: N/A | BQ43: N/A | BR43: N/A | BS43: N/A | BT43: N/A | BU43: N/A | BV43: N/A | BW43: N/A
B44: No | C44: N/A | D44: N/A | E44: N/A | F44: N/A | G44: N/A | H44: N/A | I44: N/A | J44: N/A | K44: N/A | L44: N/A | M44: N/A | N44: N/A | O44: N/A | P44: N/A | Q44: N/A | R44: N/A | S44: N/A | T44: N/A | U44: N/A | V44: N/A | W44: N/A | BB44: No | BC44: N/A | BD44: N/A | BE44: N/A | BF44: N/A | BG44: N/A | BH44: N/A | BI44: N/A | BJ44: N/A | BK44: N/A | BL44: N/A | BM44: N/A | BN44: N/A | BO44: N/A | BP44: N/A | BQ44: N/A | BR44: N/A | BS44: N/A | BT44: N/A | BU44: N/A | BV44: N/A | BW44: N/A
A45: Improved water source available when needed | B45: Yes | C45: N/A | D45: N/A | E45: N/A | F45: N/A | G45: N/A | H45: N/A | I45: N/A | J45: N/A | K45: N/A | L45: N/A | M45: N/A | N45: N/A | O45: N/A | P45: N/A | Q45: N/A | R45: N/A | S45: N/A | T45: N/A | U45: N/A | V45: N/A | W45: N/A | BA45: Improved water source available when needed | BB45: Yes | BC45: N/A | BD45: N/A | BE45: N/A | BF45: N/A | BG45: N/A | BH45: N/A | BI45: N/A | BJ45: N/A | BK45: N/A | BL45: N/A | BM45: N/A | BN45: N/A | BO45: N/A | BP45: N/A | BQ45: N/A | BR45: N/A | BS45: N/A | BT45: N/A | BU45: N/A | BV45: N/A | BW45: N/A
B46: No | C46: N/A | D46: N/A | E46: N/A | F46: N/A | G46: N/A | H46: N/A | I46: N/A | J46: N/A | K46: N/A | L46: N/A | M46: N/A | N46: N/A | O46: N/A | P46: N/A | Q46: N/A | R46: N/A | S46: N/A | T46: N/A | U46: N/A | V46: N/A | W46: N/A | BB46: No | BC46: N/A | BD46: N/A | BE46: N/A | BF46: N/A | BG46: N/A | BH46: N/A | BI46: N/A | BJ46: N/A | BK46: N/A | BL46: N/A | BM46: N/A | BN46: N/A | BO46: N/A | BP46: N/A | BQ46: N/A | BR46: N/A | BS46: N/A | BT46: N/A | BU46: N/A | BV46: N/A | BW46: N/A
A47: Microbiological quality at point of collection | B47: Not contaminated (No E. coli in 100 mL) | C47: N/A | D47: N/A | E47: N/A | F47: N/A | G47: N/A | H47: N/A | I47: N/A | J47: N/A | K47: N/A | L47: N/A | M47: N/A | N47: N/A | O47: N/A | P47: N/A | Q47: N/A | R47: N/A | S47: N/A | T47: N/A | U47: N/A | V47: N/A | W47: N/A | BA47: Microbiological quality at point of collection | BB47: Not contaminated (No E. coli in 100 mL) | BC47: N/A | BD47: N/A | BE47: N/A | BF47: N/A | BG47: N/A | BH47: N/A | BI47: N/A | BJ47: N/A | BK47: N/A | BL47: N/A | BM47: N/A | BN47: N/A | BO47: N/A | BP47: N/A | BQ47: N/A | BR47: N/A | BS47: N/A | BT47: N/A | BU47: N/A | BV47: N/A | BW47: N/A
B48: Contaminated (E. coli detected in 100 mL) | C48: N/A | D48: N/A | E48: N/A | F48: N/A | G48: N/A | H48: N/A | I48: N/A | J48: N/A | K48: N/A | L48: N/A | M48: N/A | N48: N/A | O48: N/A | P48: N/A | Q48: N/A | R48: N/A | S48: N/A | T48: N/A | U48: N/A | V48: N/A | W48: N/A | BB48: Contaminated (E. coli detected in 100 mL) | BC48: N/A | BD48: N/A | BE48: N/A | BF48: N/A | BG48: N/A | BH48: N/A | BI48: N/A | BJ48: N/A | BK48: N/A | BL48: N/A | BM48: N/A | BN48: N/A | BO48: N/A | BP48: N/A | BQ48: N/A | BR48: N/A | BS48: N/A | BT48: N/A | BU48: N/A | BV48: N/A | BW48: N/A
B49: Highly contaminated (>100 CFU/100 mL) | C49: N/A | D49: N/A | E49: N/A | F49: N/A | G49: N/A | H49: N/A | I49: N/A | J49: N/A | K49: N/A | L49: N/A | M49: N/A | N49: N/A | O49: N/A | P49: N/A | Q49: N/A | R49: N/A | S49: N/A | T49: N/A | U49: N/A | V49: N/A | W49: N/A | BB49: Highly contaminated (>100 CFU/100 mL) | BC49: N/A | BD49: N/A | BE49: N/A | BF49: N/A | BG49: N/A | BH49: N/A | BI49: N/A | BJ49: N/A | BK49: N/A | BL49: N/A | BM49: N/A | BN49: N/A | BO49: N/A | BP49: N/A | BQ49: N/A | BR49: N/A | BS49: N/A | BT49: N/A | BU49: N/A | BV49: N/A | BW49: N/A
A50: Microbiological quality of improved water sources at point of collection | B50: Not contaminated (No E. coli in 100 mL) | C50: N/A | D50: N/A | E50: N/A | F50: N/A | G50: N/A | H50: N/A | I50: N/A | J50: N/A | K50: N/A | L50: N/A | M50: N/A | N50: N/A | O50: N/A | P50: N/A | Q50: N/A | R50: N/A | S50: N/A | T50: N/A | U50: N/A | V50: N/A | W50: N/A | BA50: Microbiological quality of improved water sources at point of collection | BB50: Not contaminated (No E. coli in 100 mL) | BC50: N/A | BD50: N/A | BE50: N/A | BF50: N/A | BG50: N/A | BH50: N/A | BI50: N/A | BJ50: N/A | BK50: N/A | BL50: N/A | BM50: N/A | BN50: N/A | BO50: N/A | BP50: N/A | BQ50: N/A | BR50: N/A | BS50: N/A | BT50: N/A | BU50: N/A | BV50: N/A | BW50: N/A
B51: Contaminated (E. coli detected in 100 mL) | C51: N/A | D51: N/A | E51: N/A | F51: N/A | G51: N/A | H51: N/A | I51: N/A | J51: N/A | K51: N/A | L51: N/A | M51: N/A | N51: N/A | O51: N/A | P51: N/A | Q51: N/A | R51: N/A | S51: N/A | T51: N/A | U51: N/A | V51: N/A | W51: N/A | BB51: Contaminated (E. coli detected in 100 mL) | BC51: N/A | BD51: N/A | BE51: N/A | BF51: N/A | BG51: N/A | BH51: N/A | BI51: N/A | BJ51: N/A | BK51: N/A | BL51: N/A | BM51: N/A | BN51: N/A | BO51: N/A | BP51: N/A | BQ51: N/A | BR51: N/A | BS51: N/A | BT51: N/A | BU51: N/A | BV51: N/A | BW51: N/A
B52: Highly contaminated (>100 CFU/100 mL) | C52: N/A | D52: N/A | E52: N/A | F52: N/A | G52: N/A | H52: N/A | I52: N/A | J52: N/A | K52: N/A | L52: N/A | M52: N/A | N52: N/A | O52: N/A | P52: N/A | Q52: N/A | R52: N/A | S52: N/A | T52: N/A | U52: N/A | V52: N/A | W52: N/A | BB52: Highly contaminated (>100 CFU/100 mL) | BC52: N/A | BD52: N/A | BE52: N/A | BF52: N/A | BG52: N/A | BH52: N/A | BI52: N/A | BJ52: N/A | BK52: N/A | BL52: N/A | BM52: N/A | BN52: N/A | BO52: N/A | BP52: N/A | BQ52: N/A | BR52: N/A | BS52: N/A | BT52: N/A | BU52: N/A | BV52: N/A | BW52: N/A
A53: Microbiological quality of piped on premises at point of collection | B53: Not contaminated (No E. coli in 100 mL) | C53: N/A | D53: N/A | E53: N/A | F53: N/A | G53: N/A | H53: N/A | I53: N/A | J53: N/A | K53: N/A | L53: N/A | M53: N/A | N53: N/A | O53: N/A | P53: N/A | Q53: N/A | R53: N/A | S53: N/A | T53: N/A | U53: N/A | V53: N/A | W53: N/A | BA53: Microbiological quality of piped on premises at point of collection | BB53: Not contaminated (No E. coli in 100 mL) | BC53: N/A | BD53: N/A | BE53: N/A | BF53: N/A | BG53: N/A | BH53: N/A | BI53: N/A | BJ53: N/A | BK53: N/A | BL53: N/A | BM53: N/A | BN53: N/A | BO53: N/A | BP53: N/A | BQ53: N/A | BR53: N/A | BS53: N/A | BT53: N/A | BU53: N/A | BV53: N/A | BW53: N/A
B54: Contaminated (E. coli detected in 100 mL) | C54: N/A | D54: N/A | E54: N/A | F54: N/A | G54: N/A | H54: N/A | I54: N/A | J54: N/A | K54: N/A | L54: N/A | M54: N/A | N54: N/A | O54: N/A | P54: N/A | Q54: N/A | R54: N/A | S54: N/A | T54: N/A | U54: N/A | V54: N/A | W54: N/A | BB54: Contaminated (E. coli detected in 100 mL) | BC54: N/A | BD54: N/A | BE54: N/A | BF54: N/A | BG54: N/A | BH54: N/A | BI54: N/A | BJ54: N/A | BK54: N/A | BL54: N/A | BM54: N/A | BN54: N/A | BO54: N/A | BP54: N/A | BQ54: N/A | BR54: N/A | BS54: N/A | BT54: N/A | BU54: N/A | BV54: N/A | BW54: N/A
B55: Highly contaminated (>100 CFU/100 mL) | C55: N/A | D55: N/A | E55: N/A | F55: N/A | G55: N/A | H55: N/A | I55: N/A | J55: N/A | K55: N/A | L55: N/A | M55: N/A | N55: N/A | O55: N/A | P55: N/A | Q55: N/A | R55: N/A | S55: N/A | T55: N/A | U55: N/A | V55: N/A | W55: N/A | BB55: Highly contaminated (>100 CFU/100 mL) | BC55: N/A | BD55: N/A | BE55: N/A | BF55: N/A | BG55: N/A | BH55: N/A | BI55: N/A | BJ55: N/A | BK55: N/A | BL55: N/A | BM55: N/A | BN55: N/A | BO55: N/A | BP55: N/A | BQ55: N/A | BR55: N/A | BS55: N/A | BT55: N/A | BU55: N/A | BV55: N/A | BW55: N/A
C56: NATIONAL wealth index quintile | H56: URBAN wealth index quintile | M56: RURAL wealth index quintile | R56: SUB-REGIONS: | BA56: Raw numbers of respondents: | BB56: Use of drinking water sources | BC56: NATIONAL wealth index quintile | BH56: URBAN wealth index quintile | BM56: RURAL wealth index quintile | BR56: SUB-REGIONS:
A57: Percentage based on weighted population | C57: Poorest | D57: Poor | E57: Middle | F57: Rich | G57: Richest | H57: Poorest | I57: Poor | J57: Middle | K57: Rich | L57: Richest | M57: Poorest | N57: Poor | O57: Middle | P57: Rich | Q57: Richest | R57: Centrale | S57: Kara | T57: Lomé | U57: Maritime | V57: Plateaux | W57: Savanes | BA57: Water data, raw numbers (weighted) | BC57: Poorest | BD57: Poor | BE57: Middle | BF57: Rich | BG57: Richest | BH57: Poorest | BI57: Poor | BJ57: Middle | BK57: Rich | BL57: Richest | BM57: Poorest | BN57: Poor | BO57: Middle | BP57: Rich | BQ57: Richest | BR57: Centrale | BS57: Kara | BT57: Lomé | BU57: Maritime | BV57: Plateaux | BW57: Savanes
A58: Source principale d'eau potable | B58: Robinet dans le logement | C58: 0 | D58: 0 | E58: 0.03827627685 | F58: 1.82653566 | G58: 9.094087573 | H58: 0.1339821909 | I58: 1.110689283 | J58: 5.3171479 | K58: 3.112043451 | L58: 18.45959596 | M58: 0 | N58: 0 | O58: 0 | P58: 0 | Q58: 0.6213539578 | R58: 0.5700095247 | S58: 0.8206262261 | T58: 8.992358309 | U58: 2.256511766 | V58: 0.2310631965 | W58: 1.09409326
B59: Robinet dans concession, cour ou parcelle | C59: 0 | D59: 0.07805081391 | E59: 0.3631340335 | F59: 2.36273658 | G59: 11.4565296 | H59: 0.813182508 | I59: 3.003285514 | J59: 4.704375317 | K59: 9.43347859 | L59: 18.0910312 | M59: 0 | N59: 0 | O59: 0.05002832056 | P59: 0.3367133385 | Q59: 0.7586505465 | R59: 0.2542493131 | S59: 3.555845535 | T59: 9.945925619 | U59: 2.987324376 | V59: 0.3650058201 | W59: 0.8064528228
B60: Robinet du voisin | C60: 0 | D60: 0.9909836795 | E60: 3.043754891 | F60: 16.16716142 | G60: 17.37106735 | H60: 16.40400166 | I60: 21.88553639 | J60: 21.61748541 | K60: 22.89326282 | L60: 10.29572845 | M60: 0 | N60: 0 | O60: 0.2774977545 | P60: 1.020573683 | Q60: 2.82608608 | R60: 7.641035979 | S60: 1.752356669 | T60: 27.78982512 | U60: 4.613228984 | V60: 6.276800102 | W60: 2.16414118
B61: Robinet public / borne fontaine | C61: 3.540187185 | D61: 6.731805177 | E61: 13.95867957 | F61: 23.65154195 | G61: 16.8275768 | H61: 24.56296206 | I61: 28.02938661 | J61: 25.93329314 | K61: 20.20348819 | L61: 9.184049129 | M61: 3.828427221 | N61: 3.57074076 | O61: 7.556589768 | P61: 10.71578478 | Q61: 13.01545602 | R61: 6.067581604 | S61: 16.91166364 | T61: 24.36313643 | U61: 13.4468121 | V61: 8.38866308 | W61: 8.934318617
B62: Forage | C62: 12.11194971 | D62: 17.73604812 | E62: 19.26461557 | F62: 23.55431427 | G62: 23.82942556 | H62: 24.91722679 | I62: 21.74535951 | J62: 23.00003865 | K62: 24.29389978 | L62: 23.01757923 | M62: 12.40547862 | N62: 13.38551588 | O62: 17.83870932 | P62: 17.96314163 | Q62: 22.57352007 | R62: 14.66575659 | S62: 22.52545459 | T62: 15.20178889 | U62: 30.71647194 | V62: 10.40829102 | W62: 11.75732436
B63: Puits à pompe | C63: 1.727443278 | D63: 2.843956823 | E63: 2.4845935 | F63: 0.7273915643 | G63: 0.08504931591 | H63: 0.6889919333 | I63: 0.336723835 | J63: 0.3365419154 | K63: 0 | L63: 0.1189592314 | M63: 1.485438583 | N63: 2.061470369 | O63: 3.16478681 | P63: 3.020108849 | Q63: 1.982058312 | R63: 4.783832022 | S63: 3.265301053 | T63: 0.06961978678 | U63: 0.4376892235 | V63: 0.5225545284 | W63: 3.507987439
B64: Puits protégé | C64: 6.347755848 | D64: 9.539847013 | E64: 12.27991224 | F64: 12.38445808 | G64: 8.164067769 | H64: 9.455957928 | I64: 11.99729329 | J64: 9.335932902 | K64: 10.07703305 | L64: 5.854593879 | M64: 5.787433152 | N64: 7.852619811 | O64: 9.832963506 | P64: 11.45454624 | Q64: 14.99623239 | R64: 28.06386446 | S64: 10.70343471 | T64: 3.159457938 | U64: 5.428974378 | V64: 9.055810476 | W64: 13.85601389
B65: Puits non protégé | C65: 31.04796686 | D65: 27.78264426 | E65: 26.34662381 | F65: 15.81741955 | G65: 7.662901238 | H65: 20.64602009 | I65: 10.39825431 | J65: 7.769894615 | K65: 7.485692649 | L65: 5.573275442 | M65: 30.27965002 | N65: 32.14673696 | O65: 26.69159597 | P65: 27.33183011 | Q65: 26.40454776 | R65: 21.45708191 | S65: 16.81659237 | T65: 6.55487964 | U65: 27.5440286 | V65: 18.39815947 | W65: 33.37926309
B66: Source protégée | C66: 0.218622075 | D66: 0.6915239596 | E66: 0.5652651799 | F66: 0.1194958402 | G66: 0.02250398732 | H66: 0.4463270488 | I66: 0.07592083456 | J66: 0 | K66: 0.05986101609 | L66: 0 | M66: 0.1053640601 | N66: 0.8718506565 | O66: 0.3108719116 | P66: 0.2273016313 | Q66: 0.725157148 | R66: 0.3955660234 | S66: 1.160201095 | T66: 0.04446591989 | U66: 0 | V66: 0.1045583278 | W66: 0.8144554513
B67: Source non protégée | C67: 5.919335732 | D67: 4.660292346 | E67: 2.100444322 | F67: 0.4518491122 | G67: 0.01640405259 | H67: 0.3890757965 | I67: 0.1725354337 | J67: 0 | K67: 0.04363507862 | L67: 0 | M67: 6.428831687 | N67: 5.883667341 | O67: 4.098465102 | P67: 3.168210209 | Q67: 1.119530469 | R67: 3.379817883 | S67: 2.561830033 | T67: 0.02555696137 | U67: 2.063987165 | V67: 2.980304932 | W67: 5.387572242
B68: Eau de pluie | C68: 0.5955643604 | D68: 0.433171541 | E68: 0.6652577199 | F68: 0.1319774878 | G68: 0.3610842095 | H68: 0.3100038427 | I68: 0 | J68: 0.6706939055 | K68: 0.2894451618 | L68: 0 | M68: 0.9554352185 | N68: 0.1461942294 | O68: 0.5473943391 | P68: 0.7214315301 | Q68: 0.3693942033 | R68: 0.08676809124 | S68: 0.01303125412 | T68: 0 | U68: 0.8411928042 | V68: 0.802923534 | W68: 0
B69: Camion-citerne | C69: 0 | D69: 0.04881179034 | E69: 0 | F69: 0 | G69: 0.4876413944 | H69: 0 | I69: 0 | J69: 0 | K69: 0 | L69: 0.5897516007 | M69: 0 | N69: 0 | O69: 0 | P69: 0.07801011059 | Q69: 0.4269748821 | R69: 0 | S69: 0 | T69: 0.0454223915 | U69: 0.3351064009 | V69: 0 | W69: 0
